Workbook

Sheet parameters
A5: parameters | D5: Base
B6: which version of foundation budget? | C6: 1 | D6: 1
B7: effort reduction | C7: 1 | D7: 0 | K7: Progress Towards Target Local Share
B8: pct downpayment | C8: 0 | D8: 0
B9: growth aid? | C9: no | D9: no | L9: FY07 | M9: FY08 | N9: FY09 | O9: FY10 | P9: FY11 | Q9: FY12 | R9: FY13 | S9: FY14 | T9: FY15 | U9: FY16
B10: target aid share floor? | C10: no | D10: no | G10: c70 FY15 (GAA) | H10: 4400696187 | K10: excess effort before effort reduction | L10: 621.084157 | M10: 494.058912 | N10: 372.382091 | O10: 228.110232 | P10: 366 | Q10: 293.3 | R10: 229.8 | S10: 234.5 | T10: 307.903014 | U10: ='townwide contributions'!T361/1000000 -> 235.358789
B11: percentage points below target aid share | C11: 5 | D11: 5 | K11: effort reduction | L11: 124.2168314 | M11: 123.514728 | N11: 122.88609 | O11: 34.216535 | P11: 109.8 | Q11: 58.7 | R11: 34.5 | S11: 35.2 | T11: 153.951507 | U11: ='townwide contributions'!U361/1000000 -> 235.358789
B12: target aid phase-in | C12: 0 | D12: 0 | G12: fy16 foundation aid increase | H12: ='aid436'!I448 -> 145377082 | K12: net excess after effort reduction | L12: 496.8673256 | M12: 370.544184 | N12: 249.496001 | O12: 193.893697 | P12: 256.2 | Q12: =Q10-Q11 -> 234.6 | R12: =R10-R11 -> 195.3 | S12: 199.3 | T12: 152.0806983 | U12: ='townwide contributions'!AA361/1000000 -> 0
B13: CEY % of foundation cut-off | C13: 1.4 | D13: 1.4 | G13: fy16 down payment increase | H13: ='aid436'!M448 -> 0 | K13: shortfall below target before increment | L13: -321.452322 | M13: -352.174875 | N13: -359.193563 | O13: -427.2 | P13: -228 | Q13: -211 | R13: -200 | S13: -180.2 | T13: -162.972215 | U13: ='townwide contributions'!Y361/1000000 -> -132.627218
B14: per pupil guaranteed increase | C14: 25 | D14: 0 | G14: growth aid increase | H14: ='aid436'!P448 -> 0 | K14: additional increments toward target | L14: 0 | M14: -19.739149 | N14: -21.387588 | O14: -121.2 | P14: -10.6 | Q14: -10 | R14: -4.2 | S14: -3.9 | T14: -7.563093 | U14: ='townwide contributions'!S361/1000000*-1 -> -5.848739
B15: which version of mrgf? | C15: 1 | D15: 1 | G15: minimum per pupil aid increase | H15: ='aid436'!AF448 -> 11008840.42 | K15: net shortfall below target after increment | L15: -321.452322 | M15: -332.435726 | N15: -337.805975 | O15: -306 | P15: -217.4 | Q15: -200.9 | R15: -195.7 | S15: -176.3 | T15: -155.409122 | U15: ='townwide contributions'!Z361/1000000 -> -126.778479
B16: below effort threshold 1 | C16: 2.5 | D16: 2.5 | G16: non-op reduction | H16: ='aid436'!AH448 -> 71164.36 | K16: n of municipalities with effort too high | L16: 232 | M16: 218 | N16: 214 | O16: 193 | P16: 282 | Q16: 257 | R16: 249 | S16: 255 | T16: 279 | U16: ='townwide contributions'!AA364 -> 0
B17: below effort threshold 2 | C17: 7.5 | D17: 7.5 | G17: target aid phase-in | H17: ='aid436'!AC448 -> 0
B18: below effort contribution increment, 5-10% under | C18: 0.01 | D18: 0.01 | G18: c70fy16 | H18: ='aid436'!AI448 -> 4557150720
B19: below effort contribution increment, >10% under | C19: 0.02 | D19: 0.02 | G19: Devens and Southfield | H19: =308558+51667 -> 360225
B20: maximum local contribution pct of foundation | C20: 0.825 | D20: 0.825 | G20: change in c70 appropriation | H20: =H18+H19-H10 -> 156814758
B21: statewide target for local contribution % of foundation | C21: 0.59 | D21: 0.59 | G21: percent change | H21: =H20/H10 -> 0.03563407955
B22: cap contributions at fixed percentage of foundation | C22: 0.9 | D22: 0.9
B23: percentage cut to base aid | C23: 0 | D23: 0 | G23: n of foundation aid operating dists | H23: ='aid436'!X448 -> 134
A24: eqv/income percentages | G24: n of districts with aid increase | H24: ='comparison to fy15'!O335 -> 322
G25: total c70 including Devens and Southfield | H25: =H18+H19 -> 4557510945
B26: target effort FY15 | C26: =C21*localcont!H1765 -> 5953204591
B27: effort based upon following percentages | C27: ='townwide contributions'!J361 -> 5953204595
B28: difference from target | C28: =IF(ABS(C27-C26)<10,0,C27-C26) -> 0
B29: percentage of EQV | C29: 0.003807820503
B30: percentage of INCOME | C30: =C29*1/C34 -> 0.0149300376
B32: total eqv | C32: ='townwide contributions'!C361 -> 977191967900
B33: total income | C33: ='townwide contributions'!E361 -> 2.492272096e+11
B34: st avg income pct of eqv | C34: =C33/C32 -> 0.2550442674
A37: See Progress Towards Targets
K42: Progress Towards Target Aid Share
L44: FY07 | M44: FY08 | N44: FY09 | O44: FY10 | P44: FY11 | Q44: FY12 | R44: FY13 | S44: FY14 | T44: FY15 | U44: FY16
K45: aid above target | L45: 394.9 | M45: 421 | N45: 440.4 | O45: 413.5991456 | P45: 489.2905867 | Q45: 360.5802896 | R45: 372.9139726 | S45: 385.3 | T45: 404.6539336 | U45: ='aid436'!AP449/1000000 -> 420.2408054
K46: aid below target | L46: -176.3 | M46: -143 | N46: -105.5 | O46: -97.82363262 | P46: -75.73073977 | Q46: -110.4290612 | R46: -84.70629692 | S46: -66.9 | T46: -49.39921427 | U46: ='aid436'!AP450/1000000 -> -0.02697010415

Sheet index
A1: Massachusetts Department of Elementary and Secondary Education | J1: 2015-07-19
A2: FY16 Chapter 70 and Net School Spending Formula Spreadsheet
A4: =VLOOKUP(lea_order, leas,4) -> 26
B6: Use the drop-down menu to select a municipal district LEA code (1-351) or regional district LEA code (406-915) and then go to
B7: any of the first four links below. Only municipal LEA codes will activate the Municipal Contribution Requirement and Regional Allocation tables.
B8: A list of codes begins on row 30 of this sheet.
B10: We recommend that you save this workbook to your computer before proceeding, then leave this browser, and open the workbook using EXCEL or My Computer.
B12: If you get a "macros not enabled" or similar macro security error message, access the various sheets manually using the tabs at the bottom the screen.
B14: To enable macros, use the macro security commands to enable macros. Then save the file, close, and then re-open the file.
B16: Summary
B17: Foundation Budget
B18: Municipal Contribution Requirement
B19: Regional Allocation
B21: Regional District Detail | D21: (go to this sheet to see any particular regional district's comparison of enrollment and minimum contributions to the prior year)
B23: There are also a number of "hidden" sheets which contain the underlying spreadsheet calculations.
B24: They can be accessed by the "format, sheet, unhide" commands, or by right-clicking on any of the tabs below and choosing a sheet to unhide.
B26: Questions or comments about Chapter 70 may be directed to:
B27: Melissa King | D27: mking@doe.mass.edu | G27: 781-338-6532
B28: Roger Hatch | D28: rhatch@doe.mass.edu | G28: 781-338-6527
A30: LEA | B30: District
A31: 1 | B31: ABINGTON
A32: 2 | B32: ACTON
A33: 3 | B33: ACUSHNET
A34: 4 | B34: ADAMS
A35: 5 | B35: AGAWAM
A36: 6 | B36: ALFORD
A37: 7 | B37: AMESBURY
A38: 8 | B38: AMHERST
A39: 9 | B39: ANDOVER
A40: 10 | B40: ARLINGTON
A41: 11 | B41: ASHBURNHAM
A42: 12 | B42: ASHBY
A43: 13 | B43: ASHFIELD
A44: 14 | B44: ASHLAND
A45: 15 | B45: ATHOL
A46: 16 | B46: ATTLEBORO
A47: 17 | B47: AUBURN
A48: 18 | B48: AVON
A49: 19 | B49: AYER
A50: 20 | B50: BARNSTABLE
A51: 21 | B51: BARRE
A52: 22 | B52: BECKET
A53: 23 | B53: BEDFORD
A54: 24 | B54: BELCHERTOWN
A55: 25 | B55: BELLINGHAM
A56: 26 | B56: BELMONT
A57: 27 | B57: BERKLEY
A58: 28 | B58: BERLIN
A59: 29 | B59: BERNARDSTON
A60: 30 | B60: BEVERLY
A61: 31 | B61: BILLERICA
A62: 32 | B62: BLACKSTONE
A63: 33 | B63: BLANDFORD
A64: 34 | B64: BOLTON
A65: 35 | B65: BOSTON
A66: 36 | B66: BOURNE
A67: 37 | B67: BOXBOROUGH
A68: 38 | B68: BOXFORD
A69: 39 | B69: BOYLSTON
A70: 40 | B70: BRAINTREE
A71: 41 | B71: BREWSTER
A72: 42 | B72: BRIDGEWATER
A73: 43 | B73: BRIMFIELD
A74: 44 | B74: BROCKTON
A75: 45 | B75: BROOKFIELD
A76: 46 | B76: BROOKLINE
A77: 47 | B77: BUCKLAND
A78: 48 | B78: BURLINGTON
A79: 49 | B79: CAMBRIDGE
A80: 50 | B80: CANTON
A81: 51 | B81: CARLISLE
A82: 52 | B82: CARVER
A83: 53 | B83: CHARLEMONT
A84: 54 | B84: CHARLTON
A85: 55 | B85: CHATHAM
A86: 56 | B86: CHELMSFORD
A87: 57 | B87: CHELSEA
A88: 58 | B88: CHESHIRE
A89: 59 | B89: CHESTER
A90: 60 | B90: CHESTERFIELD
A91: 61 | B91: CHICOPEE
A92: 62 | B92: CHILMARK
A93: 63 | B93: CLARKSBURG
A94: 64 | B94: CLINTON
A95: 65 | B95: COHASSET
A96: 66 | B96: COLRAIN
A97: 67 | B97: CONCORD
A98: 68 | B98: CONWAY
A99: 69 | B99: CUMMINGTON
A100: 70 | B100: DALTON
A101: 71 | B101: DANVERS
A102: 72 | B102: DARTMOUTH
A103: 73 | B103: DEDHAM
A104: 74 | B104: DEERFIELD
A105: 75 | B105: DENNIS
A106: 76 | B106: DIGHTON
A107: 77 | B107: DOUGLAS
A108: 78 | B108: DOVER
A109: 79 | B109: DRACUT
A110: 80 | B110: DUDLEY
A111: 81 | B111: DUNSTABLE
A112: 82 | B112: DUXBURY
A113: 83 | B113: EAST BRIDGEWATER
A114: 84 | B114: EAST BROOKFIELD
A115: 85 | B115: EASTHAM
A116: 86 | B116: EASTHAMPTON
A117: 87 | B117: EAST LONGMEADOW
A118: 88 | B118: EASTON
A119: 89 | B119: EDGARTOWN
A120: 90 | B120: EGREMONT
A121: 91 | B121: ERVING
A122: 92 | B122: ESSEX
A123: 93 | B123: EVERETT
A124: 94 | B124: FAIRHAVEN
A125: 95 | B125: FALL RIVER
A126: 96 | B126: FALMOUTH
A127: 97 | B127: FITCHBURG
A128: 98 | B128: FLORIDA
A129: 99 | B129: FOXBOROUGH
A130: 100 | B130: FRAMINGHAM
A131: 101 | B131: FRANKLIN
A132: 102 | B132: FREETOWN
A133: 103 | B133: GARDNER
A134: 104 | B134: GAY HEAD
A135: 105 | B135: GEORGETOWN
A136: 106 | B136: GILL
A137: 107 | B137: GLOUCESTER
A138: 108 | B138: GOSHEN
A139: 109 | B139: GOSNOLD
A140: 110 | B140: GRAFTON
A141: 111 | B141: GRANBY
A142: 112 | B142: GRANVILLE
A143: 113 | B143: GREAT BARRINGTON
A144: 114 | B144: GREENFIELD
A145: 115 | B145: GROTON
A146: 116 | B146: GROVELAND
A147: 117 | B147: HADLEY
A148: 118 | B148: HALIFAX
A149: 119 | B149: HAMILTON
A150: 120 | B150: HAMPDEN
A151: 121 | B151: HANCOCK
A152: 122 | B152: HANOVER
A153: 123 | B153: HANSON
A154: 124 | B154: HARDWICK
A155: 125 | B155: HARVARD
A156: 126 | B156: HARWICH
A157: 127 | B157: HATFIELD
A158: 128 | B158: HAVERHILL
A159: 129 | B159: HAWLEY
A160: 130 | B160: HEATH
A161: 131 | B161: HINGHAM
A162: 132 | B162: HINSDALE
A163: 133 | B163: HOLBROOK
A164: 134 | B164: HOLDEN
A165: 135 | B165: HOLLAND
A166: 136 | B166: HOLLISTON
A167: 137 | B167: HOLYOKE
A168: 138 | B168: HOPEDALE
A169: 139 | B169: HOPKINTON
A170: 140 | B170: HUBBARDSTON
A171: 141 | B171: HUDSON
A172: 142 | B172: HULL
A173: 143 | B173: HUNTINGTON
A174: 144 | B174: IPSWICH
A175: 145 | B175: KINGSTON
A176: 146 | B176: LAKEVILLE
A177: 147 | B177: LANCASTER
A178: 148 | B178: LANESBOROUGH
A179: 149 | B179: LAWRENCE
A180: 150 | B180: LEE
A181: 151 | B181: LEICESTER
A182: 152 | B182: LENOX
A183: 153 | B183: LEOMINSTER
A184: 154 | B184: LEVERETT
A185: 155 | B185: LEXINGTON
A186: 156 | B186: LEYDEN
A187: 157 | B187: LINCOLN
A188: 158 | B188: LITTLETON
A189: 159 | B189: LONGMEADOW
A190: 160 | B190: LOWELL
A191: 161 | B191: LUDLOW
A192: 162 | B192: LUNENBURG
A193: 163 | B193: LYNN
A194: 164 | B194: LYNNFIELD
A195: 165 | B195: MALDEN
A196: 166 | B196: MANCHESTER
A197: 167 | B197: MANSFIELD
A198: 168 | B198: MARBLEHEAD
A199: 169 | B199: MARION
A200: 170 | B200: MARLBOROUGH
A201: 171 | B201: MARSHFIELD
A202: 172 | B202: MASHPEE
A203: 173 | B203: MATTAPOISETT
A204: 174 | B204: MAYNARD
A205: 175 | B205: MEDFIELD
A206: 176 | B206: MEDFORD
A207: 177 | B207: MEDWAY
A208: 178 | B208: MELROSE
A209: 179 | B209: MENDON
A210: 180 | B210: MERRIMAC
... 258 more rows

Sheet rates (hidden)
A3: Massachusetts Department of Elementary and Secondary Education
A4: Office of School Finance
A6: Foundation Budget Rates Per Pupil, FY16 Chapter 70
E8: classroom | F8: other | H8: instructional | L8: employee | M8: special | N8: total
C9: adminis- | D9: instructional | E9: & specialist | F9: teaching | G9: professional | H9: materials, equip- | I9: guidance & | J9: pupil | K9: operations & | L9: benefits & | M9: education | N9: all
C10: tration | D10: leadership | E10: teachers | F10: services | G10: development | H10: ment & tech | I10: psychological | J10: services | K10: maintenance | L10: fixed charges | M10: tuition | N10: categories
A12: 1 | B12: Pre-School | C12: 182.41 | D12: 329.44 | E12: 1510.58 | F12: 387.42 | G12: 59.74 | H12: 218.64 | I12: 109.9 | J12: 43.72 | K12: 419.47 | L12: 378.11 | M12: 0 | N12: 3639.43
A13: 2 | B13: Kindergarten-Half | C13: 182.41 | D13: 329.44 | E13: 1510.58 | F13: 387.42 | G13: 59.74 | H13: 218.64 | I13: 109.9 | J13: 43.72 | K13: 419.47 | L13: 378.11 | M13: 0 | N13: 3639.43
A14: 3 | B14: Kindergarten-Full | C14: 364.8 | D14: 658.87 | E14: 3021.16 | F14: 774.86 | G14: 119.54 | H14: 437.27 | I14: 219.84 | J14: 87.46 | K14: 838.94 | L14: 756.18 | M14: 0 | N14: 7278.92
A15: 4 | B15: Elementary | C15: 364.8 | D15: 658.87 | E15: 3021.12 | F15: 774.86 | G15: 119.56 | H15: 437.27 | I15: 219.84 | J15: 131.19 | K15: 838.94 | L15: 756.23 | M15: 0 | N15: 7322.68
A16: 5 | B16: Junior/Middle | C16: 364.8 | D16: 658.87 | E16: 2658.6 | F16: 557.78 | G16: 129.61 | H16: 437.27 | I16: 292.63 | J16: 214.28 | K16: 909.52 | L16: 719.02 | M16: 0 | N16: 6942.38
A17: 6 | B17: High School | C17: 364.8 | D17: 658.87 | E17: 3909.69 | F17: 464.36 | G17: 125.67 | H17: 699.64 | I17: 366.83 | J17: 494.12 | K17: 881.87 | L17: 690.79 | M17: 0 | N17: 8656.64
A18: 7 | B18: Special Ed-In School | C18: 2517.8 | D18: 0 | E18: 8308.11 | F18: 7757.17 | G18: 400.78 | H18: 349.82 | I18: 0 | J18: 0 | K18: 2812.51 | L18: 3186.23 | M18: 0 | N18: 25332.42
A19: 8 | B19: Special Ed-Tuitioned Out | C19: 2517.8 | D19: 0 | E19: 0 | F19: 38.46 | G19: 0 | H19: 0 | I19: 0 | J19: 0 | K19: 0 | L19: 0 | M19: 23905.21 | N19: 26461.47
A20: 9 | B20: ELL PK | C20: 182.42 | D20: 329.44 | E20: 2274.98 | F20: 309.79 | G20: 80.93 | H20: 218.64 | I20: 146.3 | J20: 65.58 | K20: 567.89 | L20: 475.65 | M20: 0 | N20: 4651.62
A21: 10 | B21: ELL K Half Time | C21: 182.42 | D21: 329.44 | E21: 2274.98 | F21: 309.79 | G21: 80.93 | H21: 218.64 | I21: 146.3 | J21: 65.58 | K21: 567.89 | L21: 475.65 | M21: 0 | N21: 4651.62
A22: 11 | B22: ELL Full Time | C22: 364.8 | D22: 658.87 | E22: 4549.95 | F22: 619.58 | G22: 161.83 | H22: 437.27 | I22: 292.63 | J22: 131.19 | K22: 1135.73 | L22: 951.3 | M22: 0 | N22: 9303.15
A23: 12 | B23: Vocational | C23: 364.8 | D23: 658.87 | E23: 6646.51 | F23: 464.36 | G23: 207.77 | H23: 1224.35 | I23: 366.83 | J23: 494.12 | K23: 1650.45 | L23: 1121.9 | M23: 0 | N23: 13199.96
A24: 13 | B24: Low Income Elem | C24: 0 | D24: 0 | E24: 2718.08 | F24: 0 | G24: 59.82 | H24: 0 | I24: 0 | J24: 0 | K24: 419.79 | L24: 275.91 | M24: 0 | N24: 3473.6
A25: 14 | B25: Low Income Secondary | C25: 0 | D25: 0 | E25: 2053.44 | F25: 0 | G25: 59.82 | H25: 0 | I25: 0 | J25: 0 | K25: 419.79 | L25: 275.91 | M25: 0 | N25: 2808.96
F29: PK/Half Day K | G29: =N13 -> 3639.43
F30: Kindergarten-Full | G30: =N14 -> 7278.92
F31: Elementary | G31: =N15 -> 7322.68
F32: Junior/Middle | G32: =N16 -> 6942.38
F33: High School | G33: =N17 -> 8656.64
F34: Limited English PK/Half Day K | G34: =N21 -> 4651.62
F35: Limited English Full Time | G35: =N22 -> 9303.15
F36: Vocational | G36: =N23 -> 13199.96
F37: Special Ed-In School | G37: =N18 -> 25332.42
F38: Special Ed-Tuitioned Out | G38: =N19 -> 26461.47
F39: Low Income Elem | G39: =N24 -> 3473.6
F40: Low Income Secondary | G40: =N25 -> 2808.96

Sheet foundation budget
B1: Return to Index
A2: Massachusetts Department of Elementary and Secondary Education
A3: Office of School Finance
A5: FY16 Chapter 70 Foundation Budget
A6: =lea -> 26 | B6: =IF(lea=999,"State total cannot be computed on this page; Please enter an lea code on the index sheet",VLOOKUP(A6,dist915,2)) -> BELMONT
C7: -------------------------------------- Base Foundation Components ----------------------------------------------------------- | N7: --- Incremental Costs Above The Base ------
C8: (1) | D8: (2) | E8: (3) | F8: (4) | G8: (5) | H8: (6) | I8: (7) | J8: (8) | K8: (9) | L8: (10) | N8: (11) | O8: (12) | P8: (13) | Q8: (14)
C9: Pre- | D9: ------ Kindergarten ------ | G9: Jr High/ | H9: High | I9: ELL | J9: ELL | K9: ELL | L9: Voca- | N9: Special Ed | O9: Special Ed | P9: ---- Low Income ----
C10: School | D10: Half-Day | E10: Full-Day | F10: Elementary | G10: Middle | H10: School | I10: PK | J10: K Half | K10: KF - 12 | L10: tional | N10: In District | O10: Out of Dist | P10: Elem | Q10: Other | S10: TOTAL*
B11: Foundation Enrollment | C11: =IF($A$6<>999,VLOOKUP(lea,dist915,3),0) -> 28 | D11: =IF(A6<>999,VLOOKUP(lea,dist915,4),0) -> 280 | E11: =IF(A6<>999,VLOOKUP(lea,dist915,5),0) -> 26 | F11: =IF(A6<>999,VLOOKUP(lea,dist915,6),0) -> 1599 | G11: =IF(A6<>999,VLOOKUP(lea,dist915,7),0) -> 938 | H11: =IF(A6<>999,VLOOKUP(lea,dist915,8),0) -> 1239 | I11: =IF(A6<>999,VLOOKUP(lea,dist915,11),0) -> 1 | J11: =IF(A6<>999,VLOOKUP(lea,dist915,12),0) -> 48 | K11: =IF(A6<>999,VLOOKUP(lea,dist915,13),0) -> 175 | L11: =IF(A6<>999,VLOOKUP(lea,dist915,14),0) -> 0 | N11: =IF(A6<>999,VLOOKUP(lea,dist915,9),0) -> 155 | O11: =IF(A6<>999,VLOOKUP(lea,dist915,10),0) -> 41 | P11: =IF(A6<>999,VLOOKUP(lea,dist915,15),0) -> 195 | Q11: =IF(A6<>999,VLOOKUP(lea,dist915,16),0) -> 112 | S11: =IF(A6<>999,VLOOKUP(lea,dist915,17),0) -> 4156
A13: 1 | B13: Administration | C13: =(VLOOKUP(VALUE(C$8)/-1,newrates,$A13+2)*C$11*waf) -> 5281.13432 | D13: 52811.3432 | E13: 9807.2832 | F13: 603147.9168 | G13: 353816.6016 | H13: 467354.7648 | I13: =(VLOOKUP(9,newrates,$A13+2)*I$11*waf) -> 188.62228 | J13: =(VLOOKUP(10,newrates,$A13+2)*J$11*waf) -> 9053.86944 | K13: =(VLOOKUP(11,newrates,$A13+2)*K$11*waf) -> 66010.56 | L13: =(VLOOKUP(12,newrates,$A13+2)*L$11*waf) -> 0 | N13: =(VLOOKUP(7,newrates,$A13+2)*N$11*waf) -> 403527.806 | O13: =(VLOOKUP(8,newrates,$A13+2)*O$11*waf) -> 106739.6132 | P13: =(VLOOKUP(VALUE(P$8)/-1,newrates,$A13+2)*P$11*waf) -> 0 | Q13: 0 | S13: =SUM(C13:Q13) -> 2077739.515
A14: 2 | B14: Instructional Leadership | C14: 9537.94688 | D14: 95379.4688 | E14: 17713.06108 | F14: 1089353.256 | G14: 639032.742 | H14: 844095.4876 | I14: =(VLOOKUP(9,newrates,$A14+2)*I$11*waf) -> 340.64096 | J14: =(VLOOKUP(10,newrates,$A14+2)*J$11*waf) -> 16350.76608 | K14: =(VLOOKUP(11,newrates,$A14+2)*K$11*waf) -> 119222.5265 | L14: =(VLOOKUP(12,newrates,$A14+2)*L$11*waf) -> 0 | N14: =(VLOOKUP(7,newrates,$A14+2)*N$11*waf) -> 0 | O14: =(VLOOKUP(8,newrates,$A14+2)*O$11*waf) -> 0 | P14: 0 | Q14: 0 | S14: 2831025.896
A15: 3 | B15: Classroom and Specialist Teachers | C15: 43734.31216 | D15: 437343.1216 | E15: 81220.86544 | F15: 4995017.09 | G15: 2578554.871 | H15: 5008805.511 | I15: =(VLOOKUP(9,newrates,$A15+2)*I$11*waf) -> 2352.32932 | J15: =(VLOOKUP(10,newrates,$A15+2)*J$11*waf) -> 112911.8074 | K15: =(VLOOKUP(11,newrates,$A15+2)*K$11*waf) -> 823313.4525 | L15: =(VLOOKUP(12,newrates,$A15+2)*L$11*waf) -> 0 | N15: =(VLOOKUP(7,newrates,$A15+2)*N$11*waf) -> 1331540.79 | O15: =(VLOOKUP(8,newrates,$A15+2)*O$11*waf) -> 0 | P15: 548046.4704 | Q15: 237804.7795 | S15: 16200645.4
A16: 4 | B16: Other Teaching Services | C16: 11216.58384 | D16: 112165.8384 | E16: 20831.33624 | F16: 1281127.179 | G16: 540986.3598 | H16: 594903.6694 | I16: =(VLOOKUP(9,newrates,$A16+2)*I$11*waf) -> 320.32286 | J16: =(VLOOKUP(10,newrates,$A16+2)*J$11*waf) -> 15375.49728 | K16: =(VLOOKUP(11,newrates,$A16+2)*K$11*waf) -> 112113.001 | L16: =(VLOOKUP(12,newrates,$A16+2)*L$11*waf) -> 0 | N16: =(VLOOKUP(7,newrates,$A16+2)*N$11*waf) -> 1243241.636 | O16: =(VLOOKUP(8,newrates,$A16+2)*O$11*waf) -> 1630.47324 | P16: 0 | Q16: 0 | S16: 3933911.897
A17: 5 | B17: Professional Development | C17: 1729.59248 | D17: 17295.9248 | E17: 3213.71336 | F17: 197676.439 | G17: 125707.7021 | H17: 160999.1044 | I17: =(VLOOKUP(9,newrates,$A17+2)*I$11*waf) -> 83.68162 | J17: =(VLOOKUP(10,newrates,$A17+2)*J$11*waf) -> 4016.71776 | K17: =(VLOOKUP(11,newrates,$A17+2)*K$11*waf) -> 29283.1385 | L17: =(VLOOKUP(12,newrates,$A17+2)*L$11*waf) -> 0 | N17: =(VLOOKUP(7,newrates,$A17+2)*N$11*waf) -> 64233.0106 | O17: =(VLOOKUP(8,newrates,$A17+2)*O$11*waf) -> 0 | P17: 12061.5066 | Q17: 6927.63456 | S17: 623228.1658
A18: 6 | B18: Instructional Equipment & Tech | C18: =(VLOOKUP(VALUE(C$8)/-1,newrates,$A18+2)*C$11) -> 6121.92 | D18: 61219.2 | E18: 11369.02 | F18: 699194.73 | G18: 410159.26 | H18: 866853.96 | I18: =(VLOOKUP(9,newrates,$A18+2)*I$11) -> 218.64 | J18: =(VLOOKUP(10,newrates,$A18+2)*J$11) -> 10494.72 | K18: =(VLOOKUP(11,newrates,$A18+2)*K$11) -> 76522.25 | L18: =(VLOOKUP(12,newrates,$A18+2)*L$11) -> 0 | N18: =(VLOOKUP(7,newrates,$A18+2)*N$11) -> 54222.1 | O18: =(VLOOKUP(8,newrates,$A18+2)) -> 0 | P18: =(VLOOKUP(VALUE(P$8)/-1,newrates,$A18+2)*P$11) -> 0 | Q18: =(VLOOKUP(VALUE(Q$8)/-1,newrates,$A18+2)*Q$11) -> 0 | S18: 2196375.8
A19: 7 | B19: Guidance and Psychological | C19: =(VLOOKUP(VALUE(C$8)/-1,newrates,$A19+2)*C$11*waf) -> 3181.8248 | D19: 31818.248 | E19: 5910.17856 | F19: 363475.9814 | G19: 283819.496 | H19: 469955.4506 | I19: =(VLOOKUP(9,newrates,$A19+2)*I$11*waf) -> 151.2742 | J19: =(VLOOKUP(10,newrates,$A19+2)*J$11*waf) -> 7261.1616 | K19: =(VLOOKUP(11,newrates,$A19+2)*K$11*waf) -> 52951.3985 | L19: =(VLOOKUP(12,newrates,$A19+2)*L$11*waf) -> 0 | N19: =(VLOOKUP(7,newrates,$A19+2)*N$11*waf) -> 0 | O19: =(VLOOKUP(8,newrates,$A19+2)*O$11*waf) -> 0 | P19: =(VLOOKUP(VALUE(P$8)/-1,newrates,$A19+2)*P$11*waf) -> 0 | Q19: 0 | S19: 1218525.014
A20: 8 | B20: Pupil Services | C20: 1265.78144 | D20: 12657.8144 | E20: 2351.27464 | F20: 216905.0855 | G20: 207828.4578 | H20: 633029.9791 | I20: =(VLOOKUP(9,newrates,$A20+2)*I$11*waf) -> 67.80972 | J20: =(VLOOKUP(10,newrates,$A20+2)*J$11*waf) -> 3254.86656 | K20: =(VLOOKUP(11,newrates,$A20+2)*K$11*waf) -> 23738.8305 | L20: =(VLOOKUP(12,newrates,$A20+2)*L$11*waf) -> 0 | N20: =(VLOOKUP(7,newrates,$A20+2)*N$11*waf) -> 0 | O20: =(VLOOKUP(8,newrates,$A20+2)*O$11*waf) -> 0 | P20: 0 | Q20: 0 | S20: 1101099.9
A21: 9 | B21: Operations and Maintenance | C21: 12144.49544 | D21: 121444.9544 | E21: 22554.06296 | F21: 1387074.872 | G21: 882136.1718 | H21: 1129786.586 | I21: =(VLOOKUP(9,newrates,$A21+2)*I$11*waf) -> 587.19826 | J21: =(VLOOKUP(10,newrates,$A21+2)*J$11*waf) -> 28185.51648 | K21: =(VLOOKUP(11,newrates,$A21+2)*K$11*waf) -> 205510.3435 | L21: =(VLOOKUP(12,newrates,$A21+2)*L$11*waf) -> 0 | N21: =(VLOOKUP(7,newrates,$A21+2)*N$11*waf) -> 450760.9777 | O21: =(VLOOKUP(8,newrates,$A21+2)*O$11*waf) -> 0 | P21: 84642.2577 | Q21: 48615.04032 | S21: 4373442.476
A22: 10 | B22: Employee Benefits/Fixed Charges | C22: =(VLOOKUP(VALUE(C$8)/-1,newrates,$A22+2)*C$11) -> 10587.08 | D22: 105870.8 | E22: 19660.68 | F22: 1209211.77 | G22: 674440.76 | H22: 855888.81 | I22: =(VLOOKUP(9,newrates,$A22+2)*I$11) -> 475.65 | J22: =(VLOOKUP(10,newrates,$A22+2)*J$11) -> 22831.2 | K22: =(VLOOKUP(11,newrates,$A22+2)*K$11) -> 166477.5 | L22: =(VLOOKUP(12,newrates,$A22+2)*L$11) -> 0 | N22: =(VLOOKUP(7,newrates,$A22+2)*N$11) -> 493865.65 | O22: =(VLOOKUP(8,newrates,$A22+2)*O$11) -> 0 | P22: =(VLOOKUP(VALUE(P$8)/-1,newrates,$A22+2)*P$11) -> 53802.45 | Q22: =(VLOOKUP(VALUE(Q$8)/-1,newrates,$A22+2)*Q$11) -> 30901.92 | S22: 3644014.27
A23: 11 | B23: Special Ed Tuition | C23: 0 | D23: 0 | E23: 0 | F23: 0 | G23: 0 | H23: 0 | I23: =(VLOOKUP(9,newrates,$A23+2)*I$11) -> 0 | J23: =(VLOOKUP(10,newrates,$A23+2)*J$11) -> 0 | K23: =(VLOOKUP(11,newrates,$A23+2)*K$11) -> 0 | L23: =(VLOOKUP(12,newrates,$A23+2)*L$11) -> 0 | N23: =(VLOOKUP(7,newrates,$A23+2)*N$11) -> 0 | O23: =(VLOOKUP(8,newrates,$A23+2)*O$11) -> 980113.61 | P23: =(VLOOKUP(VALUE(P$8)/-1,newrates,$A23+2)*P$11) -> 0 | Q23: =(VLOOKUP(VALUE(Q$8)/-1,newrates,$A23+2)*Q$11) -> 0 | S23: 980113.61
A25: 12 | B25: Total | C25: =SUM(C13:C23) -> 104800.6714 | D25: 1048006.714 | E25: 194631.4755 | F25: 12042184.32 | G25: 6696482.422 | H25: 11031673.32 | I25: 4786.16922 | J25: 229736.1226 | K25: 1675143.001 | L25: 0 | N25: =SUM(N13:N23) -> 4041391.97 | O25: =SUM(O13:O23) -> 1088483.696 | P25: =SUM(P13:P23) -> 698552.6847 | Q25: =SUM(Q13:Q23) -> 324249.3744 | S25: =SUM(S13:S24) -> 39180121.94
A27: 13 | B27: Wage Adjustment Factor | C27: =VLOOKUP(lea,dist915,18) -> 1.034 | Q27: Foundation Budget Per Pupil | S27: =IF(A6<>999,S25/S11," ") -> 9427.363316
A29: * | B29: Total foundation enrollment does not include columns 11 through 14, because those columns represent increments above the base. The pupils are already counted in columns 1 to 10.
B30: Total foundation enrollment assigns pupils in pre-kindergarten and half-time kindergarten an enrollment count of .5.
B31: Special education in-district headcount is an assumed percentage, representing 3.75 percent of K to 12 non-vocational enrollment and 4.75 percent of vocational enrollment.
B32: Special education out-of-district headcount is also an assumed percentage, representing 1 percent of non-vocational K-12 enrollment.
B33: Low income headcounts are the number of pupils in columns 1 through 10 who are eligible for free or reduced lunch.
B34: Each component of the foundation budget represents the enrollment on line 1 multiplied by the appropriate state-wide foundation allotment.
B35: The wage adjustment factor is applied to underlying rates in all functions except instructional equipment, benefits and special education tuition.
B36: The foundation budget shown on this page may differ from the final number used in the formula, due to rounding error.
B38: Return to Index

Sheet municipal contribution
L1: =IF(VLOOKUP(A6,town351,17)>0,"lo","hi") -> hi
B2: Return to Index
A3: Massachusetts Department of Elementary and Secondary Education
A4: FY16 Determination of City and Town Total Required Contribution
A6: =lea -> 26 | B6: =IF(lea>351, "This lea code does not refer to a city or a town - this table shows municipal data only",VLOOKUP(A6,aidcalc,2)) -> BELMONT
A8: Effort Goal | E8: FY16 Increments Toward Goal
A10: 1) | B10: 2014 equalized valuation | C10: =IF(A6<352,VLOOKUP($A$6,town351,3)," ") -> 5760631800 | E10: 13) | F10: Required local contribution FY15 | G10: =IF(A6<352,VLOOKUP($A$6,town351,13)," ") -> 31696182
A11: 2) | B11: Property percentage | C11: =IF(A6<352,'townwide contributions'!D5," ") -> 0.003807820503 | E11: 14) | F11: Municipal revenue growth factor (DOR) | G11: =IF(A$6<352,VLOOKUP($A$6,town351,14)," ") -> 0.0388
A12: 3) | B12: Local effort from property wealth | C12: =IF(A6<352,VLOOKUP($A$6,town351,4)," ") -> 21935451.88 | E12: 15) | F12: FY16 preliminary contribution (13 x 14) | G12: =IF(A$6<352,VLOOKUP($A$6,town351,15)," ") -> 32925994
E13: 16) | F13: Preliminary contribution pct of foundation (15/8) | G13: =IF(A$6<352,VLOOKUP($A$6,town351,16)/100," ") -> 0.8296156892
A14: 4) | B14: 2012 income | C14: =IF(A6<352,VLOOKUP($A$6,town351,5)," ") -> 2012464000
A15: 5) | B15: Income percentage | C15: =IF(A6<352,'townwide contributions'!F5," ") -> 0.0149300376 | E15: If preliminary contribution is above the target share:
A16: 6) | B16: Local effort from income | C16: =IF(A6<352,VLOOKUP($A$6,town351,6)," ") -> 30046163.2 | E16: 17) | F16: Excess local effort (15 - 10) | G16: =IF(AND(A$6<352,L$1="hi"),VLOOKUP($A$6,town351,20)," ") -> 183189
E17: 18) | F17: 50% reduction toward target (17 x 50%) | G17: =IF(AND(A$6<352,L$1="hi"),VLOOKUP($A$6,town351,21)," ") -> 183189
A18: 7) | B18: Combined effort yield (row 3+ row 6) | C18: =IF(A6<352,VLOOKUP($A$6,town351,7)," ") -> 51981615 | E18: 19) | F18: FY16 required local contribution (15 - 18), capped at 90% of foundation | G18: =IF(AND(A$6<352,L$1="hi"),VLOOKUP($A$6,town351,22)," ") -> 32742805
E19: 20) | F19: Contribution as percentage of foundation (19 / 8) | G19: =IF(AND(A$6<352,L$1="hi"),VLOOKUP($A$6,town351,23)," ") -> 82.49999905
A20: 8) | B20: Foundation budget FY16 | C20: =IF(A6<352,VLOOKUP($A$6,town351,8)," ") -> 39688248.94
A21: 9) | B21: Maximum local contribution (82.5% * row 8) | C21: =IF(A6<352,VLOOKUP($A$6,town351,9)," ") -> 32742805 | E21: If preliminary contribution is below the target share:
E22: 21) | F22: Shortfall from target local share (11 - 16) | G22: =IF(AND(A$6<352,L1="lo"),VLOOKUP($A$6,town351,17)/100," ") -> 
A23: 10) | B23: Target local contribution (lesser of row 7 or row 9) | C23: =IF(A6<352,VLOOKUP($A$6,town351,10)," ") -> 32742805 | E23: 22) | F23: Added increment toward target (13 x 1% or 2%)* | G23: =IF(AND(A$6<352,L1="lo"),VLOOKUP($A$6,town351,19)," ") -> 
F24: *1% if shortfall is between 2.5% and 7.5%; 2% if shortfall > 7.5%
A25: 11) | B25: Target local share (row 10 as % of row 8) | C25: =IF(A6<352,VLOOKUP(lea,town351,11)/100," ") -> 0.825 | E25: 23) | F25: Shortfall from target after adding increment (10 - 15 - 22) | G25: =IF(AND(A$6<352,L1="lo"),VLOOKUP($A$6,town351,26)," ") -> 
A26: 12) | B26: Target aid share (100% minus row 11) | C26: =IF(A6<352,VLOOKUP(lea,aidcalc,10)/100," ") -> 0.175 | E26: 24) | F26: FY16 required local contribution (15 + 22 ) | G26: =IF(AND(A$6<352,L1="lo"),VLOOKUP($A$6,town351,22)," ") -> 
E27: 25) | F27: Contribution as percentage of foundation (24 / 8) | G27: =IF(AND(A$6<352,L1="lo"),VLOOKUP($A$6,town351,23)/100," ") -> 
B29: See a listing of all 351 communities

Sheet regional allocation
E2: Return to Index
E3: Massachusetts Department of Elementary and Secondary Education
E4: FY16 Chapter 70
E6: Apportionment of Local Contribution Across School Districts
E7: 4 | F7: 4 | G7: 3 | H7: 2 | I7: 1
A9: 5 | D9: =lea -> 26 | E9: =IF($D$9>351, "", IF(AND($D$9>0, VLOOKUP($D$9*5-E$7, order1755, $A9)<>0), VLOOKUP($D$9*5-E$7, order1755, $A9), "")) -> BELMONT | F9: =IF(OR($D$9="", $D$9>351), "", IF(AND($D$9>0, VLOOKUP($D$9*5-F$7, order1755, $A9)<>0), VLOOKUP($D$9*5-F$7, order1755, $A9), "")) -> BELMONT | G9: =IF(OR($D$9="", $D$9>351), "", IF(AND($D$9>0, VLOOKUP($D$9*5-G$7, order1755, $A9)<>0), VLOOKUP($D$9*5-G$7, order1755, $A9), "")) -> MINUTEMAN | H9: =IF(OR($D$9="", $D$9>351), "", IF(AND($D$9>0, VLOOKUP($D$9*5-H$7, order1755, $A9)<>0), VLOOKUP($D$9*5-H$7, order1755, $A9), "")) ->  | I9: =IF(OR($D$9="", $D$9>351), "", IF(AND($D$9>0, VLOOKUP($D$9*5-I$7, order1755, $A9)<>0), VLOOKUP($D$9*5-I$7, order1755, $A9), "")) ->  | J9: COMBINED TOTAL ALL DISTRICTS
A10: 6
E11: Prior Year Data (for comparison purposes)
A13: 15 | D13: 1 | E13: FY15 foundation enrollment | F13: =IF(OR($D$9="", $D$9>351), "", IF(AND($D$9>0, VLOOKUP($D$9*5-F$7, order1755, $A13)<>0), VLOOKUP($D$9*5-F$7, order1755, $A13), "")) -> 4068 | G13: 31 | J13: =IF(OR($D$9="", $D$9>351), "", VLOOKUP($D$9*5, order1755, $A13)) -> 4099
A14: 6 | D14: 2 | E14: FY15 foundation budget | F14: 37689370.08 | G14: 514569 | J14: =IF(OR($D$9="", $D$9>351), "", VLOOKUP($D$9*5, order1755, $A14)) -> 38203939.08
A15: 7 | D15: 3 | E15: Each district's share of municipality's combined FY15 foundation | F15: 0.9865309962 | G15: 0.01346900378 | J15: =IF(OR($D$9="", $D$9>351), "", VLOOKUP($D$9*5, order1755, $A15)) -> 1
A16: 12 | D16: 4 | E16: FY15 required contribution | F16: 31269266 | G16: 426916 | J16: =IF(OR($D$9="", $D$9>351), "", VLOOKUP($D$9*5, order1755, $A16)) -> 31696182
E17: Apportionment of FY16 contribution among community's districts
D18: 5 | E18: FY16 total unapportioned required contribution ("municipal contribution" sheet row 19 or 24) | J18: =IF(OR($D$9="", $D$9>351), "", VLOOKUP($D$9,town351,22)) -> 32742805
A19: 20 | D19: 6 | E19: FY16 foundation enrollment | F19: =IF(OR($D$9="", $D$9>351), "", IF(AND($D$9>0, VLOOKUP($D$9*5-F$7, order1755, $A19)<>0), VLOOKUP($D$9*5-F$7, order1755, $A19), "")) -> 4156 | G19: 30 | J19: =IF(OR($D$9="", $D$9>351), "", VLOOKUP($D$9*5, order1755, $A19)) -> 4186
A20: 8 | D20: 7 | E20: FY16 foundation budget | F20: 39180121.94 | G20: 508127 | J20: =IF(OR($D$9="", $D$9>351), "", VLOOKUP($D$9*5, order1755, $A20)) -> 39688248.94
A21: 9 | D21: 8 | E21: Each district's share of municipality's total FY16 foundation | F21: 0.9871970416 | G21: 0.0128029584 | J21: =IF(OR($D$9="", $D$9>351), "", VLOOKUP($D$9*5, order1755, $A21)) -> 1
A22: 11 | D22: 9 | E22: FY16 Required Contribution | F22: 32323600 | G22: 419205 | J22: =VLOOKUP($D$9*5, order1755, $A22) -> 32742805
A23: 13 | D23: 10 | E23: Change FY15 to FY16 (9 - 4) | F23: =IF(OR($D$9="", $D$9>351), "", IF(AND($D$9>0, VLOOKUP($D$9*5-F$7, order1755, $A23)<>0), VLOOKUP($D$9*5-F$7, order1755, $A23), "")) -> 1054334 | G23: =IF(OR($D$9="", $D$9>351), "", IF(AND($D$9>0, VLOOKUP($D$9*5-G$7, order1755, $A23)<>0), VLOOKUP($D$9*5-G$7, order1755, $A23), "")) -> -7711 | H23: =IF(OR($D$9="", $D$9>351), "", IF(AND($D$9>0, VLOOKUP($D$9*5-H$7, order1755, $A23)<>0), VLOOKUP($D$9*5-H$7, order1755, $A23), "")) ->  | I23: =IF(OR($D$9="", $D$9>351), "", IF(AND($D$9>0, VLOOKUP($D$9*5-I$7, order1755, $A23)<>0), VLOOKUP($D$9*5-I$7, order1755, $A23), "")) ->  | J23: =IF(OR($D$9="", $D$9>351), "", VLOOKUP($D$9*5, order1755, $A23)) -> 1046623

Sheet summary
B2: Return to Index
I3: 2015-07-19
A4: Massachusetts Department of Elementary and Secondary Education
A5: FY16 Chapter 70 Summary
A7: =lea -> 26 | B7: =PROPER(VLOOKUP(A7,dist915,2)) -> Belmont
A9: Aid Calculation FY16 | E9: Comparison to FY15
F11: FY15 | G11: FY16 | H11: Change | I11: Pct Chg | S11: FY06 | T11: FY07 | U11: FY08 | V11: FY09 | W11: FY10 | X11: FY11 | Y11: FY12 | Z11: FY13 | AA11: FY14 | AB11: FY15 | AC11: FY16
A12: Prior Year Aid | E12: Enrollment | F12: =VLOOKUP(A7,aidcalc,17) -> 4068 | G12: =VLOOKUP(A7,aidcalc,18) -> 4156 | H12: =G12-F12 -> 88 | I12: =IF(F12>0, H12/F12, 0) -> 0.02163225172 | R12: foundation budget | S12: =VLOOKUP($A$7,disthist,4) -> 25508704 | T12: =VLOOKUP($A$7,disthist,7) -> 26906930.23 | U12: =VLOOKUP($A$7,disthist,10) -> 28888243.35 | V12: =VLOOKUP($A$7,disthist,13) -> 31086767.44 | W12: =VLOOKUP($A$7,disthist,17) -> 33630843.73 | X12: =VLOOKUP($A$7,disthist,21) -> 32919934.32 | Y12: =VLOOKUP($A$7,disthist,26) -> 33178102.92 | Z12: =VLOOKUP($A$7,disthist,29) -> 34247348.97 | AA12: =VLOOKUP($A$7,disthist, 32) -> 35925169.71 | AB12: =VLOOKUP($A$7,disthist, 35) -> 37689370.08 | AC12: =VLOOKUP($A$7, aidcalc, 6) -> 39180121.94
A13: 1 | B13: Chapter 70 FY15 | C13: =VLOOKUP(A7,aidcalc,5) -> 6420104 | E13: Foundation budget | F13: =VLOOKUP(A7,aidcalc,4) -> 37689370.08 | G13: =VLOOKUP(A7,aidcalc,6) -> 39180121.94 | H13: =G13-F13 -> 1490751.866 | I13: =IF(F13>0, H13/F13, 0) -> 0.0395536424 | R13: required district contribution | S13: =VLOOKUP($A$7,disthist,5) -> 25370522 | T13: =VLOOKUP($A$7,disthist,8) -> 25515369 | U13: =VLOOKUP($A$7,disthist,11) -> 25916568 | V13: =VLOOKUP($A$7,disthist,14) -> 26482952 | W13: =VLOOKUP($A$7,disthist,18) -> 27745446 | X13: =VLOOKUP($A$7,disthist,22) -> 28127012 | Y13: =VLOOKUP($A$7,disthist,27) -> 28699894 | Z13: =VLOOKUP($A$7,disthist,30) -> 29351497 | AA13: =VLOOKUP($A$7,disthist, 33) -> 30375090 | AB13: =VLOOKUP($A$7,disthist, 36) -> 31269266 | AC13: =VLOOKUP($A$7, aidcalc, 7) -> 32323600
E14: Required district contribution | F14: =VLOOKUP(A7,disthist,36) -> 31269266 | G14: =VLOOKUP($A$7, aidcalc, 7) -> 32323600 | H14: =G14-F14 -> 1054334 | I14: =IF(F14>0, H14/F14, 0) -> 0.03371790051 | R14: c70 aid +sfsf + edjobs | S14: =VLOOKUP($A$7,disthist,6) -> 3002919.2 | T14: =VLOOKUP($A$7,disthist,9) -> 3344078.2 | U14: =VLOOKUP($A$7,disthist,12) -> 3857487.2 | V14: =VLOOKUP($A$7,disthist,15)+VLOOKUP($A$7,disthist,16) -> 4603815 | W14: =VLOOKUP($A$7,disthist,19)+VLOOKUP($A$7,disthist,20) -> 5885398 | X14: =VLOOKUP($A$7,disthist,23)+VLOOKUP($A$7,disthist,24)+VLOOKUP($A$7,disthist,25) -> 5981623 | Y14: =VLOOKUP($A$7,disthist,28) -> 5571323 | Z14: =VLOOKUP($A$7,disthist,31) -> 5724243 | AA14: =VLOOKUP($A$7,disthist,34) -> 5864908.425 | AB14: =VLOOKUP($A$7,disthist,37) -> 6420104 | AC14: =VLOOKUP($A$7, aidcalc, 35) -> 6856522
A15: Foundation Aid | E15: Chapter 70 aid | F15: =VLOOKUP($A$7, disthist,37) -> 6420104 | G15: =VLOOKUP($A$7, aidcalc, 35) -> 6856522 | H15: =G15-F15 -> 436418 | I15: =IF(F15>0, H15/F15, 0) -> 0.06797678044
A16: 2 | B16: Foundation budget FY16 | C16: =VLOOKUP($A$7, aidcalc, 6) -> 39180121.94 | E16: Required net school spending (NSS) | F16: =F14+F15 -> 37689370 | G16: =G14+G15 -> 39180122 | H16: =G16-F16 -> 1490752 | I16: =IF(F16>0, H16/F16, 0) -> 0.03955364603
A17: 3 | B17: Required district contribution FY16 | C17: =VLOOKUP($A$7, aidcalc, 7) -> 32323600
A18: 4 | B18: Foundation aid (2 -3) | C18: =VLOOKUP($A$7, aidcalc, 8) -> 6856522 | E18: Target aid share | F18: =VLOOKUP(A$7,disthist,3)/100 -> 0.175 | G18: =VLOOKUP(A7,aidcalc,10)/100 -> 0.175
A19: 5 | B19: Increase over FY15 (4 - 1) | C19: =VLOOKUP($A$7, aidcalc, 9) -> 436418 | E19: C70 % of foundation | F19: =IF(F13>0,F15/F13,IF(F15>0,1,0)) -> 0.1703425657 | G19: =IF(G13>0,G15/G13,IF(G15>0,1,0)) -> 0.1750000168
E20: Amount above/below target | F20: =(F18-F19) * C16 -> 182478.8423 | G20: =(G18-G19) * C16 -> -0.6599259997
A21: Minimum Aid | E21: Required NSS % of foundation | F21: =IF(F13>0,F16/F13,IF(F16>0,1,0)) -> 0.999999998 | G21: =IF(G13>0,G16/G13,IF(G16>0,1,0)) -> 1.000000001
A22: 6 | B22: Minimum $25 per pupil increase | C22: =VLOOKUP($A$7, aidcalc, 32) -> 0
A24: Non-Operating District Reduction to Foundation
A25: 6 | B25: Reduction to foundation | C25: =VLOOKUP($A$7, aidcalc, 34) -> 0
A27: FY16 Chapter 70 Aid
A28: 7 | B28: sum of line 1, 5 minus 6 | C28: =VLOOKUP($A$7, aidcalc, 35) -> 6856522

Sheet regional dist members
D2: Return to Index
D4: =VLOOKUP(reg_order, regdistricts, 3, FALSE) -> 810
D6: Massachusetts Department of Elementary and Secondary Education
D7: FY16 Chapter 70
D8: Regional District Enrollment and Contributions by Member City or Town
C10: 2 | D10: =VLOOKUP(reg_order, regdistricts, 2, FALSE) -> 810 Bristol Plymouth
F12: Foundation Enrollment | J12: Required Minimum Contribution
A14: =VLOOKUP($D$4, regcount, 2) -> 7 | D14: LEA | E14: Member | F14: FY15 | G14: FY16 | H14: Change | J14: FY15 | K14: FY16 | L14: Change
E16: District Total | F16: =SUM(F18:F65) -> 1309 | G16: =SUM(G18:G65) -> 1346 | H16: =SUM(H18:H60) -> 37 | J16: =SUM(J18:J65) -> 9454533 | K16: =SUM(K18:K65) -> 10001847 | L16: =SUM(L18:L60) -> 547314
A18: =$D$4*100+B18 -> 81001 | B18: 1 | D18: =IF($B18<=$A$14, VLOOKUP($A18, regdetail, 5), " ") -> 27 | E18: =IF($B18<=$A$14, VLOOKUP($A18, regdetail, 6), " ") -> BERKLEY | F18: =IF($B18<=$A$14, VLOOKUP($A18, regdetail, 7), " ") -> 106 | G18: =IF($B18<=$A$14, VLOOKUP($A18, regdetail, 8), " ") -> 105 | H18: =IF($B18<=$A$14, G18-F18, " ") -> -1 | J18: =IF($B18<=$A$14, VLOOKUP($A18, regdetail, 9), " ") -> 778215 | K18: =IF($B18<=$A$14, VLOOKUP($A18, regdetail, 10), " ") -> 836385 | L18: =IF($B18<=$A$14, K18-J18, " ") -> 58170
A19: =$D$4*100+B19 -> 81002 | B19: 2 | D19: 42 | E19: BRIDGEWATER | F19: 112 | G19: 110 | H19: -2 | J19: 1051957 | K19: 1049274 | L19: -2683
A20: 81003 | B20: 3 | D20: 76 | E20: DIGHTON | F20: 18 | G20: 37 | H20: 19 | J20: 147768 | K20: 296779 | L20: 149011
A21: 81004 | B21: 4 | D21: 182 | E21: MIDDLEBOROUGH | F21: 275 | G21: 289 | H21: 14 | J21: 2061516 | K21: 2237902 | L21: 176386
A22: 81005 | B22: 5 | D22: 245 | E22: RAYNHAM | F22: 148 | G22: 159 | H22: 11 | J22: 1421477 | K22: 1519991 | L22: 98514
A23: 81006 | B23: 6 | D23: 247 | E23: REHOBOTH | F23: 19 | G23: 41 | H23: 22 | J23: 202595 | K23: 443919 | L23: 241324
A24: 81007 | B24: 7 | D24: 293 | E24: TAUNTON | F24: 631 | G24: 605 | H24: -26 | J24: 3791005 | K24: 3617597 | L24: -173408
A25: 81008 | B25: 8
A26: 81009 | B26: 9
A27: 81010 | B27: 10
A28: 81011 | B28: 11
A29: 81012 | B29: 12
A30: 81013 | B30: 13
A31: 81014 | B31: 14
A32: 81015 | B32: 15
A33: 81016 | B33: 16
A34: 81017 | B34: 17
A35: 81018 | B35: 18
A36: 81019 | B36: 19
A37: 81020 | B37: 20
A38: 81021 | B38: 21
A39: 81022 | B39: 22
A40: 81023 | B40: 23
A41: 81024 | B41: 24
A42: 81025 | B42: 25
A43: 81026 | B43: 26
A44: 81027 | B44: 27
A45: 81028 | B45: 28
A46: 81029 | B46: 29
A47: 81030 | B47: 30
A48: 81031 | B48: 31
A49: 81032 | B49: 32
A50: 81033 | B50: 33
A51: 81034 | B51: 34
A52: 81035 | B52: 35
A53: 81036 | B53: 36
A54: 81037 | B54: 37
A55: 81038 | B55: 38
A56: 81039 | B56: 39
A57: 81040 | B57: 40
A58: 81041 | B58: 41
A59: 81042 | B59: 42
A60: 81043 | B60: 43
A61: 81044 | B61: 44
A62: 81045 | B62: 45
A63: 81046 | B63: 46 | H63: =IF($B63<=$A$14, G63-F63, " ") ->  | L63: =IF($B63<=$A$14, K63-J63, " ") -> 
A64: 81047 | B64: 47 | H64: =IF($B64<=$A$14, G64-F64, " ") ->  | L64: =IF($B64<=$A$14, K64-J64, " ") -> 
A65: 81048 | B65: 48 | H65: =IF($B65<=$A$14, G65-F65, " ") ->  | L65: =IF($B65<=$A$14, K65-J65, " ") -> 
A66: 81049 | B66: 49 | H66: =IF($B66<=$A$14, G66-F66, " ") ->  | L66: =IF($B66<=$A$14, K66-J66, " ") -> 

Sheet ceyregionalcalc (hidden)
F1: Total CEY for town | G1: FB for school district/town combo | H1: CEY*% of town's fb
A2: Calculation of CEY as a % of Foundation
F7: FY16 Total | G7: FY16 Proportional | H7: FY16 Prop
F8: CEY | G8: Foundation | H8: CEY
A9: Order | B9: LEA | C9: School District | D9: Town | E9: City or Town | F9: Members | G9: Members | H9: Members
A10: 1 | B10: 1 | C10: ABINGTON | D10: 1 | E10: ABINGTON | F10: =VLOOKUP(D10, town351, 7) -> 14104411 | G10: =VLOOKUP(A10, localcont!$A$10:$I$1764, 8) -> 18870910.49 | H10: =VLOOKUP(A10, localcont!$A$10:$I$1764, 9)*F10 -> 12546659.77
A11: 6 | B11: 2 | C11: ACTON | D11: 2 | E11: ACTON | F11: 34961499 | G11: =VLOOKUP(A11, localcont!$A$10:$I$1764, 8) -> 0 | H11: =VLOOKUP(A11, localcont!$A$10:$I$1764, 9)*F11 -> 0
A12: 11 | B12: 3 | C12: ACUSHNET | D12: 3 | E12: ACUSHNET | F12: 8148342 | G12: =VLOOKUP(A12, localcont!$A$10:$I$1764, 8) -> 11701370.22 | H12: =VLOOKUP(A12, localcont!$A$10:$I$1764, 9)*F12 -> 6709873.451
A13: 16 | B13: 4 | C13: ADAMS | D13: 4 | E13: ADAMS | F13: 4286736 | G13: =VLOOKUP(A13, localcont!$A$10:$I$1764, 8) -> 0 | H13: =VLOOKUP(A13, localcont!$A$10:$I$1764, 9)*F13 -> 0
A14: 21 | B14: 5 | C14: AGAWAM | D14: 5 | E14: AGAWAM | F14: 22234809 | G14: =VLOOKUP(A14, localcont!$A$10:$I$1764, 8) -> 40806967.85 | H14: =VLOOKUP(A14, localcont!$A$10:$I$1764, 9)*F14 -> 22234809
A15: 26 | B15: 6 | C15: ALFORD | D15: 6 | E15: ALFORD | F15: 1364086 | G15: =VLOOKUP(A15, localcont!$A$10:$I$1764, 8) -> 0 | H15: =VLOOKUP(A15, localcont!$A$10:$I$1764, 9)*F15 -> 0
A16: 31 | B16: 7 | C16: AMESBURY | D16: 7 | E16: AMESBURY | F16: 14813871 | G16: =VLOOKUP(A16, localcont!$A$10:$I$1764, 8) -> 23284050.52 | H16: =VLOOKUP(A16, localcont!$A$10:$I$1764, 9)*F16 -> 14202424.52
A17: 36 | B17: 8 | C17: AMHERST | D17: 8 | E17: AMHERST | F17: 18265918 | G17: =VLOOKUP(A17, localcont!$A$10:$I$1764, 8) -> 12222179.26 | H17: =VLOOKUP(A17, localcont!$A$10:$I$1764, 9)*F17 -> 8979351.764
A18: 41 | B18: 9 | C18: ANDOVER | D18: 9 | E18: ANDOVER | F18: 64853505 | G18: =VLOOKUP(A18, localcont!$A$10:$I$1764, 8) -> 57593754.78 | H18: =VLOOKUP(A18, localcont!$A$10:$I$1764, 9)*F18 -> 64386152.82
A19: 46 | B19: 10 | C19: ARLINGTON | D19: 10 | E19: ARLINGTON | F19: 61393360 | G19: =VLOOKUP(A19, localcont!$A$10:$I$1764, 8) -> 50290292.38 | H19: =VLOOKUP(A19, localcont!$A$10:$I$1764, 9)*F19 -> 58291451.03
A20: 51 | B20: 11 | C20: ASHBURNHAM | D20: 11 | E20: ASHBURNHAM | F20: 4909213 | G20: =VLOOKUP(A20, localcont!$A$10:$I$1764, 8) -> 0 | H20: =VLOOKUP(A20, localcont!$A$10:$I$1764, 9)*F20 -> 0
A21: 56 | B21: 12 | C21: ASHBY | D21: 12 | E21: ASHBY | F21: 2395035 | G21: =VLOOKUP(A21, localcont!$A$10:$I$1764, 8) -> 0 | H21: =VLOOKUP(A21, localcont!$A$10:$I$1764, 9)*F21 -> 0
A22: 61 | B22: 13 | C22: ASHFIELD | D22: 13 | E22: ASHFIELD | F22: 1574812 | G22: =VLOOKUP(A22, localcont!$A$10:$I$1764, 8) -> 276131.66 | H22: =VLOOKUP(A22, localcont!$A$10:$I$1764, 9)*F22 -> 226993.3789
A23: 66 | B23: 14 | C23: ASHLAND | D23: 14 | E23: ASHLAND | F23: 19525238 | G23: =VLOOKUP(A23, localcont!$A$10:$I$1764, 8) -> 23999962.49 | H23: =VLOOKUP(A23, localcont!$A$10:$I$1764, 9)*F23 -> 18558228.3
A24: 71 | B24: 15 | C24: ATHOL | D24: 15 | E24: ATHOL | F24: 5446802 | G24: =VLOOKUP(A24, localcont!$A$10:$I$1764, 8) -> 0 | H24: =VLOOKUP(A24, localcont!$A$10:$I$1764, 9)*F24 -> 0
A25: 76 | B25: 16 | C25: ATTLEBORO | D25: 16 | E25: ATTLEBORO | F25: 32598936 | G25: =VLOOKUP(A25, localcont!$A$10:$I$1764, 8) -> 68325590.25 | H25: =VLOOKUP(A25, localcont!$A$10:$I$1764, 9)*F25 -> 32304158.67
A26: 81 | B26: 17 | C26: AUBURN | D26: 17 | E26: AUBURN | F26: 14661555 | G26: =VLOOKUP(A26, localcont!$A$10:$I$1764, 8) -> 22643826.37 | H26: =VLOOKUP(A26, localcont!$A$10:$I$1764, 9)*F26 -> 13773514.76
A27: 86 | B27: 18 | C27: AVON | D27: 18 | E27: AVON | F27: 4733904 | G27: =VLOOKUP(A27, localcont!$A$10:$I$1764, 8) -> 5497208.85 | H27: =VLOOKUP(A27, localcont!$A$10:$I$1764, 9)*F27 -> 4116665.087
A28: 91 | B28: 19 | C28: AYER | D28: 19 | E28: AYER | F28: 7122054 | G28: =VLOOKUP(A28, localcont!$A$10:$I$1764, 8) -> 0 | H28: =VLOOKUP(A28, localcont!$A$10:$I$1764, 9)*F28 -> 0
A29: 96 | B29: 20 | C29: BARNSTABLE | D29: 20 | E29: BARNSTABLE | F29: 74439876 | G29: =VLOOKUP(A29, localcont!$A$10:$I$1764, 8) -> 55521659.88 | H29: =VLOOKUP(A29, localcont!$A$10:$I$1764, 9)*F29 -> 70909987.34
A30: 101 | B30: 21 | C30: BARRE | D30: 21 | E30: BARRE | F30: 3429239 | G30: =VLOOKUP(A30, localcont!$A$10:$I$1764, 8) -> 0 | H30: =VLOOKUP(A30, localcont!$A$10:$I$1764, 9)*F30 -> 0
A31: 106 | B31: 22 | C31: BECKET | D31: 22 | E31: BECKET | F31: 2549621 | G31: =VLOOKUP(A31, localcont!$A$10:$I$1764, 8) -> 118799.64 | H31: =VLOOKUP(A31, localcont!$A$10:$I$1764, 9)*F31 -> 158201.7992
A32: 111 | B32: 23 | C32: BEDFORD | D32: 23 | E32: BEDFORD | F32: 23087597 | G32: =VLOOKUP(A32, localcont!$A$10:$I$1764, 8) -> 26053076.23 | H32: =VLOOKUP(A32, localcont!$A$10:$I$1764, 9)*F32 -> 22849987.82
A33: 116 | B33: 24 | C33: BELCHERTOWN | D33: 24 | E33: BELCHERTOWN | F33: 11887037 | G33: =VLOOKUP(A33, localcont!$A$10:$I$1764, 8) -> 22973661.62 | H33: =VLOOKUP(A33, localcont!$A$10:$I$1764, 9)*F33 -> 11198624.86
A34: 121 | B34: 25 | C34: BELLINGHAM | D34: 25 | E34: BELLINGHAM | F34: 16063995 | G34: =VLOOKUP(A34, localcont!$A$10:$I$1764, 8) -> 23462633.45 | H34: =VLOOKUP(A34, localcont!$A$10:$I$1764, 9)*F34 -> 14932641.51
A35: 126 | B35: 26 | C35: BELMONT | D35: 26 | E35: BELMONT | F35: 51981615 | G35: =VLOOKUP(A35, localcont!$A$10:$I$1764, 8) -> 39180121.94 | H35: =VLOOKUP(A35, localcont!$A$10:$I$1764, 9)*F35 -> 51316096.55
A36: 131 | B36: 27 | C36: BERKLEY | D36: 27 | E36: BERKLEY | F36: 6079634 | G36: =VLOOKUP(A36, localcont!$A$10:$I$1764, 8) -> 6569709.32 | H36: =VLOOKUP(A36, localcont!$A$10:$I$1764, 9)*F36 -> 3568016.299
A37: 136 | B37: 28 | C37: BERLIN | D37: 28 | E37: BERLIN | F37: 3991718 | G37: =VLOOKUP(A37, localcont!$A$10:$I$1764, 8) -> 1394075.237 | H37: =VLOOKUP(A37, localcont!$A$10:$I$1764, 9)*F37 -> 1429205.955
A38: 141 | B38: 29 | C38: BERNARDSTON | D38: 29 | E38: BERNARDSTON | F38: 1646013 | G38: =VLOOKUP(A38, localcont!$A$10:$I$1764, 8) -> 0 | H38: =VLOOKUP(A38, localcont!$A$10:$I$1764, 9)*F38 -> 0
A39: 146 | B39: 30 | C39: BEVERLY | D39: 30 | E39: BEVERLY | F39: 45012609 | G39: =VLOOKUP(A39, localcont!$A$10:$I$1764, 8) -> 44949344.69 | H39: =VLOOKUP(A39, localcont!$A$10:$I$1764, 9)*F39 -> 43364465.17
A40: 151 | B40: 31 | C40: BILLERICA | D40: 31 | E40: BILLERICA | F40: 40907712 | G40: =VLOOKUP(A40, localcont!$A$10:$I$1764, 8) -> 51437518.58 | H40: =VLOOKUP(A40, localcont!$A$10:$I$1764, 9)*F40 -> 34395998.63
A41: 156 | B41: 32 | C41: BLACKSTONE | D41: 32 | E41: BLACKSTONE | F41: 6750480 | G41: =VLOOKUP(A41, localcont!$A$10:$I$1764, 8) -> 223331.82 | H41: =VLOOKUP(A41, localcont!$A$10:$I$1764, 9)*F41 -> 108072.6164
A42: 161 | B42: 33 | C42: BLANDFORD | D42: 33 | E42: BLANDFORD | F42: 1176648 | G42: =VLOOKUP(A42, localcont!$A$10:$I$1764, 8) -> 92399.72 | H42: =VLOOKUP(A42, localcont!$A$10:$I$1764, 9)*F42 -> 77047.88853
A43: 166 | B43: 34 | C43: BOLTON | D43: 34 | E43: BOLTON | F43: 8270398 | G43: =VLOOKUP(A43, localcont!$A$10:$I$1764, 8) -> 13623.25469 | H43: =VLOOKUP(A43, localcont!$A$10:$I$1764, 9)*F43 -> 11602.31287
A44: 171 | B44: 35 | C44: BOSTON | D44: 35 | E44: BOSTON | F44: 799418169 | G44: =VLOOKUP(A44, localcont!$A$10:$I$1764, 8) -> 805600562.8 | H44: =VLOOKUP(A44, localcont!$A$10:$I$1764, 9)*F44 -> 799418169
A45: 176 | B45: 36 | C45: BOURNE | D45: 36 | E45: BOURNE | F45: 25269971 | G45: =VLOOKUP(A45, localcont!$A$10:$I$1764, 8) -> 19473369.86 | H45: =VLOOKUP(A45, localcont!$A$10:$I$1764, 9)*F45 -> 21674216.35
A46: 181 | B46: 37 | C46: BOXBOROUGH | D46: 37 | E46: BOXBOROUGH | F46: 7931428 | G46: =VLOOKUP(A46, localcont!$A$10:$I$1764, 8) -> 0 | H46: =VLOOKUP(A46, localcont!$A$10:$I$1764, 9)*F46 -> 0
A47: 186 | B47: 38 | C47: BOXFORD | D47: 38 | E47: BOXFORD | F47: 16901478 | G47: =VLOOKUP(A47, localcont!$A$10:$I$1764, 8) -> 6380974.844 | H47: =VLOOKUP(A47, localcont!$A$10:$I$1764, 9)*F47 -> 7686691.854
A48: 191 | B48: 39 | C48: BOYLSTON | D48: 39 | E48: BOYLSTON | F48: 5613937 | G48: =VLOOKUP(A48, localcont!$A$10:$I$1764, 8) -> 2619960.3 | H48: =VLOOKUP(A48, localcont!$A$10:$I$1764, 9)*F48 -> 2583445.007
A49: 196 | B49: 40 | C49: BRAINTREE | D49: 40 | E49: BRAINTREE | F49: 41390564 | G49: =VLOOKUP(A49, localcont!$A$10:$I$1764, 8) -> 55247735.78 | H49: =VLOOKUP(A49, localcont!$A$10:$I$1764, 9)*F49 -> 39433581.1
A50: 201 | B50: 41 | C50: BREWSTER | D50: 41 | E50: BREWSTER | F50: 17714989 | G50: =VLOOKUP(A50, localcont!$A$10:$I$1764, 8) -> 4481450.93 | H50: =VLOOKUP(A50, localcont!$A$10:$I$1764, 9)*F50 -> 7185392.818
A51: 206 | B51: 42 | C51: BRIDGEWATER | D51: 42 | E51: BRIDGEWATER | F51: 19999766 | G51: =VLOOKUP(A51, localcont!$A$10:$I$1764, 8) -> 131999.6 | H51: =VLOOKUP(A51, localcont!$A$10:$I$1764, 9)*F51 -> 79381.69243
A52: 211 | B52: 43 | C52: BRIMFIELD | D52: 43 | E52: BRIMFIELD | F52: 3228093 | G52: =VLOOKUP(A52, localcont!$A$10:$I$1764, 8) -> 2535170.45 | H52: =VLOOKUP(A52, localcont!$A$10:$I$1764, 9)*F52 -> 1422292.669
A53: 216 | B53: 44 | C53: BROCKTON | D53: 44 | E53: BROCKTON | F53: 47304684 | G53: =VLOOKUP(A53, localcont!$A$10:$I$1764, 8) -> 209479318.4 | H53: =VLOOKUP(A53, localcont!$A$10:$I$1764, 9)*F53 -> 44380858.53
A54: 221 | B54: 45 | C54: BROOKFIELD | D54: 45 | E54: BROOKFIELD | F54: 2192324 | G54: =VLOOKUP(A54, localcont!$A$10:$I$1764, 8) -> 2475237.43 | H54: =VLOOKUP(A54, localcont!$A$10:$I$1764, 9)*F54 -> 1028506.561
A55: 226 | B55: 46 | C55: BROOKLINE | D55: 46 | E55: BROOKLINE | F55: 126530548 | G55: =VLOOKUP(A55, localcont!$A$10:$I$1764, 8) -> 71400245.84 | H55: =VLOOKUP(A55, localcont!$A$10:$I$1764, 9)*F55 -> 126530548
A56: 231 | B56: 47 | C56: BUCKLAND | D56: 47 | E56: BUCKLAND | F56: 1367005 | G56: =VLOOKUP(A56, localcont!$A$10:$I$1764, 8) -> 0 | H56: =VLOOKUP(A56, localcont!$A$10:$I$1764, 9)*F56 -> 0
A57: 236 | B57: 48 | C57: BURLINGTON | D57: 48 | E57: BURLINGTON | F57: 34327472 | G57: =VLOOKUP(A57, localcont!$A$10:$I$1764, 8) -> 34239007.27 | H57: =VLOOKUP(A57, localcont!$A$10:$I$1764, 9)*F57 -> 32744153.51
A58: 241 | B58: 49 | C58: CAMBRIDGE | D58: 49 | E58: CAMBRIDGE | F58: 200660223 | G58: =VLOOKUP(A58, localcont!$A$10:$I$1764, 8) -> 79533780.83 | H58: =VLOOKUP(A58, localcont!$A$10:$I$1764, 9)*F58 -> 200660223
A59: 246 | B59: 50 | C59: CANTON | D59: 50 | E59: CANTON | F59: 32793642 | G59: =VLOOKUP(A59, localcont!$A$10:$I$1764, 8) -> 31710377.39 | H59: =VLOOKUP(A59, localcont!$A$10:$I$1764, 9)*F59 -> 31712797.52
A60: 251 | B60: 51 | C60: CARLISLE | D60: 51 | E60: CARLISLE | F60: 12756643 | G60: =VLOOKUP(A60, localcont!$A$10:$I$1764, 8) -> 5330419.624 | H60: =VLOOKUP(A60, localcont!$A$10:$I$1764, 9)*F60 -> 7555374.311
A61: 256 | B61: 52 | C61: CARVER | D61: 52 | E61: CARVER | F61: 9006229 | G61: =VLOOKUP(A61, localcont!$A$10:$I$1764, 8) -> 16197468.46 | H61: =VLOOKUP(A61, localcont!$A$10:$I$1764, 9)*F61 -> 8264513.784
A62: 261 | B62: 53 | C62: CHARLEMONT | D62: 53 | E62: CHARLEMONT | F62: 886853 | G62: =VLOOKUP(A62, localcont!$A$10:$I$1764, 8) -> 65999.8 | H62: =VLOOKUP(A62, localcont!$A$10:$I$1764, 9)*F62 -> 36647.76719
A63: 266 | B63: 54 | C63: CHARLTON | D63: 54 | E63: CHARLTON | F63: 11814629 | G63: =VLOOKUP(A63, localcont!$A$10:$I$1764, 8) -> 26399.92 | H63: =VLOOKUP(A63, localcont!$A$10:$I$1764, 9)*F63 -> 13548.55354
A64: 271 | B64: 55 | C64: CHATHAM | D64: 55 | E64: CHATHAM | F64: 27949796 | G64: =VLOOKUP(A64, localcont!$A$10:$I$1764, 8) -> 0 | H64: =VLOOKUP(A64, localcont!$A$10:$I$1764, 9)*F64 -> 0
A65: 276 | B65: 56 | C65: CHELMSFORD | D65: 56 | E65: CHELMSFORD | F65: 40329571 | G65: =VLOOKUP(A65, localcont!$A$10:$I$1764, 8) -> 47241970.63 | H65: =VLOOKUP(A65, localcont!$A$10:$I$1764, 9)*F65 -> 38029640.86
A66: 281 | B66: 57 | C66: CHELSEA | D66: 57 | E66: CHELSEA | F66: 16795351 | G66: =VLOOKUP(A66, localcont!$A$10:$I$1764, 8) -> 84321341.85 | H66: =VLOOKUP(A66, localcont!$A$10:$I$1764, 9)*F66 -> 16137175.06
A67: 286 | B67: 58 | C67: CHESHIRE | D67: 58 | E67: CHESHIRE | F67: 2371976 | G67: =VLOOKUP(A67, localcont!$A$10:$I$1764, 8) -> 13199.96 | H67: =VLOOKUP(A67, localcont!$A$10:$I$1764, 9)*F67 -> 6647.811431
A68: 291 | B68: 59 | C68: CHESTER | D68: 59 | E68: CHESTER | F68: 898470 | G68: =VLOOKUP(A68, localcont!$A$10:$I$1764, 8) -> 210131.86 | H68: =VLOOKUP(A68, localcont!$A$10:$I$1764, 9)*F68 -> 95754.81617
A69: 296 | B69: 60 | C69: CHESTERFIELD | D69: 60 | E69: CHESTERFIELD | F69: 917409 | G69: =VLOOKUP(A69, localcont!$A$10:$I$1764, 8) -> 289331.62 | H69: =VLOOKUP(A69, localcont!$A$10:$I$1764, 9)*F69 -> 157903.5146
A70: 301 | B70: 61 | C70: CHICOPEE | D70: 61 | E70: CHICOPEE | F70: 29813236 | G70: =VLOOKUP(A70, localcont!$A$10:$I$1764, 8) -> 89726607.38 | H70: =VLOOKUP(A70, localcont!$A$10:$I$1764, 9)*F70 -> 29813236
A71: 306 | B71: 62 | C71: CHILMARK | D71: 62 | E71: CHILMARK | F71: 13113690 | G71: =VLOOKUP(A71, localcont!$A$10:$I$1764, 8) -> 0 | H71: =VLOOKUP(A71, localcont!$A$10:$I$1764, 9)*F71 -> 0
A72: 311 | B72: 63 | C72: CLARKSBURG | D72: 63 | E72: CLARKSBURG | F72: 956866 | G72: =VLOOKUP(A72, localcont!$A$10:$I$1764, 8) -> 1772262.85 | H72: =VLOOKUP(A72, localcont!$A$10:$I$1764, 9)*F72 -> 665317.9054
A73: 316 | B73: 64 | C73: CLINTON | D73: 64 | E73: CLINTON | F73: 9447493 | G73: =VLOOKUP(A73, localcont!$A$10:$I$1764, 8) -> 21129205.02 | H73: =VLOOKUP(A73, localcont!$A$10:$I$1764, 9)*F73 -> 9447493
A74: 321 | B74: 65 | C74: COHASSET | D74: 65 | E74: COHASSET | F74: =VLOOKUP(D74, town351, 7) -> 21879996 | G74: =VLOOKUP(A74, localcont!$A$10:$I$1764, 8) -> 14047813.29 | H74: =VLOOKUP(A74, localcont!$A$10:$I$1764, 9)*F74 -> 21734262.49
A75: 326 | B75: 66 | C75: COLRAIN | D75: 66 | E75: COLRAIN | F75: 1247248 | G75: =VLOOKUP(A75, localcont!$A$10:$I$1764, 8) -> 13199.96 | H75: =VLOOKUP(A75, localcont!$A$10:$I$1764, 9)*F75 -> 8002.216423
A76: 331 | B76: 67 | C76: CONCORD | D76: 67 | E76: CONCORD | F76: 55415833 | G76: =VLOOKUP(A76, localcont!$A$10:$I$1764, 8) -> 18462886.79 | H76: =VLOOKUP(A76, localcont!$A$10:$I$1764, 9)*F76 -> 35535491.02
A77: 336 | B77: 68 | C77: CONWAY | D77: 68 | E77: CONWAY | F77: 1933872 | G77: =VLOOKUP(A77, localcont!$A$10:$I$1764, 8) -> 1311758.95 | H77: =VLOOKUP(A77, localcont!$A$10:$I$1764, 9)*F77 -> 1102127.708
A78: 341 | B78: 69 | C78: CUMMINGTON | D78: 69 | E78: CUMMINGTON | F78: 844164 | G78: =VLOOKUP(A78, localcont!$A$10:$I$1764, 8) -> 118799.64 | H78: =VLOOKUP(A78, localcont!$A$10:$I$1764, 9)*F78 -> 114690.1239
A79: 346 | B79: 70 | C79: DALTON | D79: 70 | E79: DALTON | F79: 5049744 | G79: =VLOOKUP(A79, localcont!$A$10:$I$1764, 8) -> 289331.62 | H79: =VLOOKUP(A79, localcont!$A$10:$I$1764, 9)*F79 -> 148222.4091
A80: 351 | B80: 71 | C80: DANVERS | D80: 71 | E80: DANVERS | F80: 30511766 | G80: =VLOOKUP(A80, localcont!$A$10:$I$1764, 8) -> 34881940.84 | H80: =VLOOKUP(A80, localcont!$A$10:$I$1764, 9)*F80 -> 29124275.23
A81: 356 | B81: 72 | C81: DARTMOUTH | D81: 72 | E81: DARTMOUTH | F81: 34091942 | G81: =VLOOKUP(A81, localcont!$A$10:$I$1764, 8) -> 36075718.26 | H81: =VLOOKUP(A81, localcont!$A$10:$I$1764, 9)*F81 -> 30536623.74
A82: 361 | B82: 73 | C82: DEDHAM | D82: 73 | E82: DEDHAM | F82: 32715386 | G82: =VLOOKUP(A82, localcont!$A$10:$I$1764, 8) -> 26929202.73 | H82: =VLOOKUP(A82, localcont!$A$10:$I$1764, 9)*F82 -> 30723174.98
A83: 366 | B83: 74 | C83: DEERFIELD | D83: 74 | E83: DEERFIELD | F83: 5257783 | G83: =VLOOKUP(A83, localcont!$A$10:$I$1764, 8) -> 3228031.85 | H83: =VLOOKUP(A83, localcont!$A$10:$I$1764, 9)*F83 -> 2776101.176
A84: 371 | B84: 75 | C84: DENNIS | D84: 75 | E84: DENNIS | F84: 29802701 | G84: =VLOOKUP(A84, localcont!$A$10:$I$1764, 8) -> 0 | H84: =VLOOKUP(A84, localcont!$A$10:$I$1764, 9)*F84 -> 0
A85: 376 | B85: 76 | C85: DIGHTON | D85: 76 | E85: DIGHTON | F85: 6331921 | G85: =VLOOKUP(A85, localcont!$A$10:$I$1764, 8) -> 0 | H85: =VLOOKUP(A85, localcont!$A$10:$I$1764, 9)*F85 -> 0
A86: 381 | B86: 77 | C86: DOUGLAS | D86: 77 | E86: DOUGLAS | F86: 7483956 | G86: =VLOOKUP(A86, localcont!$A$10:$I$1764, 8) -> 13645814.7 | H86: =VLOOKUP(A86, localcont!$A$10:$I$1764, 9)*F86 -> 6867155.665
A87: 386 | B87: 78 | C87: DOVER | D87: 78 | E87: DOVER | F87: 27457742 | G87: =VLOOKUP(A87, localcont!$A$10:$I$1764, 8) -> 4322776.794 | H87: =VLOOKUP(A87, localcont!$A$10:$I$1764, 9)*F87 -> 11181966.76
A88: 391 | B88: 79 | C88: DRACUT | D88: 79 | E88: DRACUT | F88: 24505326 | G88: =VLOOKUP(A88, localcont!$A$10:$I$1764, 8) -> 37644250.12 | H88: =VLOOKUP(A88, localcont!$A$10:$I$1764, 9)*F88 -> 20560906.85
A89: 396 | B89: 80 | C89: DUDLEY | D89: 80 | E89: DUDLEY | F89: 7691493 | G89: =VLOOKUP(A89, localcont!$A$10:$I$1764, 8) -> 13199.96 | H89: =VLOOKUP(A89, localcont!$A$10:$I$1764, 9)*F89 -> 5234.251251
A90: 401 | B90: 81 | C90: DUNSTABLE | D90: 81 | E90: DUNSTABLE | F90: 4223598 | G90: =VLOOKUP(A90, localcont!$A$10:$I$1764, 8) -> 13199.96 | H90: =VLOOKUP(A90, localcont!$A$10:$I$1764, 9)*F90 -> 10022.49571
A91: 406 | B91: 82 | C91: DUXBURY | D91: 82 | E91: DUXBURY | F91: 30937315 | G91: =VLOOKUP(A91, localcont!$A$10:$I$1764, 8) -> 29322453.03 | H91: =VLOOKUP(A91, localcont!$A$10:$I$1764, 9)*F91 -> 30937315
A92: 411 | B92: 83 | C92: EAST BRIDGEWATER | D92: 83 | E92: EAST BRIDGEWATER | F92: 11755318 | G92: =VLOOKUP(A92, localcont!$A$10:$I$1764, 8) -> 20764631.13 | H92: =VLOOKUP(A92, localcont!$A$10:$I$1764, 9)*F92 -> 10964338.72
A93: 416 | B93: 84 | C93: EAST BROOKFIELD | D93: 84 | E93: EAST BROOKFIELD | F93: 1699668 | G93: =VLOOKUP(A93, localcont!$A$10:$I$1764, 8) -> 276131.66 | H93: =VLOOKUP(A93, localcont!$A$10:$I$1764, 9)*F93 -> 127875.8346
A94: 421 | B94: 85 | C94: EASTHAM | D94: 85 | E94: EASTHAM | F94: 13032677 | G94: =VLOOKUP(A94, localcont!$A$10:$I$1764, 8) -> 1830657.57 | H94: =VLOOKUP(A94, localcont!$A$10:$I$1764, 9)*F94 -> 4740814.313
A95: 426 | B95: 86 | C95: EASTHAMPTON | D95: 86 | E95: EASTHAMPTON | F95: 11740238 | G95: =VLOOKUP(A95, localcont!$A$10:$I$1764, 8) -> 18095294 | H95: =VLOOKUP(A95, localcont!$A$10:$I$1764, 9)*F95 -> 11740238
A96: 431 | B96: 87 | C96: EAST LONGMEADOW | D96: 87 | E96: EAST LONGMEADOW | F96: 15989870 | G96: =VLOOKUP(A96, localcont!$A$10:$I$1764, 8) -> 25486357.48 | H96: =VLOOKUP(A96, localcont!$A$10:$I$1764, 9)*F96 -> 15989870
A97: 436 | B97: 88 | C97: EASTON | D97: 88 | E97: EASTON | F97: 26748126 | G97: =VLOOKUP(A97, localcont!$A$10:$I$1764, 8) -> 34281775.1 | H97: =VLOOKUP(A97, localcont!$A$10:$I$1764, 9)*F97 -> 26036262.48
A98: 441 | B98: 89 | C98: EDGARTOWN | D98: 89 | E98: EDGARTOWN | F98: 29348085 | G98: =VLOOKUP(A98, localcont!$A$10:$I$1764, 8) -> 3949969.68 | H98: =VLOOKUP(A98, localcont!$A$10:$I$1764, 9)*F98 -> 19066098.43
A99: 446 | B99: 90 | C99: EGREMONT | D99: 90 | E99: EGREMONT | F99: 2031153 | G99: =VLOOKUP(A99, localcont!$A$10:$I$1764, 8) -> 0 | H99: =VLOOKUP(A99, localcont!$A$10:$I$1764, 9)*F99 -> 0
A100: 451 | B100: 91 | C100: ERVING | D100: 91 | E100: ERVING | F100: 2973215 | G100: =VLOOKUP(A100, localcont!$A$10:$I$1764, 8) -> 2412269.36 | H100: =VLOOKUP(A100, localcont!$A$10:$I$1764, 9)*F100 -> 2468931.636
A101: 456 | B101: 92 | C101: ESSEX | D101: 92 | E101: ESSEX | F101: 5691033 | G101: =VLOOKUP(A101, localcont!$A$10:$I$1764, 8) -> 0 | H101: =VLOOKUP(A101, localcont!$A$10:$I$1764, 9)*F101 -> 0
A102: 461 | B102: 93 | C102: EVERETT | D102: 93 | E102: EVERETT | F102: 25962442 | G102: =VLOOKUP(A102, localcont!$A$10:$I$1764, 8) -> 89667949.97 | H102: =VLOOKUP(A102, localcont!$A$10:$I$1764, 9)*F102 -> 25962442
A103: 466 | B103: 94 | C103: FAIRHAVEN | D103: 94 | E103: FAIRHAVEN | F103: 13535661 | G103: =VLOOKUP(A103, localcont!$A$10:$I$1764, 8) -> 17707799.16 | H103: =VLOOKUP(A103, localcont!$A$10:$I$1764, 9)*F103 -> 11363006.21
A104: 471 | B104: 95 | C104: FALL RIVER | D104: 95 | E104: FALL RIVER | F104: 40260927 | G104: =VLOOKUP(A104, localcont!$A$10:$I$1764, 8) -> 130963260.2 | H104: =VLOOKUP(A104, localcont!$A$10:$I$1764, 9)*F104 -> 35356835.2
A105: 476 | B105: 96 | C105: FALMOUTH | D105: 96 | E105: FALMOUTH | F105: 60149657 | G105: =VLOOKUP(A105, localcont!$A$10:$I$1764, 8) -> 35910247.15 | H105: =VLOOKUP(A105, localcont!$A$10:$I$1764, 9)*F105 -> 57036848.35
A106: 481 | B106: 97 | C106: FITCHBURG | D106: 97 | E106: FITCHBURG | F106: 18523225 | G106: =VLOOKUP(A106, localcont!$A$10:$I$1764, 8) -> 62363310.04 | H106: =VLOOKUP(A106, localcont!$A$10:$I$1764, 9)*F106 -> 16824832.65
A107: 486 | B107: 98 | C107: FLORIDA | D107: 98 | E107: FLORIDA | F107: 635411 | G107: =VLOOKUP(A107, localcont!$A$10:$I$1764, 8) -> 872994.29 | H107: =VLOOKUP(A107, localcont!$A$10:$I$1764, 9)*F107 -> 468646.4068
A108: 491 | B108: 99 | C108: FOXBOROUGH | D108: 99 | E108: FOXBOROUGH | F108: 21489293 | G108: =VLOOKUP(A108, localcont!$A$10:$I$1764, 8) -> 26484573.87 | H108: =VLOOKUP(A108, localcont!$A$10:$I$1764, 9)*F108 -> 21012275.34
A109: 496 | B109: 100 | C109: FRAMINGHAM | D109: 100 | E109: FRAMINGHAM | F109: 61010995 | G109: =VLOOKUP(A109, localcont!$A$10:$I$1764, 8) -> 95619668.63 | H109: =VLOOKUP(A109, localcont!$A$10:$I$1764, 9)*F109 -> 55930158.82
A110: 501 | B110: 101 | C110: FRANKLIN | D110: 101 | E110: FRANKLIN | F110: 37235119 | G110: =VLOOKUP(A110, localcont!$A$10:$I$1764, 8) -> 57388919.03 | H110: =VLOOKUP(A110, localcont!$A$10:$I$1764, 9)*F110 -> 35141951.12
A111: 506 | B111: 102 | C111: FREETOWN | D111: 102 | E111: FREETOWN | F111: 8684883 | G111: =VLOOKUP(A111, localcont!$A$10:$I$1764, 8) -> 1342125.92 | H111: =VLOOKUP(A111, localcont!$A$10:$I$1764, 9)*F111 -> 919463.034
A112: 511 | B112: 103 | C112: GARDNER | D112: 103 | E112: GARDNER | F112: 10128273 | G112: =VLOOKUP(A112, localcont!$A$10:$I$1764, 8) -> 27133681.38 | H112: =VLOOKUP(A112, localcont!$A$10:$I$1764, 9)*F112 -> 9305552.558
A113: 516 | B113: 104 | C113: AQUINNAH | D113: 104 | E113: AQUINNAH | F113: 3081989 | G113: =VLOOKUP(A113, localcont!$A$10:$I$1764, 8) -> 0 | H113: =VLOOKUP(A113, localcont!$A$10:$I$1764, 9)*F113 -> 0
A114: 521 | B114: 105 | C114: GEORGETOWN | D114: 105 | E114: GEORGETOWN | F114: 9632529 | G114: =VLOOKUP(A114, localcont!$A$10:$I$1764, 8) -> 12726852.81 | H114: =VLOOKUP(A114, localcont!$A$10:$I$1764, 9)*F114 -> 9137713.268
A115: 526 | B115: 106 | C115: GILL | D115: 106 | E115: GILL | F115: 1061076 | G115: =VLOOKUP(A115, localcont!$A$10:$I$1764, 8) -> 0 | H115: =VLOOKUP(A115, localcont!$A$10:$I$1764, 9)*F115 -> 0
A116: 531 | B116: 107 | C116: GLOUCESTER | D116: 107 | E116: GLOUCESTER | F116: 35528910 | G116: =VLOOKUP(A116, localcont!$A$10:$I$1764, 8) -> 34881817.4 | H116: =VLOOKUP(A116, localcont!$A$10:$I$1764, 9)*F116 -> 34306928.99
A117: 536 | B117: 108 | C117: GOSHEN | D117: 108 | E117: GOSHEN | F117: 758832 | G117: =VLOOKUP(A117, localcont!$A$10:$I$1764, 8) -> 105599.68 | H117: =VLOOKUP(A117, localcont!$A$10:$I$1764, 9)*F117 -> 71157.67712
A118: 541 | B118: 109 | C118: GOSNOLD | D118: 109 | E118: GOSNOLD | F118: 903586 | G118: =VLOOKUP(A118, localcont!$A$10:$I$1764, 8) -> 31484.75 | H118: =VLOOKUP(A118, localcont!$A$10:$I$1764, 9)*F118 -> 903586
A119: 546 | B119: 110 | C119: GRAFTON | D119: 110 | E119: GRAFTON | F119: 19852259 | G119: =VLOOKUP(A119, localcont!$A$10:$I$1764, 8) -> 29002097.03 | H119: =VLOOKUP(A119, localcont!$A$10:$I$1764, 9)*F119 -> 19143131.84
A120: 551 | B120: 111 | C120: GRANBY | D120: 111 | E120: GRANBY | F120: 4852796 | G120: =VLOOKUP(A120, localcont!$A$10:$I$1764, 8) -> 7978374.47 | H120: =VLOOKUP(A120, localcont!$A$10:$I$1764, 9)*F120 -> 4658237.59
A121: 556 | B121: 112 | C121: GRANVILLE | D121: 112 | E121: GRANVILLE | F121: 1495541 | G121: =VLOOKUP(A121, localcont!$A$10:$I$1764, 8) -> 0 | H121: =VLOOKUP(A121, localcont!$A$10:$I$1764, 9)*F121 -> 0
A122: 561 | B122: 113 | C122: GREAT BARRINGTON | D122: 113 | E122: GREAT BARRINGTON | F122: 8920276 | G122: =VLOOKUP(A122, localcont!$A$10:$I$1764, 8) -> 0 | H122: =VLOOKUP(A122, localcont!$A$10:$I$1764, 9)*F122 -> 0
A123: 566 | B123: 114 | C123: GREENFIELD | D123: 114 | E123: GREENFIELD | F123: 10381623 | G123: =VLOOKUP(A123, localcont!$A$10:$I$1764, 8) -> 21378359.31 | H123: =VLOOKUP(A123, localcont!$A$10:$I$1764, 9)*F123 -> 9577049.253
A124: 571 | B124: 115 | C124: GROTON | D124: 115 | E124: GROTON | F124: 16057838 | G124: =VLOOKUP(A124, localcont!$A$10:$I$1764, 8) -> 0 | H124: =VLOOKUP(A124, localcont!$A$10:$I$1764, 9)*F124 -> 0
A125: 576 | B125: 116 | C125: GROVELAND | D125: 116 | E125: GROVELAND | F125: 6584807 | G125: =VLOOKUP(A125, localcont!$A$10:$I$1764, 8) -> 79199.76 | H125: =VLOOKUP(A125, localcont!$A$10:$I$1764, 9)*F125 -> 50391.83672
A126: 581 | B126: 117 | C126: HADLEY | D126: 117 | E126: HADLEY | F126: 5849879 | G126: =VLOOKUP(A126, localcont!$A$10:$I$1764, 8) -> 5986156.38 | H126: =VLOOKUP(A126, localcont!$A$10:$I$1764, 9)*F126 -> 5849879
A127: 586 | B127: 118 | C127: HALIFAX | D127: 118 | E127: HALIFAX | F127: 6289045 | G127: =VLOOKUP(A127, localcont!$A$10:$I$1764, 8) -> 5540979.43 | H127: =VLOOKUP(A127, localcont!$A$10:$I$1764, 9)*F127 -> 2871458.867
A128: 591 | B128: 119 | C128: HAMILTON | D128: 119 | E128: HAMILTON | F128: 13196140 | G128: =VLOOKUP(A128, localcont!$A$10:$I$1764, 8) -> 0 | H128: =VLOOKUP(A128, localcont!$A$10:$I$1764, 9)*F128 -> 0
A129: 596 | B129: 120 | C129: HAMPDEN | D129: 120 | E129: HAMPDEN | F129: 5152759 | G129: =VLOOKUP(A129, localcont!$A$10:$I$1764, 8) -> 0 | H129: =VLOOKUP(A129, localcont!$A$10:$I$1764, 9)*F129 -> 0
A130: 601 | B130: 121 | C130: HANCOCK | D130: 121 | E130: HANCOCK | F130: 1269716 | G130: =VLOOKUP(A130, localcont!$A$10:$I$1764, 8) -> 700017.85 | H130: =VLOOKUP(A130, localcont!$A$10:$I$1764, 9)*F130 -> 1269716
A131: 606 | B131: 122 | C131: HANOVER | D131: 122 | E131: HANOVER | F131: 18911830 | G131: =VLOOKUP(A131, localcont!$A$10:$I$1764, 8) -> 24041587.17 | H131: =VLOOKUP(A131, localcont!$A$10:$I$1764, 9)*F131 -> 18359459.06
A132: 611 | B132: 123 | C132: HANSON | D132: 123 | E132: HANSON | F132: 9049001 | G132: =VLOOKUP(A132, localcont!$A$10:$I$1764, 8) -> 105599.68 | H132: =VLOOKUP(A132, localcont!$A$10:$I$1764, 9)*F132 -> 55347.47923
A133: 616 | B133: 124 | C133: HARDWICK | D133: 124 | E133: HARDWICK | F133: 1511165 | G133: =VLOOKUP(A133, localcont!$A$10:$I$1764, 8) -> 13199.96 | H133: =VLOOKUP(A133, localcont!$A$10:$I$1764, 9)*F133 -> 4654.25499
A134: 621 | B134: 125 | C134: HARVARD | D134: 125 | E134: HARVARD | F134: 10154871 | G134: =VLOOKUP(A134, localcont!$A$10:$I$1764, 8) -> 9693663.264 | H134: =VLOOKUP(A134, localcont!$A$10:$I$1764, 9)*F134 -> 10028410.77
A135: 626 | B135: 126 | C135: HARWICH | D135: 126 | E135: HARWICH | F135: 24550588 | G135: =VLOOKUP(A135, localcont!$A$10:$I$1764, 8) -> 0 | H135: =VLOOKUP(A135, localcont!$A$10:$I$1764, 9)*F135 -> 0
A136: 631 | B136: 127 | C136: HATFIELD | D136: 127 | E136: HATFIELD | F136: 3433212 | G136: =VLOOKUP(A136, localcont!$A$10:$I$1764, 8) -> 3617908.4 | H136: =VLOOKUP(A136, localcont!$A$10:$I$1764, 9)*F136 -> 3433212
A137: 636 | B137: 128 | C137: HAVERHILL | D137: 128 | E137: HAVERHILL | F137: 43134153 | G137: =VLOOKUP(A137, localcont!$A$10:$I$1764, 8) -> 85387258.69 | H137: =VLOOKUP(A137, localcont!$A$10:$I$1764, 9)*F137 -> 37789635.64
A138: 641 | B138: 129 | C138: HAWLEY | D138: 129 | E138: HAWLEY | F138: =VLOOKUP(D138, town351, 7) -> 262537 | G138: =VLOOKUP(A138, localcont!$A$10:$I$1764, 8) -> 65999.8 | H138: =VLOOKUP(A138, localcont!$A$10:$I$1764, 9)*F138 -> 37534.02939
A139: 646 | B139: 130 | C139: HEATH | D139: 130 | E139: HEATH | F139: 459920 | G139: =VLOOKUP(A139, localcont!$A$10:$I$1764, 8) -> 0 | H139: =VLOOKUP(A139, localcont!$A$10:$I$1764, 9)*F139 -> 0
A140: 651 | B140: 131 | C140: HINGHAM | D140: 131 | E140: HINGHAM | F140: 53513691 | G140: =VLOOKUP(A140, localcont!$A$10:$I$1764, 8) -> 39001020.53 | H140: =VLOOKUP(A140, localcont!$A$10:$I$1764, 9)*F140 -> 53513691
A141: 656 | B141: 132 | C141: HINSDALE | D141: 132 | E141: HINSDALE | F141: 1985362 | G141: =VLOOKUP(A141, localcont!$A$10:$I$1764, 8) -> 210131.86 | H141: =VLOOKUP(A141, localcont!$A$10:$I$1764, 9)*F141 -> 165799.2948
A142: 661 | B142: 133 | C142: HOLBROOK | D142: 133 | E142: HOLBROOK | F142: 8284114 | G142: =VLOOKUP(A142, localcont!$A$10:$I$1764, 8) -> 12443297.54 | H142: =VLOOKUP(A142, localcont!$A$10:$I$1764, 9)*F142 -> 6790413.69
A143: 666 | B143: 134 | C143: HOLDEN | D143: 134 | E143: HOLDEN | F143: 17578908 | G143: =VLOOKUP(A143, localcont!$A$10:$I$1764, 8) -> 13199.96 | H143: =VLOOKUP(A143, localcont!$A$10:$I$1764, 9)*F143 -> 7728.190244
A144: 671 | B144: 135 | C144: HOLLAND | D144: 135 | E144: HOLLAND | F144: 2175997 | G144: =VLOOKUP(A144, localcont!$A$10:$I$1764, 8) -> 1599126.75 | H144: =VLOOKUP(A144, localcont!$A$10:$I$1764, 9)*F144 -> 929166.5402
A145: 676 | B145: 136 | C145: HOLLISTON | D145: 136 | E145: HOLLISTON | F145: 18013128 | G145: =VLOOKUP(A145, localcont!$A$10:$I$1764, 8) -> 24361946.35 | H145: =VLOOKUP(A145, localcont!$A$10:$I$1764, 9)*F145 -> 17526805.91
A146: 681 | B146: 137 | C146: HOLYOKE | D146: 137 | E146: HOLYOKE | F146: 16981999 | G146: =VLOOKUP(A146, localcont!$A$10:$I$1764, 8) -> 80596955.48 | H146: =VLOOKUP(A146, localcont!$A$10:$I$1764, 9)*F146 -> 16981999
A147: 686 | B147: 138 | C147: HOPEDALE | D147: 138 | E147: HOPEDALE | F147: 5659696 | G147: =VLOOKUP(A147, localcont!$A$10:$I$1764, 8) -> 10396781.26 | H147: =VLOOKUP(A147, localcont!$A$10:$I$1764, 9)*F147 -> 5476378.065
A148: 691 | B148: 139 | C148: HOPKINTON | D148: 139 | E148: HOPKINTON | F148: 29004147 | G148: =VLOOKUP(A148, localcont!$A$10:$I$1764, 8) -> 33687637.27 | H148: =VLOOKUP(A148, localcont!$A$10:$I$1764, 9)*F148 -> 28744590.49
A149: 696 | B149: 140 | C149: HUBBARDSTON | D149: 140 | E149: HUBBARDSTON | F149: 3654918 | G149: =VLOOKUP(A149, localcont!$A$10:$I$1764, 8) -> 0 | H149: =VLOOKUP(A149, localcont!$A$10:$I$1764, 9)*F149 -> 0
A150: 701 | B150: 141 | C150: HUDSON | D150: 141 | E150: HUDSON | F150: 17883684 | G150: =VLOOKUP(A150, localcont!$A$10:$I$1764, 8) -> 28189612.61 | H150: =VLOOKUP(A150, localcont!$A$10:$I$1764, 9)*F150 -> 16152250.67
A151: 706 | B151: 142 | C151: HULL | D151: 142 | E151: HULL | F151: 12728451 | G151: =VLOOKUP(A151, localcont!$A$10:$I$1764, 8) -> 10627740.81 | H151: =VLOOKUP(A151, localcont!$A$10:$I$1764, 9)*F151 -> 12728451
A152: 711 | B152: 143 | C152: HUNTINGTON | D152: 143 | E152: HUNTINGTON | F152: 1693587 | G152: =VLOOKUP(A152, localcont!$A$10:$I$1764, 8) -> 328931.5 | H152: =VLOOKUP(A152, localcont!$A$10:$I$1764, 9)*F152 -> 189687.4208
A153: 716 | B153: 144 | C153: IPSWICH | D153: 144 | E153: IPSWICH | F153: 18627322 | G153: =VLOOKUP(A153, localcont!$A$10:$I$1764, 8) -> 18118176.86 | H153: =VLOOKUP(A153, localcont!$A$10:$I$1764, 9)*F153 -> 18110658.49
A154: 721 | B154: 145 | C154: KINGSTON | D154: 145 | E154: KINGSTON | F154: 13280058 | G154: =VLOOKUP(A154, localcont!$A$10:$I$1764, 8) -> 10093730.67 | H154: =VLOOKUP(A154, localcont!$A$10:$I$1764, 9)*F154 -> 6415834.498
A155: 726 | B155: 146 | C155: LAKEVILLE | D155: 146 | E155: LAKEVILLE | F155: 11117419 | G155: =VLOOKUP(A155, localcont!$A$10:$I$1764, 8) -> 196931.9 | H155: =VLOOKUP(A155, localcont!$A$10:$I$1764, 9)*F155 -> 128965.3347
A156: 731 | B156: 147 | C156: LANCASTER | D156: 147 | E156: LANCASTER | F156: 6863926 | G156: =VLOOKUP(A156, localcont!$A$10:$I$1764, 8) -> 26399.92 | H156: =VLOOKUP(A156, localcont!$A$10:$I$1764, 9)*F156 -> 18424.16509
A157: 736 | B157: 148 | C157: LANESBOROUGH | D157: 148 | E157: LANESBOROUGH | F157: 2640853 | G157: =VLOOKUP(A157, localcont!$A$10:$I$1764, 8) -> 1924866.88 | H157: =VLOOKUP(A157, localcont!$A$10:$I$1764, 9)*F157 -> 1248594.858
A158: 741 | B158: 149 | C158: LAWRENCE | D158: 149 | E158: LAWRENCE | F158: 26290096 | G158: =VLOOKUP(A158, localcont!$A$10:$I$1764, 8) -> 186136094.7 | H158: =VLOOKUP(A158, localcont!$A$10:$I$1764, 9)*F158 -> 23903335.97
A159: 746 | B159: 150 | C159: LEE | D159: 150 | E159: LEE | F159: 5642981 | G159: =VLOOKUP(A159, localcont!$A$10:$I$1764, 8) -> 6274000.48 | H159: =VLOOKUP(A159, localcont!$A$10:$I$1764, 9)*F159 -> 5642981
A160: 751 | B160: 151 | C160: LEICESTER | D160: 151 | E160: LEICESTER | F160: 8064134 | G160: =VLOOKUP(A160, localcont!$A$10:$I$1764, 8) -> 16315414.45 | H160: =VLOOKUP(A160, localcont!$A$10:$I$1764, 9)*F160 -> 8064134
A161: 756 | B161: 152 | C161: LENOX | D161: 152 | E161: LENOX | F161: 7621876 | G161: =VLOOKUP(A161, localcont!$A$10:$I$1764, 8) -> 5259228.06 | H161: =VLOOKUP(A161, localcont!$A$10:$I$1764, 9)*F161 -> 7621876
A162: 761 | B162: 153 | C162: LEOMINSTER | D162: 153 | E162: LEOMINSTER | F162: 27854000 | G162: =VLOOKUP(A162, localcont!$A$10:$I$1764, 8) -> 68789894.09 | H162: =VLOOKUP(A162, localcont!$A$10:$I$1764, 9)*F162 -> 27854000
A163: 766 | B163: 154 | C163: LEVERETT | D163: 154 | E163: LEVERETT | F163: 2056481 | G163: =VLOOKUP(A163, localcont!$A$10:$I$1764, 8) -> 982131.53 | H163: =VLOOKUP(A163, localcont!$A$10:$I$1764, 9)*F163 -> 939391.656
A164: 771 | B164: 155 | C164: LEXINGTON | D164: 155 | E164: LEXINGTON | F164: 85840064 | G164: =VLOOKUP(A164, localcont!$A$10:$I$1764, 8) -> 67063773.2 | H164: =VLOOKUP(A164, localcont!$A$10:$I$1764, 9)*F164 -> 84875440.42
A165: 776 | B165: 156 | C165: LEYDEN | D165: 156 | E165: LEYDEN | F165: 675463 | G165: =VLOOKUP(A165, localcont!$A$10:$I$1764, 8) -> 0 | H165: =VLOOKUP(A165, localcont!$A$10:$I$1764, 9)*F165 -> 0
A166: 781 | B166: 157 | C166: LINCOLN | D166: 157 | E166: LINCOLN | F166: 20706463 | G166: =VLOOKUP(A166, localcont!$A$10:$I$1764, 8) -> 5601678.014 | H166: =VLOOKUP(A166, localcont!$A$10:$I$1764, 9)*F166 -> 13710170.86
A167: 786 | B167: 158 | C167: LITTLETON | D167: 158 | E167: LITTLETON | F167: 11857476 | G167: =VLOOKUP(A167, localcont!$A$10:$I$1764, 8) -> 15178691.9 | H167: =VLOOKUP(A167, localcont!$A$10:$I$1764, 9)*F167 -> 11472283.19
A168: 791 | B168: 159 | C168: LONGMEADOW | D168: 159 | E168: LONGMEADOW | F168: 23000744 | G168: =VLOOKUP(A168, localcont!$A$10:$I$1764, 8) -> 25612986.45 | H168: =VLOOKUP(A168, localcont!$A$10:$I$1764, 9)*F168 -> 23000744
A169: 796 | B169: 160 | C169: LOWELL | D169: 160 | E169: LOWELL | F169: 54480157 | G169: =VLOOKUP(A169, localcont!$A$10:$I$1764, 8) -> 177537953.7 | H169: =VLOOKUP(A169, localcont!$A$10:$I$1764, 9)*F169 -> 47539156.63
A170: 801 | B170: 161 | C170: LUDLOW | D170: 161 | E170: LUDLOW | F170: 15164414 | G170: =VLOOKUP(A170, localcont!$A$10:$I$1764, 8) -> 27187438.54 | H170: =VLOOKUP(A170, localcont!$A$10:$I$1764, 9)*F170 -> 15164414
A171: 806 | B171: 162 | C171: LUNENBURG | D171: 162 | E171: LUNENBURG | F171: 9968537 | G171: =VLOOKUP(A171, localcont!$A$10:$I$1764, 8) -> 15341249.75 | H171: =VLOOKUP(A171, localcont!$A$10:$I$1764, 9)*F171 -> 9249929.676
A172: 811 | B172: 163 | C172: LYNN | D172: 163 | E172: LYNN | F172: 45813772 | G172: =VLOOKUP(A172, localcont!$A$10:$I$1764, 8) -> 191949856.6 | H172: =VLOOKUP(A172, localcont!$A$10:$I$1764, 9)*F172 -> 45813772
A173: 816 | B173: 164 | C173: LYNNFIELD | D173: 164 | E173: LYNNFIELD | F173: 20975954 | G173: =VLOOKUP(A173, localcont!$A$10:$I$1764, 8) -> 19743094.6 | H173: =VLOOKUP(A173, localcont!$A$10:$I$1764, 9)*F173 -> 20667060.24
A174: 821 | B174: 165 | C174: MALDEN | D174: 165 | E174: MALDEN | F174: 39601515 | G174: =VLOOKUP(A174, localcont!$A$10:$I$1764, 8) -> 84059175.64 | H174: =VLOOKUP(A174, localcont!$A$10:$I$1764, 9)*F174 -> 38320130.78
A175: 826 | B175: 166 | C175: MANCHESTER | D175: 166 | E175: MANCHESTER | F175: 17914135 | G175: =VLOOKUP(A175, localcont!$A$10:$I$1764, 8) -> 0 | H175: =VLOOKUP(A175, localcont!$A$10:$I$1764, 9)*F175 -> 0
A176: 831 | B176: 167 | C176: MANSFIELD | D176: 167 | E176: MANSFIELD | F176: 26778931 | G176: =VLOOKUP(A176, localcont!$A$10:$I$1764, 8) -> 40931631.92 | H176: =VLOOKUP(A176, localcont!$A$10:$I$1764, 9)*F176 -> 25990128.71
A177: 836 | B177: 168 | C177: MARBLEHEAD | D177: 168 | E177: MARBLEHEAD | F177: 43180350 | G177: =VLOOKUP(A177, localcont!$A$10:$I$1764, 8) -> 30592758.85 | H177: =VLOOKUP(A177, localcont!$A$10:$I$1764, 9)*F177 -> 42918891.04
A178: 841 | B178: 169 | C178: MARION | D178: 169 | E178: MARION | F178: 9867851 | G178: =VLOOKUP(A178, localcont!$A$10:$I$1764, 8) -> 4014302.57 | H178: =VLOOKUP(A178, localcont!$A$10:$I$1764, 9)*F178 -> 5251910.028
A179: 846 | B179: 170 | C179: MARLBOROUGH | D179: 170 | E179: MARLBOROUGH | F179: 35717343 | G179: =VLOOKUP(A179, localcont!$A$10:$I$1764, 8) -> 55409404.92 | H179: =VLOOKUP(A179, localcont!$A$10:$I$1764, 9)*F179 -> 32195951.3
A180: 851 | B180: 171 | C180: MARSHFIELD | D180: 171 | E180: MARSHFIELD | F180: 31962838 | G180: =VLOOKUP(A180, localcont!$A$10:$I$1764, 8) -> 40254049.28 | H180: =VLOOKUP(A180, localcont!$A$10:$I$1764, 9)*F180 -> 31962838
A181: 856 | B181: 172 | C181: MASHPEE | D181: 172 | E181: MASHPEE | F181: 24410717 | G181: =VLOOKUP(A181, localcont!$A$10:$I$1764, 8) -> 16578175.3 | H181: =VLOOKUP(A181, localcont!$A$10:$I$1764, 9)*F181 -> 23043328.56
A182: 861 | B182: 173 | C182: MATTAPOISETT | D182: 173 | E182: MATTAPOISETT | F182: 10680142 | G182: =VLOOKUP(A182, localcont!$A$10:$I$1764, 8) -> 4686148.55 | H182: =VLOOKUP(A182, localcont!$A$10:$I$1764, 9)*F182 -> 5559374.336
A183: 866 | B183: 174 | C183: MAYNARD | D183: 174 | E183: MAYNARD | F183: 9716784 | G183: =VLOOKUP(A183, localcont!$A$10:$I$1764, 8) -> 13850824.28 | H183: =VLOOKUP(A183, localcont!$A$10:$I$1764, 9)*F183 -> 9037642.032
A184: 871 | B184: 175 | C184: MEDFIELD | D184: 175 | E184: MEDFIELD | F184: 24517920 | G184: =VLOOKUP(A184, localcont!$A$10:$I$1764, 8) -> 23395043.48 | H184: =VLOOKUP(A184, localcont!$A$10:$I$1764, 9)*F184 -> 24321142.11
A185: 876 | B185: 176 | C185: MEDFORD | D185: 176 | E185: MEDFORD | F185: 54398963 | G185: =VLOOKUP(A185, localcont!$A$10:$I$1764, 8) -> 52826959.86 | H185: =VLOOKUP(A185, localcont!$A$10:$I$1764, 9)*F185 -> 54398963
A186: 881 | B186: 177 | C186: MEDWAY | D186: 177 | E186: MEDWAY | F186: 14809194 | G186: =VLOOKUP(A186, localcont!$A$10:$I$1764, 8) -> 21958660.34 | H186: =VLOOKUP(A186, localcont!$A$10:$I$1764, 9)*F186 -> 14185958.3
A187: 886 | B187: 178 | C187: MELROSE | D187: 178 | E187: MELROSE | F187: 31369226 | G187: =VLOOKUP(A187, localcont!$A$10:$I$1764, 8) -> 36086251.43 | H187: =VLOOKUP(A187, localcont!$A$10:$I$1764, 9)*F187 -> 30502709.45
A188: 891 | B188: 179 | C188: MENDON | D188: 179 | E188: MENDON | F188: 7164260 | G188: =VLOOKUP(A188, localcont!$A$10:$I$1764, 8) -> 26877.48324 | H188: =VLOOKUP(A188, localcont!$A$10:$I$1764, 9)*F188 -> 17630.69359
A189: 896 | B189: 180 | C189: MERRIMAC | D189: 180 | E189: MERRIMAC | F189: 5590059 | G189: =VLOOKUP(A189, localcont!$A$10:$I$1764, 8) -> 39599.88 | H189: =VLOOKUP(A189, localcont!$A$10:$I$1764, 9)*F189 -> 23460.32009
A190: 901 | B190: 181 | C190: METHUEN | D190: 181 | E190: METHUEN | F190: 36615907 | G190: =VLOOKUP(A190, localcont!$A$10:$I$1764, 8) -> 75476679.29 | H190: =VLOOKUP(A190, localcont!$A$10:$I$1764, 9)*F190 -> 33685127.35
A191: 906 | B191: 182 | C191: MIDDLEBOROUGH | D191: 182 | E191: MIDDLEBOROUGH | F191: 17786421 | G191: =VLOOKUP(A191, localcont!$A$10:$I$1764, 8) -> 32000342.63 | H191: =VLOOKUP(A191, localcont!$A$10:$I$1764, 9)*F191 -> 15610347.26
A192: 911 | B192: 183 | C192: MIDDLEFIELD | D192: 183 | E192: MIDDLEFIELD | F192: 382029 | G192: =VLOOKUP(A192, localcont!$A$10:$I$1764, 8) -> 13199.96 | H192: =VLOOKUP(A192, localcont!$A$10:$I$1764, 9)*F192 -> 12394.93565
A193: 916 | B193: 184 | C193: MIDDLETON | D193: 184 | E193: MIDDLETON | F193: 12548055 | G193: =VLOOKUP(A193, localcont!$A$10:$I$1764, 8) -> 6509297.984 | H193: =VLOOKUP(A193, localcont!$A$10:$I$1764, 9)*F193 -> 5957307.103
A194: 921 | B194: 185 | C194: MILFORD | D194: 185 | E194: MILFORD | F194: 23881573 | G194: =VLOOKUP(A194, localcont!$A$10:$I$1764, 8) -> 44418717.09 | H194: =VLOOKUP(A194, localcont!$A$10:$I$1764, 9)*F194 -> 22720587.52
A195: 926 | B195: 186 | C195: MILLBURY | D195: 186 | E195: MILLBURY | F195: 10952848 | G195: =VLOOKUP(A195, localcont!$A$10:$I$1764, 8) -> 17130949.16 | H195: =VLOOKUP(A195, localcont!$A$10:$I$1764, 9)*F195 -> 10272342.7
A196: 931 | B196: 187 | C196: MILLIS | D196: 187 | E196: MILLIS | F196: 8420776 | G196: =VLOOKUP(A196, localcont!$A$10:$I$1764, 8) -> 12205625.69 | H196: =VLOOKUP(A196, localcont!$A$10:$I$1764, 9)*F196 -> 8055577.73
A197: 936 | B197: 188 | C197: MILLVILLE | D197: 188 | E197: MILLVILLE | F197: 2267647 | G197: =VLOOKUP(A197, localcont!$A$10:$I$1764, 8) -> 79199.76 | H197: =VLOOKUP(A197, localcont!$A$10:$I$1764, 9)*F197 -> 31743.21969
A198: 941 | B198: 189 | C198: MILTON | D198: 189 | E198: MILTON | F198: 43169352 | G198: =VLOOKUP(A198, localcont!$A$10:$I$1764, 8) -> 36501504.89 | H198: =VLOOKUP(A198, localcont!$A$10:$I$1764, 9)*F198 -> 42162472.8
A199: 946 | B199: 190 | C199: MONROE | D199: 190 | E199: MONROE | F199: 96603 | G199: =VLOOKUP(A199, localcont!$A$10:$I$1764, 8) -> 57396.78 | H199: =VLOOKUP(A199, localcont!$A$10:$I$1764, 9)*F199 -> 46388.77696
A200: 951 | B200: 191 | C200: MONSON | D200: 191 | E200: MONSON | F200: 6237205 | G200: =VLOOKUP(A200, localcont!$A$10:$I$1764, 8) -> 10642912.68 | H200: =VLOOKUP(A200, localcont!$A$10:$I$1764, 9)*F200 -> 5358401.774
A201: 956 | B201: 192 | C201: MONTAGUE | D201: 192 | E201: MONTAGUE | F201: 5607850 | G201: =VLOOKUP(A201, localcont!$A$10:$I$1764, 8) -> 0 | H201: =VLOOKUP(A201, localcont!$A$10:$I$1764, 9)*F201 -> 0
A202: 961 | B202: 193 | C202: MONTEREY | D202: 193 | E202: MONTEREY | F202: =VLOOKUP(D202, town351, 7) -> 2136346 | G202: =VLOOKUP(A202, localcont!$A$10:$I$1764, 8) -> 0 | H202: =VLOOKUP(A202, localcont!$A$10:$I$1764, 9)*F202 -> 0
A203: 966 | B203: 194 | C203: MONTGOMERY | D203: 194 | E203: MONTGOMERY | F203: 850165 | G203: =VLOOKUP(A203, localcont!$A$10:$I$1764, 8) -> 39599.88 | H203: =VLOOKUP(A203, localcont!$A$10:$I$1764, 9)*F203 -> 40236.10806
A204: 971 | B204: 195 | C204: MOUNT WASHINGTON | D204: 195 | E204: MOUNT WASHINGTON | F204: 365989 | G204: =VLOOKUP(A204, localcont!$A$10:$I$1764, 8) -> 89843.44 | H204: =VLOOKUP(A204, localcont!$A$10:$I$1764, 9)*F204 -> 365989
... 617 more rows

Sheet localcont (hidden)
F1: c70fy15 | G1: c70fy15 | L1: c70fy15 | O1: c70fy15 | S1: 2015-02-23
S2: distfrac16prelim2-19
A3: 1 | B3: 2 | C3: 3 | D3: 4 | E3: 5 | F3: 6 | G3: 7 | H3: 8 | I3: 9 | J3: 10 | K3: 11 | L3: 12 | M3: 13 | N3: 14 | O3: 15 | P3: 16 | Q3: 17 | R3: 18 | S3: 19 | T3: 20 | U3: 21
D4: lea1755 | H4: found1755 | K4: prelcont1755 | L4: pynetmin | O4: pyenro | T4: enro1755
Y5: 1 | AC5: 2 | AI5: 3 | AO5: 4 | AU5: 5 | BA5: 6 | BG5: 7 | BM5: 8
Q6: =parameters!C6 -> 1 | W6: Oct 1, 2014 SIMS, 1.50% Inflation, Low Income as Reported (CEP district use FY15)
F7: FY15 | G7: FY15 | H7: FY16 | I7: FY16 | J7: FY16 | K7: Net Minimum | L7: FY15
F8: Foundation | G8: Share of Total | H8: Foundation | I8: Share of Total | J8: Townwide | K8: Contribution | L8: Net Minimum | M8: Change | N8: Percent | O8: FY15 | T8: final | U8: foundation | Z8: final | AA8: foundation | AF8: final | AG8: foundation | AL8: final | AM8: foundation | AR8: final | AS8: foundation | AX8: final | AY8: foundation | BD8: final | BE8: foundation | BJ8: final | BK8: foundation | BP8: final | BQ8: foundation
A9: Order | B9: Town | C9: City or Town | D9: LEA | E9: School District | F9: Budget | G9: Foundation | H9: Budget | I9: Foundation | J9: Contribution | K9: FY16 | L9: Contribution | M9: FY15-FY16 | N9: Change | O9: Enrollment | Q9: Town | R9: LEA | S9: Order | T9: enrollment | U9: budget | W9: Town | X9: LEA | Y9: Order | Z9: enrollment | AA9: budget | AC9: Town | AD9: LEA | AE9: Order | AF9: enrollment | AG9: budget | AI9: Town | AJ9: LEA | AK9: Order | AL9: enrollment | AM9: budget | AO9: Town | AP9: LEA | AQ9: Order | AR9: enrollment | AS9: budget | AU9: Town | AV9: LEA | AW9: Order | AX9: enrollment | AY9: budget | BA9: Town | BB9: LEA | BC9: Order | BD9: enrollment | BE9: budget | BG9: Town | BH9: LEA | BI9: Order | BJ9: enrollment | BK9: budget | BM9: Town | BN9: LEA | BO9: Order | BP9: enrollment | BQ9: budget
A10: 1 | B10: 1 | C10: ABINGTON | D10: 1 | E10: ABINGTON | F10: 18287521.51 | G10: 0.8884257152 | H10: =U10 -> 18870910.49 | I10: =IF(H14>0, H10/H14, 0) -> 0.8895557406 | K10: =ROUND(J14*I10,0) -> 12546660 | L10: 12943494 | M10: =K10-L10 -> -396834 | N10: =IF(L10>0,M10*100/L10,IF(M10>0,100,0)) -> -3.065895499 | O10: 1952 | P10: =ABS(Q10-B10)+ABS(R10-D10) -> 0 | Q10: =IF($Q$6=1, W10, IF($Q$6=2, AC10, IF($Q$6=3, AI10, IF($Q$6=4, AO10, IF($Q$6=5, AU10, IF($Q$6=6, BA10, IF($Q$6=7, BG10, IF($Q$6=8, BM10, 0)))))))) -> 1 | R10: =IF($Q$6=1, X10, IF($Q$6=2, AD10, IF($Q$6=3, AJ10, IF($Q$6=4, AP10, IF($Q$6=5, AV10, IF($Q$6=6, BB10, IF($Q$6=7, BH10, IF($Q$6=8, BN10, 0)))))))) -> 1 | S10: =IF($Q$6=1, Y10, IF($Q$6=2, AE10, IF($Q$6=3, AK10, IF($Q$6=4, AQ10, IF($Q$6=5, AW10, IF($Q$6=6, BC10, IF($Q$6=7, BI10, IF($Q$6=8, BO10, 0)))))))) -> 1 | T10: =IF($Q$6=1, Z10, IF($Q$6=2, AF10, IF($Q$6=3, AL10, IF($Q$6=4, AR10, IF($Q$6=5, AX10, IF($Q$6=6, BD10, IF($Q$6=7, BJ10, IF($Q$6=8, BP10, 0)))))))) -> 1955 | U10: =IF($Q$6=1, AA10, IF($Q$6=2, AG10, IF($Q$6=3, AM10, IF($Q$6=4, AS10, IF($Q$6=5, AY10, IF($Q$6=6, BE10, IF($Q$6=7, BK10, IF($Q$6=8, BQ10, 0)))))))) -> 18870910.49 | W10: 1 | X10: 1 | Y10: 1 | Z10: 1955 | AA10: 18870910.49
A11: 2 | B11: 1 | C11: ABINGTON | D11: 873 | E11: SOUTH SHORE | F11: 2296666 | G11: 0.1115742848 | H11: =U11 -> 2342949 | I11: =IF(H14>0, H11/H14, 0) -> 0.1104442594 | K11: =ROUND(J14*I11,0) -> 1557751 | L11: 1625528 | M11: =K11-L11 -> -67777 | N11: -4.169537529 | O11: 152 | P11: 0 | Q11: 1 | R11: 873 | S11: 2 | T11: 149 | U11: 2342949 | W11: 1 | X11: 873 | Y11: 2 | Z11: 149 | AA11: 2342949
A12: 3 | B12: 1 | D12: 998 | F12: 0 | G12: 0 | H12: =U12 -> 0 | I12: =IF(H14>0, H12/H14, 0) -> 0 | K12: =ROUND(J14*I12,0) -> 0 | L12: 0 | M12: =K12-L12 -> 0 | N12: 0 | O12: 0 | P12: 0 | Q12: 1 | R12: 998 | S12: 3 | T12: 0 | U12: 0 | W12: 1 | X12: 998 | Y12: 3 | Z12: 0 | AA12: 0
A13: 4 | B13: 1 | D13: 998 | F13: 0 | G13: 0 | H13: =U13 -> 0 | I13: =IF(H14>0, H13/H14, 0) -> 0 | K13: =ROUND(J14*I13,0) -> 0 | L13: 0 | M13: =K13-L13 -> 0 | N13: 0 | O13: 0 | P13: 0 | Q13: 1 | R13: 998 | S13: 4 | T13: 0 | U13: 0 | W13: 1 | X13: 998 | Y13: 4 | Z13: 0 | AA13: 0
A14: 5 | B14: 1 | C14: ABINGTON | D14: 999 | E14: TOTAL | F14: 20584187.51 | G14: 1 | H14: =SUM(H10:H13) -> 21213859.49 | I14: =SUM(I10:I13) -> 1 | J14: =VLOOKUP(B14,town351,22) -> 14104411 | K14: =SUM(K10:K13) -> 14104411 | L14: 14569022 | M14: =SUM(M10:M13) -> -464611 | N14: -3.189033554 | O14: 2104 | P14: 0 | Q14: 1 | R14: 999 | S14: 5 | T14: 2104 | U14: 21213859.49 | W14: 1 | X14: 999 | Y14: 5 | Z14: 2104 | AA14: 21213859.49
A15: 6 | B15: 2 | C15: ACTON | D15: 2 | E15: ACTON | F15: 0 | G15: 0 | H15: =U15 -> 0 | I15: =IF(H19>0, H15/H19, 0) -> 0 | K15: =ROUND(J19*I15,0) -> 0 | L15: 0 | M15: =K15-L15 -> 0 | N15: 0 | O15: 0 | P15: 0 | Q15: 2 | R15: 2 | S15: 6 | T15: 0 | U15: 0 | W15: 2 | X15: 2 | Y15: 6 | Z15: 0 | AA15: 0
A16: 7 | B16: 2 | C16: ACTON | D16: 600 | E16: ACTON BOXBOROUGH | F16: 44314667 | G16: 0.9903550781 | H16: 44729363 | I16: =IF(H19>0, H16/H19, 0) -> 0.9895085382 | K16: =ROUND(J19*I16,0) -> 34296868 | L16: 32993280 | M16: =K16-L16 -> 1303588 | N16: 3.951071248 | O16: 4775 | P16: 0 | Q16: 2 | R16: 600 | S16: 7 | T16: 4714 | U16: 44729363 | W16: 2 | X16: 600 | Y16: 7 | Z16: 4714 | AA16: 44729363
A17: 8 | B17: 2 | C17: ACTON | D17: 830 | E17: MINUTEMAN | F17: 431574 | G17: 0.009644921905 | H17: 474252 | I17: =IF(H19>0, H17/H19, 0) -> 0.0104914618 | K17: =ROUND(J19*I17,0) -> 363639 | L17: 321317 | M17: =K17-L17 -> 42322 | N17: 13.17141639 | O17: 26 | P17: 0 | Q17: 2 | R17: 830 | S17: 8 | T17: 28 | U17: 474252 | W17: 2 | X17: 830 | Y17: 8 | Z17: 28 | AA17: 474252
A18: 9 | B18: 2 | D18: 998 | F18: 0 | G18: 0 | H18: 0 | I18: =IF(H19>0, H18/H19, 0) -> 0 | K18: =ROUND(J19*I18,0) -> 0 | L18: 0 | M18: =K18-L18 -> 0 | N18: 0 | O18: 0 | P18: 0 | Q18: 2 | R18: 998 | S18: 9 | T18: 0 | U18: 0 | W18: 2 | X18: 998 | Y18: 9 | Z18: 0 | AA18: 0
A19: 10 | B19: 2 | C19: ACTON | D19: 999 | E19: TOTAL | F19: 44746241 | G19: 1 | H19: =SUM(H15:H18) -> 45203615 | I19: =SUM(I15:I18) -> 1 | J19: =VLOOKUP(B19,town351,22) -> 34660507 | K19: =SUM(K15:K18) -> 34660507 | L19: 33314597 | M19: =SUM(M15:M18) -> 1345910 | N19: =IF(L19>0,M19*100/L19,IF(M19>0,100,0)) -> 4.040000844 | O19: 4801 | P19: 0 | Q19: 2 | R19: 999 | S19: 10 | T19: 4742 | U19: 45203615 | W19: 2 | X19: 999 | Y19: 10 | Z19: 4742 | AA19: 45203615
A20: 11 | B20: 3 | C20: ACUSHNET | D20: 3 | E20: ACUSHNET | F20: 11538501.13 | G20: 0.8066389152 | H20: =U20 -> 11701370.22 | I20: =IF(H24>0, H20/H24, 0) -> 0.823464878 | K20: =ROUND(J24*I20,0) -> 6709873 | L20: 6393318 | M20: =K20-L20 -> 316555 | N20: 4.951341385 | O20: 1251 | P20: 0 | Q20: 3 | R20: 3 | S20: 11 | T20: 1244 | U20: 11701370.22 | W20: 3 | X20: 3 | Y20: 11 | Z20: 1244 | AA20: 11701370.22
A21: 12 | B21: 3 | C21: ACUSHNET | D21: 855 | E21: OLD COLONY | F21: 2601127 | G21: 0.1818407987 | H21: 2356483 | I21: =IF(H24>0, H21/H24, 0) -> 0.1658336545 | K21: =ROUND(J24*I21,0) -> 1351269 | L21: 1441247 | M21: =K21-L21 -> -89978 | N21: -6.243065901 | O21: 175 | P21: 0 | Q21: 3 | R21: 855 | S21: 12 | T21: 154 | U21: 2356483 | W21: 3 | X21: 855 | Y21: 12 | Z21: 154 | AA21: 2356483
A22: 13 | B22: 3 | C22: ACUSHNET | D22: 910 | E22: BRISTOL COUNTY | F22: 164791 | G22: 0.01152028604 | H22: 152067 | I22: =IF(H24>0, H22/H24, 0) -> 0.01070146754 | K22: =ROUND(J24*I22,0) -> 87199 | L22: 91308 | M22: =K22-L22 -> -4109 | N22: -4.500153327 | O22: 11 | P22: 0 | Q22: 3 | R22: 910 | S22: 13 | T22: 10 | U22: 152067 | W22: 3 | X22: 910 | Y22: 13 | Z22: 10 | AA22: 152067
A23: 14 | B23: 3 | D23: 998 | F23: 0 | G23: 0 | H23: 0 | I23: =IF(H24>0, H23/H24, 0) -> 0 | K23: =ROUND(J24*I23,0) -> 0 | L23: 0 | M23: =K23-L23 -> 0 | N23: 0 | O23: 0 | P23: 0 | Q23: 3 | R23: 998 | S23: 14 | T23: 0 | U23: 0 | W23: 3 | X23: 998 | Y23: 14 | Z23: 0 | AA23: 0
A24: 15 | B24: 3 | C24: ACUSHNET | D24: 999 | E24: TOTAL | F24: 14304419.13 | G24: 1 | H24: =SUM(H20:H23) -> 14209920.22 | I24: =SUM(I20:I23) -> 1 | J24: =VLOOKUP(B24,town351,22) -> 8148342 | K24: =SUM(K20:K23) -> 8148341 | L24: 7925873 | M24: =SUM(M20:M23) -> 222468 | N24: 2.806857995 | O24: 1437 | P24: 0 | Q24: 3 | R24: 999 | S24: 15 | T24: 1408 | U24: 14209920.22 | W24: 3 | X24: 999 | Y24: 15 | Z24: 1408 | AA24: 14209920.22
A25: 16 | B25: 4 | C25: ADAMS | D25: 4 | E25: ADAMS | F25: 0 | G25: 0 | H25: =U25 -> 0 | I25: =IF(H29>0, H25/H29, 0) -> 0 | K25: =ROUND(J29*I25,0) -> 0 | L25: 0 | M25: =K25-L25 -> 0 | N25: 0 | O25: 0 | P25: 0 | Q25: 4 | R25: 4 | S25: 16 | T25: 0 | U25: 0 | W25: 4 | X25: 4 | Y25: 16 | Z25: 0 | AA25: 0
A26: 17 | B26: 4 | C26: ADAMS | D26: 603 | E26: ADAMS CHESHIRE | F26: 10560408 | G26: 0.8409975566 | H26: 10603441 | I26: =IF(H29>0, H26/H29, 0) -> 0.8318436397 | K26: =ROUND(J29*I26,0) -> 3326750 | L26: 3232134 | M26: =K26-L26 -> 94616 | N26: 2.927353878 | O26: 1043 | P26: 0 | Q26: 4 | R26: 603 | S26: 17 | T26: 1021 | U26: 10603441 | W26: 4 | X26: 603 | Y26: 17 | Z26: 1021 | AA26: 10603441
A27: 18 | B27: 4 | C27: ADAMS | D27: 851 | E27: NORTHERN BERKSHIRE | F27: 1996594 | G27: 0.1590024434 | H27: 2143475 | I27: =IF(H29>0, H27/H29, 0) -> 0.1681563603 | K27: =ROUND(J29*I27,0) -> 672499 | L27: 611081 | M27: =K27-L27 -> 61418 | N27: 10.05071341 | O27: 131 | P27: 0 | Q27: 4 | R27: 851 | S27: 18 | T27: 138 | U27: 2143475 | W27: 4 | X27: 851 | Y27: 18 | Z27: 138 | AA27: 2143475
A28: 19 | B28: 4 | D28: 998 | F28: 0 | G28: 0 | H28: 0 | I28: =IF(H29>0, H28/H29, 0) -> 0 | K28: =ROUND(J29*I28,0) -> 0 | L28: 0 | M28: =K28-L28 -> 0 | N28: 0 | O28: 0 | P28: 0 | Q28: 4 | R28: 998 | S28: 19 | T28: 0 | U28: 0 | W28: 4 | X28: 998 | Y28: 19 | Z28: 0 | AA28: 0
A29: 20 | B29: 4 | C29: ADAMS | D29: 999 | E29: TOTAL | F29: 12557002 | G29: 1 | H29: =SUM(H25:H28) -> 12746916 | I29: =SUM(I25:I28) -> 1 | J29: =VLOOKUP(B29,town351,22) -> 3999249 | K29: =SUM(K25:K28) -> 3999249 | L29: 3843215 | M29: =SUM(M25:M28) -> 156034 | N29: 4.059986235 | O29: 1174 | P29: 0 | Q29: 4 | R29: 999 | S29: 20 | T29: 1159 | U29: 12746916 | W29: 4 | X29: 999 | Y29: 20 | Z29: 1159 | AA29: 12746916
A30: 21 | B30: 5 | C30: AGAWAM | D30: 5 | E30: AGAWAM | F30: 40513463.04 | G30: 1 | H30: =U30 -> 40806967.85 | I30: =IF(H34>0, H30/H34, 0) -> 1 | K30: =ROUND(J34*I30,0) -> 22234809 | L30: 22228633 | M30: =K30-L30 -> 6176 | N30: 0.02778398474 | O30: 4051 | P30: 0 | Q30: 5 | R30: 5 | S30: 21 | T30: 4013 | U30: 40806967.85 | W30: 5 | X30: 5 | Y30: 21 | Z30: 4013 | AA30: 40806967.85
A31: 22 | B31: 5 | D31: 998 | F31: 0 | G31: 0 | H31: 0 | I31: =IF(H34>0, H31/H34, 0) -> 0 | K31: =ROUND(J34*I31,0) -> 0 | L31: 0 | M31: =K31-L31 -> 0 | N31: 0 | O31: 0 | P31: 0 | Q31: 5 | R31: 998 | S31: 22 | T31: 0 | U31: 0 | W31: 5 | X31: 998 | Y31: 22 | Z31: 0 | AA31: 0
A32: 23 | B32: 5 | D32: 998 | F32: 0 | G32: 0 | H32: 0 | I32: =IF(H34>0, H32/H34, 0) -> 0 | K32: =ROUND(J34*I32,0) -> 0 | L32: 0 | M32: =K32-L32 -> 0 | N32: 0 | O32: 0 | P32: 0 | Q32: 5 | R32: 998 | S32: 23 | T32: 0 | U32: 0 | W32: 5 | X32: 998 | Y32: 23 | Z32: 0 | AA32: 0
A33: 24 | B33: 5 | D33: 998 | F33: 0 | G33: 0 | H33: 0 | I33: =IF(H34>0, H33/H34, 0) -> 0 | K33: =ROUND(J34*I33,0) -> 0 | L33: 0 | M33: =K33-L33 -> 0 | N33: 0 | O33: 0 | P33: 0 | Q33: 5 | R33: 998 | S33: 24 | T33: 0 | U33: 0 | W33: 5 | X33: 998 | Y33: 24 | Z33: 0 | AA33: 0
A34: 25 | B34: 5 | C34: AGAWAM | D34: 999 | E34: TOTAL | F34: 40513463.04 | G34: 1 | H34: =SUM(H30:H33) -> 40806967.85 | I34: =SUM(I30:I33) -> 1 | J34: =VLOOKUP(B34,town351,22) -> 22234809 | K34: =SUM(K30:K33) -> 22234809 | L34: 22228633 | M34: =SUM(M30:M33) -> 6176 | N34: 0.02778398474 | O34: 4051 | P34: 0 | Q34: 5 | R34: 999 | S34: 25 | T34: 4013 | U34: 40806967.85 | W34: 5 | X34: 999 | Y34: 25 | Z34: 4013 | AA34: 40806967.85
A35: 26 | B35: 6 | C35: ALFORD | D35: 6 | E35: ALFORD | F35: 0 | G35: 0 | H35: =U35 -> 0 | I35: =IF(H39>0, H35/H39, 0) -> 0 | K35: =ROUND(J39*I35,0) -> 0 | L35: 0 | M35: =K35-L35 -> 0 | N35: 0 | O35: 0 | P35: 0 | Q35: 6 | R35: 6 | S35: 26 | T35: 0 | U35: 0 | W35: 6 | X35: 6 | Y35: 26 | Z35: 0 | AA35: 0
A36: 27 | B36: 6 | C36: ALFORD | D36: 765 | E36: SOUTHERN BERKSHIRE | F36: 238041 | G36: 1 | H36: 257395 | I36: =IF(H39>0, H36/H39, 0) -> 1 | K36: =ROUND(J39*I36,0) -> 212351 | L36: 214237 | M36: =K36-L36 -> -1886 | N36: -0.8803334625 | O36: 26 | P36: 0 | Q36: 6 | R36: 765 | S36: 27 | T36: 26 | U36: 257395 | W36: 6 | X36: 765 | Y36: 27 | Z36: 26 | AA36: 257395
A37: 28 | B37: 6 | D37: 998 | F37: 0 | G37: 0 | H37: 0 | I37: =IF(H39>0, H37/H39, 0) -> 0 | K37: =ROUND(J39*I37,0) -> 0 | L37: 0 | M37: =K37-L37 -> 0 | N37: 0 | O37: 0 | P37: 0 | Q37: 6 | R37: 998 | S37: 28 | T37: 0 | U37: 0 | W37: 6 | X37: 998 | Y37: 28 | Z37: 0 | AA37: 0
A38: 29 | B38: 6 | D38: 998 | F38: 0 | G38: 0 | H38: 0 | I38: =IF(H39>0, H38/H39, 0) -> 0 | K38: =ROUND(J39*I38,0) -> 0 | L38: 0 | M38: =K38-L38 -> 0 | N38: 0 | O38: 0 | P38: 0 | Q38: 6 | R38: 998 | S38: 29 | T38: 0 | U38: 0 | W38: 6 | X38: 998 | Y38: 29 | Z38: 0 | AA38: 0
A39: 30 | B39: 6 | C39: ALFORD | D39: 999 | E39: TOTAL | F39: 238041 | G39: 1 | H39: =SUM(H35:H38) -> 257395 | I39: =SUM(I35:I38) -> 1 | J39: =VLOOKUP(B39,town351,22) -> 212351 | K39: =SUM(K35:K38) -> 212351 | L39: 214237 | M39: =SUM(M35:M38) -> -1886 | N39: -0.8803334625 | O39: 26 | P39: 0 | Q39: 6 | R39: 999 | S39: 30 | T39: 26 | U39: 257395 | W39: 6 | X39: 999 | Y39: 30 | Z39: 26 | AA39: 257395
A40: 31 | B40: 7 | C40: AMESBURY | D40: 7 | E40: AMESBURY | F40: 23277123.93 | G40: 0.9532868973 | H40: =U40 -> 23284050.52 | I40: =IF(H44>0, H40/H44, 0) -> 0.9587247334 | K40: =ROUND(J44*I40,0) -> 14202425 | L40: 14710835 | M40: =K40-L40 -> -508410 | N40: -3.45602408 | O40: 2440 | P40: 0 | Q40: 7 | R40: 7 | S40: 31 | T40: 2394 | U40: 23284050.52 | W40: 7 | X40: 7 | Y40: 31 | Z40: 2394 | AA40: 23284050.52
A41: 32 | B41: 7 | C41: AMESBURY | D41: 885 | E41: WHITTIER | F41: 1140629 | G41: 0.04671310269 | H41: 1002431 | I41: =IF(H44>0, H41/H44, 0) -> 0.04127526662 | K41: =ROUND(J44*I41,0) -> 611446 | L41: 720862 | M41: =K41-L41 -> -109416 | N41: -15.17849464 | O41: 74 | P41: 0 | Q41: 7 | R41: 885 | S41: 32 | T41: 64 | U41: 1002431 | W41: 7 | X41: 885 | Y41: 32 | Z41: 64 | AA41: 1002431
A42: 33 | B42: 7 | D42: 998 | E42: ESSEX COUNTY | F42: 0 | G42: 0 | H42: 0 | I42: =IF(H44>0, H42/H44, 0) -> 0 | K42: =ROUND(J44*I42,0) -> 0 | L42: 0 | M42: =K42-L42 -> 0 | N42: 0 | O42: 0 | P42: 0 | Q42: 7 | R42: 998 | S42: 33 | T42: 0 | U42: 0 | W42: 7 | X42: 998 | Y42: 33 | Z42: 0 | AA42: 0
A43: 34 | B43: 7 | D43: 998 | F43: 0 | G43: 0 | H43: 0 | I43: =IF(H44>0, H43/H44, 0) -> 0 | K43: =ROUND(J44*I43,0) -> 0 | L43: 0 | M43: =K43-L43 -> 0 | N43: 0 | O43: 0 | P43: 0 | Q43: 7 | R43: 998 | S43: 34 | T43: 0 | U43: 0 | W43: 7 | X43: 998 | Y43: 34 | Z43: 0 | AA43: 0
A44: 35 | B44: 7 | C44: AMESBURY | D44: 999 | E44: TOTAL | F44: 24417752.93 | G44: 1 | H44: =SUM(H40:H43) -> 24286481.52 | I44: =SUM(I40:I43) -> 1 | J44: =VLOOKUP(B44,town351,22) -> 14813871 | K44: =SUM(K40:K43) -> 14813871 | L44: 15431697 | M44: =SUM(M40:M43) -> -617826 | N44: -4.003616712 | O44: 2514 | P44: 0 | Q44: 7 | R44: 999 | S44: 35 | T44: 2458 | U44: 24286481.52 | W44: 7 | X44: 999 | Y44: 35 | Z44: 2458 | AA44: 24286481.52
A45: 36 | B45: 8 | C45: AMHERST | D45: 8 | E45: AMHERST | F45: 11927369.58 | G45: 0.4943799971 | H45: =U45 -> 12222179.26 | I45: =IF(H49>0, H45/H49, 0) -> 0.4915905001 | K45: =ROUND(J49*I45,0) -> 8979352 | L45: 8808278 | M45: =K45-L45 -> 171074 | N45: 1.942195739 | O45: 1205 | P45: 0 | Q45: 8 | R45: 8 | S45: 36 | T45: 1192 | U45: 12222179.26 | W45: 8 | X45: 8 | Y45: 36 | Z45: 1192 | AA45: 12222179.26
A46: 37 | B46: 8 | C46: AMHERST | D46: 605 | E46: AMHERST PELHAM | F46: 12198545 | G46: 0.5056200029 | H46: 12640342 | I46: =IF(H49>0, H46/H49, 0) -> 0.5084094999 | K46: =ROUND(J49*I46,0) -> 9286566 | L46: 9008539 | M46: =K46-L46 -> 278027 | N46: 3.086260713 | O46: 1203 | P46: 0 | Q46: 8 | R46: 605 | S46: 37 | T46: 1223 | U46: 12640342 | W46: 8 | X46: 605 | Y46: 37 | Z46: 1223 | AA46: 12640342
A47: 38 | B47: 8 | D47: 998 | F47: 0 | G47: 0 | H47: 0 | I47: =IF(H49>0, H47/H49, 0) -> 0 | K47: =ROUND(J49*I47,0) -> 0 | L47: 0 | M47: =K47-L47 -> 0 | N47: 0 | O47: 0 | P47: 0 | Q47: 8 | R47: 998 | S47: 38 | T47: 0 | U47: 0 | W47: 8 | X47: 998 | Y47: 38 | Z47: 0 | AA47: 0
A48: 39 | B48: 8 | D48: 998 | F48: 0 | G48: 0 | H48: 0 | I48: =IF(H49>0, H48/H49, 0) -> 0 | K48: =ROUND(J49*I48,0) -> 0 | L48: 0 | M48: =K48-L48 -> 0 | N48: 0 | O48: 0 | P48: 0 | Q48: 8 | R48: 998 | S48: 39 | T48: 0 | U48: 0 | W48: 8 | X48: 998 | Y48: 39 | Z48: 0 | AA48: 0
A49: 40 | B49: 8 | C49: AMHERST | D49: 999 | E49: TOTAL | F49: 24125914.58 | G49: 1 | H49: =SUM(H45:H48) -> 24862521.26 | I49: =SUM(I45:I48) -> 1 | J49: =VLOOKUP(B49,town351,22) -> 18265918 | K49: =SUM(K45:K48) -> 18265918 | L49: 17816817 | M49: =SUM(M45:M48) -> 449101 | N49: 2.520657871 | O49: 2408 | P49: 0 | Q49: 8 | R49: 999 | S49: 40 | T49: 2415 | U49: 24862521.26 | W49: 8 | X49: 999 | Y49: 40 | Z49: 2415 | AA49: 24862521.26
A50: 41 | B50: 9 | C50: ANDOVER | D50: 9 | E50: ANDOVER | F50: 56905481.15 | G50: 0.994272181 | H50: =U50 -> 57593754.78 | I50: =IF(H54>0, H50/H54, 0) -> 0.9927937252 | K50: =ROUND(J54*I50,0) -> 47514848 | L50: 49453903 | M50: =K50-L50 -> -1939055 | N50: -3.920934208 | O50: 5998 | P50: 0 | Q50: 9 | R50: 9 | S50: 41 | T50: 5950 | U50: 57593754.78 | W50: 9 | X50: 9 | Y50: 41 | Z50: 5950 | AA50: 57593754.78
A51: 42 | B51: 9 | C51: ANDOVER | D51: 823 | E51: GREATER LAWRENCE | F51: 327822 | G51: 0.005727818979 | H51: 418049 | I51: =IF(H54>0, H51/H54, 0) -> 0.007206274805 | K51: =ROUND(J54*I51,0) -> 344890 | L51: 284895 | M51: =K51-L51 -> 59995 | N51: 21.05863564 | O51: 19 | P51: 0 | Q51: 9 | R51: 823 | S51: 42 | T51: 24 | U51: 418049 | W51: 9 | X51: 823 | Y51: 42 | Z51: 24 | AA51: 418049
A52: 43 | B52: 9 | D52: 998 | E52: ESSEX COUNTY | F52: 0 | G52: 0 | H52: 0 | I52: =IF(H54>0, H52/H54, 0) -> 0 | K52: =ROUND(J54*I52,0) -> 0 | L52: 0 | M52: =K52-L52 -> 0 | N52: 0 | O52: 0 | P52: 0 | Q52: 9 | R52: 998 | S52: 43 | T52: 0 | U52: 0 | W52: 9 | X52: 998 | Y52: 43 | Z52: 0 | AA52: 0
A53: 44 | B53: 9 | D53: 998 | F53: 0 | G53: 0 | H53: 0 | I53: =IF(H54>0, H53/H54, 0) -> 0 | K53: =ROUND(J54*I53,0) -> 0 | L53: 0 | M53: =K53-L53 -> 0 | N53: 0 | O53: 0 | P53: 0 | Q53: 9 | R53: 998 | S53: 44 | T53: 0 | U53: 0 | W53: 9 | X53: 998 | Y53: 44 | Z53: 0 | AA53: 0
A54: 45 | B54: 9 | C54: ANDOVER | D54: 999 | E54: TOTAL | F54: 57233303.15 | G54: 1 | H54: =SUM(H50:H53) -> 58011803.78 | I54: =SUM(I50:I53) -> 1 | J54: =VLOOKUP(B54,town351,22) -> 47859738 | K54: =SUM(K50:K53) -> 47859738 | L54: 49738798 | M54: =SUM(M50:M53) -> -1879060 | N54: -3.777855669 | O54: 6017 | P54: 0 | Q54: 9 | R54: 999 | S54: 45 | T54: 5974 | U54: 58011803.78 | W54: 9 | X54: 999 | Y54: 45 | Z54: 5974 | AA54: 58011803.78
A55: 46 | B55: 10 | C55: ARLINGTON | D55: 10 | E55: ARLINGTON | F55: 47819420.32 | G55: 0.9458281533 | H55: =U55 -> 50290292.38 | I55: =IF(H59>0, H55/H59, 0) -> 0.949474846 | K55: =ROUND(J59*I55,0) -> 39574733 | L55: 37584838 | M55: =K55-L55 -> 1989895 | N55: 5.294408878 | O55: 5141 | P55: 0 | Q55: 10 | R55: 10 | S55: 46 | T55: 5318 | U55: 50290292.38 | W55: 10 | X55: 10 | Y55: 46 | Z55: 5318 | AA55: 50290292.38
A56: 47 | B56: 10 | C56: ARLINGTON | D56: 830 | E56: MINUTEMAN | F56: 2738834 | G56: 0.05417184666 | H56: 2676137 | I56: =IF(H59>0, H56/H59, 0) -> 0.05052515397 | K56: =ROUND(J59*I56,0) -> 2105921 | L56: 2152653 | M56: =K56-L56 -> -46732 | N56: -2.170902603 | O56: 165 | P56: 0 | Q56: 10 | R56: 830 | S56: 47 | T56: 158 | U56: 2676137 | W56: 10 | X56: 830 | Y56: 47 | Z56: 158 | AA56: 2676137
A57: 48 | B57: 10 | D57: 998 | F57: 0 | G57: 0 | H57: 0 | I57: =IF(H59>0, H57/H59, 0) -> 0 | K57: =ROUND(J59*I57,0) -> 0 | L57: 0 | M57: =K57-L57 -> 0 | N57: 0 | O57: 0 | P57: 0 | Q57: 10 | R57: 998 | S57: 48 | T57: 0 | U57: 0 | W57: 10 | X57: 998 | Y57: 48 | Z57: 0 | AA57: 0
A58: 49 | B58: 10 | D58: 998 | F58: 0 | G58: 0 | H58: 0 | I58: =IF(H59>0, H58/H59, 0) -> 0 | K58: =ROUND(J59*I58,0) -> 0 | L58: 0 | M58: =K58-L58 -> 0 | N58: 0 | O58: 0 | P58: 0 | Q58: 10 | R58: 998 | S58: 49 | T58: 0 | U58: 0 | W58: 10 | X58: 998 | Y58: 49 | Z58: 0 | AA58: 0
A59: 50 | B59: 10 | C59: ARLINGTON | D59: 999 | E59: TOTAL | F59: 50558254.32 | G59: 1 | H59: =SUM(H55:H58) -> 52966429.38 | I59: =SUM(I55:I58) -> 1 | J59: =VLOOKUP(B59,town351,22) -> 41680654 | K59: =SUM(K55:K58) -> 41680654 | L59: 39737491 | M59: =SUM(M55:M58) -> 1943163 | N59: 4.88999922 | O59: 5306 | P59: 0 | Q59: 10 | R59: 999 | S59: 50 | T59: 5476 | U59: 52966429.38 | W59: 10 | X59: 999 | Y59: 50 | Z59: 5476 | AA59: 52966429.38
A60: 51 | B60: 11 | C60: ASHBURNHAM | D60: 11 | E60: ASHBURNHAM | F60: 0 | G60: 0 | H60: =U60 -> 0 | I60: =IF(H64>0, H60/H64, 0) -> 0 | K60: =ROUND(J64*I60,0) -> 0 | L60: 0 | M60: =K60-L60 -> 0 | N60: 0 | O60: 0 | P60: 0 | Q60: 11 | R60: 11 | S60: 51 | T60: 0 | U60: 0 | W60: 11 | X60: 11 | Y60: 51 | Z60: 0 | AA60: 0
A61: 52 | B61: 11 | C61: ASHBURNHAM | D61: 610 | E61: ASHBURNHAM WESTMINSTER | F61: 9705978 | G61: 0.9213537457 | H61: 10195136 | I61: =IF(H64>0, H61/H64, 0) -> 0.9174948684 | K61: =ROUND(J64*I61,0) -> 4504178 | L61: 4668297 | M61: =K61-L61 -> -164119 | N61: -3.515607512 | O61: 1031 | P61: 0 | Q61: 11 | R61: 610 | S61: 52 | T61: 1061 | U61: 10195136 | W61: 11 | X61: 610 | Y61: 52 | Z61: 1061 | AA61: 10195136
A62: 53 | B62: 11 | C62: ASHBURNHAM | D62: 832 | E62: MONTACHUSETT | F62: 828497 | G62: 0.07864625432 | H62: 916791 | I62: =IF(H64>0, H62/H64, 0) -> 0.08250513165 | K62: =ROUND(J64*I62,0) -> 405035 | L62: 398483 | M62: =K62-L62 -> 6552 | N62: 1.644235764 | O62: 55 | P62: 0 | Q62: 11 | R62: 832 | S62: 53 | T62: 60 | U62: 916791 | W62: 11 | X62: 832 | Y62: 53 | Z62: 60 | AA62: 916791
A63: 54 | B63: 11 | D63: 998 | F63: 0 | G63: 0 | H63: 0 | I63: =IF(H64>0, H63/H64, 0) -> 0 | K63: =ROUND(J64*I63,0) -> 0 | L63: 0 | M63: =K63-L63 -> 0 | N63: 0 | O63: 0 | P63: 0 | Q63: 11 | R63: 998 | S63: 54 | T63: 0 | U63: 0 | W63: 11 | X63: 998 | Y63: 54 | Z63: 0 | AA63: 0
A64: 55 | B64: 11 | C64: ASHBURNHAM | D64: 999 | E64: TOTAL | F64: 10534475 | G64: 1 | H64: =SUM(H60:H63) -> 11111927 | I64: =SUM(I60:I63) -> 1 | J64: =VLOOKUP(B64,town351,22) -> 4909213 | K64: =SUM(K60:K63) -> 4909213 | L64: 5066780 | M64: =SUM(M60:M63) -> -157567 | N64: -3.109805439 | O64: 1086 | P64: 0 | Q64: 11 | R64: 999 | S64: 55 | T64: 1121 | U64: 11111927 | W64: 11 | X64: 999 | Y64: 55 | Z64: 1121 | AA64: 11111927
A65: 56 | B65: 12 | C65: ASHBY | D65: 12 | E65: ASHBY | F65: 0 | G65: 0 | H65: =U65 -> 0 | I65: =IF(H69>0, H65/H69, 0) -> 0 | K65: =ROUND(J69*I65,0) -> 0 | L65: 0 | M65: =K65-L65 -> 0 | N65: 0 | O65: 0 | P65: 0 | Q65: 12 | R65: 12 | S65: 56 | T65: 0 | U65: 0 | W65: 12 | X65: 12 | Y65: 56 | Z65: 0 | AA65: 0
A66: 57 | B66: 12 | C66: ASHBY | D66: 735 | E66: NORTH MIDDLESEX | F66: 4060991 | G66: 0.8596893299 | H66: 3974007 | I66: =IF(H69>0, H66/H69, 0) -> 0.8667028992 | K66: =ROUND(J69*I66,0) -> 2075784 | L66: 2139882 | M66: =K66-L66 -> -64098 | N66: -2.995398812 | O66: 439 | P66: 0 | Q66: 12 | R66: 735 | S66: 57 | T66: 420 | U66: 3974007 | W66: 12 | X66: 735 | Y66: 57 | Z66: 420 | AA66: 3974007
A67: 58 | B67: 12 | C67: ASHBY | D67: 832 | E67: MONTACHUSETT | F67: 662798 | G67: 0.1403106701 | H67: 611194 | I67: =IF(H69>0, H67/H69, 0) -> 0.1332971008 | K67: =ROUND(J69*I67,0) -> 319251 | L67: 349252 | M67: =K67-L67 -> -30001 | N67: -8.590072498 | O67: 44 | P67: 0 | Q67: 12 | R67: 832 | S67: 58 | T67: 40 | U67: 611194 | W67: 12 | X67: 832 | Y67: 58 | Z67: 40 | AA67: 611194
A68: 59 | B68: 12 | D68: 998 | F68: 0 | G68: 0 | H68: 0 | I68: =IF(H69>0, H68/H69, 0) -> 0 | K68: =ROUND(J69*I68,0) -> 0 | L68: 0 | M68: =K68-L68 -> 0 | N68: 0 | O68: 0 | P68: 0 | Q68: 12 | R68: 998 | S68: 59 | T68: 0 | U68: 0 | W68: 12 | X68: 998 | Y68: 59 | Z68: 0 | AA68: 0
A69: 60 | B69: 12 | C69: ASHBY | D69: 999 | E69: TOTAL | F69: 4723789 | G69: 1 | H69: =SUM(H65:H68) -> 4585201 | I69: =SUM(I65:I68) -> 1 | J69: =VLOOKUP(B69,town351,22) -> 2395035 | K69: =SUM(K65:K68) -> 2395035 | L69: 2489134 | M69: =SUM(M65:M68) -> -94099 | N69: -3.780391092 | O69: 483 | P69: 0 | Q69: 12 | R69: 999 | S69: 60 | T69: 460 | U69: 4585201 | W69: 12 | X69: 999 | Y69: 60 | Z69: 460 | AA69: 4585201
A70: 61 | B70: 13 | C70: ASHFIELD | D70: 13 | E70: ASHFIELD | F70: 207026.65 | G70: 0.1110859039 | H70: =U70 -> 276131.66 | I70: =IF(H74>0, H70/H74, 0) -> 0.1441399856 | K70: =ROUND(J74*I70,0) -> 226993 | L70: 168768 | M70: =K70-L70 -> 58225 | N70: 34.5000237 | O70: 14 | P70: 0 | Q70: 13 | R70: 13 | S70: 61 | T70: 19 | U70: 276131.66 | W70: 13 | X70: 13 | Y70: 61 | Z70: 19 | AA70: 276131.66
A71: 62 | B71: 13 | C71: ASHFIELD | D71: 717 | E71: MOHAWK TRAIL | F71: 1656636 | G71: 0.8889140961 | H71: 1639587 | I71: =IF(H74>0, H71/H74, 0) -> 0.8558600144 | K71: =ROUND(J74*I71,0) -> 1347819 | L71: 1350493 | M71: =K71-L71 -> -2674 | N71: -0.1980017668 | O71: 168 | P71: 0 | Q71: 13 | R71: 717 | S71: 62 | T71: 165 | U71: 1639587 | W71: 13 | X71: 717 | Y71: 62 | Z71: 165 | AA71: 1639587
A72: 63 | B72: 13 | D72: 998 | F72: 0 | G72: 0 | H72: 0 | I72: =IF(H74>0, H72/H74, 0) -> 0 | K72: =ROUND(J74*I72,0) -> 0 | L72: 0 | M72: =K72-L72 -> 0 | N72: 0 | O72: 0 | P72: 0 | Q72: 13 | R72: 998 | S72: 63 | T72: 0 | U72: 0 | W72: 13 | X72: 998 | Y72: 63 | Z72: 0 | AA72: 0
A73: 64 | B73: 13 | D73: 998 | F73: 0 | G73: 0 | H73: 0 | I73: =IF(H74>0, H73/H74, 0) -> 0 | K73: =ROUND(J74*I73,0) -> 0 | L73: 0 | M73: =K73-L73 -> 0 | N73: 0 | O73: 0 | P73: 0 | Q73: 13 | R73: 998 | S73: 64 | T73: 0 | U73: 0 | W73: 13 | X73: 998 | Y73: 64 | Z73: 0 | AA73: 0
A74: 65 | B74: 13 | C74: ASHFIELD | D74: 999 | E74: TOTAL | F74: 1863662.65 | G74: 1 | H74: =SUM(H70:H73) -> 1915718.66 | I74: =SUM(I70:I73) -> 1 | J74: =VLOOKUP(B74,town351,22) -> 1574812 | K74: =SUM(K70:K73) -> 1574812 | L74: 1519261 | M74: =SUM(M70:M73) -> 55551 | N74: 3.65644876 | O74: 182 | P74: =ABS(Q74-B74)+ABS(R74-D74) -> 0 | Q74: =IF($Q$6=1, W74, IF($Q$6=2, AC74, IF($Q$6=3, AI74, IF($Q$6=4, AO74, IF($Q$6=5, AU74, IF($Q$6=6, BA74, IF($Q$6=7, BG74, IF($Q$6=8, BM74, 0)))))))) -> 13 | R74: =IF($Q$6=1, X74, IF($Q$6=2, AD74, IF($Q$6=3, AJ74, IF($Q$6=4, AP74, IF($Q$6=5, AV74, IF($Q$6=6, BB74, IF($Q$6=7, BH74, IF($Q$6=8, BN74, 0)))))))) -> 999 | S74: =IF($Q$6=1, Y74, IF($Q$6=2, AE74, IF($Q$6=3, AK74, IF($Q$6=4, AQ74, IF($Q$6=5, AW74, IF($Q$6=6, BC74, IF($Q$6=7, BI74, IF($Q$6=8, BO74, 0)))))))) -> 65 | T74: =IF($Q$6=1, Z74, IF($Q$6=2, AF74, IF($Q$6=3, AL74, IF($Q$6=4, AR74, IF($Q$6=5, AX74, IF($Q$6=6, BD74, IF($Q$6=7, BJ74, IF($Q$6=8, BP74, 0)))))))) -> 184 | U74: =IF($Q$6=1, AA74, IF($Q$6=2, AG74, IF($Q$6=3, AM74, IF($Q$6=4, AS74, IF($Q$6=5, AY74, IF($Q$6=6, BE74, IF($Q$6=7, BK74, IF($Q$6=8, BQ74, 0)))))))) -> 1915718.66 | W74: 13 | X74: 999 | Y74: 65 | Z74: 184 | AA74: 1915718.66
A75: 66 | B75: 14 | C75: ASHLAND | D75: 14 | E75: ASHLAND | F75: 23394153.29 | G75: 0.9449224952 | H75: =U75 -> 23999962.49 | I75: =IF(H79>0, H75/H79, 0) -> 0.9504738585 | K75: =ROUND(J79*I75,0) -> 18558228 | L75: 18210677 | M75: =K75-L75 -> 347551 | N75: 1.90850126 | O75: 2479 | P75: 0 | Q75: 14 | R75: 14 | S75: 66 | T75: 2494 | U75: 23999962.49 | W75: 14 | X75: 14 | Y75: 66 | Z75: 2494 | AA75: 23999962.49
A76: 67 | B76: 14 | C76: ASHLAND | D76: 829 | E76: SOUTH MIDDLESEX | F76: 1363595 | G76: 0.0550775048 | H76: 1250561 | I76: =IF(H79>0, H76/H79, 0) -> 0.04952614152 | K76: =ROUND(J79*I76,0) -> 967010 | L76: 1061461 | M76: =K76-L76 -> -94451 | N76: -8.898207282 | O76: 82 | P76: 0 | Q76: 14 | R76: 829 | S76: 67 | T76: 74 | U76: 1250561 | W76: 14 | X76: 829 | Y76: 67 | Z76: 74 | AA76: 1250561
A77: 68 | B77: 14 | D77: 998 | F77: 0 | G77: 0 | H77: 0 | I77: =IF(H79>0, H77/H79, 0) -> 0 | K77: =ROUND(J79*I77,0) -> 0 | L77: 0 | M77: =K77-L77 -> 0 | N77: 0 | O77: 0 | P77: 0 | Q77: 14 | R77: 998 | S77: 68 | T77: 0 | U77: 0 | W77: 14 | X77: 998 | Y77: 68 | Z77: 0 | AA77: 0
A78: 69 | B78: 14 | D78: 998 | F78: 0 | G78: 0 | H78: 0 | I78: =IF(H79>0, H78/H79, 0) -> 0 | K78: =ROUND(J79*I78,0) -> 0 | L78: 0 | M78: =K78-L78 -> 0 | N78: 0 | O78: 0 | P78: 0 | Q78: 14 | R78: 998 | S78: 69 | T78: 0 | U78: 0 | W78: 14 | X78: 998 | Y78: 69 | Z78: 0 | AA78: 0
A79: 70 | B79: 14 | C79: ASHLAND | D79: 999 | E79: TOTAL | F79: 24757748.29 | G79: 1 | H79: =SUM(H75:H78) -> 25250523.49 | I79: =SUM(I75:I78) -> 1 | J79: =VLOOKUP(B79,town351,22) -> 19525238 | K79: =SUM(K75:K78) -> 19525238 | L79: 19272138 | M79: =SUM(M75:M78) -> 253100 | N79: 1.313294872 | O79: 2561 | P79: 0 | Q79: 14 | R79: 999 | S79: 70 | T79: 2568 | U79: 25250523.49 | W79: 14 | X79: 999 | Y79: 70 | Z79: 2568 | AA79: 25250523.49
A80: 71 | B80: 15 | C80: ATHOL | D80: 15 | E80: ATHOL | F80: 0 | G80: 0 | H80: =U80 -> 0 | I80: =IF(H84>0, H80/H84, 0) -> 0 | K80: =ROUND(J84*I80,0) -> 0 | L80: 0 | M80: =K80-L80 -> 0 | N80: =IF(L80>0,M80*100/L80,IF(M80>0,100,0)) -> 0 | O80: 0 | P80: 0 | Q80: 15 | R80: 15 | S80: 71 | T80: 0 | U80: 0 | W80: 15 | X80: 15 | Y80: 71 | Z80: 0 | AA80: 0
A81: 72 | B81: 15 | C81: ATHOL | D81: 615 | E81: ATHOL ROYALSTON | F81: 16441699 | G81: 0.9183835751 | H81: 16760410 | I81: =IF(H84>0, H81/H84, 0) -> 0.9226172602 | K81: =ROUND(J84*I81,0) -> 2314968 | L81: 2163703 | M81: =K81-L81 -> 151265 | N81: =IF(L81>0,M81*100/L81,IF(M81>0,100,0)) -> 6.991024184 | O81: 1611 | P81: 0 | Q81: 15 | R81: 615 | S81: 72 | T81: 1610 | U81: 16760410 | W81: 15 | X81: 615 | Y81: 72 | Z81: 1610 | AA81: 16760410
A82: 73 | B82: 15 | C82: ATHOL | D82: 832 | E82: MONTACHUSETT | F82: 1461168 | G82: 0.0816164249 | H82: 1405747 | I82: =IF(H84>0, H82/H84, 0) -> 0.07738273978 | K82: =ROUND(J84*I82,0) -> 194163 | L82: 192288 | M82: =K82-L82 -> 1875 | N82: =IF(L82>0,M82*100/L82,IF(M82>0,100,0)) -> 0.9750998502 | O82: 97 | P82: 0 | Q82: 15 | R82: 832 | S82: 73 | T82: 92 | U82: 1405747 | W82: 15 | X82: 832 | Y82: 73 | Z82: 92 | AA82: 1405747
A83: 74 | B83: 15 | D83: 998 | F83: 0 | G83: 0 | H83: 0 | I83: =IF(H84>0, H83/H84, 0) -> 0 | K83: =ROUND(J84*I83,0) -> 0 | L83: 0 | M83: =K83-L83 -> 0 | N83: =IF(L83>0,M83*100/L83,IF(M83>0,100,0)) -> 0 | O83: 0 | P83: 0 | Q83: 15 | R83: 998 | S83: 74 | T83: 0 | U83: 0 | W83: 15 | X83: 998 | Y83: 74 | Z83: 0 | AA83: 0
A84: 75 | B84: 15 | C84: ATHOL | D84: 999 | E84: TOTAL | F84: 17902867 | G84: 1 | H84: =SUM(H80:H83) -> 18166157 | I84: =SUM(I80:I83) -> 1 | J84: =VLOOKUP(B84,town351,22) -> 2509131 | K84: =SUM(K80:K83) -> 2509131 | L84: 2355991 | M84: =SUM(M80:M83) -> 153140 | N84: =IF(L84>0,M84*100/L84,IF(M84>0,100,0)) -> 6.50002483 | O84: 1708 | P84: 0 | Q84: 15 | R84: 999 | S84: 75 | T84: 1702 | U84: 18166157 | W84: 15 | X84: 999 | Y84: 75 | Z84: 1702 | AA84: 18166157
A85: 76 | B85: 16 | C85: ATTLEBORO | D85: 16 | E85: ATTLEBORO | F85: 66876305.42 | G85: 0.9920001625 | H85: =U85 -> 68325590.25 | I85: =IF(H89>0, H85/H89, 0) -> 0.9909574554 | K85: =ROUND(J89*I85,0) -> 32304159 | L85: 32678917 | M85: =K85-L85 -> -374758 | N85: -1.14678831 | O85: 6227 | P85: 0 | Q85: 16 | R85: 16 | S85: 76 | T85: 6292 | U85: 68325590.25 | W85: 16 | X85: 16 | Y85: 76 | Z85: 6292 | AA85: 68325590.25
A86: 77 | B86: 16 | C86: ATTLEBORO | D86: 910 | E86: BRISTOL COUNTY | F86: 539314 | G86: 0.007999837495 | H86: 623475 | I86: =IF(H89>0, H86/H89, 0) -> 0.009042544634 | K86: =ROUND(J89*I86,0) -> 294777 | L86: 263534 | M86: =K86-L86 -> 31243 | N86: 11.85539627 | O86: 36 | P86: 0 | Q86: 16 | R86: 910 | S86: 77 | T86: 41 | U86: 623475 | W86: 16 | X86: 910 | Y86: 77 | Z86: 41 | AA86: 623475
A87: 78 | B87: 16 | D87: 998 | F87: 0 | G87: 0 | H87: 0 | I87: =IF(H89>0, H87/H89, 0) -> 0 | K87: =ROUND(J89*I87,0) -> 0 | L87: 0 | M87: =K87-L87 -> 0 | N87: 0 | O87: 0 | P87: 0 | Q87: 16 | R87: 998 | S87: 78 | T87: 0 | U87: 0 | W87: 16 | X87: 998 | Y87: 78 | Z87: 0 | AA87: 0
A88: 79 | B88: 16 | D88: 998 | F88: 0 | G88: 0 | H88: 0 | I88: =IF(H89>0, H88/H89, 0) -> 0 | K88: =ROUND(J89*I88,0) -> 0 | L88: 0 | M88: =K88-L88 -> 0 | N88: 0 | O88: 0 | P88: 0 | Q88: 16 | R88: 998 | S88: 79 | T88: 0 | U88: 0 | W88: 16 | X88: 998 | Y88: 79 | Z88: 0 | AA88: 0
A89: 80 | B89: 16 | C89: ATTLEBORO | D89: 999 | E89: TOTAL | F89: 67415619.42 | G89: 1 | H89: =SUM(H85:H88) -> 68949065.25 | I89: =SUM(I85:I88) -> 1 | J89: =VLOOKUP(B89,town351,22) -> 32598936 | K89: =SUM(K85:K88) -> 32598936 | L89: 32942451 | M89: =SUM(M85:M88) -> -343515 | N89: -1.042773047 | O89: 6263 | P89: 0 | Q89: 16 | R89: 999 | S89: 80 | T89: 6333 | U89: 68949065.25 | W89: 16 | X89: 999 | Y89: 80 | Z89: 6333 | AA89: 68949065.25
A90: 81 | B90: 17 | C90: AUBURN | D90: 17 | E90: AUBURN | F90: 22469656.55 | G90: 0.94700904 | H90: =U90 -> 22643826.37 | I90: =IF(H94>0, H90/H94, 0) -> 0.9394306918 | K90: =ROUND(J94*I90,0) -> 13773515 | L90: 14563293 | M90: =K90-L90 -> -789778 | N90: -5.423072927 | O90: 2340 | P90: 0 | Q90: 17 | R90: 17 | S90: 81 | T90: 2343 | U90: 22643826.37 | W90: 17 | X90: 17 | Y90: 81 | Z90: 2343 | AA90: 22643826.37
A91: 82 | B91: 17 | C91: AUBURN | D91: 876 | E91: SOUTHERN WORCESTER | F91: 1257315 | G91: 0.05299095999 | H91: 1459949 | I91: =IF(H94>0, H91/H94, 0) -> 0.06056930823 | K91: =ROUND(J94*I91,0) -> 888040 | L91: 814905 | M91: =K91-L91 -> 73135 | N91: 8.974665759 | O91: 83 | P91: 0 | Q91: 17 | R91: 876 | S91: 82 | T91: 95 | U91: 1459949 | W91: 17 | X91: 876 | Y91: 82 | Z91: 95 | AA91: 1459949
A92: 83 | B92: 17 | D92: 998 | F92: 0 | G92: 0 | H92: 0 | I92: =IF(H94>0, H92/H94, 0) -> 0 | K92: =ROUND(J94*I92,0) -> 0 | L92: 0 | M92: =K92-L92 -> 0 | N92: 0 | O92: 0 | P92: 0 | Q92: 17 | R92: 998 | S92: 83 | T92: 0 | U92: 0 | W92: 17 | X92: 998 | Y92: 83 | Z92: 0 | AA92: 0
A93: 84 | B93: 17 | D93: 998 | F93: 0 | G93: 0 | H93: 0 | I93: =IF(H94>0, H93/H94, 0) -> 0 | K93: =ROUND(J94*I93,0) -> 0 | L93: 0 | M93: =K93-L93 -> 0 | N93: 0 | O93: 0 | P93: 0 | Q93: 17 | R93: 998 | S93: 84 | T93: 0 | U93: 0 | W93: 17 | X93: 998 | Y93: 84 | Z93: 0 | AA93: 0
A94: 85 | B94: 17 | C94: AUBURN | D94: 999 | E94: TOTAL | F94: 23726971.55 | G94: 1 | H94: =SUM(H90:H93) -> 24103775.37 | I94: =SUM(I90:I93) -> 1 | J94: =VLOOKUP(B94,town351,22) -> 14661555 | K94: =SUM(K90:K93) -> 14661555 | L94: 15378198 | M94: =SUM(M90:M93) -> -716643 | N94: -4.660123377 | O94: 2423 | P94: 0 | Q94: 17 | R94: 999 | S94: 85 | T94: 2438 | U94: 24103775.37 | W94: 17 | X94: 999 | Y94: 85 | Z94: 2438 | AA94: 24103775.37
A95: 86 | B95: 18 | C95: AVON | D95: 18 | E95: AVON | F95: 5301350.57 | G95: 0.8810961215 | H95: =U95 -> 5497208.85 | I95: =IF(H99>0, H95/H99, 0) -> 0.8696131326 | K95: =ROUND(J99*I95,0) -> 4116665 | L95: 4680844 | M95: =K95-L95 -> -564179 | N95: -12.05293319 | O95: 537 | P95: 0 | Q95: 18 | R95: 18 | S95: 86 | T95: 531 | U95: 5497208.85 | W95: 18 | X95: 18 | Y95: 86 | Z95: 531 | AA95: 5497208.85
A96: 87 | B96: 18 | C96: AVON | D96: 806 | E96: BLUE HILLS | F96: 715417 | G96: 0.1189038785 | H96: 824233 | I96: =IF(H99>0, H96/H99, 0) -> 0.1303868674 | K96: =ROUND(J99*I96,0) -> 617239 | L96: 631680 | M96: =K96-L96 -> -14441 | N96: -2.286125887 | O96: 45 | P96: 0 | Q96: 18 | R96: 806 | S96: 87 | T96: 51 | U96: 824233 | W96: 18 | X96: 806 | Y96: 87 | Z96: 51 | AA96: 824233
A97: 88 | B97: 18 | C97: AVON | D97: 915 | E97: NORFOLK COUNTY | F97: 0 | G97: 0 | H97: 0 | I97: =IF(H99>0, H97/H99, 0) -> 0 | K97: =ROUND(J99*I97,0) -> 0 | L97: 0 | M97: =K97-L97 -> 0 | N97: 0 | O97: 0 | P97: 0 | Q97: 18 | R97: 915 | S97: 88 | T97: 0 | U97: 0 | W97: 18 | X97: 915 | Y97: 88 | Z97: 0 | AA97: 0
A98: 89 | B98: 18 | D98: 998 | F98: 0 | G98: 0 | H98: 0 | I98: =IF(H99>0, H98/H99, 0) -> 0 | K98: =ROUND(J99*I98,0) -> 0 | L98: 0 | M98: =K98-L98 -> 0 | N98: 0 | O98: 0 | P98: 0 | Q98: 18 | R98: 998 | S98: 89 | T98: 0 | U98: 0 | W98: 18 | X98: 998 | Y98: 89 | Z98: 0 | AA98: 0
A99: 90 | B99: 18 | C99: AVON | D99: 999 | E99: TOTAL | F99: 6016767.57 | G99: 1 | H99: =SUM(H95:H98) -> 6321441.85 | I99: =SUM(I95:I98) -> 1 | J99: =VLOOKUP(B99,town351,22) -> 4733904 | K99: =SUM(K95:K98) -> 4733904 | L99: 5312524 | M99: =SUM(M95:M98) -> -578620 | N99: -10.89162138 | O99: 582 | P99: 0 | Q99: 18 | R99: 999 | S99: 90 | T99: 582 | U99: 6321441.85 | W99: 18 | X99: 999 | Y99: 90 | Z99: 582 | AA99: 6321441.85
A100: 91 | B100: 19 | C100: AYER | D100: 19 | E100: AYER | F100: 0 | G100: 0 | H100: =U100 -> 0 | I100: =IF(H104>0, H100/H104, 0) -> 0 | K100: =ROUND(J104*I100,0) -> 0 | L100: 0 | M100: =K100-L100 -> 0 | N100: 0 | O100: 0 | P100: 0 | Q100: 19 | R100: 19 | S100: 91 | T100: 0 | U100: 0 | W100: 19 | X100: 19 | Y100: 91 | Z100: 0 | AA100: 0
A101: 92 | B101: 19 | C101: AYER | D101: 616 | E101: AYER SHIRLEY | F101: 10328000 | G101: 0.9317061553 | H101: 10377001 | I101: =IF(H104>0, H101/H104, 0) -> 0.9218030882 | K101: =ROUND(J104*I101,0) -> 6565131 | L101: 6644403 | M101: =K101-L101 -> -79272 | N101: -1.193064298 | O101: 1015 | P101: 0 | Q101: 19 | R101: 616 | S101: 92 | T101: 1015 | U101: 10377001 | W101: 19 | X101: 616 | Y101: 92 | Z101: 1015 | AA101: 10377001
A102: 93 | B102: 19 | C102: AYER | D102: 852 | E102: NASHOBA VALLEY | F102: 757040 | G102: 0.06829384468 | H102: 880285 | I102: =IF(H104>0, H102/H104, 0) -> 0.07819691176 | K102: =ROUND(J104*I102,0) -> 556923 | L102: 487033 | M102: =K102-L102 -> 69890 | N102: 14.35015697 | O102: 49 | P102: 0 | Q102: 19 | R102: 852 | S102: 93 | T102: 57 | U102: 880285 | W102: 19 | X102: 852 | Y102: 93 | Z102: 57 | AA102: 880285
A103: 94 | B103: 19 | D103: 998 | F103: 0 | G103: 0 | H103: 0 | I103: =IF(H104>0, H103/H104, 0) -> 0 | K103: =ROUND(J104*I103,0) -> 0 | L103: 0 | M103: =K103-L103 -> 0 | N103: 0 | O103: 0 | P103: 0 | Q103: 19 | R103: 998 | S103: 94 | T103: 0 | U103: 0 | W103: 19 | X103: 998 | Y103: 94 | Z103: 0 | AA103: 0
A104: 95 | B104: 19 | C104: AYER | D104: 999 | E104: TOTAL | F104: 11085040 | G104: 1 | H104: =SUM(H100:H103) -> 11257286 | I104: =SUM(I100:I103) -> 1 | J104: =VLOOKUP(B104,town351,22) -> 7122054 | K104: =SUM(K100:K103) -> 7122054 | L104: 7131436 | M104: =SUM(M100:M103) -> -9382 | N104: -0.1315583565 | O104: 1064 | P104: 0 | Q104: 19 | R104: 999 | S104: 95 | T104: 1072 | U104: 11257286 | W104: 19 | X104: 999 | Y104: 95 | Z104: 1072 | AA104: 11257286
A105: 96 | B105: 20 | C105: BARNSTABLE | D105: 20 | E105: BARNSTABLE | F105: 53870372.69 | G105: 0.9544320578 | H105: =U105 -> 55521659.88 | I105: =IF(H109>0, H105/H109, 0) -> 0.9525806752 | K105: =ROUND(J109*I105,0) -> 45805369 | L105: 46207751 | M105: =K105-L105 -> -402382 | N105: -0.8708106136 | O105: 5423 | P105: 0 | Q105: 20 | R105: 20 | S105: 96 | T105: 5492 | U105: 55521659.88 | W105: 20 | X105: 20 | Y105: 96 | Z105: 5492 | AA105: 55521659.88
A106: 97 | B106: 20 | C106: BARNSTABLE | D106: 815 | E106: CAPE COD | F106: 2571961 | G106: 0.04556794221 | H106: 2763860 | I106: =IF(H109>0, H106/H109, 0) -> 0.04741932483 | K106: =ROUND(J109*I106,0) -> 2280185 | L106: 2206121 | M106: =K106-L106 -> 74064 | N106: 3.357204795 | O106: 168 | P106: 0 | Q106: 20 | R106: 815 | S106: 97 | T106: 177 | U106: 2763860 | W106: 20 | X106: 815 | Y106: 97 | Z106: 177 | AA106: 2763860
A107: 98 | B107: 20 | D107: 998 | F107: 0 | G107: 0 | H107: 0 | I107: =IF(H109>0, H107/H109, 0) -> 0 | K107: =ROUND(J109*I107,0) -> 0 | L107: 0 | M107: =K107-L107 -> 0 | N107: 0 | O107: 0 | P107: 0 | Q107: 20 | R107: 998 | S107: 98 | T107: 0 | U107: 0 | W107: 20 | X107: 998 | Y107: 98 | Z107: 0 | AA107: 0
A108: 99 | B108: 20 | D108: 998 | F108: 0 | G108: 0 | H108: 0 | I108: =IF(H109>0, H108/H109, 0) -> 0 | K108: =ROUND(J109*I108,0) -> 0 | L108: 0 | M108: =K108-L108 -> 0 | N108: 0 | O108: 0 | P108: 0 | Q108: 20 | R108: 998 | S108: 99 | T108: 0 | U108: 0 | W108: 20 | X108: 998 | Y108: 99 | Z108: 0 | AA108: 0
A109: 100 | B109: 20 | C109: BARNSTABLE | D109: 999 | E109: TOTAL | F109: 56442333.69 | G109: 1 | H109: =SUM(H105:H108) -> 58285519.88 | I109: =SUM(I105:I108) -> 1 | J109: =VLOOKUP(B109,town351,22) -> 48085554 | K109: =SUM(K105:K108) -> 48085554 | L109: 48413872 | M109: =SUM(M105:M108) -> -328318 | N109: -0.67814861 | O109: 5591 | P109: 0 | Q109: 20 | R109: 999 | S109: 100 | T109: 5669 | U109: 58285519.88 | W109: 20 | X109: 999 | Y109: 100 | Z109: 5669 | AA109: 58285519.88
A110: 101 | B110: 21 | C110: BARRE | D110: 21 | E110: BARRE | F110: 0 | G110: 0 | H110: =U110 -> 0 | I110: =IF(H114>0, H110/H114, 0) -> 0 | K110: =ROUND(J114*I110,0) -> 0 | L110: 0 | M110: =K110-L110 -> 0 | N110: 0 | O110: 0 | P110: 0 | Q110: 21 | R110: 21 | S110: 101 | T110: 0 | U110: 0 | W110: 21 | X110: 21 | Y110: 101 | Z110: 0 | AA110: 0
A111: 102 | B111: 21 | C111: BARRE | D111: 753 | E111: QUABBIN | F111: 7769384 | G111: 0.9280281589 | H111: 8182502 | I111: =IF(H114>0, H111/H114, 0) -> 0.9337412999 | K111: =ROUND(J114*I111,0) -> 3202022 | L111: 3394730 | M111: =K111-L111 -> -192708 | N111: -5.676681209 | O111: 810 | P111: 0 | Q111: 21 | R111: 753 | S111: 102 | T111: 823 | U111: 8182502 | W111: 21 | X111: 753 | Y111: 102 | Z111: 823 | AA111: 8182502
A112: 103 | B112: 21 | C112: BARRE | D112: 832 | E112: MONTACHUSETT | F112: 602543 | G112: 0.07197184113 | H112: 580634 | I112: =IF(H114>0, H112/H114, 0) -> 0.06625870008 | K112: =ROUND(J114*I112,0) -> 227217 | L112: 263273 | M112: =K112-L112 -> -36056 | N112: -13.69528968 | O112: 40 | P112: 0 | Q112: 21 | R112: 832 | S112: 103 | T112: 38 | U112: 580634 | W112: 21 | X112: 832 | Y112: 103 | Z112: 38 | AA112: 580634
A113: 104 | B113: 21 | D113: 998 | F113: 0 | G113: 0 | H113: 0 | I113: =IF(H114>0, H113/H114, 0) -> 0 | K113: =ROUND(J114*I113,0) -> 0 | L113: 0 | M113: =K113-L113 -> 0 | N113: 0 | O113: 0 | P113: 0 | Q113: 21 | R113: 998 | S113: 104 | T113: 0 | U113: 0 | W113: 21 | X113: 998 | Y113: 104 | Z113: 0 | AA113: 0
A114: 105 | B114: 21 | C114: BARRE | D114: 999 | E114: TOTAL | F114: 8371927 | G114: 1 | H114: =SUM(H110:H113) -> 8763136 | I114: =SUM(I110:I113) -> 1 | J114: =VLOOKUP(B114,town351,22) -> 3429239 | K114: =SUM(K110:K113) -> 3429239 | L114: 3658003 | M114: =SUM(M110:M113) -> -228764 | N114: -6.253794762 | O114: 850 | P114: 0 | Q114: 21 | R114: 999 | S114: 105 | T114: 861 | U114: 8763136 | W114: 21 | X114: 999 | Y114: 105 | Z114: 861 | AA114: 8763136
A115: 106 | B115: 22 | C115: BECKET | D115: 22 | E115: BECKET | F115: 246041.35 | G115: 0.1297736856 | H115: =U115 -> 118799.64 | I115: =IF(H119>0, H115/H119, 0) -> 0.06204914345 | K115: =ROUND(J119*I115,0) -> 98010 | L115: 221437 | M115: =K115-L115 -> -123427 | N115: -55.73910412 | O115: 17 | P115: 0 | Q115: 22 | R115: 22 | S115: 106 | T115: 9 | U115: 118799.64 | W115: 22 | X115: 22 | Y115: 106 | Z115: 9 | AA115: 118799.64
A116: 107 | B116: 22 | C116: BECKET | D116: 635 | E116: CENTRAL BERKSHIRE | F116: 1649885 | G116: 0.8702263144 | H116: 1795806 | I116: =IF(H119>0, H116/H119, 0) -> 0.9379508566 | K116: =ROUND(J119*I116,0) -> 1481540 | L116: 1484897 | M116: =K116-L116 -> -3357 | N116: -0.2260762868 | O116: 168 | P116: 0 | Q116: 22 | R116: 635 | S116: 107 | T116: 180 | U116: 1795806 | W116: 22 | X116: 635 | Y116: 107 | Z116: 180 | AA116: 1795806
A117: 108 | B117: 22 | D117: 998 | F117: 0 | G117: 0 | H117: 0 | I117: =IF(H119>0, H117/H119, 0) -> 0 | K117: =ROUND(J119*I117,0) -> 0 | L117: 0 | M117: =K117-L117 -> 0 | N117: 0 | O117: 0 | P117: 0 | Q117: 22 | R117: 998 | S117: 108 | T117: 0 | U117: 0 | W117: 22 | X117: 998 | Y117: 108 | Z117: 0 | AA117: 0
A118: 109 | B118: 22 | D118: 998 | F118: 0 | G118: 0 | H118: 0 | I118: =IF(H119>0, H118/H119, 0) -> 0 | K118: =ROUND(J119*I118,0) -> 0 | L118: 0 | M118: =K118-L118 -> 0 | N118: 0 | O118: 0 | P118: 0 | Q118: 22 | R118: 998 | S118: 109 | T118: 0 | U118: 0 | W118: 22 | X118: 998 | Y118: 109 | Z118: 0 | AA118: 0
A119: 110 | B119: 22 | C119: BECKET | D119: 999 | E119: TOTAL | F119: 1895926.35 | G119: 1 | H119: =SUM(H115:H118) -> 1914605.64 | I119: =SUM(I115:I118) -> 1 | J119: =VLOOKUP(B119,town351,22) -> 1579550 | K119: =SUM(K115:K118) -> 1579550 | L119: 1706334 | M119: =SUM(M115:M118) -> -126784 | N119: -7.430198308 | O119: 185 | P119: 0 | Q119: 22 | R119: 999 | S119: 110 | T119: 189 | U119: 1914605.64 | W119: 22 | X119: 999 | Y119: 110 | Z119: 189 | AA119: 1914605.64
A120: 111 | B120: 23 | C120: BEDFORD | D120: 23 | E120: BEDFORD | F120: 25862895.33 | G120: 0.9851866383 | H120: =U120 -> 26053076.23 | I120: =IF(H124>0, H120/H124, 0) -> 0.9897083623 | K120: =ROUND(J124*I120,0) -> 21493787 | L120: 21890571 | M120: =K120-L120 -> -396784 | N120: -1.812579489 | O120: 2608 | P120: 0 | Q120: 23 | R120: 23 | S120: 111 | T120: 2585 | U120: 26053076.23 | W120: 23 | X120: 23 | Y120: 111 | Z120: 2585 | AA120: 26053076.23
A121: 112 | B121: 23 | C121: BEDFORD | D121: 871 | E121: SHAWSHEEN VALLEY | F121: 388877 | G121: 0.01481336174 | H121: 270917 | I121: =IF(H124>0, H121/H124, 0) -> 0.01029163766 | K121: =ROUND(J124*I121,0) -> 223507 | L121: 329149 | M121: =K121-L121 -> -105642 | N121: -32.09549475 | O121: 26 | P121: 0 | Q121: 23 | R121: 871 | S121: 112 | T121: 18 | U121: 270917 | W121: 23 | X121: 871 | Y121: 112 | Z121: 18 | AA121: 270917
A122: 113 | B122: 23 | D122: 998 | E122: ESSEX COUNTY | F122: 0 | G122: 0 | H122: 0 | I122: =IF(H124>0, H122/H124, 0) -> 0 | K122: =ROUND(J124*I122,0) -> 0 | L122: 0 | M122: =K122-L122 -> 0 | N122: 0 | O122: 0 | P122: 0 | Q122: 23 | R122: 998 | S122: 113 | T122: 0 | U122: 0 | W122: 23 | X122: 998 | Y122: 113 | Z122: 0 | AA122: 0
A123: 114 | B123: 23 | D123: 998 | F123: 0 | G123: 0 | H123: 0 | I123: =IF(H124>0, H123/H124, 0) -> 0 | K123: =ROUND(J124*I123,0) -> 0 | L123: 0 | M123: =K123-L123 -> 0 | N123: 0 | O123: 0 | P123: 0 | Q123: 23 | R123: 998 | S123: 114 | T123: 0 | U123: 0 | W123: 23 | X123: 998 | Y123: 114 | Z123: 0 | AA123: 0
A124: 115 | B124: 23 | C124: BEDFORD | D124: 999 | E124: TOTAL | F124: 26251772.33 | G124: 1 | H124: =SUM(H120:H123) -> 26323993.23 | I124: =SUM(I120:I123) -> 1 | J124: =VLOOKUP(B124,town351,22) -> 21717294 | K124: =SUM(K120:K123) -> 21717294 | L124: 22219720 | M124: =SUM(M120:M123) -> -502426 | N124: -2.261171608 | O124: 2634 | P124: 0 | Q124: 23 | R124: 999 | S124: 115 | T124: 2603 | U124: 26323993.23 | W124: 23 | X124: 999 | Y124: 115 | Z124: 2603 | AA124: 26323993.23
A125: 116 | B125: 24 | C125: BELCHERTOWN | D125: 24 | E125: BELCHERTOWN | F125: 23327151.94 | G125: 0.9402465083 | H125: =U125 -> 22973661.62 | I125: =IF(H129>0, H125/H129, 0) -> 0.9420871543 | K125: =ROUND(J129*I125,0) -> 11198625 | L125: 11128856 | M125: =K125-L125 -> 69769 | N125: 0.626919784 | O125: 2493 | P125: 0 | Q125: 24 | R125: 24 | S125: 116 | T125: 2401 | U125: 22973661.62 | W125: 24 | X125: 24 | Y125: 116 | Z125: 2401 | AA125: 22973661.62
A126: 117 | B126: 24 | C126: BELCHERTOWN | D126: 860 | E126: PATHFINDER | F126: 1482461 | G126: 0.05975349166 | H126: 1412258 | I126: =IF(H129>0, H126/H129, 0) -> 0.05791284569 | K126: =ROUND(J129*I126,0) -> 688412 | L126: 707249 | M126: =K126-L126 -> -18837 | N126: -2.6634184 | O126: 96 | P126: 0 | Q126: 24 | R126: 860 | S126: 117 | T126: 89 | U126: 1412258 | W126: 24 | X126: 860 | Y126: 117 | Z126: 89 | AA126: 1412258
A127: 118 | B127: 24 | D127: 998 | F127: 0 | G127: 0 | H127: 0 | I127: =IF(H129>0, H127/H129, 0) -> 0 | K127: =ROUND(J129*I127,0) -> 0 | L127: 0 | M127: =K127-L127 -> 0 | N127: 0 | O127: 0 | P127: 0 | Q127: 24 | R127: 998 | S127: 118 | T127: 0 | U127: 0 | W127: 24 | X127: 998 | Y127: 118 | Z127: 0 | AA127: 0
A128: 119 | B128: 24 | D128: 998 | F128: 0 | G128: 0 | H128: 0 | I128: =IF(H129>0, H128/H129, 0) -> 0 | K128: =ROUND(J129*I128,0) -> 0 | L128: 0 | M128: =K128-L128 -> 0 | N128: 0 | O128: 0 | P128: 0 | Q128: 24 | R128: 998 | S128: 119 | T128: 0 | U128: 0 | W128: 24 | X128: 998 | Y128: 119 | Z128: 0 | AA128: 0
A129: 120 | B129: 24 | C129: BELCHERTOWN | D129: 999 | E129: TOTAL | F129: 24809612.94 | G129: 1 | H129: =SUM(H125:H128) -> 24385919.62 | I129: =SUM(I125:I128) -> 1 | J129: =VLOOKUP(B129,town351,22) -> 11887037 | K129: =SUM(K125:K128) -> 11887037 | L129: 11836105 | M129: =SUM(M125:M128) -> 50932 | N129: 0.430310478 | O129: 2589 | P129: 0 | Q129: 24 | R129: 999 | S129: 120 | T129: 2490 | U129: 24385919.62 | W129: 24 | X129: 999 | Y129: 120 | Z129: 2490 | AA129: 24385919.62
A130: 121 | B130: 25 | C130: BELLINGHAM | D130: 25 | E130: BELLINGHAM | F130: 22925709.12 | G130: 0.9358261505 | H130: =U130 -> 23462633.45 | I130: =IF(H134>0, H130/H134, 0) -> 0.9295720962 | K130: =ROUND(J134*I130,0) -> 14932642 | L130: 15265577 | M130: =K130-L130 -> -332935 | N130: -2.18095261 | O130: 2424 | P130: 0 | Q130: 25 | R130: 25 | S130: 121 | T130: 2424 | U130: 23462633.45 | W130: 25 | X130: 25 | Y130: 121 | Z130: 2424 | AA130: 23462633.45
A131: 122 | B131: 25 | C131: BELLINGHAM | D131: 805 | E131: BLACKSTONE VALLEY | F131: 1327925 | G131: 0.05420582344 | H131: 1558545 | I131: =IF(H134>0, H131/H134, 0) -> 0.06174839435 | K131: =ROUND(J134*I131,0) -> 991926 | L131: 884227 | M131: =K131-L131 -> 107699 | N131: 12.18001712 | O131: 89 | P131: 0 | Q131: 25 | R131: 805 | S131: 122 | T131: 103 | U131: 1558545 | W131: 25 | X131: 805 | Y131: 122 | Z131: 103 | AA131: 1558545
A132: 123 | B132: 25 | C132: BELLINGHAM | D132: 915 | E132: NORFOLK COUNTY | F132: 244195 | G132: 0.009968026097 | H132: 219073 | I132: =IF(H134>0, H132/H134, 0) -> 0.008679509411 | K132: =ROUND(J134*I132,0) -> 139428 | L132: 162602 | M132: =K132-L132 -> -23174 | N132: -14.25197722 | O132: 16 | P132: 0 | Q132: 25 | R132: 915 | S132: 123 | T132: 14 | U132: 219073 | W132: 25 | X132: 915 | Y132: 123 | Z132: 14 | AA132: 219073
A133: 124 | B133: 25 | D133: 998 | F133: 0 | G133: 0 | H133: 0 | I133: =IF(H134>0, H133/H134, 0) -> 0 | K133: =ROUND(J134*I133,0) -> 0 | L133: 0 | M133: =K133-L133 -> 0 | N133: 0 | O133: 0 | P133: 0 | Q133: 25 | R133: 998 | S133: 124 | T133: 0 | U133: 0 | W133: 25 | X133: 998 | Y133: 124 | Z133: 0 | AA133: 0
A134: 125 | B134: 25 | C134: BELLINGHAM | D134: 999 | E134: TOTAL | F134: 24497829.12 | G134: 1 | H134: =SUM(H130:H133) -> 25240251.45 | I134: =SUM(I130:I133) -> 1 | J134: =VLOOKUP(B134,town351,22) -> 16063995 | K134: =SUM(K130:K133) -> 16063996 | L134: 16312406 | M134: =SUM(M130:M133) -> -248410 | N134: -1.522828699 | O134: 2529 | P134: 0 | Q134: 25 | R134: 999 | S134: 125 | T134: 2541 | U134: 25240251.45 | W134: 25 | X134: 999 | Y134: 125 | Z134: 2541 | AA134: 25240251.45
A135: 126 | B135: 26 | C135: BELMONT | D135: 26 | E135: BELMONT | F135: 37689370.08 | G135: 0.9865309962 | H135: =U135 -> 39180121.94 | I135: =IF(H139>0, H135/H139, 0) -> 0.9871970416 | K135: =ROUND(J139*I135,0) -> 32323600 | L135: 31269266 | M135: =K135-L135 -> 1054334 | N135: 3.371790051 | O135: 4068 | P135: 0 | Q135: 26 | R135: 26 | S135: 126 | T135: 4156 | U135: 39180121.94 | W135: 26 | X135: 26 | Y135: 126 | Z135: 4156 | AA135: 39180121.94
A136: 127 | B136: 26 | C136: BELMONT | D136: 830 | E136: MINUTEMAN | F136: 514569 | G136: 0.01346900378 | H136: 508127 | I136: =IF(H139>0, H136/H139, 0) -> 0.0128029584 | K136: =ROUND(J139*I136,0) -> 419205 | L136: 426916 | M136: =K136-L136 -> -7711 | N136: -1.806210121 | O136: 31 | P136: 0 | Q136: 26 | R136: 830 | S136: 127 | T136: 30 | U136: 508127 | W136: 26 | X136: 830 | Y136: 127 | Z136: 30 | AA136: 508127
A137: 128 | B137: 26 | D137: 998 | F137: 0 | G137: 0 | H137: 0 | I137: =IF(H139>0, H137/H139, 0) -> 0 | K137: =ROUND(J139*I137,0) -> 0 | L137: 0 | M137: =K137-L137 -> 0 | N137: 0 | O137: 0 | P137: 0 | Q137: 26 | R137: 998 | S137: 128 | T137: 0 | U137: 0 | W137: 26 | X137: 998 | Y137: 128 | Z137: 0 | AA137: 0
A138: 129 | B138: 26 | D138: 998 | F138: 0 | G138: 0 | H138: 0 | I138: =IF(H139>0, H138/H139, 0) -> 0 | K138: =ROUND(J139*I138,0) -> 0 | L138: 0 | M138: =K138-L138 -> 0 | N138: 0 | O138: 0 | P138: =ABS(Q138-B138)+ABS(R138-D138) -> 0 | Q138: =IF($Q$6=1, W138, IF($Q$6=2, AC138, IF($Q$6=3, AI138, IF($Q$6=4, AO138, IF($Q$6=5, AU138, IF($Q$6=6, BA138, IF($Q$6=7, BG138, IF($Q$6=8, BM138, 0)))))))) -> 26 | R138: =IF($Q$6=1, X138, IF($Q$6=2, AD138, IF($Q$6=3, AJ138, IF($Q$6=4, AP138, IF($Q$6=5, AV138, IF($Q$6=6, BB138, IF($Q$6=7, BH138, IF($Q$6=8, BN138, 0)))))))) -> 998 | S138: =IF($Q$6=1, Y138, IF($Q$6=2, AE138, IF($Q$6=3, AK138, IF($Q$6=4, AQ138, IF($Q$6=5, AW138, IF($Q$6=6, BC138, IF($Q$6=7, BI138, IF($Q$6=8, BO138, 0)))))))) -> 129 | T138: =IF($Q$6=1, Z138, IF($Q$6=2, AF138, IF($Q$6=3, AL138, IF($Q$6=4, AR138, IF($Q$6=5, AX138, IF($Q$6=6, BD138, IF($Q$6=7, BJ138, IF($Q$6=8, BP138, 0)))))))) -> 0 | U138: =IF($Q$6=1, AA138, IF($Q$6=2, AG138, IF($Q$6=3, AM138, IF($Q$6=4, AS138, IF($Q$6=5, AY138, IF($Q$6=6, BE138, IF($Q$6=7, BK138, IF($Q$6=8, BQ138, 0)))))))) -> 0 | W138: 26 | X138: 998 | Y138: 129 | Z138: 0 | AA138: 0
A139: 130 | B139: 26 | C139: BELMONT | D139: 999 | E139: TOTAL | F139: 38203939.08 | G139: 1 | H139: =SUM(H135:H138) -> 39688248.94 | I139: =SUM(I135:I138) -> 1 | J139: =VLOOKUP(B139,town351,22) -> 32742805 | K139: =SUM(K135:K138) -> 32742805 | L139: 31696182 | M139: =SUM(M135:M138) -> 1046623 | N139: 3.302047546 | O139: 4099 | P139: 0 | Q139: 26 | R139: 999 | S139: 130 | T139: 4186 | U139: 39688248.94 | W139: 26 | X139: 999 | Y139: 130 | Z139: 4186 | AA139: 39688248.94
A140: 131 | B140: 27 | C140: BERKLEY | D140: 27 | E140: BERKLEY | F140: 6578224.68 | G140: 0.584177818 | H140: =U140 -> 6569709.32 | I140: =IF(H144>0, H140/H144, 0) -> 0.5868801146 | K140: =ROUND(J144*I140,0) -> 3390355 | L140: 3202757 | M140: =K140-L140 -> 187598 | N140: 5.857390992 | O140: 742 | P140: 0 | Q140: 27 | R140: 27 | S140: 131 | T140: 723 | U140: 6569709.32 | W140: 27 | X140: 27 | Y140: 131 | Z140: 723 | AA140: 6569709.32
A141: 132 | B141: 27 | C141: BERKLEY | D141: 763 | E141: SOMERSET BERKLEY | F141: 2889282 | G141: 0.2565820622 | H141: 2836595 | I141: =IF(H144>0, H141/H144, 0) -> 0.2533964773 | K141: =ROUND(J144*I141,0) -> 1463849 | L141: 1406712 | M141: =K141-L141 -> 57137 | N141: 4.061741138 | O141: 281 | P141: 0 | Q141: 27 | R141: 763 | S141: 132 | T141: 273 | U141: 2836595 | W141: 27 | X141: 763 | Y141: 132 | Z141: 273 | AA141: 2836595
A142: 133 | B142: 27 | C142: BERKLEY | D142: 810 | E142: BRISTOL PLYMOUTH | F142: 1598396 | G142: 0.1419452106 | H142: 1620717 | I142: =IF(H144>0, H142/H144, 0) -> 0.1447806185 | K142: =ROUND(J144*I142,0) -> 836385 | L142: 778215 | M142: =K142-L142 -> 58170 | N142: 7.474798096 | O142: 106 | P142: 0 | Q142: 27 | R142: 810 | S142: 133 | T142: 105 | U142: 1620717 | W142: 27 | X142: 810 | Y142: 133 | Z142: 105 | AA142: 1620717
A143: 134 | B143: 27 | C143: BERKLEY | D143: 910 | E143: BRISTOL COUNTY | F143: 194752 | G143: 0.01729490918 | H143: 167274 | I143: =IF(H144>0, H143/H144, 0) -> 0.01494278963 | K143: =ROUND(J144*I143,0) -> 86323 | L143: 94819 | M143: =K143-L143 -> -8496 | N143: -8.96022949 | O143: 13 | P143: 0 | Q143: 27 | R143: 910 | S143: 134 | T143: 11 | U143: 167274 | W143: 27 | X143: 910 | Y143: 134 | Z143: 11 | AA143: 167274
A144: 135 | B144: 27 | C144: BERKLEY | D144: 999 | E144: TOTAL | F144: 11260654.68 | G144: 1 | H144: =SUM(H140:H143) -> 11194295.32 | I144: =SUM(I140:I143) -> 1 | J144: =VLOOKUP(B144,town351,22) -> 5776913 | K144: =SUM(K140:K143) -> 5776912 | L144: 5482503 | M144: =SUM(M140:M143) -> 294409 | N144: =IF(L144>0,M144*100/L144,IF(M144>0,100,0)) -> 5.369974262 | O144: 1142 | P144: 0 | Q144: 27 | R144: 999 | S144: 135 | T144: 1112 | U144: 11194295.32 | W144: 27 | X144: 999 | Y144: 135 | Z144: 1112 | AA144: 11194295.32
A145: 136 | B145: 28 | C145: BERLIN | D145: 28 | E145: BERLIN | F145: 1474055.765 | G145: 0.3808120017 | H145: =U145 -> 1394075.237 | I145: =IF(H149>0, H145/H149, 0) -> 0.3580428165 | K145: =ROUND(J149*I145,0) -> 1150112 | L145: 1240618 | M145: =K145-L145 -> -90506 | N145: -7.295235117 | O145: 166 | P145: 0 | Q145: 28 | R145: 28 | S145: 136 | T145: 152 | U145: 1394075.237 | W145: 28 | X145: 28 | Y145: 136 | Z145: 152 | AA145: 1394075.237
A146: 137 | B146: 28 | C146: BERLIN | D146: 620 | E146: BERLIN BOYLSTON | F146: 1919494 | G146: 0.4958878555 | H146: 1979108 | I146: =IF(H149>0, H146/H149, 0) -> 0.5082978189 | K146: =ROUND(J149*I146,0) -> 1632764 | L146: 1615515 | M146: =K146-L146 -> 17249 | N146: 1.067709059 | O146: 206 | P146: 0 | Q146: 28 | R146: 620 | S146: 137 | T146: 209 | U146: 1979108 | W146: 28 | X146: 620 | Y146: 137 | Z146: 209 | AA146: 1979108
A147: 138 | B147: 28 | C147: BERLIN | D147: 801 | E147: ASSABET VALLEY | F147: 477273 | G147: 0.1233001429 | H147: 520416 | I147: =IF(H149>0, H147/H149, 0) -> 0.1336593646 | K147: =ROUND(J149*I147,0) -> 429343 | L147: 401690 | M147: =K147-L147 -> 27653 | N147: 6.884164405 | O147: 29 | P147: 0 | Q147: 28 | R147: 801 | S147: 138 | T147: 31 | U147: 520416 | W147: 28 | X147: 801 | Y147: 138 | Z147: 31 | AA147: 520416
A148: 139 | B148: 28 | D148: 998 | F148: 0 | G148: 0 | H148: 0 | I148: =IF(H149>0, H148/H149, 0) -> 0 | K148: =ROUND(J149*I148,0) -> 0 | L148: 0 | M148: =K148-L148 -> 0 | N148: 0 | O148: 0 | P148: 0 | Q148: 28 | R148: 998 | S148: 139 | T148: 0 | U148: 0 | W148: 28 | X148: 998 | Y148: 139 | Z148: 0 | AA148: 0
A149: 140 | B149: 28 | C149: BERLIN | D149: 999 | E149: TOTAL | F149: 3870822.765 | G149: 1 | H149: =SUM(H145:H148) -> 3893599.237 | I149: =SUM(I145:I148) -> 1 | J149: =VLOOKUP(B149,town351,22) -> 3212219 | K149: =SUM(K145:K148) -> 3212219 | L149: 3257823 | M149: =SUM(M145:M148) -> -45604 | N149: -1.3998305 | O149: 401 | P149: 0 | Q149: 28 | R149: 999 | S149: 140 | T149: 392 | U149: 3893599.237 | W149: 28 | X149: 999 | Y149: 140 | Z149: 392 | AA149: 3893599.237
A150: 141 | B150: 29 | C150: BERNARDSTON | D150: 29 | E150: BERNARDSTON | F150: 0 | G150: 0 | H150: =U150 -> 0 | I150: =IF(H154>0, H150/H154, 0) -> 0 | K150: =ROUND(J154*I150,0) -> 0 | L150: 0 | M150: =K150-L150 -> 0 | N150: 0 | O150: 0 | P150: 0 | Q150: 29 | R150: 29 | S150: 141 | T150: 0 | U150: 0 | W150: 29 | X150: 29 | Y150: 141 | Z150: 0 | AA150: 0
A151: 142 | B151: 29 | C151: BERNARDSTON | D151: 750 | E151: PIONEER | F151: 2522899 | G151: 0.8899406577 | H151: 2607180 | I151: =IF(H154>0, H151/H154, 0) -> 0.8865088584 | K151: =ROUND(J154*I151,0) -> 1459205 | L151: 1477075 | M151: =K151-L151 -> -17870 | N151: -1.209823469 | O151: 259 | P151: 0 | Q151: 29 | R151: 750 | S151: 142 | T151: 262 | U151: 2607180 | W151: 29 | X151: 750 | Y151: 142 | Z151: 262 | AA151: 2607180
A152: 143 | B152: 29 | C152: BERNARDSTON | D152: 818 | E152: FRANKLIN COUNTY | F152: 312008 | G152: 0.1100593423 | H152: 333772 | I152: =IF(H154>0, H152/H154, 0) -> 0.1134911416 | K152: =ROUND(J154*I152,0) -> 186808 | L152: 182670 | M152: =K152-L152 -> 4138 | N152: 2.26528713 | O152: 20 | P152: 0 | Q152: 29 | R152: 818 | S152: 143 | T152: 21 | U152: 333772 | W152: 29 | X152: 818 | Y152: 143 | Z152: 21 | AA152: 333772
A153: 144 | B153: 29 | D153: 998 | F153: 0 | G153: 0 | H153: 0 | I153: =IF(H154>0, H153/H154, 0) -> 0 | K153: =ROUND(J154*I153,0) -> 0 | L153: 0 | M153: =K153-L153 -> 0 | N153: 0 | O153: 0 | P153: 0 | Q153: 29 | R153: 998 | S153: 144 | T153: 0 | U153: 0 | W153: 29 | X153: 998 | Y153: 144 | Z153: 0 | AA153: 0
A154: 145 | B154: 29 | C154: BERNARDSTON | D154: 999 | E154: TOTAL | F154: 2834907 | G154: 1 | H154: =SUM(H150:H153) -> 2940952 | I154: =SUM(I150:I153) -> 1 | J154: =VLOOKUP(B154,town351,22) -> 1646013 | K154: =SUM(K150:K153) -> 1646013 | L154: 1659745 | M154: =SUM(M150:M153) -> -13732 | N154: -0.8273560095 | O154: 279 | P154: 0 | Q154: 29 | R154: 999 | S154: 145 | T154: 283 | U154: 2940952 | W154: 29 | X154: 999 | Y154: 145 | Z154: 283 | AA154: 2940952
A155: 146 | B155: 30 | C155: BEVERLY | D155: 30 | E155: BEVERLY | F155: 43026226.78 | G155: 0.9735860566 | H155: =U155 -> 44949344.69 | I155: =IF(H159>0, H155/H159, 0) -> 0.9633848412 | K155: =ROUND(J159*I155,0) -> 37083209 | L155: 36875947 | M155: =K155-L155 -> 207262 | N155: 0.5620520064 | O155: 4345 | P155: 0 | Q155: 30 | R155: 30 | S155: 146 | T155: 4426 | U155: 44949344.69 | W155: 30 | X155: 30 | Y155: 146 | Z155: 4426 | AA155: 44949344.69
A156: 147 | B156: 30 | C156: BEVERLY | D156: 817 | E156: ESSEX NORTH SHORE | F156: 1167326 | G156: 0.02641394336 | H156: 1708380 | I156: =IF(H159>0, H156/H159, 0) -> 0.03661515882 | K156: =ROUND(J159*I156,0) -> 1409414 | L156: 1000465 | M156: =K156-L156 -> 408949 | N156: 40.87589271 | O156: 75 | P156: 0 | Q156: 30 | R156: 817 | S156: 147 | T156: 110 | U156: 1708380 | W156: 30 | X156: 817 | Y156: 147 | Z156: 110 | AA156: 1708380
A157: 148 | B157: 30 | D157: 998 | E157: ESSEX COUNTY | F157: 0 | G157: 0 | H157: 0 | I157: =IF(H159>0, H157/H159, 0) -> 0 | K157: =ROUND(J159*I157,0) -> 0 | L157: 0 | M157: =K157-L157 -> 0 | N157: 0 | O157: 0 | P157: 0 | Q157: 30 | R157: 998 | S157: 148 | T157: 0 | U157: 0 | W157: 30 | X157: 998 | Y157: 148 | Z157: 0 | AA157: 0
A158: 149 | B158: 30 | D158: 998 | F158: 0 | G158: 0 | H158: 0 | I158: =IF(H159>0, H158/H159, 0) -> 0 | K158: =ROUND(J159*I158,0) -> 0 | L158: 0 | M158: =K158-L158 -> 0 | N158: 0 | O158: 0 | P158: 0 | Q158: 30 | R158: 998 | S158: 149 | T158: 0 | U158: 0 | W158: 30 | X158: 998 | Y158: 149 | Z158: 0 | AA158: 0
A159: 150 | B159: 30 | C159: BEVERLY | D159: 999 | E159: TOTAL | F159: 44193552.78 | G159: 1 | H159: =SUM(H155:H158) -> 46657724.69 | I159: =SUM(I155:I158) -> 1 | J159: =VLOOKUP(B159,town351,22) -> 38492623 | K159: =SUM(K155:K158) -> 38492623 | L159: 37876412 | M159: =SUM(M155:M158) -> 616211 | N159: 1.626899084 | O159: 4420 | P159: 0 | Q159: 30 | R159: 999 | S159: 150 | T159: 4536 | U159: 46657724.69 | W159: 30 | X159: 999 | Y159: 150 | Z159: 4536 | AA159: 46657724.69
A160: 151 | B160: 31 | C160: BILLERICA | D160: 31 | E160: BILLERICA | F160: 50581059.94 | G160: 0.849314698 | H160: =U160 -> 51437518.58 | I160: =IF(H164>0, H160/H164, 0) -> 0.8408194189 | K160: =ROUND(J164*I160,0) -> 34395999 | L160: 35165450 | M160: =K160-L160 -> -769451 | N160: -2.188088024 | O160: 5385 | P160: 0 | Q160: 31 | R160: 31 | S160: 151 | T160: 5359 | U160: 51437518.58 | W160: 31 | X160: 31 | Y160: 151 | Z160: 5359 | AA160: 51437518.58
A161: 152 | B161: 31 | C161: BILLERICA | D161: 871 | E161: SHAWSHEEN VALLEY | F161: 8974085 | G161: 0.150685302 | H161: 9737946 | I161: =IF(H164>0, H161/H164, 0) -> 0.1591805811 | K161: =ROUND(J164*I161,0) -> 6511713 | L161: 6239049 | M161: =K161-L161 -> 272664 | N161: 4.370281432 | O161: 600 | P161: 0 | Q161: 31 | R161: 871 | S161: 152 | T161: 647 | U161: 9737946 | W161: 31 | X161: 871 | Y161: 152 | Z161: 647 | AA161: 9737946
A162: 153 | B162: 31 | D162: 998 | E162: ESSEX COUNTY | F162: 0 | G162: 0 | H162: 0 | I162: =IF(H164>0, H162/H164, 0) -> 0 | K162: =ROUND(J164*I162,0) -> 0 | L162: 0 | M162: =K162-L162 -> 0 | N162: 0 | O162: 0 | P162: 0 | Q162: 31 | R162: 998 | S162: 153 | T162: 0 | U162: 0 | W162: 31 | X162: 998 | Y162: 153 | Z162: 0 | AA162: 0
A163: 154 | B163: 31 | D163: 998 | F163: 0 | G163: 0 | H163: 0 | I163: =IF(H164>0, H163/H164, 0) -> 0 | K163: =ROUND(J164*I163,0) -> 0 | L163: 0 | M163: =K163-L163 -> 0 | N163: 0 | O163: 0 | P163: 0 | Q163: 31 | R163: 998 | S163: 154 | T163: 0 | U163: 0 | W163: 31 | X163: 998 | Y163: 154 | Z163: 0 | AA163: 0
A164: 155 | B164: 31 | C164: BILLERICA | D164: 999 | E164: TOTAL | F164: 59555144.94 | G164: 1 | H164: =SUM(H160:H163) -> 61175464.58 | I164: =SUM(I160:I163) -> 1 | J164: =VLOOKUP(B164,town351,22) -> 40907712 | K164: =SUM(K160:K163) -> 40907712 | L164: 41404499 | M164: =SUM(M160:M163) -> -496787 | N164: -1.199838211 | O164: 5985 | P164: 0 | Q164: 31 | R164: 999 | S164: 155 | T164: 6006 | U164: 61175464.58 | W164: 31 | X164: 999 | Y164: 155 | Z164: 6006 | AA164: 61175464.58
A165: 156 | B165: 32 | C165: BLACKSTONE | D165: 32 | E165: BLACKSTONE | F165: 181016.85 | G165: 0.01285024041 | H165: =U165 -> 223331.82 | I165: =IF(H169>0, H165/H169, 0) -> 0.01600961952 | K165: =ROUND(J169*I165,0) -> 108073 | L165: 89793 | M165: =K165-L165 -> 18280 | N165: 20.35793436 | O165: 12 | P165: 0 | Q165: 32 | R165: 32 | S165: 156 | T165: 15 | U165: 223331.82 | W165: 32 | X165: 32 | Y165: 156 | Z165: 15 | AA165: 223331.82
A166: 157 | B166: 32 | C166: BLACKSTONE | D166: 622 | E166: BLACKSTONE MILLVILLE | F166: 12726914 | G166: 0.903473376 | H166: 12546263 | I166: =IF(H169>0, H166/H169, 0) -> 0.8993832452 | K166: =ROUND(J169*I166,0) -> 6071269 | L166: 6313167 | M166: =K166-L166 -> -241898 | N166: -3.83164266 | O166: 1343 | P166: 0 | Q166: 32 | R166: 622 | S166: 157 | T166: 1285 | U166: 12546263 | W166: 32 | X166: 622 | Y166: 157 | Z166: 1285 | AA166: 12546263
A167: 158 | B167: 32 | C167: BLACKSTONE | D167: 805 | E167: BLACKSTONE VALLEY | F167: 1178720 | G167: 0.08367638359 | H167: 1180257 | I167: =IF(H169>0, H167/H169, 0) -> 0.08460713527 | K167: =ROUND(J169*I167,0) -> 571139 | L167: 584702 | M167: =K167-L167 -> -13563 | N167: -2.319643169 | O167: 79 | P167: 0 | Q167: 32 | R167: 805 | S167: 158 | T167: 78 | U167: 1180257 | W167: 32 | X167: 805 | Y167: 158 | Z167: 78 | AA167: 1180257
A168: 159 | B168: 32 | D168: 998 | F168: 0 | G168: 0 | H168: 0 | I168: =IF(H169>0, H168/H169, 0) -> 0 | K168: =ROUND(J169*I168,0) -> 0 | L168: 0 | M168: =K168-L168 -> 0 | N168: 0 | O168: 0 | P168: 0 | Q168: 32 | R168: 998 | S168: 159 | T168: 0 | U168: 0 | W168: 32 | X168: 998 | Y168: 159 | Z168: 0 | AA168: 0
A169: 160 | B169: 32 | C169: BLACKSTONE | D169: 999 | E169: TOTAL | F169: 14086650.85 | G169: 1 | H169: =SUM(H165:H168) -> 13949851.82 | I169: =SUM(I165:I168) -> 1 | J169: =VLOOKUP(B169,town351,22) -> 6750480 | K169: =SUM(K165:K168) -> 6750481 | L169: 6987662 | M169: =SUM(M165:M168) -> -237181 | N169: -3.394282666 | O169: 1434 | P169: 0 | Q169: 32 | R169: 999 | S169: 160 | T169: 1378 | U169: 13949851.82 | W169: 32 | X169: 999 | Y169: 160 | Z169: 1378 | AA169: 13949851.82
A170: 161 | B170: 33 | C170: BLANDFORD | D170: 33 | E170: BLANDFORD | F170: 181016.85 | G170: 0.1206752572 | H170: =U170 -> 92399.72 | I170: =IF(H174>0, H170/H174, 0) -> 0.06548083074 | K170: =ROUND(J174*I170,0) -> 76230 | L170: 141333 | M170: =K170-L170 -> -65103 | N170: -46.06355204 | O170: 12 | P170: 0 | Q170: 33 | R170: 33 | S170: 161 | T170: 7 | U170: 92399.72 | W170: 33 | X170: 33 | Y170: 161 | Z170: 7 | AA170: 92399.72
A171: 162 | B171: 33 | C171: BLANDFORD | D171: 672 | E171: GATEWAY | F171: 1319016 | G171: 0.8793247428 | H171: 1318696 | I171: =IF(H174>0, H171/H174, 0) -> 0.9345191693 | K171: =ROUND(J174*I171,0) -> 1087924 | L171: 1029849 | M171: =K171-L171 -> 58075 | N171: 5.639176229 | O171: 134 | P171: 0 | Q171: 33 | R171: 672 | S171: 162 | T171: 131 | U171: 1318696 | W171: 33 | X171: 672 | Y171: 162 | Z171: 131 | AA171: 1318696
A172: 163 | B172: 33 | D172: 998 | F172: 0 | G172: 0 | H172: 0 | I172: =IF(H174>0, H172/H174, 0) -> 0 | K172: =ROUND(J174*I172,0) -> 0 | L172: 0 | M172: =K172-L172 -> 0 | N172: 0 | O172: 0 | P172: 0 | Q172: 33 | R172: 998 | S172: 163 | T172: 0 | U172: 0 | W172: 33 | X172: 998 | Y172: 163 | Z172: 0 | AA172: 0
A173: 164 | B173: 33 | D173: 998 | F173: 0 | G173: 0 | H173: 0 | I173: =IF(H174>0, H173/H174, 0) -> 0 | K173: =ROUND(J174*I173,0) -> 0 | L173: 0 | M173: =K173-L173 -> 0 | N173: 0 | O173: 0 | P173: 0 | Q173: 33 | R173: 998 | S173: 164 | T173: 0 | U173: 0 | W173: 33 | X173: 998 | Y173: 164 | Z173: 0 | AA173: 0
A174: 165 | B174: 33 | C174: BLANDFORD | D174: 999 | E174: TOTAL | F174: 1500032.85 | G174: 1 | H174: =SUM(H170:H173) -> 1411095.72 | I174: =SUM(I170:I173) -> 1 | J174: =VLOOKUP(B174,town351,22) -> 1164154 | K174: =SUM(K170:K173) -> 1164154 | L174: 1171182 | M174: =SUM(M170:M173) -> -7028 | N174: -0.6000775285 | O174: 146 | P174: 0 | Q174: 33 | R174: 999 | S174: 165 | T174: 138 | U174: 1411095.72 | W174: 33 | X174: 999 | Y174: 165 | Z174: 138 | AA174: 1411095.72
A175: 166 | B175: 34 | C175: BOLTON | D175: 34 | E175: BOLTON | F175: 0 | G175: 0 | H175: =U175 -> 13623.25469 | I175: =IF(H179>0, H175/H179, 0) -> 0.001402872373 | K175: =ROUND(J179*I175,0) -> 11239 | L175: 0 | M175: =K175-L175 -> 11239 | N175: 100 | O175: 0 | P175: 0 | Q175: 34 | R175: 34 | S175: 166 | T175: 1 | U175: 13623.25469 | W175: 34 | X175: 34 | Y175: 166 | Z175: 1 | AA175: 13623.25469
A176: 167 | B176: 34 | C176: BOLTON | D176: 725 | E176: NASHOBA | F176: 9352329 | G176: 0.9808504908 | H176: 9527973 | I176: =IF(H179>0, H176/H179, 0) -> 0.9811554137 | K176: =ROUND(J179*I176,0) -> 7860578 | L176: 8076577 | M176: =K176-L176 -> -215999 | N176: -2.674387924 | O176: 1011 | P176: 0 | Q176: 34 | R176: 725 | S176: 167 | T176: 1010 | U176: 9527973 | W176: 34 | X176: 725 | Y176: 167 | Z176: 1010 | AA176: 9527973
A177: 168 | B177: 34 | C177: BOLTON | D177: 830 | E177: MINUTEMAN | F177: 182589 | G177: 0.0191495092 | H177: 169376 | I177: =IF(H179>0, H177/H179, 0) -> 0.01744171393 | K177: =ROUND(J179*I177,0) -> 139735 | L177: 157682 | M177: =K177-L177 -> -17947 | N177: -11.38176837 | O177: 11 | P177: 0 | Q177: 34 | R177: 830 | S177: 168 | T177: 10 | U177: 169376 | W177: 34 | X177: 830 | Y177: 168 | Z177: 10 | AA177: 169376
A178: 169 | B178: 34 | D178: 998 | F178: 0 | G178: 0 | H178: 0 | I178: =IF(H179>0, H178/H179, 0) -> 0 | K178: =ROUND(J179*I178,0) -> 0 | L178: 0 | M178: =K178-L178 -> 0 | N178: 0 | O178: 0 | P178: 0 | Q178: 34 | R178: 998 | S178: 169 | T178: 0 | U178: 0 | W178: 34 | X178: 998 | Y178: 169 | Z178: 0 | AA178: 0
A179: 170 | B179: 34 | C179: BOLTON | D179: 999 | E179: TOTAL | F179: 9534918 | G179: 1 | H179: =SUM(H175:H178) -> 9710972.255 | I179: =SUM(I175:I178) -> 1 | J179: =VLOOKUP(B179,town351,22) -> 8011552 | K179: =SUM(K175:K178) -> 8011552 | L179: 8234259 | M179: =SUM(M175:M178) -> -222707 | N179: -2.70463924 | O179: 1022 | P179: 0 | Q179: 34 | R179: 999 | S179: 170 | T179: 1021 | U179: 9710972.255 | W179: 34 | X179: 999 | Y179: 170 | Z179: 1021 | AA179: 9710972.255
A180: 171 | B180: 35 | C180: BOSTON | D180: 35 | E180: BOSTON | F180: 780383012.9 | G180: 1 | H180: =U180 -> 805600562.8 | I180: =IF(H184>0, H180/H184, 0) -> 1 | K180: =ROUND(J184*I180,0) -> 657393838 | L180: 627463814 | M180: =K180-L180 -> 29930024 | N180: 4.770000012 | O180: 63058 | P180: 0 | Q180: 35 | R180: 35 | S180: 171 | T180: 64196 | U180: 805600562.8 | W180: 35 | X180: 35 | Y180: 171 | Z180: 64196 | AA180: 805600562.8
A181: 172 | B181: 35 | D181: 998 | E181: ESSEX COUNTY | F181: 0 | G181: 0 | H181: 0 | I181: =IF(H184>0, H181/H184, 0) -> 0 | K181: =ROUND(J184*I181,0) -> 0 | L181: 0 | M181: =K181-L181 -> 0 | N181: 0 | O181: 0 | P181: 0 | Q181: 35 | R181: 998 | S181: 172 | T181: 0 | U181: 0 | W181: 35 | X181: 998 | Y181: 172 | Z181: 0 | AA181: 0
A182: 173 | B182: 35 | D182: 998 | F182: 0 | G182: 0 | H182: 0 | I182: =IF(H184>0, H182/H184, 0) -> 0 | K182: =ROUND(J184*I182,0) -> 0 | L182: 0 | M182: =K182-L182 -> 0 | N182: 0 | O182: 0 | P182: 0 | Q182: 35 | R182: 998 | S182: 173 | T182: 0 | U182: 0 | W182: 35 | X182: 998 | Y182: 173 | Z182: 0 | AA182: 0
A183: 174 | B183: 35 | D183: 998 | F183: 0 | G183: 0 | H183: 0 | I183: =IF(H184>0, H183/H184, 0) -> 0 | K183: =ROUND(J184*I183,0) -> 0 | L183: 0 | M183: =K183-L183 -> 0 | N183: 0 | O183: 0 | P183: 0 | Q183: 35 | R183: 998 | S183: 174 | T183: 0 | U183: 0 | W183: 35 | X183: 998 | Y183: 174 | Z183: 0 | AA183: 0
A184: 175 | B184: 35 | C184: BOSTON | D184: 999 | E184: TOTAL | F184: 780383012.9 | G184: 1 | H184: =SUM(H180:H183) -> 805600562.8 | I184: =SUM(I180:I183) -> 1 | J184: =VLOOKUP(B184,town351,22) -> 657393838 | K184: =SUM(K180:K183) -> 657393838 | L184: 627463814 | M184: =SUM(M180:M183) -> 29930024 | N184: 4.770000012 | O184: 63058 | P184: 0 | Q184: 35 | R184: 999 | S184: 175 | T184: 64196 | U184: 805600562.8 | W184: 35 | X184: 999 | Y184: 175 | Z184: 64196 | AA184: 805600562.8
A185: 176 | B185: 36 | C185: BOURNE | D185: 36 | E185: BOURNE | F185: 19753593.37 | G185: 0.8746184666 | H185: =U185 -> 19473369.86 | I185: =IF(H189>0, H185/H189, 0) -> 0.8577064195 | K185: =ROUND(J189*I185,0) -> 16065530 | L185: 16968423 | M185: =K185-L185 -> -902893 | N185: -5.32101893 | O185: 2084 | P185: 0 | Q185: 36 | R185: 36 | S185: 176 | T185: 2001 | U185: 19473369.86 | W185: 36 | X185: 36 | Y185: 176 | Z185: 2001 | AA185: 19473369.86
A186: 177 | B186: 36 | C186: BOURNE | D186: 879 | E186: UPPER CAPE COD | F186: 2831790 | G186: 0.1253815334 | H186: 3230634 | I186: =IF(H189>0, H186/H189, 0) -> 0.1422935805 | K186: =ROUND(J189*I186,0) -> 2665273 | L186: 2432520 | M186: =K186-L186 -> 232753 | N186: 9.568389982 | O186: 193 | P186: 0 | Q186: 36 | R186: 879 | S186: 177 | T186: 211 | U186: 3230634 | W186: 36 | X186: 879 | Y186: 177 | Z186: 211 | AA186: 3230634
A187: 178 | B187: 36 | D187: 998 | F187: 0 | G187: 0 | H187: 0 | I187: =IF(H189>0, H187/H189, 0) -> 0 | K187: =ROUND(J189*I187,0) -> 0 | L187: 0 | M187: =K187-L187 -> 0 | N187: 0 | O187: 0 | P187: 0 | Q187: 36 | R187: 998 | S187: 178 | T187: 0 | U187: 0 | W187: 36 | X187: 998 | Y187: 178 | Z187: 0 | AA187: 0
A188: 179 | B188: 36 | D188: 998 | F188: 0 | G188: 0 | H188: 0 | I188: =IF(H189>0, H188/H189, 0) -> 0 | K188: =ROUND(J189*I188,0) -> 0 | L188: 0 | M188: =K188-L188 -> 0 | N188: 0 | O188: 0 | P188: 0 | Q188: 36 | R188: 998 | S188: 179 | T188: 0 | U188: 0 | W188: 36 | X188: 998 | Y188: 179 | Z188: 0 | AA188: 0
A189: 180 | B189: 36 | C189: BOURNE | D189: 999 | E189: TOTAL | F189: 22585383.37 | G189: 1 | H189: =SUM(H185:H188) -> 22704003.86 | I189: =SUM(I185:I188) -> 1 | J189: =VLOOKUP(B189,town351,22) -> 18730803 | K189: =SUM(K185:K188) -> 18730803 | L189: 19400943 | M189: =SUM(M185:M188) -> -670140 | N189: -3.454161996 | O189: 2277 | P189: 0 | Q189: 36 | R189: 999 | S189: 180 | T189: 2212 | U189: 22704003.86 | W189: 36 | X189: 999 | Y189: 180 | Z189: 2212 | AA189: 22704003.86
A190: 181 | B190: 37 | C190: BOXBOROUGH | D190: 37 | E190: BOXBOROUGH | F190: 0 | G190: 0 | H190: =U190 -> 0 | I190: =IF(H194>0, H190/H194, 0) -> 0 | K190: =ROUND(J194*I190,0) -> 0 | L190: 0 | M190: =K190-L190 -> 0 | N190: 0 | O190: 0 | P190: 0 | Q190: 37 | R190: 37 | S190: 181 | T190: 0 | U190: 0 | W190: 37 | X190: 37 | Y190: 181 | Z190: 0 | AA190: 0
A191: 182 | B191: 37 | C191: BOXBOROUGH | D191: 600 | E191: ACTON BOXBOROUGH | F191: 8107876 | G191: 0.989867378 | H191: 7870594 | I191: =IF(H194>0, H191/H194, 0) -> 0.9893544943 | K191: =ROUND(J194*I191,0) -> 6493240 | L191: 7297088 | M191: =K191-L191 -> -803848 | N191: -11.01601077 | O191: 874 | P191: 0 | Q191: 37 | R191: 600 | S191: 182 | T191: 830 | U191: 7870594 | W191: 37 | X191: 600 | Y191: 182 | Z191: 830 | AA191: 7870594
A192: 183 | B192: 37 | C192: BOXBOROUGH | D192: 830 | E192: MINUTEMAN | F192: 82995 | G192: 0.01013262204 | H192: 84688 | I192: =IF(H194>0, H192/H194, 0) -> 0.01064550572 | K192: =ROUND(J194*I192,0) -> 69868 | L192: 74696 | M192: =K192-L192 -> -4828 | N192: -6.463532184 | O192: 5 | P192: 0 | Q192: 37 | R192: 830 | S192: 183 | T192: 5 | U192: 84688 | W192: 37 | X192: 830 | Y192: 183 | Z192: 5 | AA192: 84688
A193: 184 | B193: 37 | D193: 998 | F193: 0 | G193: 0 | H193: 0 | I193: =IF(H194>0, H193/H194, 0) -> 0 | K193: =ROUND(J194*I193,0) -> 0 | L193: 0 | M193: =K193-L193 -> 0 | N193: 0 | O193: 0 | P193: 0 | Q193: 37 | R193: 998 | S193: 184 | T193: 0 | U193: 0 | W193: 37 | X193: 998 | Y193: 184 | Z193: 0 | AA193: 0
A194: 185 | B194: 37 | C194: BOXBOROUGH | D194: 999 | E194: TOTAL | F194: 8190871 | G194: 1 | H194: =SUM(H190:H193) -> 7955282 | I194: =SUM(I190:I193) -> 1 | J194: =VLOOKUP(B194,town351,22) -> 6563108 | K194: =SUM(K190:K193) -> 6563108 | L194: 7371784 | M194: =SUM(M190:M193) -> -808676 | N194: -10.96988192 | O194: 879 | P194: 0 | Q194: 37 | R194: 999 | S194: 185 | T194: 835 | U194: 7955282 | W194: 37 | X194: 999 | Y194: 185 | Z194: 835 | AA194: 7955282
A195: 186 | B195: 38 | C195: BOXFORD | D195: 38 | E195: BOXFORD | F195: 6315613.131 | G195: 0.4524466406 | H195: =U195 -> 6380974.844 | I195: =IF(H199>0, H195/H199, 0) -> 0.4547940632 | K195: =ROUND(J199*I195,0) -> 5264304 | L195: 5486948 | M195: =K195-L195 -> -222644 | N195: -4.057702023 | O195: 730 | P195: 0 | Q195: 38 | R195: 38 | S195: 186 | T195: 729 | U195: 6380974.844 | W195: 38 | X195: 38 | Y195: 186 | Z195: 729 | AA195: 6380974.844
A196: 187 | B196: 38 | C196: BOXFORD | D196: 705 | E196: MASCONOMET | F196: 7565367 | G196: 0.5419782392 | H196: 7401004 | I196: =IF(H199>0, H196/H199, 0) -> 0.5274950558 | K196: =ROUND(J199*I196,0) -> 6105828 | L196: 6572723 | M196: =K196-L196 -> -466895 | N196: -7.103524673 | O196: 795 | P196: 0 | Q196: 38 | R196: 705 | S196: 187 | T196: 768 | U196: 7401004 | W196: 38 | X196: 705 | Y196: 187 | Z196: 768 | AA196: 7401004
A197: 188 | B197: 38 | C197: BOXFORD | D197: 817 | E197: ESSEX NORTH SHORE | F197: 77822 | G197: 0.005575120219 | H197: 248492 | I197: =IF(H199>0, H197/H199, 0) -> 0.01771088104 | K197: =ROUND(J199*I197,0) -> 205006 | L197: 67611 | M197: =K197-L197 -> 137395 | N197: 203.2139741 | O197: 5 | P197: 0 | Q197: 38 | R197: 817 | S197: 188 | T197: 16 | U197: 248492 | W197: 38 | X197: 817 | Y197: 188 | Z197: 16 | AA197: 248492
A198: 189 | B198: 38 | D198: 998 | E198: ESSEX COUNTY | F198: 0 | G198: 0 | H198: 0 | I198: =IF(H199>0, H198/H199, 0) -> 0 | K198: =ROUND(J199*I198,0) -> 0 | L198: 0 | M198: =K198-L198 -> 0 | N198: 0 | O198: 0 | P198: 0 | Q198: 38 | R198: 998 | S198: 189 | T198: 0 | U198: 0 | W198: 38 | X198: 998 | Y198: 189 | Z198: 0 | AA198: 0
A199: 190 | B199: 38 | C199: BOXFORD | D199: 999 | E199: TOTAL | F199: 13958802.13 | G199: 1 | H199: =SUM(H195:H198) -> 14030470.84 | I199: =SUM(I195:I198) -> 1 | J199: =VLOOKUP(B199,town351,22) -> 11575138 | K199: =SUM(K195:K198) -> 11575138 | L199: 12127282 | M199: =SUM(M195:M198) -> -552144 | N199: -4.552908063 | O199: 1530 | P199: 0 | Q199: 38 | R199: 999 | S199: 190 | T199: 1513 | U199: 14030470.84 | W199: 38 | X199: 999 | Y199: 190 | Z199: 1513 | AA199: 14030470.84
A200: 191 | B200: 39 | C200: BOYLSTON | D200: 39 | E200: BOYLSTON | F200: 2701535.6 | G200: 0.482467765 | H200: =U200 -> 2619960.3 | I200: =IF(H204>0, H200/H204, 0) -> 0.4601841822 | K200: =ROUND(J204*I200,0) -> 2161467 | L200: 2336823 | M200: =K200-L200 -> -175356 | N200: -7.504034324 | O200: 299 | P200: 0 | Q200: 39 | R200: 39 | S200: 191 | T200: 283 | U200: 2619960.3 | W200: 39 | X200: 39 | Y200: 191 | Z200: 283 | AA200: 2619960.3
... 1567 more rows

Sheet regionals (hidden)
G2: ---------------------------------this file -------------------------------
I3: 50% effort reduction
A5: 1 | B5: 2 | C5: 3 | D5: 4 | E5: 5 | F5: 6 | G5: 7 | H5: 8 | I5: 9 | J5: 10 | K5: 11 | L5: 12
G7: FY15 | H7: FY16 | I7: FY15 | J7: FY16
B8: Record | G8: Foundation | H8: Foundation | I8: Minimum | J8: Minimum
A9: code | B9: Number | C9: fraclea | D9: District | E9: memlea | F9: Town | G9: Enrollment | H9: Enrollment | I9: Contribution | J9: Contribution | M9: regcount
A10: =C10*100+B10 -> 40601 | B10: 1 | C10: 406 | D10: NORTHAMPTON SMITH | E10: 210 | F10: NORTHAMPTON | G10: 91 | H10: 97 | I10: 1447978 | J10: 1655651 | K10: =C10*1000+E10 -> 406210 | M10: 406 | N10: 1
A11: 60001 | B11: =IF(C11=C10, B10+1, 1) -> 1 | C11: 600 | D11: ACTON BOXBOROUGH | E11: 2 | F11: ACTON | G11: 4775 | H11: 4714 | I11: 32993280 | J11: 34296868 | K11: 600002 | M11: 600 | N11: 2
A12: 60002 | B12: 2 | C12: 600 | D12: ACTON BOXBOROUGH | E12: 37 | F12: BOXBOROUGH | G12: 874 | H12: 830 | I12: 7297088 | J12: 7019084 | K12: 600037 | M12: 603 | N12: 2
A13: 60301 | B13: 1 | C13: 603 | D13: ADAMS CHESHIRE | E13: 4 | F13: ADAMS | G13: 1043 | H13: 1021 | I13: 3232134 | J13: 3326750 | K13: 603004 | M13: 605 | N13: 4
A14: 60302 | B14: 2 | C14: 603 | D14: ADAMS CHESHIRE | E14: 58 | F14: CHESHIRE | G14: 381 | H14: 377 | I14: 1756516 | J14: 1833866 | K14: 603058 | M14: 610 | N14: 2
A15: 60501 | B15: 1 | C15: 605 | D15: AMHERST PELHAM | E15: 8 | F15: AMHERST | G15: 1203 | H15: 1223 | I15: 9008539 | J15: 9342698 | K15: 605008 | M15: 615 | N15: 2
A16: 60502 | B16: 2 | C16: 605 | D16: AMHERST PELHAM | E16: 154 | F16: LEVERETT | G16: 111 | H16: 113 | I16: 1012997 | J16: 1003259 | K16: 605154 | M16: 616 | N16: 2
A17: 60503 | B17: 3 | C17: 605 | D17: AMHERST PELHAM | E17: 230 | F17: PELHAM | G17: 77 | H17: 60 | I17: 702709 | J17: 558118 | K17: 605230 | M17: 618 | N17: 3
A18: 60504 | B18: 4 | C18: 605 | D18: AMHERST PELHAM | E18: 272 | F18: SHUTESBURY | G18: 138 | H18: 136 | I18: 760153 | J18: 760651 | K18: 605272 | M18: 620 | N18: 2
A19: 61001 | B19: 1 | C19: 610 | D19: ASHBURNHAM WESTMINSTER | E19: 11 | F19: ASHBURNHAM | G19: 1031 | H19: 1061 | I19: 4668297 | J19: 4645495 | K19: 610011 | M19: 622 | N19: 2
A20: 61002 | B20: 2 | C20: 610 | D20: ASHBURNHAM WESTMINSTER | E20: 328 | F20: WESTMINSTER | G20: 1193 | H20: 1192 | I20: 6392497 | J20: 6451976 | K20: 610328 | M20: 625 | N20: 2
A21: 61501 | B21: 1 | C21: 615 | D21: ATHOL ROYALSTON | E21: 15 | F21: ATHOL | G21: 1611 | H21: 1610 | I21: 2163703 | J21: 2314968 | K21: 615015 | M21: 632 | N21: 2
A22: 61502 | B22: 2 | C22: 615 | D22: ATHOL ROYALSTON | E22: 255 | F22: ROYALSTON | G22: 108 | H22: 107 | I22: 337236 | J22: 372514 | K22: 615255 | M22: 635 | N22: 7
A23: 61601 | B23: 1 | C23: 616 | D23: AYER SHIRLEY | E23: 19 | F23: AYER | G23: 1015 | H23: 1015 | I23: 6644403 | J23: 6752864 | K23: 616019 | M23: 640 | N23: 2
A24: 61602 | B24: 2 | C24: 616 | D24: AYER SHIRLEY | E24: 270 | F24: SHIRLEY | G24: 756 | H24: 724 | I24: 4092358 | J24: 4088557 | K24: 616270 | M24: 645 | N24: 2
A25: 61801 | B25: 1 | C25: 618 | D25: BERKSHIRE HILLS | E25: 113 | F25: GREAT BARRINGTON | G25: 751 | H25: 772 | I25: 6511186 | J25: 6597578 | K25: 618113 | M25: 650 | N25: 2
A26: 61802 | B26: 2 | C26: 618 | D26: BERKSHIRE HILLS | E26: 283 | F26: STOCKBRIDGE | G26: 151 | H26: 152 | I26: 1359333 | J26: 1332400 | K26: 618283 | M26: 655 | N26: 2
A27: 61803 | B27: 3 | C27: 618 | D27: BERKSHIRE HILLS | E27: 333 | F27: WEST STOCKBRIDGE | G27: 165 | H27: 162 | I27: 1454156 | J27: 1419894 | K27: 618333 | M27: 658 | N27: 2
A28: 62001 | B28: 1 | C28: 620 | D28: BERLIN BOYLSTON | E28: 28 | F28: BERLIN | G28: 206 | H28: 209 | I28: 1615515 | J28: 1679212 | K28: 620028 | M28: 660 | N28: 4
A29: 62002 | B29: 2 | C29: 620 | D29: BERLIN BOYLSTON | E29: 39 | F29: BOYLSTON | G29: 311 | H29: 324 | I29: 2506657 | J29: 2655047 | K29: 620039 | M29: 662 | N29: 2
A30: 62201 | B30: 1 | C30: 622 | D30: BLACKSTONE MILLVILLE | E30: 32 | F30: BLACKSTONE | G30: 1343 | H30: 1285 | I30: 6313167 | J30: 6297964 | K30: 622032 | M30: 665 | N30: 2
A31: 62202 | B31: 2 | C31: 622 | D31: BLACKSTONE MILLVILLE | E31: 188 | F31: MILLVILLE | G31: 536 | H31: 515 | I31: 1870811 | J31: 1936827 | K31: 622188 | M31: 670 | N31: 4
A32: 62501 | B32: 1 | C32: 625 | D32: BRIDGEWATER RAYNHAM | E32: 42 | F32: BRIDGEWATER | G32: 3262 | H32: 3300 | I32: 18991202 | J32: 19421229 | K32: 625042 | M32: 672 | N32: 6
A33: 62502 | B33: 2 | C33: 625 | D33: BRIDGEWATER RAYNHAM | E33: 245 | F33: RAYNHAM | G33: 2055 | H33: 2107 | I33: 12230194 | J33: 12425350 | K33: 625245 | M33: 673 | N33: 2
A34: 63201 | B34: 1 | C34: 632 | D34: CHESTERFIELD GOSHEN | E34: 60 | F34: CHESTERFIELD | G34: 74 | H34: 72 | I34: 384011 | J34: 387114 | K34: 632060 | M34: 674 | N34: 2
A35: 63202 | B35: 2 | C35: 632 | D35: CHESTERFIELD GOSHEN | E35: 108 | F35: GOSHEN | G35: 72 | H35: 64 | I35: 399110 | J35: 408797 | K35: 632108 | M35: 675 | N35: 2
A36: 63501 | B36: 1 | C36: 635 | D36: CENTRAL BERKSHIRE | E36: 22 | F36: BECKET | G36: 168 | H36: 180 | I36: 1484897 | J36: 1572048 | K36: 635022 | M36: 680 | N36: 2
A37: 63502 | B37: 2 | C37: 635 | D37: CENTRAL BERKSHIRE | E37: 69 | F37: CUMMINGTON | G37: 76 | H37: 76 | I37: 654100 | J37: 668749 | K37: 635069 | M37: 683 | N37: 5
A38: 63503 | B38: 3 | C38: 635 | D38: CENTRAL BERKSHIRE | E38: 70 | F38: DALTON | G38: 999 | H38: 961 | I38: 5057271 | J38: 5068511 | K38: 635070 | M38: 685 | N38: 2
A39: 63504 | B39: 4 | C39: 635 | D39: CENTRAL BERKSHIRE | E39: 132 | F39: HINSDALE | G39: 226 | H39: 232 | I39: 1661474 | J39: 1770725 | K39: 635132 | M39: 690 | N39: 3
A40: 63505 | B40: 5 | C40: 635 | D40: CENTRAL BERKSHIRE | E40: 233 | F40: PERU | G40: 107 | H40: 102 | I40: 507428 | J40: 522609 | K40: 635233 | M40: 695 | N40: 2
A41: 63506 | B41: 6 | C41: 635 | D41: CENTRAL BERKSHIRE | E41: 313 | F41: WASHINGTON | G41: 56 | H41: 60 | I41: 435744 | J41: 460235 | K41: 635313 | M41: 698 | N41: 2
A42: 63507 | B42: 7 | C42: 635 | D42: CENTRAL BERKSHIRE | E42: 345 | F42: WINDSOR | G42: 100 | H42: 90 | I42: 720652 | J42: 752434 | K42: 635345 | M42: 700 | N42: 6
A43: 64001 | B43: 1 | C43: 640 | D43: CONCORD CARLISLE | E43: 51 | F43: CARLISLE | G43: 339 | H43: 337 | I43: 3132609 | J43: 3077762 | K43: 640051 | M43: 705 | N43: 3
A44: 64002 | B44: 2 | C44: 640 | D44: CONCORD CARLISLE | E44: 67 | F44: CONCORD | G44: 944 | H44: 964 | I44: 8337437 | J44: 8641812 | K44: 640067 | M44: 710 | N44: 2
A45: 64501 | B45: 1 | C45: 645 | D45: DENNIS YARMOUTH | E45: 75 | F45: DENNIS | G45: 1214 | H45: 1218 | I45: 10922472 | J45: 10948106 | K45: 645075 | M45: 712 | N45: 2
A46: 64502 | B46: 2 | C46: 645 | D46: DENNIS YARMOUTH | E46: 351 | F46: YARMOUTH | G46: 2255 | H46: 2191 | I46: 19267113 | J46: 19336531 | K46: 645351 | M46: 715 | N46: 2
A47: 65001 | B47: 1 | C47: 650 | D47: DIGHTON REHOBOTH | E47: 76 | F47: DIGHTON | G47: 1180 | H47: 1189 | I47: 6205681 | J47: 6057753 | K47: 650076 | M47: 717 | N47: 8
A48: 65002 | B48: 2 | C48: 650 | D48: DIGHTON REHOBOTH | E48: 247 | F48: REHOBOTH | G48: 1734 | H48: 1740 | I48: 11845469 | J48: 11971224 | K48: 650247 | M48: 720 | N48: 2
A49: 65501 | B49: 1 | C49: 655 | D49: DOVER SHERBORN | E49: 78 | F49: DOVER | G49: 644 | H49: 648 | I49: 5437025 | J49: 5479692 | K49: 655078 | M49: 725 | N49: 3
A50: 65502 | B50: 2 | C50: 655 | D50: DOVER SHERBORN | E50: 269 | F50: SHERBORN | G50: 559 | H50: 560 | I50: 4661958 | J50: 4635046 | K50: 655269 | M50: 728 | N50: 2
A51: 65801 | B51: 1 | C51: 658 | D51: DUDLEY CHARLTON | E51: 54 | F51: CHARLTON | G51: 2112 | H51: 2071 | I51: 9132717 | J51: 9476493 | K51: 658054 | M51: 730 | N51: 2
A52: 65802 | B52: 2 | C52: 658 | D52: DUDLEY CHARLTON | E52: 80 | F52: DUDLEY | G52: 1783 | H52: 1799 | I52: 4873616 | J52: 5152575 | K52: 658080 | M52: 735 | N52: 3
A53: 66001 | B53: 1 | C53: 660 | D53: NAUSET | E53: 41 | F53: BREWSTER | G53: 603 | H53: 590 | I53: 5277185 | J53: 5189424 | K53: 660041 | M53: 740 | N53: 3
A54: 66002 | B54: 2 | C54: 660 | D54: NAUSET | E54: 85 | F54: EASTHAM | G54: 296 | H54: 298 | I54: 2574437 | J54: 2609660 | K54: 660085 | M54: 745 | N54: 3
A55: 66003 | B55: 3 | C55: 660 | D55: NAUSET | E55: 224 | F55: ORLEANS | G55: 256 | H55: 232 | I55: 2236324 | J55: 2053137 | K55: 660224 | M55: 750 | N55: 4
A56: 66004 | B56: 4 | C56: 660 | D56: NAUSET | E56: 318 | F56: WELLFLEET | G56: 146 | H56: 153 | I56: 1277726 | J56: 1336312 | K56: 660318 | M56: 753 | N56: 5
A57: 66201 | B57: 1 | C57: 662 | D57: FARMINGTON RIVER | E57: 225 | F57: OTIS | G57: 148 | H57: 165 | I57: 1282340 | J57: 1338625 | K57: 662225 | M57: 755 | N57: 4
A58: 66202 | B58: 2 | C58: 662 | D58: FARMINGTON RIVER | E58: 260 | F58: SANDISFIELD | G58: 95 | H58: 89 | I58: 800023 | J58: 775786 | K58: 662260 | M58: 760 | N58: 3
A59: 66501 | B59: 1 | C59: 665 | D59: FREETOWN LAKEVILLE | E59: 102 | F59: FREETOWN | G59: 1181 | H59: 1183 | I59: 7709580 | J59: 7805518 | K59: 665102 | M59: 763 | N59: 2
A60: 66502 | B60: 2 | C60: 665 | D60: FREETOWN LAKEVILLE | E60: 146 | F60: LAKEVILLE | G60: 1673 | H60: 1577 | I60: 9808770 | J60: 9842434 | K60: 665146 | M60: 765 | N60: 5
A61: 67001 | B61: 1 | C61: 670 | D61: FRONTIER | E61: 68 | F61: CONWAY | G61: 93 | H61: 91 | I61: 752257 | J61: 768157 | K61: 670068 | M61: 766 | N61: 3
A62: 67002 | B62: 2 | C62: 670 | D62: FRONTIER | E62: 74 | F62: DEERFIELD | G62: 262 | H62: 263 | I62: 2230964 | J62: 2247563 | K62: 670074 | M62: 767 | N62: 2
A63: 67003 | B63: 3 | C63: 670 | D63: FRONTIER | E63: 289 | F63: SUNDERLAND | G63: 150 | H63: 140 | I63: 1207244 | J63: 1156984 | K63: 670289 | M63: 770 | N63: 5
A64: 67004 | B64: 4 | C64: 670 | D64: FRONTIER | E64: 337 | F64: WHATELY | G64: 71 | H64: 72 | I64: 559824 | J64: 612313 | K64: 670337 | M64: 773 | N64: 3
A65: 67201 | B65: 1 | C65: 672 | D65: GATEWAY | E65: 33 | F65: BLANDFORD | G65: 134 | H65: 131 | I65: 1029849 | J65: 1107243 | K65: 672033 | M65: 774 | N65: 3
A66: 67202 | B66: 2 | C66: 672 | D66: GATEWAY | E66: 59 | F66: CHESTER | G66: 166 | H66: 175 | I66: 812004 | J66: 830684 | K66: 672059 | M66: 775 | N66: 5
A67: 67203 | B67: 3 | C67: 672 | D67: GATEWAY | E67: 143 | F67: HUNTINGTON | G67: 260 | H67: 259 | I67: 1377654 | J67: 1484445 | K67: 672143 | M67: 778 | N67: 2
A68: 67204 | B68: 4 | C68: 672 | D68: GATEWAY | E68: 183 | F68: MIDDLEFIELD | G68: 47 | H68: 39 | I68: 350223 | J68: 353575 | K68: 672183 | M68: 780 | N68: 2
A69: 67205 | B69: 5 | C69: 672 | D69: GATEWAY | E69: 194 | F69: MONTGOMERY | G69: 93 | H69: 79 | I69: 759036 | J69: 713926 | K69: 672194 | M69: 801 | N69: 7
A70: =C70*100+B70 -> 67206 | B70: =IF(C70=C69, B69+1, 1) -> 6 | C70: 672 | D70: GATEWAY | E70: 256 | F70: RUSSELL | G70: 282 | H70: 267 | I70: 1051937 | J70: 1076505 | K70: 672256 | M70: 805 | N70: 13
A71: 67301 | B71: 1 | C71: 673 | D71: GROTON DUNSTABLE | E71: 81 | F71: DUNSTABLE | G71: 602 | H71: 574 | I71: 4088752 | J71: 4168398 | K71: 673081 | M71: 806 | N71: 9
A72: 67302 | B72: 2 | C72: 673 | D72: GROTON DUNSTABLE | E72: 115 | F72: GROTON | G72: 1950 | H72: 1922 | I72: 14739440 | J72: 15120202 | K72: 673115 | M72: 810 | N72: 7
A73: =C73*100+B73 -> 67401 | B73: 1 | C73: 674 | D73: GILL MONTAGUE | E73: 106 | F73: GILL | G73: 151 | H73: 159 | I73: 966832 | J73: 1021751 | K73: =C73*1000+E73 -> 674106 | M73: 815 | N73: 12
A74: 67402 | B74: =IF(C74=C73, B73+1, 1) -> 2 | C74: 674 | D74: GILL MONTAGUE | E74: 192 | F74: MONTAGUE | G74: 947 | H74: 930 | I74: 4858813 | J74: 5006608 | K74: 674192 | M74: 817 | N74: 17
A75: 67501 | B75: 1 | C75: 675 | D75: HAMILTON WENHAM | E75: 119 | F75: HAMILTON | G75: 1164 | H75: 1186 | I75: 9515114 | J75: 9494240 | K75: 675119 | M75: 818 | N75: 19
A76: 67502 | B76: 2 | C76: 675 | D76: HAMILTON WENHAM | E76: 320 | F76: WENHAM | G76: 553 | H76: 599 | I76: 4450164 | J76: 4626218 | K76: 675320 | M76: 821 | N76: 4
A77: 68001 | B77: 1 | C77: 680 | D77: HAMPDEN WILBRAHAM | E77: 120 | F77: HAMPDEN | G77: 782 | H77: 746 | I77: 5113306 | J77: 5219703 | K77: 680120 | M77: 823 | N77: 4
A78: 68002 | B78: 2 | C78: 680 | D78: HAMPDEN WILBRAHAM | E78: 339 | F78: WILBRAHAM | G78: 2470 | H78: 2396 | I78: 15287635 | J78: 15697319 | K78: 680339 | M78: 825 | N78: 3
A79: 68301 | B79: 1 | C79: 683 | D79: HAMPSHIRE | E79: 60 | F79: CHESTERFIELD | G79: 73 | H79: 72 | I79: 413398 | J79: 401566 | K79: 683060 | M79: 828 | N79: 4
A80: 68302 | B80: 2 | C80: 683 | D80: HAMPSHIRE | E80: 108 | F80: GOSHEN | G80: 37 | H80: 42 | I80: 226480 | J80: 278288 | K80: 683108 | M80: 829 | N80: 5
A81: 68303 | B81: 3 | C81: 683 | D81: HAMPSHIRE | E81: 275 | F81: SOUTHAMPTON | G81: 442 | H81: 431 | I81: 2606441 | J81: 2693999 | K81: 683275 | M81: 830 | N81: 16
A82: 68304 | B82: 4 | C82: 683 | D82: HAMPSHIRE | E82: 327 | F82: WESTHAMPTON | G82: 101 | H82: 93 | I82: 701628 | J82: 682061 | K82: 683327 | M82: 832 | N82: 18
A83: 68305 | B83: 5 | C83: 683 | D83: HAMPSHIRE | E83: 340 | F83: WILLIAMSBURG | G83: 97 | H83: 96 | I83: 741397 | J83: 766149 | K83: 683340 | M83: 851 | N83: 9
A84: 68501 | B84: 1 | C84: 685 | D84: HAWLEMONT | E84: 53 | F84: CHARLEMONT | G84: 78 | H84: 69 | I84: 422753 | J84: 403511 | K84: 685053 | M84: 852 | N84: 8
A85: 68502 | B85: 2 | C85: 685 | D85: HAWLEMONT | E85: 129 | F85: HAWLEY | G85: 17 | H85: 24 | I85: 108588 | J85: 128772 | K85: 685129 | M85: 853 | N85: 12
A86: 69001 | B86: 1 | C86: 690 | D86: KING PHILIP | E86: 208 | F86: NORFOLK | G86: 737 | H86: 746 | I86: 5920286 | J86: 6131197 | K86: 690208 | M86: 855 | N86: 5
A87: 69002 | B87: 2 | C87: 690 | D87: KING PHILIP | E87: 238 | F87: PLAINVILLE | G87: 559 | H87: 564 | I87: 3403299 | J87: 3658965 | K87: 690238 | M87: 860 | N87: 9
A88: 69003 | B88: 3 | C88: 690 | D88: KING PHILIP | E88: 350 | F88: WRENTHAM | G88: 899 | H88: 864 | I88: 6117770 | J88: 6549478 | K88: 690350 | M88: 871 | N88: 5
A89: 69501 | B89: 1 | C89: 695 | D89: LINCOLN SUDBURY | E89: 157 | F89: LINCOLN | G89: 247 | H89: 264 | I89: 2246891 | J89: 2380952 | K89: 695157 | M89: 872 | N89: 9
A90: 69502 | B90: 2 | C90: 695 | D90: LINCOLN SUDBURY | E90: 288 | F90: SUDBURY | G90: 1454 | H90: 1412 | I90: 13008622 | J90: 12814987 | K90: 695288 | M90: 873 | N90: 8
A91: 69801 | B91: 1 | C91: 698 | D91: MANCHESTER ESSEX | E91: 92 | F91: ESSEX | G91: 579 | H91: 564 | I91: 4493006 | J91: 4490279 | K91: 698092 | M91: 876 | N91: 10
A92: 69802 | B92: 2 | C92: 698 | D92: MANCHESTER ESSEX | E92: 166 | F92: MANCHESTER | G92: 902 | H92: 894 | I92: 6728641 | J92: 6958936 | K92: 698166 | M92: 878 | N92: 11
A93: 70001 | B93: 1 | C93: 700 | D93: MARTHAS VINEYARD | E93: 62 | F93: CHILMARK | G93: 40 | H93: 31 | I93: 368060 | J93: 304333 | K93: 700062 | M93: 879 | N93: 5
A94: 70002 | B94: 2 | C94: 700 | D94: MARTHAS VINEYARD | E94: 89 | F94: EDGARTOWN | G94: 193 | H94: 187 | I94: 1841502 | J94: 1805838 | K94: 700089 | M94: 885 | N94: 11
A95: 70003 | B95: 3 | C95: 700 | D95: MARTHAS VINEYARD | E95: 104 | F95: AQUINNAH | G95: 10 | H95: 15 | I95: 100162 | J95: 125436 | K95: 700104 | M95: 910 | N95: 20
A96: 70004 | B96: 4 | C96: 700 | D96: MARTHAS VINEYARD | E96: 221 | F96: OAK BLUFFS | G96: 209 | H96: 218 | I96: 1946827 | J96: 1972487 | K96: 700221 | M96: 915 | N96: 28
A97: 70005 | B97: 5 | C97: 700 | D97: MARTHAS VINEYARD | E97: 296 | F97: TISBURY | G97: 161 | H97: 164 | I97: 1599990 | J97: 1573229 | K97: 700296
A98: 70006 | B98: 6 | C98: 700 | D98: MARTHAS VINEYARD | E98: 334 | F98: WEST TISBURY | G98: 121 | H98: 115 | I98: 1211964 | J98: 1114541 | K98: 700334
A99: 70501 | B99: 1 | C99: 705 | D99: MASCONOMET | E99: 38 | F99: BOXFORD | G99: 795 | H99: 768 | I99: 6572723 | J99: 6389632 | K99: 705038
A100: 70502 | B100: 2 | C100: 705 | D100: MASCONOMET | E100: 184 | F100: MIDDLETON | G100: 739 | H100: 707 | I100: 5987571 | J100: 5879846 | K100: 705184
A101: 70503 | B101: 3 | C101: 705 | D101: MASCONOMET | E101: 298 | F101: TOPSFIELD | G101: 558 | H101: 538 | I101: 4691164 | J101: 4566832 | K101: 705298
A102: 71001 | B102: 1 | C102: 710 | D102: MENDON UPTON | E102: 179 | F102: MENDON | G102: 1047 | H102: 1043 | I102: 5635362 | J102: 5971725 | K102: 710179
A103: 71002 | B103: 2 | C103: 710 | D103: MENDON UPTON | E103: 303 | F103: UPTON | G103: 1328 | H103: 1252 | I103: 6663739 | J103: 6935338 | K103: 710303
A104: 71201 | B104: 1 | C104: 712 | D104: MONOMOY | E104: 55 | F104: CHATHAM | G104: 480 | H104: 499 | I104: 4089455 | J104: 4175621 | K104: 712055
A105: 71202 | B105: 2 | C105: 712 | D105: MONOMOY | E105: 126 | F105: HARWICH | G105: 1383 | H105: 1375 | I105: 11428918 | J105: 11544399 | K105: 712126
A106: 71501 | B106: 1 | C106: 715 | D106: MOUNT GREYLOCK | E106: 148 | F106: LANESBOROUGH | G106: 204 | H106: 186 | I106: 1335692 | J106: 1267973 | K106: 715148
A107: 71502 | B107: 2 | C107: 715 | D107: MOUNT GREYLOCK | E107: 341 | F107: WILLIAMSTOWN | G107: 312 | H107: 301 | I107: 2662747 | J107: 2556490 | K107: 715341
A108: 71701 | B108: 1 | C108: 717 | D108: MOHAWK TRAIL | E108: 13 | F108: ASHFIELD | G108: 168 | H108: 165 | I108: 1350493 | J108: 1353498 | K108: 717013
A109: 71702 | B109: 2 | C109: 717 | D109: MOHAWK TRAIL | E109: 47 | F109: BUCKLAND | G109: 187 | H109: 172 | I109: 1252868 | J109: 1265503 | K109: 717047
A110: 71703 | B110: 3 | C110: 717 | D110: MOHAWK TRAIL | E110: 53 | F110: CHARLEMONT | G110: 83 | H110: 84 | I110: 450847 | J110: 477100 | K110: 717053
A111: 71704 | B111: 4 | C111: 717 | D111: MOHAWK TRAIL | E111: 66 | F111: COLRAIN | G111: 174 | H111: 169 | I111: 1036377 | J111: 1047977 | K111: 717066
A112: 71705 | B112: 5 | C112: 717 | D112: MOHAWK TRAIL | E112: 129 | F112: HAWLEY | G112: 15 | H112: 15 | I112: 92513 | J112: 75631 | K112: 717129
A113: 71706 | B113: 6 | C113: 717 | D113: MOHAWK TRAIL | E113: 130 | F113: HEATH | G113: 98 | H113: 94 | I113: 491735 | J113: 452390 | K113: 717130
A114: 71707 | B114: 7 | C114: 717 | D114: MOHAWK TRAIL | E114: 237 | F114: PLAINFIELD | G114: 52 | H114: 57 | I114: 422815 | J114: 470598 | K114: 717237
A115: 71708 | B115: 8 | C115: 717 | D115: MOHAWK TRAIL | E115: 268 | F115: SHELBURNE | G115: 167 | H115: 182 | I115: 1267412 | J115: 1380529 | K115: 717268
A116: 72001 | B116: 1 | C116: 720 | D116: NARRAGANSETT | E116: 235 | F116: PHILLIPSTON | G116: 231 | H116: 223 | I116: 1215534 | J116: 1222365 | K116: 720235
A117: 72002 | B117: 2 | C117: 720 | D117: NARRAGANSETT | E117: 294 | F117: TEMPLETON | G117: 1078 | H117: 1088 | I117: 3751960 | J117: 3947028 | K117: 720294
A118: 72501 | B118: 1 | C118: 725 | D118: NASHOBA | E118: 34 | F118: BOLTON | G118: 1011 | H118: 1010 | I118: 8076577 | J118: 8159692 | K118: 725034
A119: 72502 | B119: 2 | C119: 725 | D119: NASHOBA | E119: 147 | F119: LANCASTER | G119: 966 | H119: 978 | I119: 6520648 | J119: 6629995 | K119: 725147
A120: 72503 | B120: 3 | C120: 725 | D120: NASHOBA | E120: 286 | F120: STOW | G120: 1248 | H120: 1289 | I120: 9917354 | J120: 10213304 | K120: 725286
A121: 72801 | B121: 1 | C121: 728 | D121: NEW SALEM WENDELL | E121: 206 | F121: NEW SALEM | G121: 73 | H121: 66 | I121: 379035 | J121: 358038 | K121: 728206
A122: 72802 | B122: 2 | C122: 728 | D122: NEW SALEM WENDELL | E122: 319 | F122: WENDELL | G122: 46 | H122: 55 | I122: 328485 | J122: 353675 | K122: 728319
A123: 73001 | B123: 1 | C123: 730 | D123: NORTHBORO SOUTHBORO | E123: 213 | F123: NORTHBOROUGH | G123: 881 | H123: 862 | I123: 7317809 | J123: 7363380 | K123: 730213
A124: 73002 | B124: 2 | C124: 730 | D124: NORTHBORO SOUTHBORO | E124: 276 | F124: SOUTHBOROUGH | G124: 627 | H124: 630 | I124: 5449483 | J124: 5569488 | K124: 730276
A125: 73501 | B125: 1 | C125: 735 | D125: NORTH MIDDLESEX | E125: 12 | F125: ASHBY | G125: 439 | H125: 420 | I125: 2139882 | J125: 2149785 | K125: 735012
A126: 73502 | B126: 2 | C126: 735 | D126: NORTH MIDDLESEX | E126: 232 | F126: PEPPERELL | G126: 1755 | H126: 1661 | I126: 8549998 | J126: 8530691 | K126: 735232
A127: 73503 | B127: 3 | C127: 735 | D127: NORTH MIDDLESEX | E127: 299 | F127: TOWNSEND | G127: 1357 | H127: 1341 | I127: 6493733 | J127: 6550655 | K127: 735299
A128: 74001 | B128: 1 | C128: 740 | D128: OLD ROCHESTER | E128: 169 | F128: MARION | G128: 325 | H128: 344 | I128: 2599245 | J128: 2773295 | K128: 740169
A129: 74002 | B129: 2 | C129: 740 | D129: OLD ROCHESTER | E129: 173 | F129: MATTAPOISETT | G129: 380 | H129: 397 | I129: 3084903 | J129: 3208709 | K129: 740173
A130: 74003 | B130: 3 | C130: 740 | D130: OLD ROCHESTER | E130: 250 | F130: ROCHESTER | G130: 427 | H130: 439 | I130: 2592970 | J130: 2722094 | K130: 740250
A131: 74501 | B131: 1 | C131: 745 | D131: PENTUCKET | E131: 116 | F131: GROVELAND | G131: 1003 | H131: 995 | I131: 5788974 | J131: 5926373 | K131: 745116
A132: 74502 | B132: 2 | C132: 745 | D132: PENTUCKET | E132: 180 | F132: MERRIMAC | G132: 974 | H132: 912 | I132: 5232611 | J132: 5138821 | K132: 745180
A133: 74503 | B133: 3 | C133: 745 | D133: PENTUCKET | E133: 329 | F133: WEST NEWBURY | G133: 697 | H133: 666 | I133: 5064710 | J133: 5138230 | K133: 745329
A134: 75001 | B134: 1 | C134: 750 | D134: PIONEER | E134: 29 | F134: BERNARDSTON | G134: 259 | H134: 262 | I134: 1477075 | J134: 1493322 | K134: 750029
A135: 75002 | B135: 2 | C135: 750 | D135: PIONEER | E135: 156 | F135: LEYDEN | G135: 57 | H135: 53 | I135: 496964 | J135: 442121 | K135: 750156
A136: 75003 | B136: 3 | C136: 750 | D136: PIONEER | E136: 216 | F136: NORTHFIELD | G136: 405 | H136: 368 | I136: 2410019 | J136: 2380408 | K136: 750216
A137: =C137*100+B137 -> 75004 | B137: 4 | C137: 750 | D137: PIONEER | E137: 312 | F137: WARWICK | G137: 81 | H137: 68 | I137: 419037 | J137: 460404 | K137: =C137*1000+E137 -> 750312
A138: 75301 | B138: =IF(C138=C137, B137+1, 1) -> 1 | C138: 753 | D138: QUABBIN | E138: 21 | F138: BARRE | G138: 810 | H138: 823 | I138: 3394730 | J138: 3370990 | K138: 753021
A139: 75302 | B139: 2 | C139: 753 | D139: QUABBIN | E139: 124 | F139: HARDWICK | G139: 384 | H139: 390 | I139: 1447391 | J139: 1436561 | K139: 753124
A140: 75303 | B140: 3 | C140: 753 | D140: QUABBIN | E140: 140 | F140: HUBBARDSTON | G140: 652 | H140: 601 | I140: 2908136 | J140: 3031818 | K140: 753140
A141: 75304 | B141: 4 | C141: 753 | D141: QUABBIN | E141: 202 | F141: NEW BRAINTREE | G141: 148 | H141: 150 | I141: 806889 | J141: 844818 | K141: 753202
A142: 75305 | B142: 5 | C142: 753 | D142: QUABBIN | E142: 222 | F142: OAKHAM | G142: 272 | H142: 255 | I142: 1384505 | J142: 1405849 | K142: 753222
A143: 75501 | B143: 1 | C143: 755 | D143: RALPH C MAHAR | E143: 206 | F143: NEW SALEM | G143: 63 | H143: 66 | I143: 340121 | J143: 376834 | K143: 755206
A144: 75502 | B144: 2 | C144: 755 | D144: RALPH C MAHAR | E144: 223 | F144: ORANGE | G144: 562 | H144: 539 | I144: 1749395 | J144: 1707721 | K144: 755223
A145: 75503 | B145: 3 | C145: 755 | D145: RALPH C MAHAR | E145: 234 | F145: PETERSHAM | G145: 71 | H145: 67 | I145: 609541 | J145: 574260 | K145: 755234
A146: 75504 | B146: 4 | C146: 755 | D146: RALPH C MAHAR | E146: 319 | F146: WENDELL | G146: 25 | H146: 27 | I146: 188581 | J146: 183253 | K146: 755319
A147: 76001 | B147: 1 | C147: 760 | D147: SILVER LAKE | E147: 118 | F147: HALIFAX | G147: 649 | H147: 623 | I147: 3636253 | J147: 3549412 | K147: 760118
A148: 76002 | B148: 2 | C148: 760 | D148: SILVER LAKE | E148: 145 | F148: KINGSTON | G148: 966 | H148: 1020 | I148: 6450392 | J148: 7005150 | K148: 760145
A149: 76003 | B149: 3 | C149: 760 | D149: SILVER LAKE | E149: 240 | F149: PLYMPTON | G149: 211 | H149: 215 | I149: 1535914 | J149: 1708586 | K149: 760240
A150: 76301 | B150: 1 | C150: 763 | D150: SOMERSET BERKLEY | E150: 27 | F150: BERKLEY | G150: 281 | H150: 273 | I150: 1406712 | J150: 1463849 | K150: 763027
A151: 76302 | B151: 2 | C151: 763 | D151: SOMERSET BERKLEY | E151: 273 | F151: SOMERSET | G151: 698 | H151: 649 | I151: 4988187 | J151: 4592682 | K151: 763273
A152: 76501 | B152: 1 | C152: 765 | D152: SOUTHERN BERKSHIRE | E152: 6 | F152: ALFORD | G152: 26 | H152: 26 | I152: 214237 | J152: 217857 | K152: 765006
A153: 76502 | B153: 2 | C153: 765 | D153: SOUTHERN BERKSHIRE | E153: 90 | F153: EGREMONT | G153: 89 | H153: 101 | I153: 741589 | J153: 772365 | K153: 765090
A154: 76503 | B154: 3 | C154: 765 | D154: SOUTHERN BERKSHIRE | E154: 193 | F154: MONTEREY | G154: 81 | H154: 90 | I154: 670011 | J154: 700965 | K154: 765193
A155: 76504 | B155: 4 | C155: 765 | D155: SOUTHERN BERKSHIRE | E155: 205 | F155: NEW MARLBOROUGH | G155: 161 | H155: 156 | I155: 1334861 | J155: 1339282 | K155: 765205
A156: 76505 | B156: 5 | C156: 765 | D156: SOUTHERN BERKSHIRE | E156: 267 | F156: SHEFFIELD | G156: 415 | H156: 381 | I156: 3452511 | J156: 3337701 | K156: 765267
A157: 76601 | B157: 1 | C157: 766 | D157: SOUTHWICK TOLLAND GRANVILLE | E157: 112 | F157: GRANVILLE | G157: 229 | H157: 215 | I157: 1434883 | J157: 1479651 | K157: 766112
A158: 76602 | B158: 2 | C158: 766 | D158: SOUTHWICK TOLLAND GRANVILLE | E158: 279 | F158: SOUTHWICK | G158: 1380 | H158: 1341 | I158: 8009794 | J158: 8344603 | K158: 766279
A159: 76603 | B159: 3 | C159: 766 | D159: SOUTHWICK TOLLAND GRANVILLE | E159: 297 | F159: TOLLAND | G159: 63 | H159: 55 | I159: 386537 | J159: 411508 | K159: 766297
A160: 76701 | B160: 1 | C160: 767 | D160: SPENCER EAST BROOKFIELD | E160: 84 | F160: EAST BROOKFIELD | G160: 351 | H160: 322 | I160: 1255303 | J160: 1329724 | K160: 767084
A161: 76702 | B161: 2 | C161: 767 | D161: SPENCER EAST BROOKFIELD | E161: 280 | F161: SPENCER | G161: 1580 | H161: 1497 | I161: 5725754 | J161: 5907839 | K161: 767280
A162: 77001 | B162: 1 | C162: 770 | D162: TANTASQUA | E162: 43 | F162: BRIMFIELD | G162: 280 | H162: 285 | I162: 1800525 | J162: 1859793 | K162: 770043
A163: 77002 | B163: 2 | C163: 770 | D163: TANTASQUA | E163: 45 | F163: BROOKFIELD | G163: 254 | H163: 248 | I163: 1258718 | J163: 1209946 | K163: 770045
A164: 77003 | B164: 3 | C164: 770 | D164: TANTASQUA | E164: 135 | F164: HOLLAND | G164: 193 | H164: 190 | I164: 1238163 | J164: 1290133 | K164: 770135
A165: 77004 | B165: 4 | C165: 770 | D165: TANTASQUA | E165: 287 | F165: STURBRIDGE | G165: 759 | H165: 772 | I165: 5155728 | J165: 5121571 | K165: 770287
A166: 77005 | B166: 5 | C166: 770 | D166: TANTASQUA | E166: 306 | F166: WALES | G166: 113 | H166: 115 | I166: 591198 | J166: 585158 | K166: 770306
A167: 77301 | B167: 1 | C167: 773 | D167: TRITON | E167: 203 | F167: NEWBURY | G167: 859 | H167: 820 | I167: 7334327 | J167: 7077872 | K167: 773203
A168: 77302 | B168: 2 | C168: 773 | D168: TRITON | E168: 254 | F168: ROWLEY | G168: 872 | H168: 857 | I168: 6644391 | J168: 6798125 | K168: 773254
A169: 77303 | B169: 3 | C169: 773 | D169: TRITON | E169: 259 | F169: SALISBURY | G169: 947 | H169: 950 | I169: 7887435 | J169: 7958991 | K169: 773259
A170: 77401 | B170: 1 | C170: 774 | D170: UPISLAND | E170: 62 | F170: CHILMARK | G170: 79 | H170: 79 | I170: 573476 | J170: 635732 | K170: 774062
A171: 77402 | B171: 2 | C171: 774 | D171: UPISLAND | E171: 104 | F171: AQUINNAH | G171: 32 | H171: 35 | I171: 249701 | J171: 236917 | K171: 774104
A172: 77403 | B172: 3 | C172: 774 | D172: UPISLAND | E172: 334 | F172: WEST TISBURY | G172: 238 | H172: 251 | I172: 1880564 | J172: 1984795 | K172: 774334
A173: 77501 | B173: 1 | C173: 775 | D173: WACHUSETT | E173: 134 | F173: HOLDEN | G173: 3071 | H173: 3097 | I173: 17038520 | J173: 17312246 | K173: 775134
A174: 77502 | B174: 2 | C174: 775 | D174: WACHUSETT | E174: 228 | F174: PAXTON | G174: 708 | H174: 709 | I174: 4282288 | J174: 4506979 | K174: 775228
A175: 77503 | B175: 3 | C175: 775 | D175: WACHUSETT | E175: 241 | F175: PRINCETON | G175: 450 | H175: 435 | I175: 3650842 | J175: 3527209 | K175: 775241
A176: 77504 | B176: 4 | C176: 775 | D176: WACHUSETT | E176: 257 | F176: RUTLAND | G176: 1613 | H176: 1627 | I176: 6610818 | J176: 6790981 | K176: 775257
A177: 77505 | B177: 5 | C177: 775 | D177: WACHUSETT | E177: 282 | F177: STERLING | G177: 1222 | H177: 1184 | I177: 8061197 | J177: 8081045 | K177: 775282
A178: 77801 | B178: 1 | C178: 778 | D178: QUABOAG | E178: 311 | F178: WARREN | G178: 783 | H178: 789 | I178: 2474537 | J178: 2451777 | K178: 778311
A179: 77802 | B179: 2 | C179: 778 | D179: QUABOAG | E179: 324 | F179: WEST BROOKFIELD | G179: 513 | H179: 488 | I179: 2592933 | J179: 2643979 | K179: 778324
A180: 78001 | B180: 1 | C180: 780 | D180: WHITMAN HANSON | E180: 123 | F180: HANSON | G180: 1701 | H180: 1653 | I180: 6764003 | J180: 7150999 | K180: 780123
A181: 78002 | B181: 2 | C181: 780 | D181: WHITMAN HANSON | E181: 338 | F181: WHITMAN | G181: 2366 | H181: 2311 | I181: 8514467 | J181: 8996371 | K181: 780338
A182: 80101 | B182: 1 | C182: 801 | D182: ASSABET VALLEY | E182: 28 | F182: BERLIN | G182: 29 | H182: 31 | I182: 401690 | J182: 441557 | K182: 801028
A183: 80102 | B183: 2 | C183: 801 | D183: ASSABET VALLEY | E183: 141 | F183: HUDSON | G183: 174 | H183: 180 | I183: 1745776 | J183: 1805897 | K183: 801141
A184: 80103 | B184: 3 | C184: 801 | D184: ASSABET VALLEY | E184: 170 | F184: MARLBOROUGH | G184: 336 | H184: 361 | I184: 3456885 | J184: 3553914 | K184: 801170
A185: 80104 | B185: 4 | C185: 801 | D185: ASSABET VALLEY | E185: 174 | F185: MAYNARD | G185: 60 | H185: 62 | I185: 685276 | J185: 707267 | K185: 801174
A186: 80105 | B186: 5 | C186: 801 | D186: ASSABET VALLEY | E186: 213 | F186: NORTHBOROUGH | G186: 56 | H186: 58 | I186: 774306 | J186: 824884 | K186: 801213
A187: 80106 | B187: 6 | C187: 801 | D187: ASSABET VALLEY | E187: 276 | F187: SOUTHBOROUGH | G187: 18 | H187: 13 | I187: 260663 | J187: 191425 | K187: 801276
A188: 80107 | B188: 7 | C188: 801 | D188: ASSABET VALLEY | E188: 321 | F188: WESTBOROUGH | G188: 42 | H188: 38 | I188: 605643 | J188: 546114 | K188: 801321
A189: 80501 | B189: 1 | C189: 805 | D189: BLACKSTONE VALLEY | E189: 25 | F189: BELLINGHAM | G189: 89 | H189: 103 | I189: 884227 | J189: 1017273 | K189: 805025
A190: 80502 | B190: 2 | C190: 805 | D190: BLACKSTONE VALLEY | E190: 32 | F190: BLACKSTONE | G190: 79 | H190: 78 | I190: 584702 | J190: 592465 | K190: 805032
A191: 80503 | B191: 3 | C191: 805 | D191: BLACKSTONE VALLEY | E191: 77 | F191: DOUGLAS | G191: 79 | H191: 81 | I191: 526853 | J191: 580524 | K191: 805077
A192: 80504 | B192: 4 | C192: 805 | D192: BLACKSTONE VALLEY | E192: 110 | F192: GRAFTON | G192: 76 | H192: 71 | I192: 721080 | J192: 692333 | K192: 805110
A193: 80505 | B193: 5 | C193: 805 | D193: BLACKSTONE VALLEY | E193: 138 | F193: HOPEDALE | G193: 22 | H193: 23 | I193: 171060 | J193: 186063 | K193: 805138
A194: 80506 | B194: 6 | C194: 805 | D194: BLACKSTONE VALLEY | E194: 179 | F194: MENDON | G194: 76 | H194: 75 | I194: 661773 | J194: 694376 | K194: 805179
A195: 80507 | B195: 7 | C195: 805 | D195: BLACKSTONE VALLEY | E195: 185 | F195: MILFORD | G195: 152 | H195: 150 | I195: 1229435 | J195: 1204608 | K195: 805185
A196: 80508 | B196: 8 | C196: 805 | D196: BLACKSTONE VALLEY | E196: 186 | F196: MILLBURY | G196: 72 | H196: 75 | I196: 658083 | J196: 697683 | K196: 805186
A197: 80509 | B197: 9 | C197: 805 | D197: BLACKSTONE VALLEY | E197: 188 | F197: MILLVILLE | G197: 43 | H197: 36 | I197: 236381 | J197: 209591 | K197: 805188
A198: 80510 | B198: 10 | C198: 805 | D198: BLACKSTONE VALLEY | E198: 214 | F198: NORTHBRIDGE | G198: 142 | H198: 146 | I198: 843287 | J198: 956954 | K198: 805214
A199: 80511 | B199: 11 | C199: 805 | D199: BLACKSTONE VALLEY | E199: 290 | F199: SUTTON | G199: 86 | H199: 93 | I199: 915701 | J199: 1010685 | K199: 805290
A200: 80512 | B200: 12 | C200: 805 | D200: BLACKSTONE VALLEY | E200: 303 | F200: UPTON | G200: 116 | H200: 119 | I200: 941962 | J200: 1065932 | K200: 805303
A201: =C201*100+B201 -> 80513 | B201: 13 | C201: 805 | D201: BLACKSTONE VALLEY | E201: 304 | F201: UXBRIDGE | G201: 154 | H201: 154 | I201: 1389655 | J201: 1392055 | K201: =C201*1000+E201 -> 805304
A202: 80601 | B202: =IF(C202=C201, B201+1, 1) -> 1 | C202: 806 | D202: BLUE HILLS | E202: 18 | F202: AVON | G202: 45 | H202: 51 | I202: 631680 | J202: 672590 | K202: 806018
A203: 80602 | B203: 2 | C203: 806 | D203: BLUE HILLS | E203: 40 | F203: BRAINTREE | G203: 144 | H203: 159 | I203: 1662104 | J203: 1858455 | K203: 806040
... 266 more rows

Sheet comparison to fy15
B1: Return to Index
A2: Massachusetts Department of Elementary and Secondary Education
A3: FY16 Chapter 70 Comparison to FY15
D7: FY15 | E7: FY16 | G7: FY15 | H7: FY16 | J7: FY15 | K7: FY16 | M7: FY15 | N7: FY16
B8: Operating | D8: Foundation | E8: Foundation | G8: Foundation | H8: Foundation | J8: Minimum | K8: Minimum | M8: Chapter 70 | N8: Chapter 70
A9: LEA | B9: District name | C9: Non-Op | D9: Enrollment | E9: Enrollment | F9: change | G9: Budget | H9: Budget | I9: chg pp | J9: Contribution | K9: Contribution | L9: chg pp | M9: aid | N9: aid | O9: change | P9: chg pp | Q9: pct chg
A10: 1 | B10: ABINGTON | C10: 1 | D10: =VLOOKUP(A10,aidcalc,17) -> 1952 | E10: =VLOOKUP(A10,aidcalc,18) -> 1955 | F10: =E10-D10 -> 3 | G10: =VLOOKUP(A10,aidcalc,4) -> 18287521.51 | H10: =VLOOKUP(A10,aidcalc,6) -> 18870910.49 | I10: =(H10-G10)/$E10 -> 298.4086854 | J10: =SUMIF(dist1755,A10,pynetmin) -> 12943494 | K10: =VLOOKUP(A10,aidcalc,7) -> 12546660 | L10: =(K10-J10)/$E10 -> -202.9841432 | M10: =VLOOKUP(A10,disthist,37) -> 7423394 | N10: =VLOOKUP(A10,aidcalc,35) -> 7472269 | O10: =N10-M10 -> 48875 | P10: =(N10-M10)/$E10 -> 25 | Q10: =ROUND(IF(G10>0,(N10-M10)*100/M10,100),2) -> 0.66
A11: 3 | B11: ACUSHNET | C11: 1 | D11: =VLOOKUP(A11,aidcalc,17) -> 1251 | E11: =VLOOKUP(A11,aidcalc,18) -> 1244 | F11: =E11-D11 -> -7 | G11: =VLOOKUP(A11,aidcalc,4) -> 11538501.13 | H11: =VLOOKUP(A11,aidcalc,6) -> 11701370.22 | I11: =(H11-G11)/$E11 -> 130.9237058 | J11: =SUMIF(dist1755,A11,pynetmin) -> 6393318 | K11: =VLOOKUP(A11,aidcalc,7) -> 6709873 | L11: =(K11-J11)/$E11 -> 254.4654341 | M11: 6150152 | N11: 6181252 | O11: =N11-M11 -> 31100 | P11: =(N11-M11)/$E11 -> 25 | Q11: =ROUND(IF(G11>0,(N11-M11)*100/M11,100),2) -> 0.51
A12: 5 | B12: AGAWAM | C12: 1 | D12: 4051 | E12: 4013 | F12: -38 | G12: 40513463.04 | H12: 40806967.85 | I12: 73.13850237 | J12: 22228633 | K12: 22234809 | L12: 1.538998256 | M12: 18827346.81 | N12: 18927671.81 | O12: 100325 | P12: 25 | Q12: 0.53
A13: 7 | B13: AMESBURY | C13: 1 | D13: 2440 | E13: 2394 | F13: -46 | G13: 23277123.93 | H13: 23284050.52 | I13: 2.893312448 | J13: 14710835 | K13: 14202425 | L13: -212.3684211 | M13: 8807407 | N13: 9081626 | O13: 274219 | P13: 114.5442774 | Q13: 3.11
A14: 8 | B14: AMHERST | C14: 1 | D14: 1205 | E14: 1192 | F14: -13 | G14: 11927369.58 | H14: 12222179.26 | I14: 247.323557 | J14: 8808278 | K14: 8979352 | L14: 143.5184564 | M14: 5925198 | N14: 5954998 | O14: 29800 | P14: 25 | Q14: 0.5
A15: 9 | B15: ANDOVER | C15: 1 | D15: 5998 | E15: 5950 | F15: -48 | G15: 56905481.15 | H15: 57593754.78 | I15: 115.676241 | J15: 49453903 | K15: 47514848 | L15: -325.8915966 | M15: 9042864.16 | N15: 10078907 | O15: 1036042.84 | P15: 174.1248471 | Q15: 11.46
A16: 10 | B16: ARLINGTON | C16: 1 | D16: 5141 | E16: 5318 | F16: 177 | G16: 47819420.32 | H16: 50290292.38 | I16: 464.6243074 | J16: 37584838 | K16: 39574733 | L16: 374.1810831 | M16: 10234582 | N16: 10715559 | O16: 480977 | P16: 90.44321173 | Q16: 4.7
A17: 14 | B17: ASHLAND | C17: 1 | D17: 2479 | E17: 2494 | F17: 15 | G17: 23394153.29 | H17: 23999962.49 | I17: 242.906659 | J17: 18210677 | K17: 18558228 | L17: 139.3548516 | M17: 5517159.51 | N17: 5579509.51 | O17: 62350 | P17: 25 | Q17: 1.13
A18: 16 | B18: ATTLEBORO | C18: 1 | D18: 6227 | E18: 6292 | F18: 65 | G18: 66876305.42 | H18: 68325590.25 | I18: 230.3377034 | J18: 32678917 | K18: 32304159 | L18: -59.56102988 | M18: 34235474 | N18: 36021431 | O18: 1785957 | P18: 283.8456771 | Q18: 5.22
A19: 17 | B19: AUBURN | C19: 1 | D19: 2340 | E19: 2343 | F19: 3 | G19: 22469656.55 | H19: 22643826.37 | I19: 74.33624413 | J19: 14563293 | K19: 13773515 | L19: -337.0798122 | M19: 8389817.161 | N19: 8870311 | O19: 480493.8386 | P19: 205.0763289 | Q19: 5.73
A20: 18 | B20: AVON | C20: 1 | D20: 537 | E20: 531 | F20: -6 | G20: 5301350.57 | H20: 5497208.85 | I20: 368.8479849 | J20: 4680844 | K20: 4116665 | L20: -1062.483992 | M20: 946828.9298 | N20: 1380544 | O20: 433715.0702 | P20: 816.7892095 | Q20: 45.81
A21: 20 | B21: BARNSTABLE | C21: 1 | D21: 5423 | E21: 5492 | F21: 69 | G21: 53870372.69 | H21: 55521659.88 | I21: 300.6713747 | J21: 46207751 | K21: 45805369 | L21: -73.26693372 | M21: 8440922.36 | N21: 9716291 | O21: 1275368.64 | P21: 232.2229861 | Q21: 15.11
A22: 23 | B22: BEDFORD | C22: 1 | D22: 2608 | E22: 2585 | F22: -23 | G22: 25862895.33 | H22: 26053076.23 | I22: 73.57094603 | J22: 21890571 | K22: 21493787 | L22: -153.4947776 | M22: 4145009.365 | N22: 4559289 | O22: 414279.6348 | P22: 160.2629148 | Q22: 9.99
A23: 24 | B23: BELCHERTOWN | C23: 1 | D23: 2493 | E23: 2401 | F23: -92 | G23: 23327151.94 | H23: 22973661.62 | I23: -147.226289 | J23: 11128856 | K23: 11198625 | L23: 29.05830904 | M23: 13481666 | N23: 13541691 | O23: 60025 | P23: 25 | Q23: 0.45
A24: 25 | B24: BELLINGHAM | C24: 1 | D24: 2424 | E24: 2424 | F24: 0 | G24: 22925709.12 | H24: 23462633.45 | I24: 221.5034365 | J24: 15265577 | K24: 14932642 | L24: -137.3494224 | M24: 8245235 | N24: 8529991 | O24: 284756 | P24: 117.4735974 | Q24: 3.45
A25: 26 | B25: BELMONT | C25: 1 | D25: 4068 | E25: 4156 | F25: 88 | G25: 37689370.08 | H25: 39180121.94 | I25: 358.6987167 | J25: 31269266 | K25: 32323600 | L25: 253.6896054 | M25: 6420104 | N25: 6856522 | O25: 436418 | P25: 105.0091434 | Q25: 6.8
A26: 27 | B26: BERKLEY | C26: 1 | D26: 742 | E26: 723 | F26: -19 | G26: 6578224.68 | H26: 6569709.32 | I26: -11.77781466 | J26: 3202757 | K26: 3390355 | L26: 259.4716459 | M26: 3875013 | N26: 3893088 | O26: 18075 | P26: 25 | Q26: 0.47
A27: 28 | B27: BERLIN | C27: 1 | D27: 166 | E27: 152 | F27: -14 | G27: 1474055.765 | H27: 1394075.237 | I27: -526.1876864 | J27: 1240618 | K27: 1150112 | L27: -595.4342105 | M27: 437180 | N27: 440980 | O27: 3800 | P27: 25 | Q27: 0.87
A28: 30 | B28: BEVERLY | C28: 1 | D28: 4345 | E28: 4426 | F28: 81 | G28: 43026226.78 | H28: 44949344.69 | I28: 434.5047247 | J28: 36875947 | K28: 37083209 | L28: 46.82828739 | M28: 7336283.46 | N28: 7866136 | O28: 529852.54 | P28: 119.7136331 | Q28: 7.22
A29: 31 | B29: BILLERICA | C29: 1 | D29: 5385 | E29: 5359 | F29: -26 | G29: 50581059.94 | H29: 51437518.58 | I29: 159.8168775 | J29: 35165450 | K29: 34395999 | L29: -143.5810786 | M29: 18486609.05 | N29: 18620584.05 | O29: 133975 | P29: 25 | Q29: 0.72
A30: 35 | B30: BOSTON | C30: 1 | D30: 63058 | E30: 64196 | F30: 1138 | G30: 780383012.9 | H30: 805600562.8 | I30: 392.8212018 | J30: 627463814 | K30: 657393838 | L30: 466.2287993 | M30: 210991435 | N30: 212596335 | O30: 1604900 | P30: 25 | Q30: 0.76
A31: 36 | B31: BOURNE | C31: 1 | D31: 2084 | E31: 2001 | F31: -83 | G31: 19753593.37 | H31: 19473369.86 | I31: -140.0417341 | J31: 16968423 | K31: 16065530 | L31: -451.2208896 | M31: 4877338 | N31: 4927363 | O31: 50025 | P31: 25 | Q31: 1.03
A32: 38 | B32: BOXFORD | C32: 1 | D32: 730 | E32: 729 | F32: -1 | G32: 6315613.131 | H32: 6380974.844 | I32: 89.65941373 | J32: 5486948 | K32: 5264304 | L32: -305.4101509 | M32: 1625748 | N32: 1643973 | O32: 18225 | P32: 25 | Q32: 1.12
A33: 39 | B33: BOYLSTON | C33: 1 | D33: 299 | E33: 283 | F33: -16 | G33: 2701535.6 | H33: 2619960.3 | I33: -288.2519435 | J33: 2336823 | K33: 2161467 | L33: -619.6325088 | M33: 443237.8802 | N33: 458493 | O33: 15255.11981 | P33: 53.90501701 | Q33: 3.44
A34: 40 | B34: BRAINTREE | C34: 1 | D34: 5508 | E34: 5559 | F34: 51 | G34: 53388255 | H34: 55247735.78 | I34: 334.4991512 | J34: 38760993 | K34: 39433581 | L34: 120.9908257 | M34: 14627262 | N34: 15814155 | O34: 1186893 | P34: 213.5083648 | Q34: 8.11
A35: 41 | B35: BREWSTER | C35: 1 | D35: 473 | E35: 474 | F35: 1 | G35: 4371530.74 | H35: 4481450.93 | I35: 231.899135 | J35: 3934378 | K35: 3697197 | L35: -500.3818565 | M35: 930169 | N35: 942019 | O35: 11850 | P35: 25 | Q35: 1.27
A36: 43 | B36: BRIMFIELD | C36: 1 | D36: 285 | E36: 274 | F36: -11 | G36: 2557047.06 | H36: 2535170.45 | I36: -79.84164234 | J36: 1495359 | K36: 1422293 | L36: -266.6642336 | M36: 1202422 | N36: 1209272 | O36: 6850 | P36: 25 | Q36: 0.57
A37: 44 | B37: BROCKTON | C37: 1 | D37: 17469 | E37: 17694 | F37: 225 | G37: 202656340.7 | H37: 209479318.4 | I37: 385.6096824 | J37: 37791281 | K37: 39438390 | L37: 93.08856109 | M37: 164865060 | N37: 170040928 | O37: 5175868 | P37: 292.5210806 | Q37: 3.14
A38: 45 | B38: BROOKFIELD | C38: 1 | D38: 232 | E38: 249 | F38: 17 | G38: 2293424.82 | H38: 2475237.43 | I38: 730.1711245 | J38: 1033581 | K38: 1028507 | L38: -20.37751004 | M38: 1366889.719 | N38: 1446730 | O38: 79840.28088 | P38: 320.6436983 | Q38: 5.84
A39: 46 | B39: BROOKLINE | C39: 1 | D39: 7142 | E39: 7343 | F39: 201 | G39: 68558216.96 | H39: 71400245.84 | I39: 387.0392046 | J39: 57398755 | K39: 58905203 | L39: 205.1542966 | M39: 11159462 | N39: 12495043 | O39: 1335581 | P39: 181.8849244 | Q39: 11.97
A40: 48 | B40: BURLINGTON | C40: 1 | D40: 3553 | E40: 3469 | F40: -84 | G40: 34467698.67 | H40: 34239007.27 | I40: -65.92429988 | J40: 30725441 | K40: 28247181 | L40: -714.4018449 | M40: 5684571.233 | N40: 5991826 | O40: 307254.7667 | P40: 88.57156721 | Q40: 5.41
A41: 49 | B41: CAMBRIDGE | C41: 1 | D41: 6709 | E41: 6888 | F41: 179 | G41: 75565946.83 | H41: 79533780.83 | I41: 576.0502318 | J41: 67728118 | K41: 65615369 | L41: -306.7289489 | M41: 10513263 | N41: 13918412 | O41: 3405149 | P41: 494.3596109 | Q41: 32.39
A42: 50 | B42: CANTON | C42: 1 | D42: 3157 | E42: 3224 | F42: 67 | G42: 30171279.55 | H42: 31710377.39 | I42: 477.3876662 | J42: 25776936 | K42: 26161061 | L42: 119.1454715 | M42: 4936587.255 | N42: 5549316 | O42: 612728.7448 | P42: 190.0523402 | Q42: 12.41
A43: 51 | B43: CARLISLE | C43: 1 | D43: 596 | E43: 609 | F43: 13 | G43: 5130124.332 | H43: 5330419.624 | I43: 328.8921052 | J43: 4617112 | K43: 4397596 | L43: -360.453202 | M43: 859890.0969 | N43: 932824 | O43: 72933.90305 | P43: 119.7601035 | Q43: 8.48
A44: 52 | B44: CARVER | C44: 1 | D44: 1714 | E44: 1657 | F44: -57 | G44: 16482096.76 | H44: 16197468.46 | I44: -171.7732641 | J44: 8461514 | K44: 8264514 | L44: -118.8895594 | M44: 9731289 | N44: 9772714 | O44: 41425 | P44: 25 | Q44: 0.43
A45: 56 | B45: CHELMSFORD | C45: 1 | D45: 5122 | E45: 5056 | F45: -66 | G45: 47335965.47 | H45: 47241970.63 | I45: -18.59075256 | J45: 39489751 | K45: 38029641 | L45: -288.7875791 | M45: 10346618 | N45: 10473018 | O45: 126400 | P45: 25 | Q45: 1.22
A46: 57 | B46: CHELSEA | C46: 1 | D46: 6557 | E46: 6924 | F46: 367 | G46: 77392158.15 | H46: 84321341.85 | I46: 1000.748657 | J46: 12901270 | K46: 13967161 | L46: 153.9415078 | M46: 64490888 | N46: 70354181 | O46: 5863293 | P46: 846.8071924 | Q46: 9.09
A47: 61 | B47: CHICOPEE | C47: 1 | D47: 7757 | E47: 7852 | F47: 95 | G47: 86339875.14 | H47: 89726607.38 | I47: 431.3209679 | J47: 29088958 | K47: 29813236 | L47: 92.24121243 | M47: 57250917 | N47: 59913371 | O47: 2662454 | P47: 339.0797249 | Q47: 4.65
A48: 63 | B48: CLARKSBURG | C48: 1 | D48: 200 | E48: 180 | F48: -20 | G48: 1905986.03 | H48: 1772262.85 | I48: -742.9065556 | J48: 594708 | K48: 585884 | L48: -49.02222222 | M48: 1769100 | N48: 1773600 | O48: 4500 | P48: 25 | Q48: 0.25
A49: 64 | B49: CLINTON | C49: 1 | D49: 1991 | E49: 1979 | F49: -12 | G49: 20886485.84 | H49: 21129205.02 | I49: 122.6473876 | J49: 9674943 | K49: 9447493 | L49: -114.9317837 | M49: 11251678.81 | N49: 11681712 | O49: 430033.1944 | P49: 217.2982286 | Q49: 3.82
A50: 65 | B50: COHASSET | C50: 1 | D50: 1573 | E50: 1553 | F50: -20 | G50: 14009300.66 | H50: 14047813.29 | I50: 24.79885855 | J50: 11815460 | K50: 11589446 | L50: -145.5338055 | M50: 2265937.069 | N50: 2458367 | O50: 192429.9314 | P50: 123.9085199 | Q50: 8.49
A51: 67 | B51: CONCORD | C51: 1 | D51: 2088 | E51: 2040 | F51: -48 | G51: 18417417.46 | H51: 18462886.79 | I51: 22.28888768 | J51: 15844185 | K51: 15231882 | L51: -300.1485294 | M51: 2573232 | N51: 3231005 | O51: 657773 | P51: 322.4377451 | Q51: 25.56
A52: 68 | B52: CONWAY | C52: 1 | D52: 147 | E52: 145 | F52: -2 | G52: 1306815.92 | H52: 1311758.95 | I52: 34.08986207 | J52: 1065116 | K52: 1082201 | L52: 117.8275862 | M52: 606379 | N52: 610004 | O52: 3625 | P52: 25 | Q52: 0.6
A53: 71 | B53: DANVERS | C53: 1 | D53: 3717 | E53: 3660 | F53: -57 | G53: 34741461.95 | H53: 34881940.84 | I53: 38.38221038 | J53: 29063843 | K53: 28777601 | L53: -78.20819672 | M53: 6334657.445 | N53: 6426157.445 | O53: 91500 | P53: 25 | Q53: 1.44
A54: 72 | B54: DARTMOUTH | C54: 1 | D54: 3719 | E54: 3721 | F54: 2 | G54: 35239525.23 | H54: 36075718.26 | I54: 224.7226633 | J54: 29520834 | K54: 29762467 | L54: 64.93765117 | M54: 9326041 | N54: 9419066 | O54: 93025 | P54: 25 | Q54: 1
A55: 73 | B55: DEDHAM | C55: 1 | D55: 2731 | E55: 2681 | F55: -50 | G55: 27117828.37 | H55: 26929202.73 | I55: -70.35644892 | J55: 24153827 | K55: 22216592 | L55: -722.5792615 | M55: 4312267.843 | N55: 4712611 | O55: 400343.1575 | P55: 149.3260565 | Q55: 9.28
A56: 74 | B56: DEERFIELD | C56: 1 | D56: 350 | E56: 345 | F56: -5 | G56: 3182088.08 | H56: 3228031.85 | I56: 133.1703478 | J56: 2730251 | K56: 2663126 | L56: -194.5652174 | M56: 1059343 | N56: 1067968 | O56: 8625 | P56: 25 | Q56: 0.81
A57: 77 | B57: DOUGLAS | C57: 1 | D57: 1508 | E57: 1452 | F57: -56 | G57: 13898746.32 | H57: 13645814.7 | I57: -174.1953306 | J57: 6212332 | K57: 6463272 | L57: 172.8236915 | M57: 8530840 | N57: 8567140 | O57: 36300 | P57: 25 | Q57: 0.43
A58: 78 | B58: DOVER | C58: 1 | D58: 517 | E58: 480 | F58: -37 | G58: 4528034.392 | H58: 4322776.794 | I58: -427.6199965 | J58: 4059051 | K58: 3566291 | L58: -1026.583333 | M58: 690567 | N58: 756486 | O58: 65919 | P58: 137.33125 | Q58: 9.55
A59: 79 | B59: DRACUT | C59: 1 | D59: 3957 | E59: 3873 | F59: -84 | G59: 37334953.58 | H59: 37644250.12 | I59: 79.85967983 | J59: 19220889 | K59: 20168359 | L59: 244.6346501 | M59: 18761667 | N59: 18858492 | O59: 96825 | P59: 25 | Q59: 0.52
A60: 82 | B60: DUXBURY | C60: 1 | D60: 3165 | E60: 3134 | F60: -31 | G60: 28945039.58 | H60: 29322453.03 | I60: 120.4254808 | J60: 24862384 | K60: 24191024 | L60: -214.2182514 | M60: 4782129.238 | N60: 5131429 | O60: 349299.7618 | P60: 111.4549336 | Q60: 7.3
A61: 83 | B61: EAST BRIDGEWATER | C61: 1 | D61: 2210 | E61: 2185 | F61: -25 | G61: 20492729.26 | H61: 20764631.13 | I61: 124.4402151 | J61: 10728557 | K61: 10964339 | L61: 107.9093822 | M61: 10306507 | N61: 10361132 | O61: 54625 | P61: 25 | Q61: 0.53
A62: 85 | B62: EASTHAM | C62: 1 | D62: 202 | E62: 184 | F62: -18 | G62: 1871143.94 | H62: 1830657.57 | I62: -220.0346196 | J62: 1673613 | K62: 1510293 | L62: -887.6086957 | M62: 334856 | N62: 339456 | O62: 4600 | P62: 25 | Q62: 1.37
A63: 86 | B63: EASTHAMPTON | C63: 1 | D63: 1782 | E63: 1774 | F63: -8 | G63: 17813516.28 | H63: 18095294 | I63: 158.8374972 | J63: 11344349 | K63: 11740238 | L63: 223.1617813 | M63: 7731667 | N63: 7776017 | O63: 44350 | P63: 25 | Q63: 0.57
A64: 87 | B64: EAST LONGMEADOW | C64: 1 | D64: 2680 | E64: 2646 | F64: -34 | G64: 25028520.54 | H64: 25486357.48 | I64: 173.0298337 | J64: 15784772 | K64: 15989870 | L64: 77.51247166 | M64: 9901624.22 | N64: 9967774.22 | O64: 66150 | P64: 25 | Q64: 0.67
A65: 88 | B65: EASTON | C65: 1 | D65: 3767 | E65: 3691 | F65: -76 | G65: 34368780.38 | H65: 34281775.1 | I65: -23.57227852 | J65: 25617334 | K65: 26036262 | L65: 113.4998645 | M65: 9531741 | N65: 9624016 | O65: 92275 | P65: 25 | Q65: 0.97
A66: 89 | B66: EDGARTOWN | C66: 1 | D66: 405 | E66: 406 | F66: 1 | G66: 3756339.39 | H66: 3949969.68 | I66: 476.9218966 | J66: 3220458 | K66: 3258725 | L66: 94.25369458 | M66: 535881 | N66: 691245 | O66: 155364 | P66: 382.6699507 | Q66: 28.99
A67: 91 | B67: ERVING | C67: 1 | D67: 257 | E67: 255 | F67: -2 | G67: 2387006.76 | H67: 2412269.36 | I67: 99.06901961 | J67: 2050836 | K67: 1990122 | L67: -238.0941176 | M67: 431895 | N67: 438270 | O67: 6375 | P67: 25 | Q67: 1.48
A68: 93 | B68: EVERETT | C68: 1 | D68: 7295 | E68: 7490 | F68: 195 | G68: 85328324.67 | H68: 89667949.97 | I68: 579.3892256 | J68: 24693137 | K68: 25666047 | L68: 129.894526 | M68: 60635188 | N68: 64001903 | O68: 3366715 | P68: 449.4946595 | Q68: 5.55
A69: 94 | B69: FAIRHAVEN | C69: 1 | D69: 1803 | E69: 1785 | F69: -18 | G69: 17736701.94 | H69: 17707799.16 | I69: -16.19203361 | J69: 11371020 | K69: 11363006 | L69: -4.489635854 | M69: 7383635 | N69: 7428260 | O69: 44625 | P69: 25 | Q69: 0.6
A70: 95 | B70: FALL RIVER | C70: 1 | D70: 11142 | E70: 11317 | F70: 175 | G70: 126851512.4 | H70: 130963260.2 | I70: 363.3248882 | J70: 23922480 | K70: 25218449 | L70: 114.5152426 | M70: 102929032 | N70: 105744811 | O70: 2815779 | P70: 248.8096669 | Q70: 2.74
A71: 96 | B71: FALMOUTH | C71: 1 | D71: =VLOOKUP(A71,aidcalc,17) -> 3576 | E71: =VLOOKUP(A71,aidcalc,18) -> 3575 | F71: =E71-D71 -> -1 | G71: =VLOOKUP(A71,aidcalc,4) -> 34334682.75 | H71: =VLOOKUP(A71,aidcalc,6) -> 35910247.15 | I71: =(H71-G71)/$E71 -> 440.7173147 | J71: =SUMIF(dist1755,A71,pynetmin) -> 30535810 | K71: =VLOOKUP(A71,aidcalc,7) -> 29625954 | L71: =(K71-J71)/$E71 -> -254.5051748 | M71: 5403420 | N71: 6284293 | O71: =N71-M71 -> 880873 | P71: =(N71-M71)/$E71 -> 246.398042 | Q71: 16.3
A72: 97 | B72: FITCHBURG | C72: 1 | D72: 5482 | E72: 5491 | F72: 9 | G72: 61364752.1 | H72: 62363310.04 | I72: 181.8535677 | J72: 15954871 | K72: 16662973 | L72: 128.9568385 | M72: 45409881 | N72: 45700337 | O72: 290456 | P72: 52.89674012 | Q72: 0.64
A73: 98 | B73: FLORIDA | C73: 1 | D73: 89 | E73: 85 | F73: -4 | G73: 924504.84 | H73: 872994.29 | I73: -606.0064706 | J73: 460528 | K73: 468646 | L73: 95.50588235 | M73: 537067 | N73: 539192 | O73: 2125 | P73: 25 | Q73: 0.4
A74: 99 | B74: FOXBOROUGH | C74: 1 | D74: 2729 | E74: 2690 | F74: -39 | G74: 26242664.99 | H74: 26484573.87 | I74: 89.92895293 | J74: 20657534 | K74: 21012275 | L74: 131.8739777 | M74: =VLOOKUP(A74,disthist,37) -> 8597390 | N74: =VLOOKUP(A74,aidcalc,35) -> 8664640 | O74: 67250 | P74: 25 | Q74: =ROUND(IF(G74>0,(N74-M74)*100/M74,100),2) -> 0.78
A75: 100 | B75: FRAMINGHAM | C75: 1 | D75: 8572 | E75: 8641 | F75: 69 | G75: 91598610.69 | H75: 95619668.63 | I75: 465.3463649 | J75: 58137448 | K75: 55930159 | L75: -255.4436986 | M75: 33596454.67 | N75: 39689510 | O75: 6093055.334 | P75: 705.1331251 | Q75: 18.14
A76: 101 | B76: FRANKLIN | C76: 1 | D76: 6194 | E76: 6086 | F76: -108 | G76: 57559562.15 | H76: 57388919.03 | I76: -28.03863202 | J76: 32626068 | K76: 34322367 | L76: 278.7214919 | M76: 27423796 | N76: 27575946 | O76: 152150 | P76: 25 | Q76: 0.55
A77: 103 | B77: GARDNER | C77: 1 | D77: 2470 | E77: 2505 | F77: 35 | G77: 26236297.48 | H77: 27133681.38 | I77: 358.2370858 | J77: 7521101 | K77: 8111579 | L77: 235.7197605 | M77: 19023155 | N77: 19085780 | O77: 62625 | P77: 25 | Q77: 0.33
A78: 105 | B78: GEORGETOWN | C78: 1 | D78: 1490 | E78: 1389 | F78: -101 | G78: 13311710.36 | H78: 12726852.81 | I78: -421.0637509 | J78: 8894215 | K78: 9137713 | L78: 175.3045356 | M78: 5297543 | N78: 5332268 | O78: 34725 | P78: 25 | Q78: 0.66
A79: 107 | B79: GLOUCESTER | C79: 1 | D79: 3348 | E79: 3237 | F79: -111 | G79: 35333205.21 | H79: 34881817.4 | I79: -139.4463423 | J79: 30916076 | K79: 28777499 | L79: -660.6663577 | M79: 6157967.491 | N79: 6238892.491 | O79: 80925 | P79: 25 | Q79: 1.31
A80: 110 | B80: GRAFTON | C80: 1 | D80: 3103 | E80: 3159 | F80: 56 | G80: 28066998.63 | H80: 29002097.03 | I80: 296.0108895 | J80: 17847710 | K80: 18689770 | L80: 266.5590377 | M80: 10571515 | N80: 10650490 | O80: 78975 | P80: 25 | Q80: 0.75
A81: 111 | B81: GRANBY | C81: 1 | D81: 852 | E81: 812 | F81: -40 | G81: 8273052.59 | H81: 7978374.47 | I81: -362.9040887 | J81: 4695999 | K81: 4658238 | L81: -46.50369458 | M81: 4537515 | N81: 4557815 | O81: 20300 | P81: 25 | Q81: 0.45
A82: 114 | B82: GREENFIELD | C82: 1 | D82: 2065 | E82: 2048 | F82: -17 | G82: 21246903.91 | H82: 21378359.31 | I82: 64.18720703 | J82: 9761739 | K82: 9577049 | L82: -90.18066406 | M82: 11983812.36 | N82: 12035012.36 | O82: 51200 | P82: 25 | Q82: 0.43
A83: 117 | B83: HADLEY | C83: 1 | D83: 627 | E83: 611 | F83: -16 | G83: 5981187.52 | H83: 5986156.38 | I83: 8.132340426 | J83: 5351851 | K83: 4938579 | L83: -676.386252 | M83: 938253.9952 | N83: 1047577 | O83: 109323.0048 | P83: 178.9247215 | Q83: 11.65
A84: 118 | B84: HALIFAX | C84: 1 | D84: 594 | E84: 592 | F84: -2 | G84: 5366429.71 | H84: 5540979.43 | I84: 294.8475 | J84: 2903829 | K84: 2871459 | L84: -54.67905405 | M84: 2699817 | N84: 2714617 | O84: 14800 | P84: 25 | Q84: 0.55
A85: 121 | B85: HANCOCK | C85: 1 | D85: 90 | E85: 75 | F85: -15 | G85: 806235.64 | H85: 700017.85 | I85: -1416.2372 | J85: 725612 | K85: 577515 | L85: -1974.626667 | M85: 199115 | N85: 200990 | O85: 1875 | P85: 25 | Q85: 0.94
A86: 122 | B86: HANOVER | C86: 1 | D86: 2586 | E86: 2566 | F86: -20 | G86: 23675035.83 | H86: 24041587.17 | I86: 142.8493124 | J86: 17821949 | K86: 18359459 | L86: 209.4738893 | M86: 6590763.713 | N86: 6654913.713 | O86: 64150 | P86: 25 | Q86: 0.97
A87: 125 | B87: HARVARD | C87: 1 | D87: 1036 | E87: 1019 | F87: -17 | G87: 9617698.639 | H87: 9693663.264 | I87: 74.54820889 | J87: 8555966 | K87: 7997272 | L87: -548.2767419 | M87: 1816706 | N87: 1842181 | O87: 25475 | P87: 25 | Q87: 1.4
A88: 127 | B88: HATFIELD | C88: 1 | D88: 375 | E88: 381 | F88: 6 | G88: 3505759.11 | H88: 3617908.4 | I88: 294.3550919 | J88: 3095381 | K88: 2984774 | L88: -290.3070866 | M88: 786221 | N88: 795746 | O88: 9525 | P88: 25 | Q88: 1.21
A89: 128 | B89: HAVERHILL | C89: 1 | D89: 7951 | E89: 8105 | F89: 154 | G89: 83661746.03 | H89: 85387258.69 | I89: 212.8948378 | J89: 38734196 | K89: 37789636 | L89: -116.5404072 | M89: 45091781.07 | N89: 47597623 | O89: 2505841.928 | P89: 309.1723539 | Q89: 5.56
A90: 131 | B90: HINGHAM | C90: 1 | D90: 4119 | E90: 4189 | F90: 70 | G90: 37371415.69 | H90: 39001020.53 | I90: 389.0200148 | J90: 31288570 | K90: 32175842 | L90: 211.8099785 | M90: 6499060.234 | N90: 6825179 | O90: 326118.7661 | P90: 77.85122133 | Q90: 5.02
A91: 133 | B91: HOLBROOK | C91: 1 | D91: 1208 | E91: 1168 | F91: -40 | G91: 12460674.09 | H91: 12443297.54 | I91: -14.87718161 | J91: 7150740 | K91: 6790414 | L91: -308.4982877 | M91: 5309934 | N91: 5652884 | O91: 342950 | P91: 293.6215753 | Q91: 6.46
A92: 135 | B92: HOLLAND | C92: 1 | D92: 185 | E92: 163 | F92: -22 | G92: 1736861.59 | H92: 1599126.75 | I92: -844.9990184 | J92: 1013330 | K92: 929167 | L92: -516.3374233 | M92: 907048 | N92: 911123 | O92: 4075 | P92: 25 | Q92: 0.45
A93: 136 | B93: HOLLISTON | C93: 1 | D93: 2568 | E93: 2565 | F93: -3 | G93: 24025115.2 | H93: 24361946.35 | I93: 131.3181854 | J93: 17695327 | K93: 17526806 | L93: -65.70019493 | M93: 7155224.661 | N93: 7219349.661 | O93: 64125 | P93: 25 | Q93: 0.9
A94: 137 | B94: HOLYOKE | C94: 1 | D94: 6552 | E94: 6639 | F94: 87 | G94: 78698902.67 | H94: 80596955.48 | I94: 285.8943832 | J94: 9692069 | K94: 10055521 | L94: 54.74499172 | M94: 69785403 | N94: 70541434 | O94: 756031 | P94: 113.8772405 | Q94: 1.08
A95: 138 | B95: HOPEDALE | C95: 1 | D95: 1104 | E95: 1077 | F95: -27 | G95: 10475107.01 | H95: 10396781.26 | I95: -72.72585729 | J95: 5458850 | K95: 5476378 | L95: 16.27483751 | M95: 5914920 | N95: 5941845 | O95: 26925 | P95: 25 | Q95: 0.46
A96: 139 | B96: HOPKINTON | C96: 1 | D96: 3387 | E96: 3489 | F96: 102 | G96: 32526014.47 | H96: 33687637.27 | I96: 332.9386049 | J96: 27549192 | K96: 27792300 | L96: 69.67841788 | M96: 5873878.403 | N96: 5961103.403 | O96: 87225 | P96: 25 | Q96: 1.48
A97: 141 | B97: HUDSON | C97: 1 | D97: 2771 | E97: 2759 | F97: -12 | G97: 27792860.27 | H97: 28189612.61 | I97: 143.8029487 | J97: 16943537 | K97: 16152251 | L97: -286.8017398 | M97: 10859646.74 | N97: 12037362 | O97: 1177715.263 | P97: 426.8630891 | Q97: 10.84
A98: 142 | B98: HULL | C98: 1 | D98: 1054 | E98: 1042 | F98: -12 | G98: 10591221.7 | H98: 10627740.81 | I98: 35.04713256 | J98: 9492718 | K98: 8767886 | L98: -695.6161228 | M98: 3708196 | N98: 3734246 | O98: 26050 | P98: 25 | Q98: 0.7
A99: 144 | B99: IPSWICH | C99: 1 | D99: 1921 | E99: 1865 | F99: -56 | G99: 18277939.34 | H99: 18118176.86 | I99: -85.66352851 | J99: 15616820 | K99: 14947496 | L99: -358.8868633 | M99: 3032974.529 | N99: 3170681 | O99: 137706.4706 | P99: 73.83724965 | Q99: 4.54
A100: 145 | B100: KINGSTON | C100: 1 | D100: 1160 | E100: 1092 | F100: -68 | G100: 10520096.45 | H100: 10093730.67 | I100: -390.4448524 | J100: 6787210 | K100: 6415834 | L100: -340.0879121 | M100: 4188864.536 | N100: 4216164.536 | O100: 27300 | P100: 25 | Q100: 0.65
A101: 148 | B101: LANESBOROUGH | C101: 1 | D101: 198 | E101: 200 | F101: 2 | G101: 1841661.51 | H101: 1924866.88 | I101: 416.02685 | J101: 1232284 | K101: 1248595 | L101: 81.555 | M101: 747323 | N101: 752323 | O101: 5000 | P101: 25 | Q101: 0.67
A102: 149 | B102: LAWRENCE | C102: 1 | D102: 14714 | E102: 15186 | F102: 472 | G102: 177176380.5 | H102: 186136094.7 | I102: 589.9982991 | J102: 8004505 | K102: 8507699 | L102: 33.13538786 | M102: 169171876 | N102: 177628396 | O102: 8456520 | P102: 556.8629 | Q102: 5
A103: 150 | B103: LEE | C103: 1 | D103: 661 | E103: 601 | F103: -60 | G103: 6714728.88 | H103: 6274000.48 | I103: -733.3251248 | J103: 5764466 | K103: 5176050 | L103: -979.0615641 | M103: 1980674 | N103: 1995699 | O103: 15025 | P103: 25 | Q103: 0.76
A104: 151 | B104: LEICESTER | C104: 1 | D104: 1629 | E104: 1598 | F104: -31 | G104: 16135346.72 | H104: 16315414.45 | I104: 112.6831852 | J104: 7906856 | K104: 8064134 | L104: 98.42177722 | M104: 9534162 | N104: 9574112 | O104: 39950 | P104: 25 | Q104: 0.42
A105: 152 | B105: LENOX | C105: 1 | D105: 577 | E105: 521 | F105: -56 | G105: 5600729.18 | H105: 5259228.06 | I105: -655.4723992 | J105: 5040656 | K105: 4338863 | L105: -1347.011516 | M105: 1185105 | N105: 1198130 | O105: 13025 | P105: 25 | Q105: 1.1
A106: 153 | B106: LEOMINSTER | C106: 1 | D106: 6335 | E106: 6274 | F106: -61 | G106: 68009798.66 | H106: 68789894.09 | I106: 124.3378116 | J106: 25511102 | K106: 26480524 | L106: 154.5141855 | M106: 43390737 | N106: 43547587 | O106: 156850 | P106: 25 | Q106: 0.36
A107: 154 | B107: LEVERETT | C107: 1 | D107: 100 | E107: 104 | F107: 4 | G107: 934315.57 | H107: 982131.53 | I107: 459.7688462 | J107: 840884 | K107: 810259 | L107: -294.4711538 | M107: 277216 | N107: 279816 | O107: 2600 | P107: 25 | Q107: 0.94
A108: 155 | B108: LEXINGTON | C108: 1 | D108: 6695 | E108: 6849 | F108: 154 | G108: 64514813.13 | H108: 67063773.2 | I108: 372.1652894 | J108: 56156903 | K108: 55327612 | L108: -121.0820558 | M108: 9584428.334 | N108: 11736161 | O108: 2151732.666 | P108: 314.1674209 | Q108: 22.45
A109: 157 | B109: LINCOLN | C109: 1 | D109: 623 | E109: 618 | F109: -5 | G109: 5682114.416 | H109: 5601678.014 | I109: -130.1559903 | J109: 5004725 | K109: 4621384 | L109: -620.2928803 | M109: 841588 | N109: 980294 | O109: 138706 | P109: 224.4433657 | Q109: 16.48
A110: 158 | B110: LITTLETON | C110: 1 | D110: 1542 | E110: 1558 | F110: 16 | G110: 14701467.74 | H110: 15178691.9 | I110: 306.30562 | J110: 11519536 | K110: 11472283 | L110: -30.32926829 | M110: 3770462.508 | N110: 3809412.508 | O110: 38950 | P110: 25 | Q110: 1.03
A111: 159 | B111: LONGMEADOW | C111: 1 | D111: 2758 | E111: 2811 | F111: 53 | G111: 24849640.57 | H111: 25612986.45 | I111: 271.5566987 | J111: 21747129 | K111: 21130714 | L111: -219.2867307 | M111: 4363911 | N111: 4482272 | O111: 118361 | P111: 42.10636784 | Q111: 2.71
A112: 160 | B112: LOWELL | C112: 1 | D112: 15093 | E112: 15300 | F112: 207 | G112: 176078571.8 | H112: 177537953.7 | I112: 95.38443924 | J112: 40949807 | K112: 43089941 | L112: 139.8780392 | M112: 135128765 | N112: 135511265 | O112: 382500 | P112: 25 | Q112: 0.28
A113: 161 | B113: LUDLOW | C113: 1 | D113: 2761 | E113: 2680 | F113: -81 | G113: 27236633.91 | H113: 27187438.54 | I113: -18.35648134 | J113: 14951306 | K113: 15164414 | L113: 79.51791045 | M113: 13351728 | N113: 13418728 | O113: 67000 | P113: 25 | Q113: 0.5
A114: 162 | B114: LUNENBURG | C114: 1 | D114: 1627 | E114: 1647 | F114: 20 | G114: 14945462.86 | H114: 15341249.75 | I114: 240.3077656 | J114: 9374156 | K114: 9249930 | L114: -75.42562234 | M114: 5605871.911 | N114: 6091320 | O114: 485448.089 | P114: 294.7468664 | Q114: 8.66
A115: 163 | B115: LYNN | C115: 1 | D115: 15431 | E115: 16036 | F115: 605 | G115: 181764114.7 | H115: 191949856.6 | I115: 635.1797144 | J115: 43133574 | K115: 44587175 | L115: 90.64610876 | M115: 138630541 | N115: 147362682 | O115: 8732141 | P115: 544.5336119 | Q115: 6.3
A116: 164 | B116: LYNNFIELD | C116: 1 | D116: 2117 | E116: 2104 | F116: -13 | G116: 19490234.62 | H116: 19743094.6 | I116: 120.1805954 | J116: 17091539 | K116: 16288053 | L116: -381.884981 | M116: 4036801 | N116: 4089401 | O116: 52600 | P116: 25 | Q116: 1.3
A117: 165 | B117: MALDEN | C117: 1 | D117: 7309 | E117: 7395 | F117: 86 | G117: 80737953.75 | H117: 84059175.64 | I117: 449.1172265 | J117: 34410984 | K117: 35620417 | L117: 163.5473969 | M117: 47246321 | N117: 48438759 | O117: 1192438 | P117: 161.2492224 | Q117: 2.52
A118: 167 | B118: MANSFIELD | C118: 1 | D118: 4357 | E118: 4171 | F118: -186 | G118: 41985292.05 | H118: 40931631.92 | I118: -252.6157104 | J118: 26566576 | K118: 25990129 | L118: -138.2035483 | M118: 18283964 | N118: 18388239 | O118: 104275 | P118: 25 | Q118: 0.57
A119: 168 | B119: MARBLEHEAD | C119: 1 | D119: 3366 | E119: 3308 | F119: -58 | G119: 30687140.55 | H119: 30592758.85 | I119: -28.53134825 | J119: 25404870 | K119: 25239026 | L119: -50.13422007 | M119: 5381364 | N119: 5464064 | O119: 82700 | P119: 25 | Q119: 1.54
A120: 169 | B120: MARION | C120: 1 | D120: 448 | E120: 439 | F120: -9 | G120: 3955020.5 | H120: 4014302.57 | I120: 135.0388838 | J120: 3359179 | K120: 3311800 | L120: -107.9248292 | M120: 595842 | N120: 702503 | O120: 106661 | P120: 242.9635535 | Q120: 17.9
A121: 170 | B121: MARLBOROUGH | C121: 1 | D121: 4798 | E121: 4976 | F121: 178 | G121: 52135804.35 | H121: 55409404.92 | I121: 657.8779275 | J121: 32592161 | K121: 32195951 | L121: -79.62419614 | M121: 19543643 | N121: 23213454 | O121: 3669811 | P121: 737.5022106 | Q121: 18.78
A122: 171 | B122: MARSHFIELD | C122: 1 | D122: 4299 | E122: 4193 | F122: -106 | G122: 40490934.45 | H122: 40254049.28 | I122: -56.4953896 | J122: 31137078 | K122: 31962838 | L122: 196.9377534 | M122: 13963368 | N122: 14068193 | O122: 104825 | P122: 25 | Q122: 0.75
A123: 172 | B123: MASHPEE | C123: 1 | D123: 1734 | E123: 1688 | F123: -46 | G123: 16847491.77 | H123: 16578175.3 | I123: -159.5476718 | J123: 14820989 | K123: 13676995 | L123: -677.721564 | M123: 4359861 | N123: 4402061 | O123: 42200 | P123: 25 | Q123: 0.97
A124: 173 | B124: MATTAPOISETT | C124: 1 | D124: 511 | E124: 510 | F124: -1 | G124: 4564402.37 | H124: 4686148.55 | I124: 238.718 | J124: 3935161 | K124: 3866072 | L124: -135.4686275 | M124: 661547.1547 | N124: 820077 | O124: 158529.8453 | P124: 310.8428338 | Q124: 23.96
A125: 174 | B125: MAYNARD | C125: 1 | D125: 1393 | E125: 1384 | F125: -9 | G125: 13617361.22 | H125: 13850824.28 | I125: 168.687188 | J125: 9450152 | K125: 9037642 | L125: -298.0563584 | M125: 4180312.553 | N125: 4813182 | O125: 632869.4471 | P125: 457.2756121 | Q125: 15.14
A126: 175 | B126: MEDFIELD | C126: 1 | D126: 2578 | E126: 2538 | F126: -40 | G126: 23366471.62 | H126: 23395043.48 | I126: 11.25762993 | J126: 20811592 | K126: 19300911 | L126: -595.2249803 | M126: 5862409 | N126: 5925859 | O126: 63450 | P126: 25 | Q126: 1.08
A127: 176 | B127: MEDFORD | C127: 1 | D127: 4990 | E127: 4896 | F127: -94 | G127: 52268719.31 | H127: 52826959.86 | I127: 114.0197222 | J127: 45014043 | K127: 43582242 | L127: -292.4430147 | M127: 11332041 | N127: 11454441 | O127: 122400 | P127: 25 | Q127: 1.08
A128: 177 | B128: MEDWAY | C128: 1 | D128: 2351 | E128: 2331 | F128: -20 | G128: 21554025.02 | H128: 21958660.34 | I128: 173.5887236 | J128: 14114067 | K128: 14185958 | L128: 30.84126984 | M128: 10117244 | N128: 10175519 | O128: 58275 | P128: 25 | Q128: 0.58
A129: 178 | B129: MELROSE | C129: 1 | D129: 3727 | E129: 3732 | F129: 5 | G129: 35264711.85 | H129: 36086251.43 | I129: 220.1338643 | J129: 28117748 | K129: 29102972 | L129: 263.9935691 | M129: 7867296 | N129: 7960596 | O129: 93300 | P129: 25 | Q129: 1.19
A130: 181 | B130: METHUEN | C130: 1 | D130: 7098 | E130: 7112 | F130: 14 | G130: 73674473.94 | H130: 75476679.29 | I130: 253.4034519 | J130: 33532493 | K130: 33685127 | L130: 21.46147357 | M130: 40839452.12 | N130: 41791552 | O130: 952099.8822 | P130: 133.8723119 | Q130: 2.33
A131: 182 | B131: MIDDLEBOROUGH | C131: 1 | D131: =VLOOKUP(A131,aidcalc,17) -> 3299 | E131: =VLOOKUP(A131,aidcalc,18) -> 3217 | F131: =E131-D131 -> -82 | G131: =VLOOKUP(A131,aidcalc,4) -> 32073963.21 | H131: =VLOOKUP(A131,aidcalc,6) -> 32000342.63 | I131: =(H131-G131)/$E131 -> -22.88485546 | J131: =SUMIF(dist1755,A131,pynetmin) -> 15945136 | K131: =VLOOKUP(A131,aidcalc,7) -> 15610347 | L131: =(K131-J131)/$E131 -> -104.0686975 | M131: 17459284 | N131: 17539709 | O131: =N131-M131 -> 80425 | P131: =(N131-M131)/$E131 -> 25 | Q131: 0.46
A132: 184 | B132: MIDDLETON | C132: 1 | D132: 743 | E132: 729 | F132: -14 | G132: 6500381.759 | H132: 6509297.984 | I132: 12.23076169 | J132: 5534548 | K132: 5370171 | L132: -225.4828532 | M132: 1550526 | N132: 1568751 | O132: 18225 | P132: 25 | Q132: 1.18
A133: 185 | B133: MILFORD | C133: 1 | D133: 4207 | E133: 4221 | F133: 14 | G133: 43366941.91 | H133: 44418717.09 | I133: 249.176779 | J133: 23509175 | K133: 22720588 | L133: -186.8246861 | M133: 20022624.3 | N133: 21698129 | O133: 1675504.698 | P133: 396.9449651 | Q133: 8.37
A134: 186 | B134: MILLBURY | C134: 1 | D134: 1781 | E134: 1757 | F134: -24 | G134: 17048501.06 | H134: 17130949.16 | I134: 46.92549801 | J134: 10443623 | K134: 10272343 | L134: -97.48434832 | M134: 6879057.845 | N134: 6922982.845 | O134: 43925 | P134: 25 | Q134: 0.64
A135: 187 | B135: MILLIS | C135: 1 | D135: 1308 | E135: 1277 | F135: -31 | G135: 12356473.85 | H135: 12205625.69 | I135: -118.126982 | J135: 8219727 | K135: 8055578 | L135: -128.5426782 | M135: 4625471.532 | N135: 4657396.532 | O135: 31925 | P135: 25 | Q135: 0.69
A136: 189 | B136: MILTON | C136: 1 | D136: 3762 | E136: 3860 | F136: 98 | G136: 35082060.98 | H136: 36501504.89 | I136: 367.7315816 | J136: 29715046 | K136: 30113742 | L136: 103.2891192 | M136: 5964021.642 | N136: 6387763 | O136: 423741.3576 | P136: 109.7775538 | Q136: 7.1
A137: 191 | B137: MONSON | C137: 1 | D137: 1172 | E137: 1096 | F137: -76 | G137: 11227559.51 | H137: 10642912.68 | I137: -533.4368887 | J137: 5516259 | K137: 5358402 | L137: -144.0301095 | M137: 7372025 | N137: 7399425 | O137: 27400 | P137: 25 | Q137: 0.37
A138: 196 | B138: NAHANT | C138: 1 | D138: 298 | E138: 282 | F138: -16 | G138: 2670798.36 | H138: 2552657.54 | I138: -418.939078 | J138: 2403719 | K138: 2105943 | L138: -1055.943262 | M138: =VLOOKUP(A138,disthist,37) -> 477893 | N138: =VLOOKUP(A138,aidcalc,35) -> 484943 | O138: 7050 | P138: 25 | Q138: =ROUND(IF(G138>0,(N138-M138)*100/M138,100),2) -> 1.48
A139: 197 | B139: NANTUCKET | C139: 1 | D139: 1480 | E139: 1552 | F139: 72 | G139: 13869821.48 | H139: 15206451.73 | I139: 861.2308312 | J139: 11742876 | K139: 12225508 | L139: 310.9742268 | M139: 2126945 | N139: 2980944 | O139: 853999 | P139: 550.2570876 | Q139: 40.15
A140: 198 | B140: NATICK | C140: 1 | D140: 5333 | E140: 5417 | F140: 84 | G140: 49956678.08 | H140: 51546022.22 | I140: 293.3993235 | J140: 41275438 | K140: 42525468 | L140: 230.7605686 | M140: 8681240 | N140: 9020554 | O140: 339314 | P140: 62.63872992 | Q140: 3.91
A141: 199 | B141: NEEDHAM | C141: 1 | D141: 5327 | E141: 5362 | F141: 35 | G141: 50670510.32 | H141: 51969545.14 | I141: 242.2668449 | J141: 43099948 | K141: 42874874 | L141: -41.97575532 | M141: 8239739.764 | N141: 9094671 | O141: 854931.2356 | P141: 159.4426027 | Q141: 10.38
A142: 201 | B142: NEW BEDFORD | C142: 1 | D142: 13193 | E142: 13211 | F142: 18 | G142: 146174509.7 | H142: 149495329.9 | I142: 251.3678147 | J142: 22672562 | K142: 24366967 | L142: 128.2571342 | M142: 123501948 | N142: 125128363 | O142: 1626415 | P142: 123.1106654 | Q142: 1.32
A143: 204 | B143: NEWBURYPORT | C143: 1 | D143: 2420 | E143: 2445 | F143: 25 | G143: 22313844.75 | H143: 22958152.76 | I143: 263.5206616 | J143: 18921662 | K143: 18940476 | L143: 7.694887526 | M143: 3658991.666 | N143: 4017677 | O143: 358685.3339 | P143: 146.7015681 | Q143: 9.8
A144: 207 | B144: NEWTON | C144: 1 | D144: 12650 | E144: 12711 | F144: 61 | G144: 123275321.5 | H144: 126316298.7 | I144: 239.239807 | J144: 103657391 | K144: 104210946 | L144: 43.54928802 | M144: 19617930 | N144: 22105353 | O144: 2487423 | P144: 195.690583 | Q144: 12.68
A145: 208 | B145: NORFOLK | C145: 1 | D145: 835 | E145: 803 | F145: -32 | G145: 7315213.061 | H145: 7167206.046 | I145: -184.3175783 | J145: 6240752 | K145: 5912945 | L145: -408.2278954 | M145: 3312405 | N145: 3332480 | O145: 20075 | P145: 25 | Q145: 0.61
A146: 209 | B146: NORTH ADAMS | C146: 1 | D146: 1554 | E146: 1545 | F146: -9 | G146: 16417451.11 | H146: 16664714.39 | I146: 160.0409579 | J146: 4941966 | K146: 5022499 | L146: 52.12491909 | M146: 13556793 | N146: 13595418 | O146: 38625 | P146: 25 | Q146: 0.28
A147: 210 | B147: NORTHAMPTON | C147: 1 | D147: 2805 | E147: 2767 | F147: -38 | G147: 27395100.53 | H147: 27323757.34 | I147: -25.78358872 | J147: 22476877 | K147: 22542100 | L147: 23.57173834 | M147: 7093554 | N147: 7162729 | O147: 69175 | P147: 25 | Q147: 0.98
A148: 211 | B148: NORTH ANDOVER | C148: 1 | D148: 4687 | E148: 4834 | F148: 147 | G148: 43286349.48 | H148: 45462873.92 | I148: 450.2532975 | J148: 36224040 | K148: 37506871 | L148: 265.3767067 | M148: 7262285.675 | N148: 7956003 | O148: 693717.3252 | P148: 143.5079283 | Q148: 9.55
A149: 212 | B149: NORTH ATTLEBOROUGH | C149: 1 | D149: 4586 | E149: 4558 | F149: -28 | G149: 42114635.47 | H149: 42858323.11 | I149: 163.1609566 | J149: 24223806 | K149: 25023400 | L149: 175.4265029 | M149: 19941736 | N149: 20055686 | O149: 113950 | P149: 25 | Q149: 0.57
A150: 213 | B150: NORTHBOROUGH | C150: 1 | D150: 1779 | E150: 1755 | F150: -24 | G150: 15486011.71 | H150: 15526446.37 | I150: 23.03969231 | J150: 13010542 | K150: 12557223 | L150: -258.3014245 | M150: 3712560.038 | N150: 3756435.038 | O150: 43875 | P150: 25 | Q150: 1.18
A151: 214 | B151: NORTHBRIDGE | C151: 1 | D151: 2566 | E151: 2435 | F151: -131 | G151: 24874347.92 | H151: 24091597.78 | I151: -321.457963 | J151: 9900452 | K151: 10435707 | L151: 219.8172485 | M151: 15214206 | N151: 15275081 | O151: 60875 | P151: 25 | Q151: 0.4
A152: 215 | B152: NORTH BROOKFIELD | C152: 1 | D152: 639 | E152: 635 | F152: -4 | G152: 6138607.57 | H152: 6330664.13 | I152: 302.4512756 | J152: 2853212 | K152: 2817346 | L152: -56.48188976 | M152: 4187213 | N152: 4203088 | O152: 15875 | P152: 25 | Q152: 0.38
A153: 217 | B153: NORTH READING | C153: 1 | D153: 2545 | E153: 2501 | F153: -44 | G153: 23706840.71 | H153: 23928340.86 | I153: 88.56463242 | J153: 19832830 | K153: 19740881 | L153: -36.76489404 | M153: 6739782 | N153: 6802307 | O153: 62525 | P153: 25 | Q153: 0.93
A154: 218 | B154: NORTON | C154: 1 | D154: 2685 | E154: 2611 | F154: -74 | G154: 24839826.12 | H154: 24716889.33 | I154: -47.08417848 | J154: 15755447 | K154: 15331089 | L154: -162.5270011 | M154: 12395800 | N154: 12461075 | O154: 65275 | P154: 25 | Q154: 0.53
A155: 219 | B155: NORWELL | C155: 1 | D155: 2210 | E155: 2202 | F155: -8 | G155: 20295768.49 | H155: 20603272.4 | I155: 139.6475506 | J155: 17370172 | K155: 16997699 | L155: -169.1521344 | M155: 3362602.944 | N155: 3605573 | O155: 242970.0563 | P155: 110.340625 | Q155: 7.23
A156: 220 | B156: NORWOOD | C156: 1 | D156: 3491 | E156: 3492 | F156: 1 | G156: 35458013.18 | H156: 36030240.36 | I156: 163.8680361 | J156: 31475235 | K156: 29724948 | L156: -501.2276632 | M156: 5663726.388 | N156: 6305292 | O156: 641565.6115 | P156: 183.7244019 | Q156: 11.33
A157: 221 | B157: OAK BLUFFS | C157: 1 | D157: 409 | E157: 434 | F157: 25 | G157: 3839529.98 | H157: 4306524.25 | I157: 1076.023664 | J157: 3213640 | K157: 3420717 | L157: 477.1359447 | M157: 650652 | N157: 885807 | O157: 235155 | P157: 541.8317972 | Q157: 36.14
A158: 223 | B158: ORANGE | C158: 1 | D158: 621 | E158: 626 | F158: 5 | G158: 6225638.22 | H158: 6497667.14 | I158: 434.5509904 | J158: 1814005 | K158: 1842295 | L158: 45.19169329 | M158: 5173729 | N158: 5189379 | O158: 15650 | P158: 25 | Q158: 0.3
A159: 224 | B159: ORLEANS | C159: 1 | D159: 212 | E159: 223 | F159: 11 | G159: 1909216.98 | H159: 2072439.67 | I159: 731.9403139 | J159: 1715171 | K159: 1709763 | L159: -24.25112108 | M159: 279616 | N159: 362677 | O159: 83061 | P159: 372.470852 | Q159: 29.71
A160: 226 | B160: OXFORD | C160: 1 | D160: 1942 | E160: 1934 | F160: -8 | G160: 18717632.59 | H160: 19226330.56 | I160: 263.02894 | J160: 9144757 | K160: 9103172 | L160: -21.50206825 | M160: 10258149 | N160: 10306499 | O160: 48350 | P160: 25 | Q160: 0.47
A161: 227 | B161: PALMER | C161: 1 | D161: 1533 | E161: 1501 | F161: -32 | G161: 15478309.11 | H161: 15466730.4 | I161: -7.713997335 | J161: 6819446 | K161: 6526230 | L161: -195.3471019 | M161: 10664455 | N161: 10701980 | O161: 37525 | P161: 25 | Q161: 0.35
A162: 229 | B162: PEABODY | C162: 1 | D162: 5990 | E162: 5970 | F162: -20 | G162: 61102630.28 | H162: 62367587.5 | I162: 211.8856315 | J162: 44118255 | K162: 45049402 | L162: 155.9710218 | M162: 18597967 | N162: 18747217 | O162: 149250 | P162: 25 | Q162: 0.8
A163: 230 | B163: PELHAM | C163: 1 | D163: 70 | E163: 73 | F163: 3 | G163: 689081.27 | H163: 696611.65 | I163: 103.1558904 | J163: 620173 | K163: 574705 | L163: -622.8493151 | M163: 222256 | N163: 224081 | O163: 1825 | P163: 25 | Q163: 0.82
A164: 231 | B164: PEMBROKE | C164: 1 | D164: 3252 | E164: 3179 | F164: -73 | G164: 30579313.62 | H164: 30953452 | I164: 117.6905898 | J164: 18171451 | K164: 18500755 | L164: 103.5872916 | M164: 13095032.3 | N164: 13174507.3 | O164: 79475 | P164: 25 | Q164: 0.61
A165: 234 | B165: PETERSHAM | C165: 1 | D165: 57 | E165: 58 | F165: 1 | G165: 566086.55 | H165: 611232.31 | I165: 778.3751724 | J165: 454106 | K165: 466259 | L165: 209.5344828 | M165: 424308 | N165: 425758 | O165: 1450 | P165: 25 | Q165: 0.34
A166: 236 | B166: PITTSFIELD | C166: 1 | D166: 6269 | E166: 6192 | F166: -77 | G166: 67481752.38 | H166: 68905111.57 | I166: 229.8706702 | J166: 29005679 | K166: 28464819 | L166: -87.34819121 | M166: 39447162.63 | N166: 40440293 | O166: 993130.3726 | P166: 160.3892721 | Q166: 2.52
A167: 238 | B167: PLAINVILLE | C167: 1 | D167: 740 | E167: 713 | F167: -27 | G167: 6579213.38 | H167: 6450343.16 | I167: -180.7436466 | J167: 4253996 | K167: 4374579 | L167: 169.1206171 | M167: 2806755.596 | N167: 2824580.596 | O167: 17825 | P167: 25 | Q167: 0.64
A168: 239 | B168: PLYMOUTH | C168: 1 | D168: 8126 | E168: 8064 | F168: -62 | G168: 83619257.17 | H168: 84831859.54 | I168: 150.3723172 | J168: 61240645 | K168: 60349251 | L168: -110.5399306 | M168: 23670916.51 | N168: 24482609 | O168: 811692.4905 | P168: 100.6563108 | Q168: 3.43
A169: 240 | B169: PLYMPTON | C169: 1 | D169: 249 | E169: 227 | F169: -22 | G169: 2194273.03 | H169: 2074615.86 | I169: -527.1240969 | J169: 1544590 | K169: 1557980 | L169: 58.98678414 | M169: 702595.2589 | N169: 708270.2589 | O169: 5675 | P169: 25 | Q169: 0.81
A170: 242 | B170: PROVINCETOWN | C170: 1 | D170: 147 | E170: 129 | F170: -18 | G170: 1414247.54 | H170: 1284862.27 | I170: -1002.986589 | J170: 1209208 | K170: 1060011 | L170: -1156.565891 | M170: 269641 | N170: 272866 | O170: 3225 | P170: 25 | Q170: 1.2
A171: 243 | B171: QUINCY | C171: 1 | D171: 9356 | E171: 9295 | F171: -61 | G171: 108294787.8 | H171: 109837246.2 | I171: 165.9449582 | J171: 82452996 | K171: 83899688 | L171: 155.641958 | M171: 26024786.29 | N171: 26257161.29 | O171: 232375 | P171: 25 | Q171: 0.89
A172: 244 | B172: RANDOLPH | C172: 1 | D172: 3333 | E172: 3295 | F172: -38 | G172: 35955443.99 | H172: 36417465.61 | I172: 140.2190055 | J172: 20964754 | K172: 20444408 | L172: -157.9198786 | M172: 14990690 | N172: 15973058 | O172: 982368 | P172: 298.1389985 | Q172: 6.55
A173: 246 | B173: READING | C173: 1 | D173: 4269 | E173: 4245 | F173: -24 | G173: 38963364.69 | H173: 39638139.19 | I173: 158.9574806 | J173: 30125539 | K173: 31807445 | L173: 396.2087161 | M173: 10126574 | N173: 10232699 | O173: 106125 | P173: 25 | Q173: 1.05
A174: 248 | B174: REVERE | C174: 1 | D174: 6923 | E174: 7135 | F174: 212 | G174: 79960501.1 | H174: 84281832.12 | I174: 605.6525604 | J174: 29010426 | K174: 29875530 | L174: 121.2479327 | M174: 50950075 | N174: 54406302 | O174: 3456227 | P174: 484.4046251 | Q174: 6.78
A175: 249 | B175: RICHMOND | C175: 1 | D175: 146 | E175: 123 | F175: -23 | G175: 1381559.82 | H175: 1238912.19 | I175: -1159.736829 | J175: 1243404 | K175: 1022103 | L175: -1799.195122 | M175: 344169 | N175: 347244 | O175: 3075 | P175: 25 | Q175: 0.89
A176: 250 | B176: ROCHESTER | C176: 1 | D176: 486 | E176: 476 | F176: -10 | G176: 4252932.9 | H176: 4382165.56 | I176: 271.4971849 | J176: 2742703 | K176: 2799991 | L176: 120.3529412 | M176: 1750422 | N176: 1762322 | O176: 11900 | P176: 25 | Q176: 0.68
A177: 251 | B177: ROCKLAND | C177: 1 | D177: 2253 | E177: 2326 | F177: 73 | G177: 23580543.14 | H177: 25189073.02 | I177: 691.5433712 | J177: 12524805 | K177: 12069060 | L177: -195.9350817 | M177: 11055738 | N177: 13120013 | O177: 2064275 | P177: 887.4785039 | Q177: 18.67
A178: 252 | B178: ROCKPORT | C178: 1 | D178: 805 | E178: 777 | F178: -28 | G178: 7619731.098 | H178: 7726823.844 | I178: 137.8285019 | J178: 6857758 | K178: 6374630 | L178: -621.7863578 | M178: 1377981 | N178: 1397406 | O178: 19425 | P178: 25 | Q178: 1.41
A179: 253 | B179: ROWE | C179: 1 | D179: 63 | E179: 70 | F179: 7 | G179: 618393.5 | H179: 676330.15 | I179: 827.6664286 | J179: 525865 | K179: 545165 | L179: 275.7142857 | M179: 103362 | N179: 131165 | O179: 27803 | P179: 397.1857143 | Q179: 26.9
A180: 258 | B180: SALEM | C180: 1 | D180: 4784 | E180: 4671 | F180: -113 | G180: 52070759.63 | H180: 52542429.83 | I180: 100.97842 | J180: 31881386 | K180: 31053555 | L180: -177.2277885 | M180: 21231627.19 | N180: 21488875 | O180: 257247.8088 | P180: 55.07339089 | Q180: 1.21
A181: 261 | B181: SANDWICH | C181: 1 | D181: 3093 | E181: 2977 | F181: -116 | G181: 28304004.25 | H181: 27987804.33 | I181: -106.2142828 | J181: 24542435 | K181: 23089938 | L181: -487.9062815 | M181: 6665593 | N181: 6740018 | O181: 74425 | P181: 25 | Q181: 1.12
A182: 262 | B182: SAUGUS | C182: 1 | D182: 2882 | E182: 2855 | F182: -27 | G182: 28469688.99 | H182: 28704386.5 | I182: 82.20578175 | J182: 23886601 | K182: 23424459 | L182: -161.8711033 | M182: 5266627.018 | N182: 5338002.018 | O182: 71375 | P182: 25 | Q182: 1.36
A183: 263 | B183: SAVOY | C183: 1 | D183: 65 | E183: 62 | F183: -3 | G183: 600300.83 | H183: 592852.67 | I183: -120.1316129 | J183: 298627 | K183: 315161 | L183: 266.6774194 | M183: 505329 | N183: 506879 | O183: 1550 | P183: 25 | Q183: 0.31
A184: 264 | B184: SCITUATE | C184: 1 | D184: 3035 | E184: 3008 | F184: -27 | G184: 27783603.55 | H184: 28197734 | I184: 137.6763451 | J184: 23886438 | K184: 23263130 | L184: -207.2167553 | M184: 5110701 | N184: 5185901 | O184: 75200 | P184: 25 | Q184: 1.47
A185: 265 | B185: SEEKONK | C185: 1 | D185: 2011 | E185: 1931 | F185: -80 | G185: 18854298.62 | H185: 18460114.68 | I185: -204.1346142 | J185: 14466350 | K185: 13812195 | L185: -338.7648887 | M185: 4931239.974 | N185: 4979514.974 | O185: 48275 | P185: 25 | Q185: 0.98
A186: 266 | B186: SHARON | C186: 1 | D186: 3381 | E186: 3414 | F186: 33 | G186: 31433647.07 | H186: 32275546.17 | I186: 246.6019621 | J186: 25641123 | K186: 26573303 | L186: 273.04628 | M186: 6865177 | N186: 6950527 | O186: 85350 | P186: 25 | Q186: 1.24
A187: 269 | B187: SHERBORN | C187: 1 | D187: 379 | E187: 378 | F187: -1 | G187: 3327431.351 | H187: 3380505.084 | I187: 140.4067022 | J187: 2944257 | K187: 2788917 | L187: -410.952381 | M187: 545223 | N187: 591588 | O187: 46365 | P187: 122.6587302 | Q187: 8.5
A188: 271 | B188: SHREWSBURY | C188: 1 | D188: 5943 | E188: 5993 | F188: 50 | G188: 55423621.55 | H188: 57096131.69 | I188: 279.0772802 | J188: 38578814 | K188: 40658212 | L188: 346.971133 | M188: 19045813 | N188: 19195638 | O188: 149825 | P188: 25 | Q188: 0.79
A189: 272 | B189: SHUTESBURY | C189: 1 | D189: 141 | E189: 146 | F189: 5 | G189: 1268845.75 | H189: 1336733.09 | I189: 464.9817808 | J189: 689268 | K189: 716351 | L189: 185.5 | M189: 593590.4602 | N189: 620382 | O189: 26791.53979 | P189: 183.5036972 | Q189: 4.51
A190: 273 | B190: SOMERSET | C190: 1 | D190: 1808 | E190: 1802 | F190: -6 | G190: 16069095.37 | H190: 16337259.26 | I190: 148.8145893 | J190: 11192906 | K190: 10727871 | L190: -258.0660377 | M190: 5217678.062 | N190: 5609388 | O190: 391709.9379 | P190: 217.3751042 | Q190: 7.51
A191: 274 | B191: SOMERVILLE | C191: 1 | D191: 5351 | E191: 5396 | F191: 45 | G191: 62767269.55 | H191: 64208758.29 | I191: 267.1402407 | J191: 52703692 | K191: 52972226 | L191: 49.76538176 | M191: 19582488 | N191: 19717388 | O191: 134900 | P191: 25 | Q191: 0.69
A192: 275 | B192: SOUTHAMPTON | C192: 1 | D192: 496 | E192: 490 | F192: -6 | G192: 4598039.57 | H192: 4683286.64 | I192: 173.9736122 | J192: 2840365 | K192: 2974492 | L192: 273.7285714 | M192: 2468676 | N192: 2480926 | O192: 12250 | P192: 25 | Q192: 0.5
A193: 276 | B193: SOUTHBOROUGH | C193: 1 | D193: 1323 | E193: 1274 | F193: -49 | G193: 11801364.19 | H193: 11574099.81 | I193: -178.3864873 | J193: 10384154 | K193: 9548633 | L193: -655.8249608 | M193: 2777761 | N193: 2809611 | O193: 31850 | P193: 25 | Q193: 1.15
A194: 277 | B194: SOUTHBRIDGE | C194: 1 | D194: =VLOOKUP(A194,aidcalc,17) -> 2432 | E194: =VLOOKUP(A194,aidcalc,18) -> 2437 | F194: =E194-D194 -> 5 | G194: =VLOOKUP(A194,aidcalc,4) -> 26907889.43 | H194: =VLOOKUP(A194,aidcalc,6) -> 27590853.96 | I194: =(H194-G194)/$E194 -> 280.2480632 | J194: =SUMIF(dist1755,A194,pynetmin) -> 7788520 | K194: =VLOOKUP(A194,aidcalc,7) -> 7681091 | L194: =(K194-J194)/$E194 -> -44.08247846 | M194: 19119369 | N194: 19909763 | O194: =N194-M194 -> 790394 | P194: =(N194-M194)/$E194 -> 324.3307345 | Q194: 4.13
A195: 278 | B195: SOUTH HADLEY | C195: 1 | D195: 1934 | E195: 1921 | F195: -13 | G195: 19070528.08 | H195: 19296183.16 | I195: 117.4675065 | J195: 12680992 | K195: 12744778 | L195: 33.20458095 | M195: 7724754 | N195: 7772779 | O195: 48025 | P195: 25 | Q195: 0.62
A196: 281 | B196: SPRINGFIELD | C196: 1 | D196: 28755 | E196: 28970 | F196: 215 | G196: 337653427.3 | H196: 345592031.4 | I196: 274.0284484 | J196: 36066908 | K196: 36405937 | L196: 11.70276148 | M196: 301586519 | N196: 309186094 | O196: 7599575 | P196: 262.3256817 | Q196: 2.52
A197: 284 | B197: STONEHAM | C197: 1 | D197: 2339 | E197: 2378 | F197: 39 | G197: 22756236.46 | H197: 23623782.04 | I197: 364.8215239 | J197: 19732979 | K197: 19489620 | L197: -102.3376787 | M197: 3779409.383 | N197: 4134162 | O197: 354752.6168 | P197: 149.1810836 | Q197: 9.39
A198: 285 | B198: STOUGHTON | C198: 1 | D198: 3696 | E198: 3724 | F198: 28 | G198: 37491590.6 | H198: 38474628.72 | I198: 263.9737154 | J198: 23503750 | K198: 22627873 | L198: -235.1979055 | M198: 14600824.15 | N198: 15846756 | O198: 1245931.852 | P198: 334.5681664 | Q198: 8.53
A199: 287 | B199: STURBRIDGE | C199: 1 | D199: 911 | E199: 934 | F199: 23 | G199: 8029576.19 | H199: 8483866.08 | I199: 486.3917452 | J199: 4960281 | K199: 4796546 | L199: -175.3051392 | M199: 3069295 | N199: 3687320 | O199: 618025 | P199: 661.6970021 | Q199: 20.14
A200: 288 | B200: SUDBURY | C200: 1 | D200: 2766 | E200: 2727 | F200: -39 | G200: 24443508.48 | H200: 24450575.49 | I200: 2.591497913 | J200: 21216573 | K200: 20171725 | L200: -383.1492483 | M200: 4466220 | N200: 4534395 | O200: 68175 | P200: 25 | Q200: 1.53
A201: 289 | B201: SUNDERLAND | C201: 1 | D201: 173 | E201: 175 | F201: 2 | G201: 1659835.83 | H201: 1744222.4 | I201: 482.2089714 | J201: 1346071 | K201: 1415305 | L201: 395.6228571 | M201: 841288 | N201: 845663 | O201: 4375 | P201: 25 | Q201: 0.52
A202: 290 | B202: SUTTON | C202: 1 | D202: 1511 | E202: 1490 | F202: -21 | G202: 13581958.96 | H202: 13719822.63 | I202: 92.52595302 | J202: 9692460 | K202: 9693543 | L202: 0.7268456376 | M202: =VLOOKUP(A202,disthist,37) -> 5239230 | N202: =VLOOKUP(A202,aidcalc,35) -> 5276480 | O202: 37250 | P202: 25 | Q202: =ROUND(IF(G202>0,(N202-M202)*100/M202,100),2) -> 0.71
A203: 291 | B203: SWAMPSCOTT | C203: 1 | D203: 2143 | E203: 2120 | F203: -23 | G203: 19890269.34 | H203: 20062283.01 | I203: 81.13852358 | J203: 16959906 | K203: 16551384 | L203: -192.6990566 | M203: 3140515.208 | N203: 3510899 | O203: 370383.7925 | P203: 174.7093361 | Q203: 11.79
... 133 more rows

Sheet townwide contributions
A1: 1 | B1: 2 | C1: 3 | D1: 4 | E1: 5 | F1: 6 | G1: 7 | H1: 8 | I1: 9 | J1: 10 | K1: 11 | L1: 12 | M1: 13 | N1: 14 | O1: 15 | P1: 16 | Q1: 17 | R1: 18 | S1: 19 | T1: 20 | U1: 21 | V1: 22 | W1: 23 | X1: 24 | Y1: 25 | Z1: 26 | AA1: 27 | AB1: 28 | AC1: 29 | AD1: 30 | AE1: 31 | AF1: 32 | AH1: MRGF UGGA $979.8M & Level PILOT
B2: Return to Index | C2: 1. Calculation of effort goal | M2: 2. Calculation of annual increments toward goal | V2: Cap at 89% | AH2: 2019-02-19
R3: increments | S3: thresholds
D4: property percentage | F4: income percentage | N4: Version | R4: =parameters!C18 -> 0.01 | S4: =parameters!C16 -> 2.5 | U4: effort reduction | AF4: -0.05
D5: =parameters!C29 -> 0.003807820503 | F5: =parameters!C30 -> 0.0149300376 | N5: =mrgfvers -> 1 | R5: =parameters!C19 -> 0.02 | S5: =parameters!C17 -> 7.5 | U5: =effortred -> 1 | AF5: -0.1
I6: maximum | J6: target local | M6: required | P6: preliminary | R6: percentage | S6: dollar | AF6: 0.02
D7: local effort | E7: DOR total | F7: local effort | G7: combined | I7: local contribution | J7: contribution | K7: target | M7: local | O7: preliminary | P7: contribution | Q7: shortfall | R7: increment | S7: increment | U7: excess effort | V7: required | Y7: Before | Z7: After implementation | AF7: 0.01 | AH7: 1 | AI7: 2 | AJ7: 3 | AK7: 4
C8: total | D8: from property | E8: income | F8: from income | G8: effort | H8: FY16 | I8: foundation pct= | J8: (lesser of max local | K8: local | M8: contribution | N8: mrgf | O8: contribution | P8: percentage of | Q8: from target | R8: toward | S8: toward | T8: excess | U8: times effort | V8: contribution | W8: percentage | Y8: below effort | Z8: below effort | AA8: above effort | AB8: distance from | AD8: % distance | AE8: Points | AF8: x% of | AH8: mrgf | AI8: mrgf | AJ8: mrgf | AK8: mrgf
A9: Lea | B9: District | C9: EQV 2014 | D9: wealth | E9: 2012 | F9: wealth | G9: yield | H9: foundation | I9: =maxloc -> 0.825 | J9: or effort yield) | K9: share | M9: FY15 | N9: FY16 | O9: FY16 | P9: foundation | Q9: local share | R9: target | S9: target | T9: effort | U9: reduction % | V9: FY16 | W9: of foundation | Y9: shortfall | Z9: shortfall | AA9: excess | AB9: target | AD9: from target | AE9: from target | AF9: the gap
A10: 1 | B10: ABINGTON | C10: 1759005600 | D10: =D$5*C10 -> 6697977.589 | E10: 496076000 | F10: =E10*F$5 -> 7406433.334 | G10: =ROUND(D10+F10,0) -> 14104411 | H10: =(SUMIF(town1755,A10,found1755)/2) -> 21213859.49 | I10: =ROUND(H10*maxloc,0) -> 17501434 | J10: =MIN(G10,I10) -> 14104411 | K10: =IF(H10>0, ROUND((J10*100/H10), 2), 0) -> 66.49 | M10: =(SUMIF(town1755,A10,pynetmin)/2) -> 14569022 | N10: =IF($N$5=1,AH10, IF( $N$5=2, AI10, IF($N$5=3, AJ10, IF($N$5=4, AK10, 0)))) -> 0.0426 | O10: =ROUND(M10*(1+N10),0) -> 15189662 | P10: =O10*100/H10 -> 71.60253893 | Q10: =IF(K10>P10,K10-P10,0) -> 0 | R10: =IF(AND(Q10>$S$4,Q10<=$S$5),$R$4,IF(Q10>$S$5,$R$5,0)) -> 0 | S10: =ROUND(R10*M10,0) -> 0 | T10: =MAX(O10-J10,0) -> 1085251 | U10: =MAX(T10*(U$5),0) -> 1085251 | V10: =MIN(H10*parameters!C$22,ROUND(O10+S10-U10,0)) -> 14104411 | W10: =V10*100/H10 -> 66.48677487 | Y10: =IF(P10<K10, O10-J10, 0) -> 0 | Z10: =MAX(J10-(O10+S10),0) -> 0 | AA10: =IF(P10>K10, V10-J10,0) -> 0 | AB10: =W10-K10 -> -0.003225131671 | AD10: =(O10-J10)/J10 -> 0.07694408508 | AE10: =P10-K10 -> 5.112538931 | AF10: =IF(AD10<$AF$5, $AF$6*(M10), IF(AND(AD10<$AF$4, AD10>$AF$5), $AF$7*(M10), 0)) -> 0 | AH10: 0.0426
A11: 2 | B11: ACTON | C11: 3865006000 | D11: 14717249.09 | E11: 1355941000 | F11: =E11*F$5 -> 20244250.12 | G11: 34961499 | H11: =(SUMIF(town1755,A11,found1755)/2) -> 45203615 | I11: =ROUND(H11*maxloc,0) -> 37292982 | J11: =MIN(G11,I11) -> 34961499 | K11: =IF(H11>0, ROUND((J11*100/H11), 2), 0) -> 77.34 | M11: =(SUMIF(town1755,A11,pynetmin)/2) -> 33314597 | N11: =IF($N$5=1,AH11, IF( $N$5=2, AI11, IF($N$5=3, AJ11, IF($N$5=4, AK11, 0)))) -> 0.0404 | O11: =ROUND(M11*(1+N11),0) -> 34660507 | P11: =O11*100/H11 -> 76.67640519 | Q11: =IF(K11>P11,K11-P11,0) -> 0.6635948054 | R11: =IF(AND(Q11>$S$4,Q11<=$S$5),$R$4,IF(Q11>$S$5,$R$5,0)) -> 0 | S11: =ROUND(R11*M11,0) -> 0 | T11: =MAX(O11-J11,0) -> 0 | U11: 0 | V11: =MIN(H11*parameters!C$22,ROUND(O11+S11-U11,0)) -> 34660507 | W11: =V11*100/H11 -> 76.67640519 | Y11: =IF(P11<K11, O11-J11, 0) -> -300992 | Z11: 300992 | AA11: =IF(P11>K11, V11-J11,0) -> 0 | AB11: =W11-K11 -> -0.6635948054 | AD11: -0.008609241841 | AE11: =P11-K11 -> -0.6635948054 | AF11: 0 | AH11: 0.0404
A12: 3 | B12: ACUSHNET | C12: 1040797100 | D12: 3963168.537 | E12: 280319000 | F12: =E12*F$5 -> 4185173.211 | G12: 8148342 | H12: 14209920.22 | I12: 11723184 | J12: 8148342 | K12: 57.34 | M12: 7925873 | N12: 0.0312 | O12: 8173160 | P12: 57.51728281 | Q12: 0 | R12: 0 | S12: 0 | T12: 24818 | U12: 24818 | V12: =MIN(H12*parameters!C$22,ROUND(O12+S12-U12,0)) -> 8148342 | W12: 57.34263018 | Y12: 0 | Z12: 0 | AA12: 0 | AB12: 0.002630175583 | AD12: 0.003045772993 | AE12: 0.1772828099 | AF12: 0 | AH12: 0.0312
A13: 4 | B13: ADAMS | C13: 483765400 | D13: 1842091.809 | E13: 163740000 | F13: 2444644.357 | G13: 4286736 | H13: 12746916 | I13: 10516206 | J13: 4286736 | K13: 33.63 | M13: 3843215 | N13: 0.0306 | O13: 3960817 | P13: 31.07274732 | Q13: 2.557252678 | R13: 0.01 | S13: 38432 | T13: 0 | U13: 0 | V13: =MIN(H13*parameters!C$22,ROUND(O13+S13-U13,0)) -> 3999249 | W13: 31.3742477 | Y13: -325919 | Z13: 287487 | AA13: 0 | AB13: -2.2557523 | AD13: -0.0760296412 | AE13: -2.557252678 | AF13: 38432.15 | AH13: 0.0306
A14: 5 | B14: AGAWAM | C14: 2944629200 | D14: 11212619.44 | E14: 738256000 | F14: 11022189.84 | G14: 22234809 | H14: 40806967.85 | I14: 33665748 | J14: 22234809 | K14: 54.49 | M14: 22228633 | N14: 0.0447 | O14: 23222253 | P14: 56.90756805 | Q14: 0 | R14: 0 | S14: 0 | T14: 987444 | U14: 987444 | V14: =MIN(H14*parameters!C$22,ROUND(O14+S14-U14,0)) -> 22234809 | W14: 54.48777543 | Y14: 0 | Z14: 0 | AA14: 0 | AB14: -0.002224574657 | AD14: 0.04440982605 | AE14: 2.417568054 | AF14: 0 | AH14: 0.0447
A15: 6 | B15: ALFORD | C15: 281265800 | D15: 1071009.68 | E15: 19630000 | F15: 293076.6382 | G15: 1364086 | H15: 257395 | I15: 212351 | J15: 212351 | K15: 82.5 | M15: 214237 | N15: 0.0426 | O15: 223363 | P15: 86.77829795 | Q15: 0 | R15: 0 | S15: 0 | T15: 11012 | U15: 11012 | V15: =MIN(H15*parameters!C$22,ROUND(O15+S15-U15,0)) -> 212351 | W15: 82.50004856 | Y15: 0 | Z15: 0 | AA15: 0 | AB15: 4.856349192e-05 | AD15: 0.05185753776 | AE15: 4.278297947 | AF15: 0 | AH15: 0.0426
A16: 7 | B16: AMESBURY | C16: 1849252600 | D16: 7041621.966 | E16: 520578000 | F16: 7772249.115 | G16: 14813871 | H16: 24286481.52 | I16: 20036347 | J16: 14813871 | K16: 61 | M16: 15431697 | N16: 0.0339 | O16: 15954832 | P16: 65.69429164 | Q16: 0 | R16: 0 | S16: 0 | T16: 1140961 | U16: 1140961 | V16: =MIN(H16*parameters!C$22,ROUND(O16+S16-U16,0)) -> 14813871 | W16: 60.99636536 | Y16: 0 | Z16: 0 | AA16: 0 | AB16: -0.003634644233 | AD16: 0.07701977424 | AE16: 4.694291645 | AF16: 0 | AH16: 0.0339
A17: 8 | B17: AMHERST | C17: 2220991600 | D17: 8457137.352 | E17: 656983000 | F17: 9808780.895 | G17: 18265918 | H17: 24862521.26 | I17: 20511580 | J17: 18265918 | K17: 73.47 | M17: 17816817 | N17: 0.0376 | O17: 18486729 | P17: 74.35580972 | Q17: 0 | R17: 0 | S17: 0 | T17: 220811 | U17: 220811 | V17: =MIN(H17*parameters!C$22,ROUND(O17+S17-U17,0)) -> 18265918 | W17: 73.46768177 | Y17: 0 | Z17: 0 | AA17: 0 | AB17: -0.002318227166 | AD17: 0.01208868889 | AE17: 0.8858097213 | AF17: 0 | AH17: 0.0376
A18: 9 | B18: ANDOVER | C18: 7120772800 | D18: 27114624.67 | E18: 2527715000 | F18: 37738880 | G18: 64853505 | H18: 58011803.78 | I18: 47859738 | J18: 47859738 | K18: 82.5 | M18: 49738798 | N18: 0.0408 | O18: 51768141 | P18: 89.23725453 | Q18: 0 | R18: 0 | S18: 0 | T18: 3908403 | U18: 3908403 | V18: =MIN(H18*parameters!C$22,ROUND(O18+S18-U18,0)) -> 47859738 | W18: 82.49999979 | Y18: 0 | Z18: 0 | AA18: 0 | AB18: -2.060606619e-07 | AD18: 0.08166369402 | AE18: 6.737254534 | AF18: 0 | AH18: 0.0408
A19: 10 | B19: ARLINGTON | C19: 7913085100 | D19: 30131607.69 | E19: 2093883000 | F19: 31261751.93 | G19: 61393360 | H19: 52966429.38 | I19: 43697304 | J19: 43697304 | K19: 82.5 | M19: 39737491 | N19: 0.0389 | O19: 41283279 | P19: 77.94234854 | Q19: 4.557651457 | R19: 0.01 | S19: 397375 | T19: 0 | U19: 0 | V19: =MIN(H19*parameters!C$22,ROUND(O19+S19-U19,0)) -> 41680654 | W19: 78.6925879 | Y19: -2414025 | Z19: 2016650 | AA19: 0 | AB19: -3.807412098 | AD19: -0.05524425489 | AE19: -4.557651457 | AF19: 397374.91 | AH19: 0.0389
A20: 11 | B20: ASHBURNHAM | C20: 585465100 | D20: 2229346.012 | E20: 179495000 | F20: 2679867.1 | G20: 4909213 | H20: 11111927 | I20: 9167340 | J20: 4909213 | K20: 44.18 | M20: 5066780 | N20: 0.0297 | O20: 5217263 | P20: 46.95191932 | Q20: 0 | R20: 0 | S20: 0 | T20: 308050 | U20: 308050 | V20: =MIN(H20*parameters!C$22,ROUND(O20+S20-U20,0)) -> 4909213 | W20: 44.17967289 | Y20: 0 | Z20: 0 | AA20: 0 | AB20: -0.0003271133801 | AD20: 0.06274936533 | AE20: 2.771919321 | AF20: 0 | AH20: 0.0297
A21: 12 | B21: ASHBY | C21: 288268400 | D21: 1097674.324 | E21: 86896000 | F21: 1297360.548 | G21: 2395035 | H21: 4585201 | I21: 3782791 | J21: 2395035 | K21: 52.23 | M21: 2489134 | N21: 0.0308 | O21: 2565799 | P21: 55.95826661 | Q21: 0 | R21: 0 | S21: 0 | T21: 170764 | U21: 170764 | V21: =MIN(H21*parameters!C$22,ROUND(O21+S21-U21,0)) -> 2395035 | W21: 52.2340242 | Y21: 0 | Z21: 0 | AA21: 0 | AB21: 0.004024200902 | AD21: 0.07129916682 | AE21: 3.728266606 | AF21: 0 | AH21: 0.0308
A22: 13 | B22: ASHFIELD | C22: 230930200 | D22: 879340.7504 | E22: 46582000 | F22: 695471.0116 | G22: 1574812 | H22: 1915718.66 | I22: 1580468 | J22: 1574812 | K22: 82.2 | M22: 1519261 | N22: 0.0453 | O22: 1588084 | P22: 82.89755866 | Q22: 0 | R22: 0 | S22: 0 | T22: 13272 | U22: 13272 | V22: =MIN(H22*parameters!C$22,ROUND(O22+S22-U22,0)) -> 1574812 | W22: 82.20476382 | Y22: 0 | Z22: 0 | AA22: 0 | AB22: 0.004763824767 | AD22: 0.008427672636 | AE22: 0.6975586634 | AF22: 0 | AH22: 0.0453
A23: 14 | B23: ASHLAND | C23: 2267885700 | D23: 8635701.668 | E23: 729371000 | F23: 10889536.46 | G23: 19525238 | H23: 25250523.49 | I23: 20831682 | J23: 19525238 | K23: 77.33 | M23: 19272138 | N23: 0.0405 | O23: 20052660 | P23: 79.41482879 | Q23: 0 | R23: 0 | S23: 0 | T23: 527422 | U23: 527422 | V23: =MIN(H23*parameters!C$22,ROUND(O23+S23-U23,0)) -> 19525238 | W23: 77.32607209 | Y23: 0 | Z23: 0 | AA23: 0 | AB23: -0.003927906032 | AD23: 0.02701232118 | AE23: 2.084828789 | AF23: 0 | AH23: 0.0405
A24: 15 | B24: ATHOL | C24: 635006300 | D24: 2417990.009 | E24: 202867000 | F24: 3028811.938 | G24: 5446802 | H24: 18166157 | I24: 14987080 | J24: 5446802 | K24: 29.98 | M24: 2355991 | N24: 0.045 | O24: 2462011 | P24: 13.55273435 | Q24: 16.42726565 | R24: 0.02 | S24: 47120 | T24: 0 | U24: 0 | V24: =MIN(H24*parameters!C$22,ROUND(O24+S24-U24,0)) -> 2509131 | W24: 13.81211777 | Y24: -2984791 | Z24: 2937671 | AA24: 0 | AB24: -16.16788223 | AD24: -0.5479896277 | AE24: -16.42726565 | AF24: 47119.82 | AH24: 0.045
A25: 16 | B25: ATTLEBORO | C25: 3884331000 | D25: 14790835.22 | E25: 1192770000 | F25: 17808100.95 | G25: 32598936 | H25: 68949065.25 | I25: 56882979 | J25: 32598936 | K25: 47.28 | M25: 32942451 | N25: 0.0373 | O25: 34171204 | P25: 49.56006855 | Q25: 0 | R25: 0 | S25: 0 | T25: 1572268 | U25: 1572268 | V25: =MIN(H25*parameters!C$22,ROUND(O25+S25-U25,0)) -> 32598936 | W25: 47.27973596 | Y25: 0 | Z25: 0 | AA25: 0 | AB25: -0.0002640357768 | AD25: 0.04823065391 | AE25: 2.280068546 | AF25: 0 | AH25: 0.0373
A26: 17 | B26: AUBURN | C26: 1944459700 | D26: 7404153.514 | E26: 486094000 | F26: 7257401.699 | G26: 14661555 | H26: 24103775.37 | I26: 19885615 | J26: 14661555 | K26: 60.83 | M26: 15378198 | N26: 0.0394 | O26: 15984099 | P26: 66.31367391 | Q26: 0 | R26: 0 | S26: 0 | T26: 1322544 | U26: 1322544 | V26: =MIN(H26*parameters!C$22,ROUND(O26+S26-U26,0)) -> 14661555 | W26: 60.82679902 | Y26: 0 | Z26: 0 | AA26: 0 | AB26: -0.003200982249 | AD26: 0.090204893 | AE26: 5.483673915 | AF26: 0 | AH26: 0.0394
A27: 18 | B27: AVON | C27: 770032900 | D27: 2932147.065 | E27: 120680000 | F27: 1801756.938 | G27: 4733904 | H27: 6321441.85 | I27: 5215190 | J27: 4733904 | K27: 74.89 | M27: 5312524 | N27: 0.0509 | O27: 5582931 | P27: 88.31736703 | Q27: 0 | R27: 0 | S27: 0 | T27: 849027 | U27: 849027 | V27: =MIN(H27*parameters!C$22,ROUND(O27+S27-U27,0)) -> 4733904 | W27: 74.88645965 | Y27: 0 | Z27: 0 | AA27: 0 | AB27: -0.003540354721 | AD27: 0.1793502783 | AE27: 13.42736703 | AF27: 0 | AH27: 0.0509
A28: 19 | B28: AYER | C28: 1012014600 | D28: 3853569.944 | E28: 218920000 | F28: 3268483.832 | G28: 7122054 | H28: 11257286 | I28: 9287261 | J28: 7122054 | K28: 63.27 | M28: 7131436 | N28: 0.0558 | O28: 7529370 | P28: 66.88441601 | Q28: 0 | R28: 0 | S28: 0 | T28: 407316 | U28: 407316 | V28: =MIN(H28*parameters!C$22,ROUND(O28+S28-U28,0)) -> 7122054 | W28: 63.26617268 | Y28: 0 | Z28: 0 | AA28: 0 | AB28: -0.003827318592 | AD28: 0.05719080479 | AE28: 3.614416013 | AF28: 0 | AH28: 0.0558
A29: 20 | B29: BARNSTABLE | C29: 13476184100 | D29: 51314890.12 | E29: 1548890000 | F29: 23124985.94 | G29: 74439876 | H29: 58285519.88 | I29: 48085554 | J29: 48085554 | K29: 82.5 | M29: 48413872 | N29: 0.0357 | O29: 50142247 | P29: 86.02865189 | Q29: 0 | R29: 0 | S29: 0 | T29: 2056693 | U29: 2056693 | V29: =MIN(H29*parameters!C$22,ROUND(O29+S29-U29,0)) -> 48085554 | W29: 82.50000017 | Y29: 0 | Z29: 0 | AA29: 0 | AB29: 1.698535215e-07 | AD29: 0.04277153592 | AE29: 3.52865189 | AF29: 0 | AH29: 0.0357
A30: 21 | B30: BARRE | C30: 406699000 | D30: 1548636.791 | E30: 125961000 | F30: 1880602.467 | G30: 3429239 | H30: 8763136 | I30: 7229587 | J30: 3429239 | K30: 39.13 | M30: 3658003 | N30: 0.0364 | O30: 3791154 | P30: 43.26252611 | Q30: 0 | R30: 0 | S30: 0 | T30: 361915 | U30: 361915 | V30: =MIN(H30*parameters!C$22,ROUND(O30+S30-U30,0)) -> 3429239 | W30: 39.13255483 | Y30: 0 | Z30: 0 | AA30: 0 | AB30: 0.002554829687 | AD30: 0.1055379925 | AE30: 4.132526109 | AF30: 0 | AH30: 0.0364
A31: 22 | B31: BECKET | C31: 516080100 | D31: 1965140.386 | E31: 39148000 | F31: 584481.1121 | G31: 2549621 | H31: 1914605.64 | I31: 1579550 | J31: 1579550 | K31: 82.5 | M31: 1706334 | N31: 0.0388 | O31: 1772540 | P31: 92.57990068 | Q31: 0 | R31: 0 | S31: 0 | T31: 192990 | U31: 192990 | V31: =MIN(H31*parameters!C$22,ROUND(O31+S31-U31,0)) -> 1579550 | W31: 82.50001812 | Y31: 0 | Z31: 0 | AA31: 0 | AB31: 1.812383671e-05 | AD31: 0.1221803678 | AE31: 10.07990068 | AF31: 0 | AH31: 0.0388
A32: 23 | B32: BEDFORD | C32: 3037581300 | D32: 11566564.35 | E32: 771668000 | F32: 11521032.26 | G32: 23087597 | H32: 26323993.23 | I32: 21717294 | J32: 21717294 | K32: 82.5 | M32: 22219720 | N32: 0.0405 | O32: 23119619 | P32: 87.82717272 | Q32: 0 | R32: 0 | S32: 0 | T32: 1402325 | U32: 1402325 | V32: =MIN(H32*parameters!C$22,ROUND(O32+S32-U32,0)) -> 21717294 | W32: 82.49999843 | Y32: 0 | Z32: 0 | AA32: 0 | AB32: -1.57302027e-06 | AD32: 0.06457181083 | AE32: 5.327172719 | AF32: 0 | AH32: 0.0405
A33: 24 | B33: BELCHERTOWN | C33: 1401621900 | D33: 5337124.609 | E33: 438707000 | F33: 6549912.007 | G33: 11887037 | H33: 24385919.62 | I33: 20118384 | J33: 11887037 | K33: 48.75 | M33: 11836105 | N33: 0.0375 | O33: 12279959 | P33: 50.35675993 | Q33: 0 | R33: 0 | S33: 0 | T33: 392922 | U33: 392922 | V33: =MIN(H33*parameters!C$22,ROUND(O33+S33-U33,0)) -> 11887037 | W33: 48.74549406 | Y33: 0 | Z33: 0 | AA33: 0 | AB33: -0.004505939358 | AD33: 0.03305466282 | AE33: 1.606759931 | AF33: 0 | AH33: 0.0375
A34: 25 | B34: BELLINGHAM | C34: 2163943500 | D34: 8239908.427 | E34: 524050000 | F34: 7824086.206 | G34: 16063995 | H34: 25240251.45 | I34: 20823207 | J34: 16063995 | K34: 63.64 | M34: 16312406 | N34: 0.0351 | O34: 16884971 | P34: 66.89699995 | Q34: 0 | R34: 0 | S34: 0 | T34: 820976 | U34: 820976 | V34: =MIN(H34*parameters!C$22,ROUND(O34+S34-U34,0)) -> 16063995 | W34: 63.64435407 | Y34: 0 | Z34: 0 | AA34: 0 | AB34: 0.004354066053 | AD34: 0.05110658961 | AE34: 3.25699995 | AF34: 0 | AH34: 0.0351
A35: 26 | B35: BELMONT | C35: 5760631800 | D35: 21935451.88 | E35: 2012464000 | F35: 30046163.2 | G35: 51981615 | H35: 39688248.94 | I35: 32742805 | J35: 32742805 | K35: 82.5 | M35: 31696182 | N35: 0.0388 | O35: 32925994 | P35: 82.96156892 | Q35: 0 | R35: 0 | S35: 0 | T35: 183189 | U35: 183189 | V35: =MIN(H35*parameters!C$22,ROUND(O35+S35-U35,0)) -> 32742805 | W35: 82.49999905 | Y35: 0 | Z35: 0 | AA35: 0 | AB35: -9.529420311e-07 | AD35: 0.005594786397 | AE35: 0.4615689194 | AF35: 0 | AH35: 0.0388
A36: 27 | B36: BERKLEY | C36: 755363800 | D36: 2876289.765 | E36: 214557000 | F36: 3203344.078 | G36: 6079634 | H36: 11194295.32 | I36: 9235294 | J36: 6079634 | K36: 54.31 | M36: 5482503 | N36: 0.0437 | O36: 5722088 | P36: 51.11610724 | Q36: 3.193892765 | R36: 0.01 | S36: 54825 | T36: 0 | U36: 0 | V36: =MIN(H36*parameters!C$22,ROUND(O36+S36-U36,0)) -> 5776913 | W36: 51.60586562 | Y36: -357546 | Z36: 302721 | AA36: 0 | AB36: -2.70413438 | AD36: -0.05881044813 | AE36: -3.193892765 | AF36: 54825.03 | AH36: 0.0437
A37: 28 | B37: BERLIN | C37: 533595700 | D37: 2031836.647 | E37: 131271000 | F37: 1959880.966 | G37: 3991718 | H37: 3893599.237 | I37: 3212219 | J37: 3212219 | K37: 82.5 | M37: 3257823 | N37: 0.0421 | O37: 3394977 | P37: 87.19379662 | Q37: 0 | R37: 0 | S37: 0 | T37: 182758 | U37: 182758 | V37: =MIN(H37*parameters!C$22,ROUND(O37+S37-U37,0)) -> 3212219 | W37: 82.49999048 | Y37: 0 | Z37: 0 | AA37: 0 | AB37: -9.517106861e-06 | AD37: 0.05689462642 | AE37: 4.693796621 | AF37: 0 | AH37: 0.0421
A38: 29 | B38: BERNARDSTON | C38: 221233900 | D38: 842418.9805 | E38: 53824000 | F38: 803594.344 | G38: 1646013 | H38: 2940952 | I38: 2426285 | J38: 1646013 | K38: 55.97 | M38: 1659745 | N38: 0.0381 | O38: 1722981 | P38: 58.58582527 | Q38: 0 | R38: 0 | S38: 0 | T38: 76968 | U38: 76968 | V38: =MIN(H38*parameters!C$22,ROUND(O38+S38-U38,0)) -> 1646013 | W38: 55.96871353 | Y38: 0 | Z38: 0 | AA38: 0 | AB38: -0.001286467783 | AD38: 0.04676026253 | AE38: 2.61582527 | AF38: 0 | AH38: 0.0381
A39: 30 | B39: BEVERLY | C39: 5684015700 | D39: 21643711.52 | E39: 1565227000 | F39: 23368897.97 | G39: 45012609 | H39: 46657724.69 | I39: 38492623 | J39: 38492623 | K39: 82.5 | M39: 37876412 | N39: 0.036 | O39: 39239963 | P39: 84.10175005 | Q39: 0 | R39: 0 | S39: 0 | T39: 747340 | U39: 747340 | V39: =MIN(H39*parameters!C$22,ROUND(O39+S39-U39,0)) -> 38492623 | W39: 82.50000028 | Y39: 0 | Z39: 0 | AA39: 0 | AB39: 2.751398682e-07 | AD39: 0.01941514872 | AE39: 1.60175005 | AF39: 0 | AH39: 0.036
A40: 31 | B40: BILLERICA | C40: 5566356800 | D40: 21195687.55 | E40: 1320293000 | F40: 19712024.14 | G40: 40907712 | H40: 61175464.58 | I40: 50469758 | J40: 40907712 | K40: 66.87 | M40: 41404499 | N40: 0.0505 | O40: 43495426 | P40: 71.09946168 | Q40: 0 | R40: 0 | S40: 0 | T40: 2587714 | U40: 2587714 | V40: =MIN(H40*parameters!C$22,ROUND(O40+S40-U40,0)) -> 40907712 | W40: 66.86947501 | Y40: 0 | Z40: 0 | AA40: 0 | AB40: -0.0005249938407 | AD40: 0.06325736331 | AE40: 4.229461681 | AF40: 0 | AH40: 0.0505
A41: 32 | B41: BLACKSTONE | C41: 843990300 | D41: 3213763.569 | E41: 236886000 | F41: 3536716.888 | G41: 6750480 | H41: 13949851.82 | I41: 11508628 | J41: 6750480 | K41: 48.39 | M41: 6987662 | N41: 0.0382 | O41: 7254591 | P41: 52.00478897 | Q41: 0 | R41: 0 | S41: 0 | T41: 504111 | U41: 504111 | V41: =MIN(H41*parameters!C$22,ROUND(O41+S41-U41,0)) -> 6750480 | W41: 48.39105165 | Y41: 0 | Z41: 0 | AA41: 0 | AB41: 0.001051654913 | AD41: 0.07467780069 | AE41: 3.614788966 | AF41: 0 | AH41: 0.0382
A42: 33 | B42: BLANDFORD | C42: 172518200 | D42: 656918.3392 | E42: 34811000 | F42: 519729.539 | G42: 1176648 | H42: 1411095.72 | I42: 1164154 | J42: 1164154 | K42: 82.5 | M42: 1171182 | N42: 0.0293 | O42: 1205498 | P42: 85.42992392 | Q42: 0 | R42: 0 | S42: 0 | T42: 41344 | U42: 41344 | V42: =MIN(H42*parameters!C$22,ROUND(O42+S42-U42,0)) -> 1164154 | W42: 82.5000022 | Y42: 0 | Z42: 0 | AA42: 0 | AB42: 2.196874362e-06 | AD42: 0.03551420173 | AE42: 2.929923918 | AF42: 0 | AH42: 0.0293
A43: 34 | B43: BOLTON | C43: 933040100 | D43: 3552849.223 | E43: 315977000 | F43: 4717548.492 | G43: 8270398 | H43: 9710972.255 | I43: 8011552 | J43: 8011552 | K43: 82.5 | M43: 8234259 | N43: 0.047 | O43: 8621269 | P43: 88.77863899 | Q43: 0 | R43: 0 | S43: 0 | T43: 609717 | U43: 609717 | V43: =MIN(H43*parameters!C$22,ROUND(O43+S43-U43,0)) -> 8011552 | W43: 82.49999887 | Y43: 0 | Z43: 0 | AA43: 0 | AB43: -1.133967302e-06 | AD43: 0.07610472977 | AE43: 6.278638986 | AF43: 0 | AH43: 0.047
A44: 35 | B44: BOSTON | C44: 110810609300 | D44: 421946910.1 | E44: 25282673000 | F44: 377471258.6 | G44: 799418169 | H44: 805600562.8 | I44: 664620464 | J44: 664620464 | K44: 82.5 | M44: 627463814 | N44: 0.0477 | O44: 657393838 | P44: 81.60295169 | Q44: 0.8970483148 | R44: 0 | S44: 0 | T44: 0 | U44: 0 | V44: =MIN(H44*parameters!C$22,ROUND(O44+S44-U44,0)) -> 657393838 | W44: 81.60295169 | Y44: -7226626 | Z44: 7226626 | AA44: 0 | AB44: -0.8970483148 | AD44: -0.0108733125 | AE44: -0.8970483148 | AF44: 0 | AH44: 0.0477
A45: 36 | B45: BOURNE | C45: 4220554100 | D45: 16071112.44 | E45: 616131000 | F45: 9198858.999 | G45: 25269971 | H45: 22704003.86 | I45: 18730803 | J45: 18730803 | K45: 82.5 | M45: 19400943 | N45: 0.0396 | O45: 20169220 | P45: 88.83552049 | Q45: 0 | R45: 0 | S45: 0 | T45: 1438417 | U45: 1438417 | V45: =MIN(H45*parameters!C$22,ROUND(O45+S45-U45,0)) -> 18730803 | W45: 82.49999919 | Y45: 0 | Z45: 0 | AA45: 0 | AB45: -8.126319955e-07 | AD45: 0.07679419831 | AE45: 6.335520485 | AF45: 0 | AH45: 0.0396
A46: 37 | B46: BOXBOROUGH | C46: 998009700 | D46: 3800241.798 | E46: 276703000 | F46: 4131186.195 | G46: 7931428 | H46: 7955282 | I46: 6563108 | J46: 6563108 | K46: 82.5 | M46: 7371784 | N46: 0.0345 | O46: 7626111 | P46: 95.86223342 | Q46: =IF(K46>P46,K46-P46,0) -> 0 | R46: 0 | S46: 0 | T46: 1063003 | U46: 1063003 | V46: =MIN(H46*parameters!C$22,ROUND(O46+S46-U46,0)) -> 6563108 | W46: 82.5000044 | Y46: 0 | Z46: 0 | AA46: 0 | AB46: 4.399592626e-06 | AD46: 0.1619664037 | AE46: 13.36223342 | AF46: 0 | AH46: 0.0345
A47: 38 | B47: BOXFORD | C47: 1613407100 | D47: 6143564.636 | E47: 720555000 | F47: 10757913.25 | G47: 16901478 | H47: 14030470.84 | I47: 11575138 | J47: 11575138 | K47: 82.5 | M47: 12127282 | N47: 0.0432 | O47: 12651181 | P47: 90.16932604 | Q47: 0 | R47: 0 | S47: 0 | T47: 1076043 | U47: 1076043 | V47: =MIN(H47*parameters!C$22,ROUND(O47+S47-U47,0)) -> 11575138 | W47: 82.49999682 | Y47: 0 | Z47: 0 | AA47: 0 | AB47: -3.17952265e-06 | AD47: 0.09296156988 | AE47: 7.66932604 | AF47: 0 | AH47: 0.0432
A48: 39 | B48: BOYLSTON | C48: 625053300 | D48: 2380090.771 | E48: 216600000 | F48: 3233846.145 | G48: 5613937 | H48: 5693286.3 | I48: 4696961 | J48: 4696961 | K48: 82.5 | M48: 4843480 | N48: 0.0612 | O48: 5139901 | P48: 90.28003738 | Q48: 0 | R48: 0 | S48: 0 | T48: 442940 | U48: 442940 | V48: =MIN(H48*parameters!C$22,ROUND(O48+S48-U48,0)) -> 4696961 | W48: 82.49999653 | Y48: 0 | Z48: 0 | AA48: 0 | AB48: -3.468998216e-06 | AD48: 0.09430352945 | AE48: 7.780037384 | AF48: 0 | AH48: 0.0612
A49: 40 | B49: BRAINTREE | C49: 5574551500 | D49: 21226891.5 | E49: 1350544000 | F49: 20163672.7 | G49: 41390564 | H49: 57989532.78 | I49: 47841365 | J49: 41390564 | K49: 71.38 | M49: 40511743 | N49: 0.0488 | O49: 42488716 | P49: 73.26962981 | Q49: 0 | R49: 0 | S49: 0 | T49: 1098152 | U49: 1098152 | V49: =MIN(H49*parameters!C$22,ROUND(O49+S49-U49,0)) -> 41390564 | W49: 71.37592254 | Y49: 0 | Z49: 0 | AA49: 0 | AB49: -0.004077462035 | AD49: 0.02653145775 | AE49: 1.889629811 | AF49: 0 | AH49: 0.0488
A50: 41 | B50: BREWSTER | C50: 3545641200 | D50: 13501165.26 | E50: 282238000 | F50: 4213823.953 | G50: 17714989 | H50: 11048644.93 | I50: 9115132 | J50: 9115132 | K50: 82.5 | M50: 9790254 | N50: 0.0348 | O50: 10130955 | P50: 91.6940952 | Q50: 0 | R50: 0 | S50: 0 | T50: 1015823 | U50: 1015823 | V50: =MIN(H50*parameters!C$22,ROUND(O50+S50-U50,0)) -> 9115132 | W50: 82.49999939 | Y50: 0 | Z50: 0 | AA50: 0 | AB50: -6.086719253e-07 | AD50: 0.1114435863 | AE50: 9.194095196 | AF50: 0 | AH50: 0.0348
A51: 42 | B51: BRIDGEWATER | C51: 2412842700 | D51: 9187671.905 | E51: 724184000 | F51: 10812094.35 | G51: 19999766 | H51: 33256548.6 | I51: 27436653 | J51: 19999766 | K51: 60.14 | M51: 20091762 | N51: 0.0504 | O51: 21104387 | P51: 63.45934226 | Q51: 0 | R51: 0 | S51: 0 | T51: 1104621 | U51: 1104621 | V51: =MIN(H51*parameters!C$22,ROUND(O51+S51-U51,0)) -> 19999766 | W51: 60.13782801 | Y51: 0 | Z51: 0 | AA51: 0 | AB51: -0.002171987384 | AD51: 0.05523169621 | AE51: 3.31934226 | AF51: 0 | AH51: 0.0504
A52: 43 | B52: BRIMFIELD | C52: 395322100 | D52: 1505315.598 | E52: 115390000 | F52: 1722777.039 | G52: 3228093 | H52: 5753925.45 | I52: 4746988 | J52: 3228093 | K52: 56.1 | M52: 3295884 | N52: 0.038 | O52: 3421128 | P52: 59.45728755 | Q52: 0 | R52: 0 | S52: 0 | T52: 193035 | U52: 193035 | V52: =MIN(H52*parameters!C$22,ROUND(O52+S52-U52,0)) -> 3228093 | W52: 56.10244742 | Y52: 0 | Z52: 0 | AA52: 0 | AB52: 0.002447417006 | AD52: 0.05979846306 | AE52: 3.357287546 | AF52: 0 | AH52: 0.038
A53: 44 | B53: BROCKTON | C53: 5739735500 | D53: 21855882.52 | E53: 1704537000 | F53: 25448801.51 | G53: 47304684 | H53: 223279884.4 | I53: 184205905 | J53: 47304684 | K53: 21.19 | M53: 40187958 | N53: 0.046 | O53: 42036604 | P53: 18.82686571 | Q53: 2.36313429 | R53: 0 | S53: 0 | T53: 0 | U53: 0 | V53: =MIN(H53*parameters!C$22,ROUND(O53+S53-U53,0)) -> 42036604 | W53: 18.82686571 | Y53: -5268080 | Z53: 5268080 | AA53: 0 | AB53: -2.36313429 | AD53: -0.1113648703 | AE53: -2.36313429 | AF53: 803759.16 | AH53: 0.046
A54: 45 | B54: BROOKFIELD | C54: 255456800 | D54: 972733.6408 | E54: 81687000 | F54: 1219589.982 | G54: 2192324 | H54: 5276118.43 | I54: 4352798 | J54: 2192324 | K54: 41.55 | M54: 2292299 | N54: 0.0322 | O54: 2366111 | P54: 44.84567645 | Q54: 0 | R54: 0 | S54: 0 | T54: 173787 | U54: 173787 | V54: =MIN(H54*parameters!C$22,ROUND(O54+S54-U54,0)) -> 2192324 | W54: 41.55183454 | Y54: 0 | Z54: 0 | AA54: 0 | AB54: 0.001834536815 | AD54: 0.0792706735 | AE54: 3.295676446 | AF54: 0 | AH54: 0.0322
A55: 46 | B55: BROOKLINE | C55: 17051417000 | D55: 64928735.26 | E55: 4126032000 | F55: 61601812.91 | G55: 126530548 | H55: 71400245.84 | I55: 58905203 | J55: 58905203 | K55: 82.5 | M55: 57398755 | N55: 0.0371 | O55: 59528249 | P55: 83.3726107 | Q55: 0 | R55: 0 | S55: 0 | T55: 623046 | U55: 623046 | V55: =MIN(H55*parameters!C$22,ROUND(O55+S55-U55,0)) -> 58905203 | W55: 82.50000026 | Y55: 0 | Z55: 0 | AA55: 0 | AB55: 2.573506492e-07 | AD55: 0.01057709622 | AE55: 0.8726106982 | AF55: 0 | AH55: 0.0371
A56: 47 | B56: BUCKLAND | C56: 213003400 | D56: 811078.7138 | E56: 37235454 | F56: 555926.7284 | G56: 1367005 | H56: 1866842 | I56: 1540145 | J56: 1367005 | K56: 73.23 | M56: 1348433 | N56: 0.0379 | O56: 1399539 | P56: 74.96826191 | Q56: 0 | R56: 0 | S56: 0 | T56: 32534 | U56: 32534 | V56: =MIN(H56*parameters!C$22,ROUND(O56+S56-U56,0)) -> 1367005 | W56: 73.22553274 | Y56: 0 | Z56: 0 | AA56: 0 | AB56: -0.004467255397 | AD56: 0.02379947403 | AE56: 1.73826191 | AF56: 0 | AH56: 0.0379
A57: 48 | B57: BURLINGTON | C57: 5185943200 | D57: 19747140.85 | E57: 976577000 | F57: 14580331.33 | G57: 34327472 | H57: 35894608.27 | I57: 29613052 | J57: 29613052 | K57: 82.5 | M57: 32112063 | N57: 0.0464 | O57: 33602063 | P57: 93.61312079 | Q57: 0 | R57: 0 | S57: 0 | T57: 3989011 | U57: 3989011 | V57: =MIN(H57*parameters!C$22,ROUND(O57+S57-U57,0)) -> 29613052 | W57: 82.50000049 | Y57: 0 | Z57: 0 | AA57: 0 | AB57: 4.853486502e-07 | AD57: 0.1347044877 | AE57: 11.11312079 | AF57: 0 | AH57: 0.0464
A58: 49 | B58: CAMBRIDGE | C58: 29733817500 | D58: 113221039.9 | E58: 5856595000 | F58: 87439183.58 | G58: 200660223 | H58: 79533780.83 | I58: 65615369 | J58: 65615369 | K58: 82.5 | M58: 67728118 | N58: 0.0527 | O58: 71297390 | P58: 89.64416033 | Q58: 0 | R58: 0 | S58: 0 | T58: 5682021 | U58: 5682021 | V58: =MIN(H58*parameters!C$22,ROUND(O58+S58-U58,0)) -> 65615369 | W58: 82.49999977 | Y58: 0 | Z58: 0 | AA58: 0 | AB58: -2.273952049e-07 | AD58: 0.08659588579 | AE58: 7.144160331 | AF58: 0 | AH58: 0.0527
A59: 50 | B59: CANTON | C59: 4083657900 | D59: 15549836.28 | E59: 1154974000 | F59: 17243805.25 | G59: 32793642 | H59: 32791139.39 | I59: 27052690 | J59: 27052690 | K59: 82.5 | M59: 26711422 | N59: 0.0455 | O59: 27926792 | P59: 85.16566524 | Q59: 0 | R59: 0 | S59: 0 | T59: 874102 | U59: 874102 | V59: =MIN(H59*parameters!C$22,ROUND(O59+S59-U59,0)) -> 27052690 | W59: 82.50000001 | Y59: 0 | Z59: 0 | AA59: 0 | AB59: 1.152140783e-08 | AD59: 0.03231109365 | AE59: 2.665665238 | AF59: 0 | AH59: 0.0455
A60: 51 | B60: CARLISLE | C60: 1241047500 | D60: 4725686.116 | E60: 537906000 | F60: 8030956.807 | G60: 12756643 | H60: 8999985.624 | I60: 7424988 | J60: 7424988 | K60: 82.5 | M60: 7928990 | N60: 0.0406 | O60: 8250907 | P60: 91.67689089 | Q60: 0 | R60: 0 | S60: 0 | T60: 825919 | U60: 825919 | V60: =MIN(H60*parameters!C$22,ROUND(O60+S60-U60,0)) -> 7424988 | W60: 82.49999845 | Y60: 0 | Z60: 0 | AA60: 0 | AB60: -1.550585807e-06 | AD60: 0.1112350619 | AE60: 9.176890886 | AF60: 0 | AH60: 0.0406
A61: 52 | B61: CARVER | C61: 1134092700 | D61: 4318421.436 | E61: 313985000 | F61: 4687807.857 | G61: 9006229 | H61: 17651142.46 | I61: 14562193 | J61: 9006229 | K61: 51.02 | M61: 9171160 | N61: 0.0541 | O61: 9667320 | P61: 54.76880616 | Q61: 0 | R61: 0 | S61: 0 | T61: 661091 | U61: 661091 | V61: =MIN(H61*parameters!C$22,ROUND(O61+S61-U61,0)) -> 9006229 | W61: 51.02349052 | Y61: 0 | Z61: 0 | AA61: 0 | AB61: 0.003490515058 | AD61: 0.073403752 | AE61: 3.748806159 | AF61: 0 | AH61: 0.0541
A62: 53 | B62: CHARLEMONT | C62: 130454200 | D62: 496746.1775 | E62: 26129000 | F62: 390106.9525 | G62: 886853 | H62: 1597153.8 | I62: 1317652 | J62: 886853 | K62: 55.53 | M62: 909624 | N62: 0.0447 | O62: 950284 | P62: 59.49859056 | Q62: 0 | R62: 0 | S62: 0 | T62: 63431 | U62: 63431 | V62: =MIN(H62*parameters!C$22,ROUND(O62+S62-U62,0)) -> 886853 | W62: 55.52708825 | Y62: 0 | Z62: 0 | AA62: 0 | AB62: -0.002911750891 | AD62: 0.07152369107 | AE62: 3.968590555 | AF62: 0 | AH62: 0.0447
A63: 54 | B63: CHARLTON | C63: 1413260000 | D63: 5381440.405 | E63: 430889000 | F63: 6433188.973 | G63: 11814629 | H63: 23021295.92 | I63: 18992569 | J63: 11814629 | K63: 51.32 | M63: 10465355 | N63: 0.03 | O63: 10779316 | P63: 46.82323722 | Q63: 4.496762779 | R63: 0.01 | S63: 104654 | T63: 0 | U63: 0 | V63: =MIN(H63*parameters!C$22,ROUND(O63+S63-U63,0)) -> 10883970 | W63: 47.2778337 | Y63: -1035313 | Z63: 930659 | AA63: 0 | AB63: -4.042166303 | AD63: -0.08762975122 | AE63: -4.496762779 | AF63: 104653.55 | AH63: 0.03
A64: 55 | B64: CHATHAM | C64: 6196588000 | D64: 23595494.84 | E64: 291647000 | F64: 4354300.677 | G64: 27949796 | H64: 5180773 | I64: 4274138 | J64: 4274138 | K64: 82.5 | M64: 4378801 | N64: 0.0341 | O64: 4528118 | P64: 87.40236254 | Q64: 0 | R64: 0 | S64: 0 | T64: 253980 | U64: 253980 | V64: =MIN(H64*parameters!C$22,ROUND(O64+S64-U64,0)) -> 4274138 | W64: 82.50000531 | Y64: 0 | Z64: 0 | AA64: 0 | AB64: 5.308088191e-06 | AD64: 0.05942250812 | AE64: 4.902362543 | AF64: 0 | AH64: 0.0341
A65: 56 | B65: CHELMSFORD | C65: 4733578400 | D65: 18024616.89 | E65: 1493965000 | F65: 22304953.63 | G65: 40329571 | H65: 50099037.63 | I65: 41331706 | J65: 40329571 | K65: 80.5 | M65: 41719530 | N65: 0.0381 | O65: 43309044 | P65: 86.44685817 | Q65: 0 | R65: 0 | S65: 0 | T65: 2979473 | U65: 2979473 | V65: =MIN(H65*parameters!C$22,ROUND(O65+S65-U65,0)) -> 40329571 | W65: 80.49969203 | Y65: 0 | Z65: 0 | AA65: 0 | AB65: -0.0003079666468 | AD65: 0.07387812283 | AE65: 5.946858169 | AF65: 0 | AH65: 0.0381
A66: 57 | B66: CHELSEA | C66: 2234376700 | D66: 8508105.411 | E66: 555072000 | F66: 8287245.833 | G66: 16795351 | H66: 87760498.85 | I66: 72402412 | J66: 16795351 | K66: 19.14 | M66: 13442602 | N66: 0.0714 | O66: 14402404 | P66: 16.41103251 | Q66: 2.728967487 | R66: 0.01 | S66: 134426 | T66: 0 | U66: 0 | V66: =MIN(H66*parameters!C$22,ROUND(O66+S66-U66,0)) -> 14536830 | W66: 16.56420621 | Y66: -2392947 | Z66: 2258521 | AA66: 0 | AB66: -2.575793791 | AD66: -0.1424767485 | AE66: -2.728967487 | AF66: 268852.04 | AH66: 0.0714
A67: 58 | B67: CHESHIRE | C67: 297594300 | D67: 1133185.677 | E67: 82973000 | F67: 1238790.01 | G67: 2371976 | H67: 4709818.96 | I67: 3885601 | J67: 2371976 | K67: 50.36 | M67: 2109288 | N67: 0.0346 | O67: 2182269 | P67: 46.33445613 | Q67: 4.025543866 | R67: 0.01 | S67: 21093 | T67: 0 | U67: 0 | V67: =MIN(H67*parameters!C$22,ROUND(O67+S67-U67,0)) -> 2203362 | W67: 46.78230774 | Y67: -189707 | Z67: 168614 | AA67: 0 | AB67: -3.577692257 | AD67: -0.07997846521 | AE67: -4.025543866 | AF67: 21092.88 | AH67: 0.0346
A68: 59 | B68: CHESTER | C68: 122891100 | D68: 467947.2503 | E68: 28836000 | F68: 430522.5643 | G68: 898470 | H68: 1971672.86 | I68: 1626630 | J68: 898470 | K68: 45.57 | M68: 921810 | N68: 0.0426 | O68: 961079 | P68: 48.74434393 | Q68: 0 | R68: 0 | S68: 0 | T68: 62609 | U68: 62609 | V68: =MIN(H68*parameters!C$22,ROUND(O68+S68-U68,0)) -> 898470 | W68: 45.56891857 | Y68: 0 | Z68: 0 | AA68: 0 | AB68: -0.001081432038 | AD68: 0.06968401839 | AE68: 3.174343927 | AF68: 0 | AH68: 0.0426
A69: 60 | B69: CHESTERFIELD | C69: 151017800 | D69: 575048.6752 | E69: 22931000 | F69: 342360.6923 | G69: 917409 | H69: 1680997.62 | I69: 1386823 | J69: 917409 | K69: 54.58 | M69: 951082 | N69: 0.0387 | O69: 987889 | P69: 58.76801896 | Q69: 0 | R69: 0 | S69: 0 | T69: 70480 | U69: 70480 | V69: =MIN(H69*parameters!C$22,ROUND(O69+S69-U69,0)) -> 917409 | W69: 54.57527061 | Y69: 0 | Z69: 0 | AA69: 0 | AB69: -0.004729393728 | AD69: 0.0768250584 | AE69: 4.188018958 | AF69: 0 | AH69: 0.0387
A70: 61 | B70: CHICOPEE | C70: 3824974200 | D70: 14564815.18 | E70: 1021325000 | F70: 15248420.66 | G70: 29813236 | H70: 89726607.38 | I70: 74024451 | J70: 29813236 | K70: 33.23 | M70: 29088958 | N70: 0.0525 | O70: 30616128 | P70: 34.12157095 | Q70: 0 | R70: 0 | S70: 0 | T70: 802892 | U70: 802892 | V70: =MIN(H70*parameters!C$22,ROUND(O70+S70-U70,0)) -> 29813236 | W70: 33.22675054 | Y70: 0 | Z70: 0 | AA70: 0 | AB70: -0.003249462405 | AD70: 0.02693072298 | AE70: 0.891570952 | AF70: 0 | AH70: 0.0525
A71: 62 | B71: CHILMARK | C71: 3238385900 | D71: 12331192.23 | E71: 52411000 | F71: 782498.2008 | G71: 13113690 | H71: 1090783 | I71: 899896 | J71: 899896 | K71: 82.5 | M71: 941536 | N71: 0.0411 | O71: 980233 | P71: 89.86507857 | Q71: 0 | R71: 0 | S71: 0 | T71: 80337 | U71: 80337 | V71: =MIN(H71*parameters!C$22,ROUND(O71+S71-U71,0)) -> 899896 | W71: 82.50000229 | Y71: 0 | Z71: 0 | AA71: 0 | AB71: 2.29193158e-06 | AD71: 0.0892736494 | AE71: 7.365078572 | AF71: 0 | AH71: 0.0411
A72: 63 | B72: CLARKSBURG | C72: 124331300 | D72: 473431.2734 | E72: 32380000 | F72: 483434.6176 | G72: 956866 | H72: 2548883.85 | I72: 2102829 | J72: 956866 | K72: 37.54 | M72: 803953 | N72: 0.0381 | O72: 834584 | P72: 32.74311617 | Q72: 4.796883832 | R72: 0.01 | S72: 8040 | T72: 0 | U72: 0 | V72: =MIN(H72*parameters!C$22,ROUND(O72+S72-U72,0)) -> 842624 | W72: 33.05854835 | Y72: -122282 | Z72: 114242 | AA72: 0 | AB72: -4.481451648 | AD72: -0.1277942784 | AE72: -4.796883832 | AF72: 16079.06 | AH72: 0.0381
A73: 64 | B73: CLINTON | C73: 1076951500 | D73: 4100838.003 | E73: 358114000 | F73: 5346655.486 | G73: 9447493 | H73: 21129205.02 | I73: 17431594 | J73: 9447493 | K73: 44.71 | M73: 9674943 | N73: 0.0494 | O73: 10152885 | P73: 48.05142924 | Q73: 0 | R73: 0 | S73: 0 | T73: 705392 | U73: 705392 | V73: =MIN(H73*parameters!C$22,ROUND(O73+S73-U73,0)) -> 9447493 | W73: 44.71296005 | Y73: 0 | Z73: 0 | AA73: 0 | AB73: 0.002960052484 | AD73: 0.0746644639 | AE73: 3.341429244 | AF73: 0 | AH73: 0.0494
A74: 65 | B74: COHASSET | C74: 2622371300 | D74: 9985519.204 | E74: 796681000 | F74: 11894477.29 | G74: 21879996 | H74: 14142007.29 | I74: 11667156 | J74: 11667156 | K74: 82.5 | M74: 11892049 | N74: 0.0453 | O74: 12430759 | P74: 87.8995375 | Q74: 0 | R74: 0 | S74: 0 | T74: 763603 | U74: =MAX(T74*(U$5),0) -> 763603 | V74: =MIN(H74*parameters!C$22,ROUND(O74+S74-U74,0)) -> 11667156 | W74: 82.4999999 | Y74: 0 | Z74: =MAX(J74-(O74+S74),0) -> 0 | AA74: 0 | AB74: -9.726343819e-08 | AD74: =(O74-J74)/J74 -> 0.0654489406 | AE74: 5.399537496 | AF74: =IF(AD74<$AF$5, $AF$6*(M74), IF(AND(AD74<$AF$4, AD74>$AF$5), $AF$7*(M74), 0)) -> 0 | AH74: 0.0453
A75: 66 | B75: COLRAIN | C75: 169419700 | D75: =D$5*C75 -> 645119.8073 | E75: 40330000 | F75: 602128.4165 | G75: =ROUND(D75+F75,0) -> 1247248 | H75: =(SUMIF(town1755,A75,found1755)/2) -> 2057382.96 | I75: =ROUND(H75*maxloc,0) -> 1697341 | J75: =MIN(G75,I75) -> 1247248 | K75: =IF(H75>0, ROUND((J75*100/H75), 2), 0) -> 60.62 | M75: =(SUMIF(town1755,A75,pynetmin)/2) -> 1261096 | N75: =IF($N$5=1,AH75, IF( $N$5=2, AI75, IF($N$5=3, AJ75, IF($N$5=4, AK75, 0)))) -> 0.048 | O75: =ROUND(M75*(1+N75),0) -> 1321629 | P75: =O75*100/H75 -> 64.23835648 | Q75: =IF(K75>P75,K75-P75,0) -> 0 | R75: =IF(AND(Q75>$S$4,Q75<=$S$5),$R$4,IF(Q75>$S$5,$R$5,0)) -> 0 | S75: =ROUND(R75*M75,0) -> 0 | T75: =MAX(O75-J75,0) -> 74381 | U75: 74381 | V75: =MIN(H75*parameters!C$22,ROUND(O75+S75-U75,0)) -> 1247248 | W75: =V75*100/H75 -> 60.62303539 | Y75: =IF(P75<K75, O75-J75, 0) -> 0 | Z75: 0 | AA75: =IF(P75>K75, V75-J75,0) -> 0 | AB75: =W75-K75 -> 0.003035392497 | AD75: 0.05963609483 | AE75: =P75-K75 -> 3.61835648 | AF75: 0 | AH75: 0.048
A76: 67 | B76: CONCORD | C76: 5540602300 | D76: 21097619.04 | E76: 2298602000 | F76: =E76*F$5 -> 34318214.29 | G76: 55415833 | H76: 28791954.79 | I76: 23753363 | J76: 23753363 | K76: 82.5 | M76: 24281581 | N76: 0.0457 | O76: 25391249 | P76: 88.18869434 | Q76: 0 | R76: 0 | S76: 0 | T76: 1637886 | U76: 1637886 | V76: =MIN(H76*parameters!C$22,ROUND(O76+S76-U76,0)) -> 23753363 | W76: 82.50000105 | Y76: 0 | Z76: 0 | AA76: 0 | AB76: 1.045908505e-06 | AD76: 0.06895385719 | AE76: 5.688694336 | AF76: 0 | AH76: 0.0457
A77: 68 | B77: CONWAY | C77: 251195300 | D77: 956506.6137 | E77: 65463000 | F77: 977365.0516 | G77: 1933872 | H77: 2301705.95 | I77: 1898907 | J77: 1898907 | K77: 82.5 | M77: 1906379 | N77: 0.0412 | O77: 1984922 | P77: 86.23699304 | Q77: 0 | R77: 0 | S77: 0 | T77: 86015 | U77: 86015 | V77: =MIN(H77*parameters!C$22,ROUND(O77+S77-U77,0)) -> 1898907 | W77: 82.49998224 | Y77: 0 | Z77: 0 | AA77: 0 | AB77: -1.77585673e-05 | AD77: 0.04529711039 | AE77: 3.736993044 | AF77: 0 | AH77: 0.0412
A78: 69 | B78: CUMMINGTON | C78: 129127900 | D78: 491695.8652 | E78: 23608000 | F78: 352468.3277 | G78: 844164 | H78: 874411.64 | I78: 721390 | J78: 721390 | K78: 82.5 | M78: 801158 | N78: 0.0315 | O78: 826394 | P78: 94.50857722 | Q78: 0 | R78: 0 | S78: 0 | T78: 105004 | U78: 105004 | V78: =MIN(H78*parameters!C$22,ROUND(O78+S78-U78,0)) -> 721390 | W78: 82.5000454 | Y78: 0 | Z78: 0 | AA78: 0 | AB78: 4.540195737e-05 | AD78: 0.1455578813 | AE78: 12.00857722 | AF78: 0 | AH78: 0.0315
A79: 70 | B79: DALTON | C79: 597077300 | D79: 2273563.185 | E79: 185946000 | F79: 2776180.772 | G79: 5049744 | H79: 9857150.62 | I79: 8132149 | J79: 5049744 | K79: 51.23 | M79: 5238246 | N79: 0.0297 | O79: 5393822 | P79: 54.71989024 | Q79: 0 | R79: 0 | S79: 0 | T79: 344078 | U79: 344078 | V79: =MIN(H79*parameters!C$22,ROUND(O79+S79-U79,0)) -> 5049744 | W79: 51.22924661 | Y79: 0 | Z79: 0 | AA79: 0 | AB79: -0.0007533883661 | AD79: 0.06813771154 | AE79: 3.489890239 | AF79: 0 | AH79: 0.0297
A80: 71 | B80: DANVERS | C80: 4163499300 | D80: 15853858 | E80: 981773000 | F80: 14657907.81 | G80: 30511766 | H80: 36543728.84 | I80: 30148576 | J80: 30148576 | K80: 82.5 | M80: 30157586 | N80: 0.0428 | O80: 31448331 | P80: 86.05671068 | Q80: 0 | R80: 0 | S80: 0 | T80: 1299755 | U80: 1299755 | V80: =MIN(H80*parameters!C$22,ROUND(O80+S80-U80,0)) -> 30148576 | W80: 82.4999992 | Y80: 0 | Z80: 0 | AA80: 0 | AB80: -8.017791657e-07 | AD80: 0.04311165476 | AE80: 3.556710681 | AF80: 0 | AH80: 0.0428
A81: 72 | B81: DARTMOUTH | C81: 4985767900 | D81: 18984909.23 | E81: 1011855000 | F81: 15107033.2 | G81: 34091942 | H81: 40275942.26 | I81: 33227652 | J81: 33227652 | K81: 82.5 | M81: 33035238 | N81: 0.0392 | O81: 34330219 | P81: 85.23753157 | Q81: 0 | R81: 0 | S81: 0 | T81: 1102567 | U81: 1102567 | V81: =MIN(H81*parameters!C$22,ROUND(O81+S81-U81,0)) -> 33227652 | W81: 82.49999909 | Y81: 0 | Z81: 0 | AA81: 0 | AB81: -9.050067717e-07 | AD81: 0.03318221221 | AE81: 2.737531573 | AF81: 0 | AH81: 0.0392
A82: 73 | B82: DEDHAM | C82: 4205403500 | D82: 16013421.67 | E82: 1118682000 | F82: 16701964.33 | G82: 32715386 | H82: 28675397.73 | I82: 23657203 | J82: 23657203 | K82: 82.5 | M82: 25639543 | N82: 0.0502 | O82: 26926648 | P82: 93.90156765 | Q82: 0 | R82: 0 | S82: 0 | T82: 3269445 | U82: 3269445 | V82: =MIN(H82*parameters!C$22,ROUND(O82+S82-U82,0)) -> 23657203 | W82: 82.49999955 | Y82: 0 | Z82: 0 | AA82: 0 | AB82: -4.529666882e-07 | AD82: 0.1382008262 | AE82: 11.40156765 | AF82: 0 | AH82: 0.0502
A83: 74 | B83: DEERFIELD | C83: 680644100 | D83: 2591770.559 | E83: 178567000 | F83: 2666012.025 | G83: 5257783 | H83: 6113714.85 | I83: 5043815 | J83: 5043815 | K83: 82.5 | M83: 5242305 | N83: 0.0301 | O83: 5400098 | P83: 88.32760658 | Q83: 0 | R83: 0 | S83: 0 | T83: 356283 | U83: 356283 | V83: =MIN(H83*parameters!C$22,ROUND(O83+S83-U83,0)) -> 5043815 | W83: 82.50000407 | Y83: 0 | Z83: 0 | AA83: 0 | AB83: 4.068721012e-06 | AD83: 0.07063760269 | AE83: 5.827606578 | AF83: 0 | AH83: 0.0301
A84: 75 | B84: DENNIS | C84: 6250958500 | D84: 23802527.94 | E84: 401886000 | F84: 6000173.092 | G84: 29802701 | H84: 13899532 | I84: 11467114 | J84: 11467114 | K84: 82.5 | M84: 12093633 | N84: 0.0387 | O84: 12561657 | P84: 90.37467592 | Q84: 0 | R84: 0 | S84: 0 | T84: 1094543 | U84: 1094543 | V84: =MIN(H84*parameters!C$22,ROUND(O84+S84-U84,0)) -> 11467114 | W84: 82.50000072 | Y84: 0 | Z84: 0 | AA84: 0 | AB84: 7.194486784e-07 | AD84: 0.09545060771 | AE84: 7.874675924 | AF84: 0 | AH84: 0.0387
A85: 76 | B85: DIGHTON | C85: 838835300 | D85: 3194134.254 | E85: 210166000 | F85: 3137786.283 | G85: 6331921 | H85: 12654219 | I85: 10439731 | J85: 6331921 | K85: 50.04 | M85: 6606281 | N85: 0.0323 | O85: 6819664 | P85: 53.89241327 | Q85: 0 | R85: 0 | S85: 0 | T85: 487743 | U85: 487743 | V85: =MIN(H85*parameters!C$22,ROUND(O85+S85-U85,0)) -> 6331921 | W85: 50.03802289 | Y85: 0 | Z85: 0 | AA85: 0 | AB85: -0.001977108188 | AD85: 0.07702923015 | AE85: 3.852413273 | AF85: 0 | AH85: 0.0323
A86: 77 | B86: DOUGLAS | C86: 902244800 | D86: 3435586.249 | E86: 271156000 | F86: 4048369.276 | G86: 7483956 | H86: 14871466.7 | I86: 12268960 | J86: 7483956 | K86: 50.32 | M86: 6739185 | N86: 0.0352 | O86: 6976404 | P86: 46.91133794 | Q86: 3.408662062 | R86: 0.01 | S86: 67392 | T86: 0 | U86: 0 | V86: =MIN(H86*parameters!C$22,ROUND(O86+S86-U86,0)) -> 7043796 | W86: 47.36450104 | Y86: -507552 | Z86: 440160 | AA86: 0 | AB86: -2.955498959 | AD86: -0.06781867772 | AE86: -3.408662062 | AF86: 67391.85 | AH86: 0.0352
A87: 78 | B87: DOVER | C87: 2310390900 | D87: 8797553.84 | E87: 1249842000 | F87: 18660188.06 | G87: 27457742 | H87: 10614741.79 | I87: 8757162 | J87: 8757162 | K87: 82.5 | M87: 9538319 | N87: 0.0459 | O87: 9976128 | P87: 93.98370864 | Q87: 0 | R87: 0 | S87: 0 | T87: 1218966 | U87: 1218966 | V87: =MIN(H87*parameters!C$22,ROUND(O87+S87-U87,0)) -> 8757162 | W87: 82.50000019 | Y87: 0 | Z87: 0 | AA87: 0 | AB87: 1.908995984e-07 | AD87: 0.1391964657 | AE87: 11.48370864 | AF87: 0 | AH87: 0.0459
A88: 79 | B88: DRACUT | C88: 2920269000 | D88: 11119860.17 | E88: 896546000 | F88: 13385465.49 | G88: 24505326 | H88: 44865950.12 | I88: 37014409 | J88: 24505326 | K88: 54.62 | M88: 23013376 | N88: 0.0445 | O88: 24037471 | P88: 53.57619963 | Q88: 1.043800375 | R88: 0 | S88: 0 | T88: 0 | U88: 0 | V88: =MIN(H88*parameters!C$22,ROUND(O88+S88-U88,0)) -> 24037471 | W88: 53.57619963 | Y88: -467855 | Z88: 467855 | AA88: 0 | AB88: -1.043800375 | AD88: -0.01909197209 | AE88: -1.043800375 | AF88: 0 | AH88: 0.0445
A89: 80 | B89: DUDLEY | C89: 885262100 | D89: 3370919.175 | E89: 289388000 | F89: 4320573.722 | G89: 7691493 | H89: 19396737.96 | I89: 16002309 | J89: 7691493 | K89: 39.65 | M89: 5443918 | N89: 0.0341 | O89: 5629556 | P89: 29.02321004 | Q89: 10.62678996 | R89: 0.02 | S89: 108878 | T89: 0 | U89: 0 | V89: =MIN(H89*parameters!C$22,ROUND(O89+S89-U89,0)) -> 5738434 | W89: 29.58453123 | Y89: -2061937 | Z89: 1953059 | AA89: 0 | AB89: -10.06546877 | AD89: -0.2680802024 | AE89: -10.62678996 | AF89: 108878.36 | AH89: 0.0341
A90: 81 | B90: DUNSTABLE | C90: 467427400 | D90: 1779879.638 | E90: 163678000 | F90: 2443718.695 | G90: 4223598 | H90: 5562618.96 | I90: 4589161 | J90: 4223598 | K90: 75.93 | M90: 4263732 | N90: 0.0333 | O90: 4405714 | P90: 79.20215337 | Q90: 0 | R90: 0 | S90: 0 | T90: 182116 | U90: 182116 | V90: =MIN(H90*parameters!C$22,ROUND(O90+S90-U90,0)) -> 4223598 | W90: 75.92822788 | Y90: 0 | Z90: 0 | AA90: 0 | AB90: -0.001772120807 | AD90: 0.04311868696 | AE90: 3.272153368 | AF90: 0 | AH90: 0.0333
A91: 82 | B91: DUXBURY | C91: 3475390900 | D91: 13233664.73 | E91: 1185774000 | F91: 17703650.41 | G91: 30937315 | H91: 29322453.03 | I91: 24191024 | J91: 24191024 | K91: 82.5 | M91: 24862384 | N91: 0.0273 | O91: 25541127 | P91: 87.10433254 | Q91: 0 | R91: 0 | S91: 0 | T91: 1350103 | U91: 1350103 | V91: =MIN(H91*parameters!C$22,ROUND(O91+S91-U91,0)) -> 24191024 | W91: 82.50000084 | Y91: 0 | Z91: 0 | AA91: 0 | AB91: 8.4038669e-07 | AD91: 0.05581008063 | AE91: 4.604332539 | AF91: 0 | AH91: 0.0273
A92: 83 | B92: EAST BRIDGEWATER | C92: 1506014000 | D92: 5734630.988 | E92: 403260000 | F92: 6020686.964 | G92: 11755318 | H92: 22262614.13 | I92: 18366657 | J92: 11755318 | K92: 52.8 | M92: 11572695 | N92: 0.0421 | O92: 12059905 | P92: 54.17110915 | Q92: 0 | R92: 0 | S92: 0 | T92: 304587 | U92: 304587 | V92: =MIN(H92*parameters!C$22,ROUND(O92+S92-U92,0)) -> 11755318 | W92: 52.80295446 | Y92: 0 | Z92: 0 | AA92: 0 | AB92: 0.002954456993 | AD92: 0.02591057086 | AE92: 1.37110915 | AF92: 0 | AH92: 0.0421
A93: 84 | B93: EAST BROOKFIELD | C93: 207396100 | D93: 789727.1219 | E93: 60947000 | F93: 909941.0018 | G93: 1699668 | H93: 3670217.66 | I93: 3027930 | J93: 1699668 | K93: 46.31 | M93: 1354343 | N93: 0.0417 | O93: 1410819 | P93: 38.43965483 | Q93: 7.87034517 | R93: 0.02 | S93: 27087 | T93: 0 | U93: 0 | V93: =MIN(H93*parameters!C$22,ROUND(O93+S93-U93,0)) -> 1437906 | W93: 39.17767645 | Y93: -288849 | Z93: 261762 | AA93: 0 | AB93: -7.132323546 | AD93: -0.1699443656 | AE93: -7.87034517 | AF93: 27086.86 | AH93: 0.0417
A94: 85 | B94: EASTHAM | C94: 2823221800 | D94: 10750321.86 | E94: 152870000 | F94: 2282354.848 | G94: 13032677 | H94: 5032546.57 | I94: 4151851 | J94: 4151851 | K94: 82.5 | M94: 4426061 | N94: 0.0306 | O94: 4561498 | P94: 90.63995607 | Q94: 0 | R94: 0 | S94: 0 | T94: 409647 | U94: 409647 | V94: =MIN(H94*parameters!C$22,ROUND(O94+S94-U94,0)) -> 4151851 | W94: 82.50000158 | Y94: 0 | Z94: 0 | AA94: 0 | AB94: 1.584684782e-06 | AD94: 0.09866611302 | AE94: 8.139956065 | AF94: 0 | AH94: 0.0306
A95: 86 | B95: EASTHAMPTON | C95: 1482339500 | D95: 5644482.741 | E95: 408288000 | F95: 6095755.193 | G95: 11740238 | H95: 18095294 | I95: 14928618 | J95: 11740238 | K95: 64.88 | M95: 11344349 | N95: 0.0442 | O95: 11845769 | P95: 65.46325802 | Q95: 0 | R95: 0 | S95: 0 | T95: 105531 | U95: 105531 | V95: =MIN(H95*parameters!C$22,ROUND(O95+S95-U95,0)) -> 11740238 | W95: 64.88006219 | Y95: 0 | Z95: 0 | AA95: 0 | AB95: 6.218633419e-05 | AD95: 0.008988829698 | AE95: 0.5832580161 | AF95: 0 | AH95: 0.0442
A96: 87 | B96: EAST LONGMEADOW | C96: 1829457200 | D96: 6966244.636 | E96: 604394000 | F96: 9023625.147 | G96: 15989870 | H96: 25486357.48 | I96: 21026245 | J96: 15989870 | K96: 62.74 | M96: 15784772 | N96: 0.0405 | O96: 16424055 | P96: 64.44253563 | Q96: 0 | R96: 0 | S96: 0 | T96: 434185 | U96: 434185 | V96: =MIN(H96*parameters!C$22,ROUND(O96+S96-U96,0)) -> 15989870 | W96: 62.73893793 | Y96: 0 | Z96: 0 | AA96: 0 | AB96: -0.001062069981 | AD96: 0.02715375422 | AE96: 1.702535631 | AF96: 0 | AH96: 0.0405
A97: 88 | B97: EASTON | C97: 3008417200 | D97: 11455512.7 | E97: 1024285000 | F97: 15292613.57 | G97: 26748126 | H97: 35219081.1 | I97: 29055742 | J97: 26748126 | K97: 75.95 | M97: 26210908 | N97: 0.0396 | O97: 27248860 | P97: 77.36959384 | Q97: 0 | R97: 0 | S97: 0 | T97: 500734 | U97: 500734 | V97: =MIN(H97*parameters!C$22,ROUND(O97+S97-U97,0)) -> 26748126 | W97: 75.94782477 | Y97: 0 | Z97: 0 | AA97: 0 | AB97: -0.002175228388 | AD97: 0.01872033951 | AE97: 1.419593836 | AF97: 0 | AH97: 0.0396
A98: 89 | B98: EDGARTOWN | C98: 6954386400 | D98: 26481055.12 | E98: 192031000 | F98: 2867030.051 | G98: 29348085 | H98: 6080113.68 | I98: 5016094 | J98: 5016094 | K98: 82.5 | M98: 5061960 | N98: 0.0456 | O98: 5292785 | P98: 87.05075725 | Q98: 0 | R98: 0 | S98: 0 | T98: 276691 | U98: 276691 | V98: =MIN(H98*parameters!C$22,ROUND(O98+S98-U98,0)) -> 5016094 | W98: 82.50000352 | Y98: 0 | Z98: 0 | AA98: 0 | AB98: 3.51967104e-06 | AD98: 0.0551606489 | AE98: 4.550757248 | AF98: 0 | AH98: 0.0456
A99: 90 | B99: EGREMONT | C99: 409767000 | D99: 1560319.184 | E99: 31536000 | F99: 470833.6659 | G99: 2031153 | H99: 1009781 | I99: 833069 | J99: 833069 | K99: 82.5 | M99: 741589 | N99: 0.0315 | O99: 764949 | P99: 75.75395061 | Q99: 6.746049391 | R99: 0.01 | S99: 7416 | T99: 0 | U99: 0 | V99: =MIN(H99*parameters!C$22,ROUND(O99+S99-U99,0)) -> 772365 | W99: 76.48836728 | Y99: -68120 | Z99: 60704 | AA99: 0 | AB99: -6.01163272 | AD99: -0.08176993742 | AE99: -6.746049391 | AF99: 7415.89 | AH99: 0.0315
A100: 91 | B100: ERVING | C100: 659098000 | D100: 2509726.878 | E100: 31044000 | F100: 463488.0874 | G100: 2973215 | H100: 2904979.36 | I100: 2396608 | J100: 2396608 | K100: 82.5 | M100: 2372516 | N100: 0.0395 | O100: 2466230 | P100: 84.8966445 | Q100: 0 | R100: 0 | S100: 0 | T100: 69622 | U100: 69622 | V100: =MIN(H100*parameters!C$22,ROUND(O100+S100-U100,0)) -> 2396608 | W100: 82.50000096 | Y100: 0 | Z100: 0 | AA100: 0 | AB100: 9.638622771e-07 | AD100: 0.02905022432 | AE100: 2.396644498 | AF100: 0 | AH100: 0.0395
A101: 92 | B101: ESSEX | C101: 766992800 | D101: 2920570.91 | E101: 185563000 | F101: 2770462.568 | G101: 5691033 | H101: 5441341 | I101: 4489106 | J101: 4489106 | K101: 82.5 | M101: 4545715 | N101: 0.0521 | O101: 4782547 | P101: 87.89280069 | Q101: 0 | R101: 0 | S101: 0 | T101: 293441 | U101: 293441 | V101: =MIN(H101*parameters!C$22,ROUND(O101+S101-U101,0)) -> 4489106 | W101: 82.49999403 | Y101: 0 | Z101: 0 | AA101: 0 | AB101: -5.972792366e-06 | AD101: 0.06536735822 | AE101: 5.39280069 | AF101: 0 | AH101: 0.0521
A102: 93 | B102: EVERETT | C102: 3794616400 | D102: 14449218.13 | E102: 771145000 | F102: 11513223.85 | G102: 25962442 | H102: 89667949.97 | I102: 73976059 | J102: 25962442 | K102: 28.95 | M102: 24693137 | N102: 0.0394 | O102: 25666047 | P102: 28.62343458 | Q102: 0.3265654175 | R102: 0 | S102: 0 | T102: 0 | U102: 0 | V102: =MIN(H102*parameters!C$22,ROUND(O102+S102-U102,0)) -> 25666047 | W102: 28.62343458 | Y102: -296395 | Z102: 296395 | AA102: 0 | AB102: -0.3265654175 | AD102: -0.01141629898 | AE102: -0.3265654175 | AF102: 0 | AH102: 0.0394
A103: 94 | B103: FAIRHAVEN | C103: 1947395200 | D103: 7415331.371 | E103: 409934000 | F103: 6120330.035 | G103: 13535661 | H103: 21093605.16 | I103: 17402224 | J103: 13535661 | K103: 64.17 | M103: 13649889 | N103: 0.0325 | O103: 14093510 | P103: 66.81413582 | Q103: 0 | R103: 0 | S103: 0 | T103: 557849 | U103: 557849 | V103: =MIN(H103*parameters!C$22,ROUND(O103+S103-U103,0)) -> 13535661 | W103: 64.16950017 | Y103: 0 | Z103: 0 | AA103: 0 | AB103: -0.0004998252845 | AD103: 0.04121328098 | AE103: 2.644135816 | AF103: 0 | AH103: 0.0325
A104: 95 | B104: FALL RIVER | C104: 5362788000 | D104: 20420534.1 | E104: 1328891000 | F104: 19840392.6 | G104: 40260927 | H104: 149128230.2 | I104: 123030790 | J104: 40260927 | K104: 27 | M104: 27214100 | N104: 0.0352 | O104: 28172036 | P104: 18.89114889 | Q104: 8.108851113 | R104: 0.02 | S104: 544282 | T104: 0 | U104: 0 | V104: =MIN(H104*parameters!C$22,ROUND(O104+S104-U104,0)) -> 28716318 | W104: 19.25612472 | Y104: -12088891 | Z104: 11544609 | AA104: 0 | AB104: -7.74387528 | AD104: -0.300263603 | AE104: -8.108851113 | AF104: 544282 | AH104: 0.0352
A105: 96 | B105: FALMOUTH | C105: 11548755700 | D105: 43975588.74 | E105: 1083324000 | F105: 16174068.06 | G105: 60149657 | H105: 37870063.15 | I105: 31242802 | J105: 31242802 | K105: 82.5 | M105: 32427928 | N105: 0.0351 | O105: 33566148 | P105: 88.63504628 | Q105: 0 | R105: 0 | S105: 0 | T105: 2323346 | U105: 2323346 | V105: =MIN(H105*parameters!C$22,ROUND(O105+S105-U105,0)) -> 31242802 | W105: 82.49999974 | Y105: 0 | Z105: 0 | AA105: 0 | AB105: -2.607600607e-07 | AD105: 0.07436420075 | AE105: 6.135046282 | AF105: 0 | AH105: 0.0351
A106: 97 | B106: FITCHBURG | C106: 2197098300 | D106: 8366155.955 | E106: 680311000 | F106: 10157068.81 | G106: 18523225 | H106: 68658610.04 | I106: 56643353 | J106: 18523225 | K106: 26.98 | M106: 17533237 | N106: 0.0463 | O106: 18345026 | P106: 26.71919223 | Q106: 0.2608077686 | R106: 0 | S106: 0 | T106: 0 | U106: 0 | V106: =MIN(H106*parameters!C$22,ROUND(O106+S106-U106,0)) -> 18345026 | W106: 26.71919223 | Y106: -178199 | Z106: 178199 | AA106: 0 | AB106: -0.2608077686 | AD106: -0.009620301001 | AE106: -0.2608077686 | AF106: 0 | AH106: 0.0463
A107: 98 | B107: FLORIDA | C107: 121646500 | D107: 463208.0369 | E107: 11534000 | F107: 172203.0537 | G107: 635411 | H107: 1183643.29 | I107: 976506 | J107: 635411 | K107: 53.68 | M107: 619963 | N107: 0.0292 | O107: 638066 | P107: 53.90695029 | Q107: 0 | R107: 0 | S107: 0 | T107: 2655 | U107: 2655 | V107: =MIN(H107*parameters!C$22,ROUND(O107+S107-U107,0)) -> 635411 | W107: 53.68264285 | Y107: 0 | Z107: 0 | AA107: 0 | AB107: 0.002642850956 | AD107: 0.004178397919 | AE107: 0.2269502941 | AF107: 0 | AH107: 0.0292
A108: 99 | B108: FOXBOROUGH | C108: 2702432200 | D108: 10290376.74 | E108: 750093000 | F108: 11198916.7 | G108: 21489293 | H108: 27085822.87 | I108: 22345804 | J108: 21489293 | K108: 79.34 | M108: 21059861 | N108: 0.0465 | O108: 22039145 | P108: 81.36782518 | Q108: 0 | R108: 0 | S108: 0 | T108: 549852 | U108: 549852 | V108: =MIN(H108*parameters!C$22,ROUND(O108+S108-U108,0)) -> 21489293 | W108: 79.33778901 | Y108: 0 | Z108: 0 | AA108: 0 | AB108: -0.002210989007 | AD108: 0.02558725408 | AE108: 2.027825177 | AF108: 0 | AH108: 0.0465
A109: 100 | B109: FRAMINGHAM | C109: 7611237700 | D109: 28982226.97 | E109: 2145257000 | F109: 32028767.68 | G109: 61010995 | H109: 104305999.6 | I109: 86052450 | J109: 61010995 | K109: 58.49 | M109: 63372490 | N109: 0.0302 | O109: 65286339 | P109: 62.59116372 | Q109: 0 | R109: 0 | S109: 0 | T109: 4275344 | U109: 4275344 | V109: =MIN(H109*parameters!C$22,ROUND(O109+S109-U109,0)) -> 61010995 | W109: 58.49231609 | Y109: 0 | Z109: 0 | AA109: 0 | AB109: 0.002316086778 | AD109: 0.07007497583 | AE109: 4.101163723 | AF109: 0 | AH109: 0.0302
A110: 101 | B110: FRANKLIN | C110: 4528882700 | D110: 17245172.4 | E110: 1338908000 | F110: 19989946.79 | G110: 37235119 | H110: 60807188.03 | I110: 50165930 | J110: 37235119 | K110: 61.23 | M110: 34784044 | N110: 0.0455 | O110: 36366718 | P110: 59.80661033 | Q110: 1.423389668 | R110: 0 | S110: 0 | T110: 0 | U110: 0 | V110: =MIN(H110*parameters!C$22,ROUND(O110+S110-U110,0)) -> 36366718 | W110: 59.80661033 | Y110: -868401 | Z110: 868401 | AA110: 0 | AB110: -1.423389668 | AD110: -0.02332209547 | AE110: -1.423389668 | AF110: 0 | AH110: 0.0455
A111: 102 | B111: FREETOWN | C111: 1182600100 | D111: 4503128.908 | E111: 280090000 | F111: 4181754.232 | G111: 8684883 | H111: 12677188.92 | I111: 10458681 | J111: 8684883 | K111: 68.51 | M111: 8809420 | N111: 0.0423 | O111: 9182058 | P111: 72.42976387 | Q111: 0 | R111: 0 | S111: 0 | T111: 497175 | U111: 497175 | V111: =MIN(H111*parameters!C$22,ROUND(O111+S111-U111,0)) -> 8684883 | W111: 68.50795594 | Y111: 0 | Z111: 0 | AA111: 0 | AB111: -0.002044057982 | AD111: 0.05724602162 | AE111: 3.919763869 | AF111: 0 | AH111: 0.0423
A112: 103 | B112: GARDNER | C112: 1196381700 | D112: 4555606.767 | E112: 373252000 | F112: 5572666.395 | G112: 10128273 | H112: 29532618.38 | I112: 24364410 | J112: 10128273 | K112: 34.3 | M112: 8268157 | N112: 0.0578 | O112: 8746056 | P112: 29.61490203 | Q112: 4.68509797 | R112: 0.01 | S112: 82682 | T112: 0 | U112: 0 | V112: =MIN(H112*parameters!C$22,ROUND(O112+S112-U112,0)) -> 8828738 | W112: 29.89487043 | Y112: -1382217 | Z112: 1299535 | AA112: 0 | AB112: -4.405129568 | AD112: -0.1364711437 | AE112: -4.68509797 | AF112: 165363.14 | AH112: 0.0578
A113: 104 | B113: AQUINNAH | C113: 786395800 | D113: 2994454.051 | E113: 5863000 | F113: 87534.81047 | G113: 3081989 | H113: 493592 | I113: 407213 | J113: 407213 | K113: 82.5 | M113: 349863 | N113: 0.0157 | O113: 355356 | P113: 71.99387348 | Q113: 10.50612652 | R113: 0.02 | S113: 6997 | T113: 0 | U113: 0 | V113: =MIN(H113*parameters!C$22,ROUND(O113+S113-U113,0)) -> 362353 | W113: 73.41144103 | Y113: -51857 | Z113: 44860 | AA113: 0 | AB113: -9.088558972 | AD113: -0.1273461309 | AE113: -10.50612652 | AF113: 6997.26 | AH113: 0.0157
A114: 105 | B114: GEORGETOWN | C114: 1172756500 | D114: 4465646.246 | E114: 346073000 | F114: 5166882.903 | G114: 9632529 | H114: 13416023.81 | I114: 11068220 | J114: 9632529 | K114: 71.8 | M114: 9295869 | N114: 0.0399 | O114: 9666774 | P114: 72.05394189 | Q114: 0 | R114: 0 | S114: 0 | T114: 34245 | U114: 34245 | V114: =MIN(H114*parameters!C$22,ROUND(O114+S114-U114,0)) -> 9632529 | W114: 71.79868742 | Y114: 0 | Z114: 0 | AA114: 0 | AB114: -0.001312576532 | AD114: 0.003555141126 | AE114: 0.25394189 | AF114: 0 | AH114: 0.0399
